Workbook

Sheet IG_EM
C4: Datos sobre la empresa | F4: Aspectos Legales
C5: Nombre | D5: Café Don Anibalito | F5: Fecha de Fundación | G5: 38530
C6: Razón social | F6: Formato Jurídico
C7: Dirección | D7: Av Benito Juarez # 44 | F7: Actividad Económica
C8: Complemento | F8: No. Registro Mercantil
C9: Ciudad - Estado | D9: Juncalito, Santiago | F9: Cedula o RNC | G9: 402-1809733-1/ 133-09434-7
C10: Teléfono con prefijo | D10: 829-839-7570 | F10: Tipo de Impuesto
C11: E-mail | F11: Inicio de año de operación | G11: 2024

Sheet IG_SO
C4: Socio 1 | F4: Socio 2
C5: Nombre | D5: Edilson de Jesus Rodriguez | F5: Nombre | G5: Jose Carlos Perez
C6: Fecha de nacimiento | D6: 36933 | F6: Fecha de nacimiento | G6: 37174
C7: Formación | D7: Estudiante/ Bachiller | F7: Formación | G7: Licenciado
C8: Cargo | D8: Gerente | F8: Cargo | G8: Gerente
C9: E-mail | D9: Rodriguezedilson20@gmail.com | F9: E-mail | G9: Perezortegajosecarlos@gmail.com
C10: Teléfono | D10: 829-839-7570 | F10: Teléfono | G10: 809-499-3231
C11: Porcentaje de Participación | D11: 0.5 | F11: Porcentaje de Participación | G11: 0.5
C12: Observaciones: | F12: Observaciones:
C15: Socio 3 | F15: Socio 4
C16: Nombre | F16: Nombre
C17: Fecha de nacimiento | F17: Fecha de nacimiento
C18: Formación | F18: Formación
C19: Cargo | F19: Cargo
C20: E-mail | F20: E-mail
C21: Teléfono | F21: Teléfono
C22: Porcentaje de Participación | F22: Porcentaje de Participación
C23: Observaciones: | F23: Observaciones:
C26: Socio 5 | F26: Socio 6
C27: Nombre | F27: Nombre
C28: Fecha de nacimiento | F28: Fecha de nacimiento
C29: Formación | F29: Formación
C30: Cargo | F30: Cargo
C31: E-mail | F31: E-mail
C32: Teléfono | F32: Teléfono
C33: Porcentaje de Participación | F33: Porcentaje de Participación
C34: Observaciones: | F34: Observaciones:
C37: Socio 7 | F37: Socio 8
C38: Nombre | F38: Nombre
C39: Fecha de nacimiento | F39: Fecha de nacimiento
C40: Formación | F40: Formación
C41: Cargo | F41: Cargo
C42: E-mail | F42: E-mail
C43: Teléfono | F43: Teléfono
C44: Porcentaje de Participación | F44: Porcentaje de Participación
C45: Observaciones: | F45: Observaciones:
C48: Socio 9 | F48: Socio 10
C49: Nombre | F49: Nombre
C50: Fecha de nacimiento | F50: Fecha de nacimiento
C51: Formación | F51: Formación
C52: Cargo | F52: Cargo
C53: E-mail | F53: E-mail
C54: Teléfono | F54: Teléfono
C55: Porcentaje de Participación | F55: Porcentaje de Participación
C56: Observaciones: | F56: Observaciones:

Sheet IG_AR
C4: Registro de las areas internas / departamentos de la empresa
C5: Comercial
C6: Financiero
C7: Producción
C8: Mercadeo
C9: Tecnología

Sheet IG_EQ
AI3: ENE | AJ3: febrero | AK3: MAR | AL3: ABR | AM3: MAI | AN3: junio | AO3: julio | AP3: AGO | AQ3: SET | AR3: OUT | AS3: noviembre | AT3: TEN | AU3: ENE | AV3: febrero | AW3: MAR | AX3: ABR | AY3: MAI | AZ3: junio | BA3: julio | BB3: AGO | BC3: SET | BD3: OUT | BE3: noviembre | BF3: TEN | BG3: ENE | BH3: febrero | BI3: MAR | BJ3: ABR | BK3: MAI | BL3: junio | BM3: julio | BN3: AGO | BO3: SET | BP3: OUT | BQ3: noviembre | BR3: TEN | BS3: ENE | BT3: febrero | BU3: MAR | BV3: ABR | BW3: MAI | BX3: junio | BY3: julio | BZ3: AGO | CA3: SET | CB3: OUT | CC3: noviembre | CD3: TEN | CE3: ENE | CF3: febrero | CG3: MAR | CH3: ABR | CI3: MAI | CJ3: junio | CK3: julio | CL3: AGO | CM3: SET | CN3: OUT | CO3: noviembre | CP3: TEN
C4: Registro de Empleados | G4: TSS | K4: Fecha al Inicio | M4: Fecha al Final | AI4: =CONCATENATE(AI3,$V$6) -> ENE2024 | AJ4: FEV2017 | AK4: MAR2017 | AL4: ABR2017 | AM4: MAI2017 | AN4: JUN2017 | AO4: JUL2017 | AP4: AGO2017 | AQ4: SET2017 | AR4: OUT2017 | AS4: NOV2017 | AT4: DEZ2017 | AU4: JAN2018 | AV4: FEV2018 | AW4: MAR2018 | AX4: ABR2018 | AY4: MAI2018 | AZ4: JUN2018 | BA4: JUL2018 | BB4: AGO2018 | BC4: SET2018 | BD4: OUT2018 | BE4: NOV2018 | BF4: DEZ2018 | BG4: JAN2019 | BH4: FEV2019 | BI4: MAR2019 | BJ4: ABR2019 | BK4: MAI2019 | BL4: JUN2019 | BM4: JUL2019 | BN4: AGO2019 | BO4: SET2019 | BP4: OUT2019 | BQ4: NOV2019 | BR4: DEZ2019 | BS4: JAN2020 | BT4: FEV2020 | BU4: MAR2020 | BV4: ABR2020 | BW4: MAI2020 | BX4: JUN2020 | BY4: JUL2020 | BZ4: AGO2020 | CA4: SET2020 | CB4: OUT2020 | CC4: NOV2020 | CD4: DEZ2020 | CE4: JAN2021 | CF4: FEV2021 | CG4: MAR2021 | CH4: ABR2021 | CI4: MAI2021 | CJ4: JUN2021 | CK4: JUL2021 | CL4: AGO2021 | CM4: SET2021 | CN4: OUT2021 | CO4: NOV2021 | CP4: DEZ2021 | CR4: Los salarios totales en
C5: Cargo | D5: Area | E5: Sueldo | F5: Número de empleados | G5: SFS | H5: AFP | I5: ARL | J5: Infotep | K5: Mes | L5: Año | M5: Mes | N5: Año | O5: SFS | P5: AFP | Q5: ARL | R5: Infotep | S5: Sueldo | T5: Gasto total en sueldos | AB5: Concatenar Mes de inicio | AC5: período | AD5: Concatenar el último mes | AE5: períodos | AF5: Valor total de los salarios | AH5: No es necesario ajustar | AI5: 1 | AJ5: 2 | AK5: 3 | AL5: 4 | AM5: 5 | AN5: 6 | AO5: 7 | AP5: 8 | AQ5: 9 | AR5: 10 | AS5: 11 | AT5: 12 | AU5: 13 | AV5: 14 | AW5: 15 | AX5: 16 | AY5: 17 | AZ5: 18 | BA5: 19 | BB5: 20 | BC5: 21 | BD5: 22 | BE5: 23 | BF5: 24 | BG5: 25 | BH5: 26 | BI5: 27 | BJ5: 28 | BK5: 29 | BL5: 30 | BM5: 31 | BN5: 32 | BO5: 33 | BP5: 34 | BQ5: 35 | BR5: 36 | BS5: 37 | BT5: 38 | BU5: 39 | BV5: 40 | BW5: 41 | BX5: 42 | BY5: 43 | BZ5: 44 | CA5: 45 | CB5: 46 | CC5: 47 | CD5: 48 | CE5: 49 | CF5: 50 | CG5: 51 | CH5: 52 | CI5: 53 | CJ5: 54 | CK5: 55 | CL5: 56 | CM5: 57 | CN5: 58 | CO5: 59 | CP5: 60 | CR5: 1 año | CS5: 2 años | CT5: 3 años | CU5: 4 años | CV5: 5 años
C6: Gerente Operativo | D6: Producción | E6: 15000 | F6: 1 | G6: =IF(C6="","",E6*7.09%) -> 1063.5 | H6: =IF(C6="","",E6*7.1%) -> 1065 | I6: =IF(C6="","",E6*1%) -> 150 | J6: =IF(C6="","",E6*1%) -> 150 | K6: Jul | L6: 2024 | M6: Jul | N6: 2028 | O6: =IF(E6="","",AG6) -> 52111.5 | P6: =IF(E6="","",AH6) -> 52185 | Q6: =IF(E6="","",AI6) -> NO | R6: =IF(E6="","",AJ6) -> NO | S6: =IF(E6="","",AK6) -> NO | T6: =AF6 -> 104296.5 | V6: =IG_EM!G11 -> 2024 | W6: ene | X6: =V6 -> 2024 | Y6: =CONCATENATE(W6,X6) -> ene2024 | Z6: 1 | AB6: =CONCATENATE(K6,L6) -> Jul2024 | AC6: =IF(AB6="","",VLOOKUP(AB6,$Y$6:$Z$65,2,FALSE)) -> 7 | AD6: =CONCATENATE(M6,N6) -> Jul2028 | AE6: =IFERROR(VLOOKUP(AD6,$Y$6:$Z$65,2,FALSE),"") -> 55 | AF6: =IFERROR(SUM(AG6:AK6),"") -> 104296.5 | AG6: =IFERROR((AE6-AC6+1)*G6*F6,"") -> 52111.5 | AH6: =IFERROR((AE6-AC6+1)*H6*F6,"") -> 52185 | AI6: =IF(AND(AI$5>=$AC6,AI$5<=$AE6),$E6*$F6,"NO") -> NO | AJ6: NO | AK6: NO | AL6: NO | AM6: NO | AN6: NO | AO6: 15000 | AP6: 15000 | AQ6: 15000 | AR6: 15000 | AS6: =IF(AND(AS$5>=$AC6,AS$5<=$AE6),$E6*$F6,"NO") -> 15000 | AT6: 15000 | AU6: 15000 | AV6: 15000 | AW6: 15000 | AX6: 15000 | AY6: 15000 | AZ6: 15000 | BA6: 15000 | BB6: =IF(AND(BB$5>=$AC6,BB$5<=$AE6),$E6*$F6,"NÃO") -> 15000 | BC6: 15000 | BD6: 15000 | BE6: 15000 | BF6: =IF(AND(BF$5>=$AC6,BF$5<=$AE6),$E6*$F6,"NÃO") -> 15000 | BG6: 15000 | BH6: 15000 | BI6: 15000 | BJ6: 15000 | BK6: 15000 | BL6: 15000 | BM6: 15000 | BN6: 15000 | BO6: 15000 | BP6: =IF(AND(BP$5>=$AC6,BP$5<=$AE6),$E6*$F6,"NÃO") -> 15000 | BQ6: 15000 | BR6: 15000 | BS6: 15000 | BT6: 15000 | BU6: 15000 | BV6: 15000 | BW6: 15000 | BX6: 15000 | BY6: 15000 | BZ6: =IF(AND(BZ$5>=$AC6,BZ$5<=$AE6),$E6*$F6,"NÃO") -> 15000 | CA6: 15000 | CB6: 15000 | CC6: 15000 | CD6: 15000 | CE6: 15000 | CF6: 15000 | CG6: 15000 | CH6: 15000 | CI6: 15000 | CJ6: =IF(AND(CJ$5>=$AC6,CJ$5<=$AE6),$E6*$F6,"NÃO") -> 15000 | CK6: 15000 | CL6: NÃO | CM6: NÃO | CN6: NÃO | CO6: NÃO | CP6: NÃO | CR6: =SUM(AI6:AT105) -> 252000 | CS6: =SUM(AU6:BF105) -> 504000 | CT6: =SUM(BG6:BR105) -> 504000 | CU6: =SUM(BS6:CD105) -> 504000 | CV6: =SUM(CE6:CP105) -> 294000
C7: Gerente Administrativo | D7: Financiero | E7: 10000 | F7: 1 | G7: =IF(C7="","",E7*7.09%) -> 709 | H7: =IF(C7="","",E7*7.1%) -> 710 | I7: =IF(C7="","",E7*1%) -> 100 | J7: =IF(C7="","",E7*1%) -> 100 | K7: Jul | L7: 2024 | M7: Jul | N7: 2028 | O7: =IF(E7="","",AG7) -> 34741 | P7: =IF(E7="","",AH7) -> 34790 | Q7: =IF(E7="","",AI7) -> NO | R7: =IF(E7="","",AJ7) -> NO | S7: =IF(E7="","",AK7) -> NO | T7: =AF7 -> 69531 | V7: =V6+1 -> 2025 | W7: feb | X7: =X6 -> 2024 | Y7: =CONCATENATE(W7,X7) -> feb2024 | Z7: 2 | AB7: =CONCATENATE(K7,L7) -> Jul2024 | AC7: =IF(AB7="","",VLOOKUP(AB7,$Y$6:$Z$65,2,FALSE)) -> 7 | AD7: =CONCATENATE(M7,N7) -> Jul2028 | AE7: =IFERROR(VLOOKUP(AD7,$Y$6:$Z$65,2,FALSE),"") -> 55 | AF7: =IFERROR(SUM(AG7:AK7),"") -> 69531 | AG7: =IFERROR((AE7-AC7+1)*G7*F7,"") -> 34741 | AH7: =IFERROR((AE7-AC7+1)*H7*F7,"") -> 34790 | AI7: NO | AJ7: NO | AK7: NO | AL7: NO | AM7: NO | AN7: NO | AO7: 10000 | AP7: 10000 | AQ7: 10000 | AR7: 10000 | AS7: 10000 | AT7: 10000 | AU7: 10000 | AV7: 10000 | AW7: 10000 | AX7: 10000 | AY7: 10000 | AZ7: 10000 | BA7: 10000 | BB7: 10000 | BC7: 10000 | BD7: 10000 | BE7: 10000 | BF7: 10000 | BG7: 10000 | BH7: 10000 | BI7: 10000 | BJ7: 10000 | BK7: 10000 | BL7: 10000 | BM7: 10000 | BN7: 10000 | BO7: 10000 | BP7: 10000 | BQ7: 10000 | BR7: 10000 | BS7: 10000 | BT7: 10000 | BU7: 10000 | BV7: 10000 | BW7: 10000 | BX7: 10000 | BY7: 10000 | BZ7: 10000 | CA7: 10000 | CB7: 10000 | CC7: 10000 | CD7: 10000 | CE7: 10000 | CF7: 10000 | CG7: 10000 | CH7: 10000 | CI7: 10000 | CJ7: 10000 | CK7: 10000 | CL7: NÃO | CM7: NÃO | CN7: NÃO | CO7: NÃO | CP7: NÃO
C8: Barista | D8: Comercial | E8: 17000 | F8: 1 | G8: 1205.3 | H8: =IF(C8="","",E8*7.1%) -> 1207 | I8: =IF(C8="","",E8*1%) -> 170 | J8: =IF(C8="","",E8*1%) -> 170 | K8: Jul | L8: 2024 | M8: Jul | N8: 2028 | O8: 59059.7 | P8: 59143 | Q8: NO | R8: NO | S8: NO | T8: 118202.7 | V8: =V7+1 -> 2026 | W8: mar | X8: =X7 -> 2024 | Y8: mar2024 | Z8: 3 | AB8: Jul2024 | AC8: 7 | AD8: Jul2028 | AE8: 55 | AF8: 118202.7 | AG8: 59059.7 | AH8: 59143 | AI8: NO | AJ8: NO | AK8: NO | AL8: NO | AM8: NO | AN8: NO | AO8: 17000 | AP8: 17000 | AQ8: 17000 | AR8: 17000 | AS8: 17000 | AT8: 17000 | AU8: 17000 | AV8: 17000 | AW8: 17000 | AX8: 17000 | AY8: 17000 | AZ8: 17000 | BA8: 17000 | BB8: 17000 | BC8: 17000 | BD8: 17000 | BE8: 17000 | BF8: 17000 | BG8: 17000 | BH8: 17000 | BI8: 17000 | BJ8: 17000 | BK8: 17000 | BL8: 17000 | BM8: 17000 | BN8: 17000 | BO8: 17000 | BP8: 17000 | BQ8: 17000 | BR8: 17000 | BS8: 17000 | BT8: 17000 | BU8: 17000 | BV8: 17000 | BW8: 17000 | BX8: 17000 | BY8: 17000 | BZ8: 17000 | CA8: 17000 | CB8: 17000 | CC8: 17000 | CD8: 17000 | CE8: 17000 | CF8: 17000 | CG8: 17000 | CH8: 17000 | CI8: 17000 | CJ8: 17000 | CK8: 17000 | CL8: NÃO | CM8: NÃO | CN8: NÃO | CO8: NÃO | CP8: NÃO
T9: 0 | V9: 2027 | W9: abr | X9: 2024 | Y9: abr2024 | Z9: 4 | AF9: 0 | AI9: NO | AJ9: NO | AK9: NO | AL9: NO | AM9: NO | AN9: NO | AO9: NO | AP9: NO | AQ9: NO | AR9: NO | AS9: NO | AT9: NO | AU9: NO | AV9: NO | AW9: NO | AX9: NO | AY9: NO | AZ9: NO | BA9: NO | BB9: NÃO | BC9: NÃO | BD9: NÃO | BE9: NÃO | BF9: NÃO | BG9: NÃO | BH9: NÃO | BI9: NÃO | BJ9: NÃO | BK9: NÃO | BL9: NÃO | BM9: NÃO | BN9: NÃO | BO9: NÃO | BP9: NÃO | BQ9: NÃO | BR9: NÃO | BS9: NÃO | BT9: NÃO | BU9: NÃO | BV9: NÃO | BW9: NÃO | BX9: NÃO | BY9: NÃO | BZ9: NÃO | CA9: NÃO | CB9: NÃO | CC9: NÃO | CD9: NÃO | CE9: NÃO | CF9: NÃO | CG9: NÃO | CH9: NÃO | CI9: NÃO | CJ9: NÃO | CK9: NÃO | CL9: NÃO | CM9: NÃO | CN9: NÃO | CO9: NÃO | CP9: NÃO
T10: 0 | V10: 2028 | W10: may | X10: 2024 | Y10: =CONCATENATE(W10,X10) -> may2024 | Z10: 5 | AF10: 0 | AI10: NO | AJ10: NO | AK10: NO | AL10: NO | AM10: NO | AN10: NO | AO10: NO | AP10: NO | AQ10: NO | AR10: NO | AS10: NO | AT10: NO | AU10: NO | AV10: NO | AW10: NO | AX10: NO | AY10: NO | AZ10: NO | BA10: NO | BB10: NÃO | BC10: NÃO | BD10: NÃO | BE10: NÃO | BF10: NÃO | BG10: NÃO | BH10: NÃO | BI10: NÃO | BJ10: NÃO | BK10: NÃO | BL10: NÃO | BM10: NÃO | BN10: NÃO | BO10: NÃO | BP10: NÃO | BQ10: NÃO | BR10: NÃO | BS10: NÃO | BT10: NÃO | BU10: NÃO | BV10: NÃO | BW10: NÃO | BX10: NÃO | BY10: NÃO | BZ10: NÃO | CA10: NÃO | CB10: NÃO | CC10: NÃO | CD10: NÃO | CE10: NÃO | CF10: NÃO | CG10: NÃO | CH10: NÃO | CI10: NÃO | CJ10: NÃO | CK10: NÃO | CL10: NÃO | CM10: NÃO | CN10: NÃO | CO10: NÃO | CP10: NÃO
T11: 0 | W11: jun | X11: 2024 | Y11: jun2024 | Z11: 6 | AF11: 0 | AI11: NO | AJ11: NO | AK11: NO | AL11: NO | AM11: NO | AN11: NO | AO11: NO | AP11: NO | AQ11: NO | AR11: NO | AS11: NO | AT11: NO | AU11: NO | AV11: NO | AW11: NO | AX11: NO | AY11: NO | AZ11: NO | BA11: NO | BB11: NÃO | BC11: NÃO | BD11: NÃO | BE11: NÃO | BF11: NÃO | BG11: NÃO | BH11: NÃO | BI11: NÃO | BJ11: NÃO | BK11: NÃO | BL11: NÃO | BM11: NÃO | BN11: NÃO | BO11: NÃO | BP11: NÃO | BQ11: NÃO | BR11: NÃO | BS11: NÃO | BT11: NÃO | BU11: NÃO | BV11: NÃO | BW11: NÃO | BX11: NÃO | BY11: NÃO | BZ11: NÃO | CA11: NÃO | CB11: NÃO | CC11: NÃO | CD11: NÃO | CE11: NÃO | CF11: NÃO | CG11: NÃO | CH11: NÃO | CI11: NÃO | CJ11: NÃO | CK11: NÃO | CL11: NÃO | CM11: NÃO | CN11: NÃO | CO11: NÃO | CP11: NÃO
T12: 0 | W12: jul | X12: 2024 | Y12: jul2024 | Z12: 7 | AF12: 0 | AI12: NO | AJ12: NO | AK12: NO | AL12: NO | AM12: NO | AN12: NO | AO12: NO | AP12: NO | AQ12: NO | AR12: NO | AS12: NO | AT12: NO | AU12: NO | AV12: NO | AW12: NO | AX12: NO | AY12: NO | AZ12: NO | BA12: NO | BB12: NÃO | BC12: NÃO | BD12: NÃO | BE12: NÃO | BF12: NÃO | BG12: NÃO | BH12: NÃO | BI12: NÃO | BJ12: NÃO | BK12: NÃO | BL12: NÃO | BM12: NÃO | BN12: NÃO | BO12: NÃO | BP12: NÃO | BQ12: NÃO | BR12: NÃO | BS12: NÃO | BT12: NÃO | BU12: NÃO | BV12: NÃO | BW12: NÃO | BX12: NÃO | BY12: NÃO | BZ12: NÃO | CA12: NÃO | CB12: NÃO | CC12: NÃO | CD12: NÃO | CE12: NÃO | CF12: NÃO | CG12: NÃO | CH12: NÃO | CI12: NÃO | CJ12: NÃO | CK12: NÃO | CL12: NÃO | CM12: NÃO | CN12: NÃO | CO12: NÃO | CP12: NÃO
T13: 0 | W13: aug | X13: 2024 | Y13: aug2024 | Z13: 8 | AF13: 0 | AI13: NO | AJ13: NO | AK13: NO | AL13: NO | AM13: NO | AN13: NO | AO13: NO | AP13: NO | AQ13: NO | AR13: NO | AS13: NO | AT13: NO | AU13: NO | AV13: NO | AW13: NO | AX13: NO | AY13: NO | AZ13: NO | BA13: NO | BB13: NÃO | BC13: NÃO | BD13: NÃO | BE13: NÃO | BF13: NÃO | BG13: NÃO | BH13: NÃO | BI13: NÃO | BJ13: NÃO | BK13: NÃO | BL13: NÃO | BM13: NÃO | BN13: NÃO | BO13: NÃO | BP13: NÃO | BQ13: NÃO | BR13: NÃO | BS13: NÃO | BT13: NÃO | BU13: NÃO | BV13: NÃO | BW13: NÃO | BX13: NÃO | BY13: NÃO | BZ13: NÃO | CA13: NÃO | CB13: NÃO | CC13: NÃO | CD13: NÃO | CE13: NÃO | CF13: NÃO | CG13: NÃO | CH13: NÃO | CI13: NÃO | CJ13: NÃO | CK13: NÃO | CL13: NÃO | CM13: NÃO | CN13: NÃO | CO13: NÃO | CP13: NÃO
T14: 0 | W14: sep | X14: 2024 | Y14: sep2024 | Z14: 9 | AF14: 0 | AI14: NO | AJ14: NO | AK14: NO | AL14: NO | AM14: NO | AN14: NO | AO14: NO | AP14: NO | AQ14: NO | AR14: NO | AS14: NO | AT14: NO | AU14: NO | AV14: NO | AW14: NO | AX14: NO | AY14: NO | AZ14: NO | BA14: NO | BB14: NÃO | BC14: NÃO | BD14: NÃO | BE14: NÃO | BF14: NÃO | BG14: NÃO | BH14: NÃO | BI14: NÃO | BJ14: NÃO | BK14: NÃO | BL14: NÃO | BM14: NÃO | BN14: NÃO | BO14: NÃO | BP14: NÃO | BQ14: NÃO | BR14: NÃO | BS14: NÃO | BT14: NÃO | BU14: NÃO | BV14: NÃO | BW14: NÃO | BX14: NÃO | BY14: NÃO | BZ14: NÃO | CA14: NÃO | CB14: NÃO | CC14: NÃO | CD14: NÃO | CE14: NÃO | CF14: NÃO | CG14: NÃO | CH14: NÃO | CI14: NÃO | CJ14: NÃO | CK14: NÃO | CL14: NÃO | CM14: NÃO | CN14: NÃO | CO14: NÃO | CP14: NÃO
T15: 0 | W15: oct | X15: 2024 | Y15: oct2024 | Z15: 10 | AF15: 0 | AI15: NO | AJ15: NO | AK15: NO | AL15: NO | AM15: NO | AN15: NO | AO15: NO | AP15: NO | AQ15: NO | AR15: NO | AS15: NO | AT15: NO | AU15: NO | AV15: NO | AW15: NO | AX15: NO | AY15: NO | AZ15: NO | BA15: NO | BB15: NÃO | BC15: NÃO | BD15: NÃO | BE15: NÃO | BF15: NÃO | BG15: NÃO | BH15: NÃO | BI15: NÃO | BJ15: NÃO | BK15: NÃO | BL15: NÃO | BM15: NÃO | BN15: NÃO | BO15: NÃO | BP15: NÃO | BQ15: NÃO | BR15: NÃO | BS15: NÃO | BT15: NÃO | BU15: NÃO | BV15: NÃO | BW15: NÃO | BX15: NÃO | BY15: NÃO | BZ15: NÃO | CA15: NÃO | CB15: NÃO | CC15: NÃO | CD15: NÃO | CE15: NÃO | CF15: NÃO | CG15: NÃO | CH15: NÃO | CI15: NÃO | CJ15: NÃO | CK15: NÃO | CL15: NÃO | CM15: NÃO | CN15: NÃO | CO15: NÃO | CP15: NÃO
T16: 0 | W16: nov | X16: 2024 | Y16: nov2024 | Z16: 11 | AF16: 0 | AI16: =IF(AND(AI$5>=$AC16,AI$5<=$AE16),$E16*$F16,"NO") -> NO | AJ16: NO | AK16: NO | AL16: NO | AM16: NO | AN16: NO | AO16: NO | AP16: NO | AQ16: NO | AR16: NO | AS16: =IF(AND(AS$5>=$AC16,AS$5<=$AE16),$E16*$F16,"NO") -> NO | AT16: NO | AU16: NO | AV16: NO | AW16: NO | AX16: NO | AY16: NO | AZ16: NO | BA16: NO | BB16: =IF(AND(BB$5>=$AC16,BB$5<=$AE16),$E16*$F16,"NÃO") -> NÃO | BC16: NÃO | BD16: NÃO | BE16: NÃO | BF16: =IF(AND(BF$5>=$AC16,BF$5<=$AE16),$E16*$F16,"NÃO") -> NÃO | BG16: NÃO | BH16: NÃO | BI16: NÃO | BJ16: NÃO | BK16: NÃO | BL16: NÃO | BM16: NÃO | BN16: NÃO | BO16: NÃO | BP16: =IF(AND(BP$5>=$AC16,BP$5<=$AE16),$E16*$F16,"NÃO") -> NÃO | BQ16: NÃO | BR16: NÃO | BS16: NÃO | BT16: NÃO | BU16: NÃO | BV16: NÃO | BW16: NÃO | BX16: NÃO | BY16: NÃO | BZ16: =IF(AND(BZ$5>=$AC16,BZ$5<=$AE16),$E16*$F16,"NÃO") -> NÃO | CA16: NÃO | CB16: NÃO | CC16: NÃO | CD16: NÃO | CE16: NÃO | CF16: NÃO | CG16: NÃO | CH16: NÃO | CI16: NÃO | CJ16: =IF(AND(CJ$5>=$AC16,CJ$5<=$AE16),$E16*$F16,"NÃO") -> NÃO | CK16: NÃO | CL16: NÃO | CM16: NÃO | CN16: NÃO | CO16: NÃO | CP16: NÃO
T17: 0 | W17: dic | X17: 2024 | Y17: dic2024 | Z17: 12 | AF17: 0 | AI17: NO | AJ17: NO | AK17: NO | AL17: NO | AM17: NO | AN17: NO | AO17: NO | AP17: NO | AQ17: NO | AR17: NO | AS17: NO | AT17: NO | AU17: NO | AV17: NO | AW17: NO | AX17: NO | AY17: NO | AZ17: NO | BA17: NO | BB17: NÃO | BC17: NÃO | BD17: NÃO | BE17: NÃO | BF17: NÃO | BG17: NÃO | BH17: NÃO | BI17: NÃO | BJ17: NÃO | BK17: NÃO | BL17: NÃO | BM17: NÃO | BN17: NÃO | BO17: NÃO | BP17: NÃO | BQ17: NÃO | BR17: NÃO | BS17: NÃO | BT17: NÃO | BU17: NÃO | BV17: NÃO | BW17: NÃO | BX17: NÃO | BY17: NÃO | BZ17: NÃO | CA17: NÃO | CB17: NÃO | CC17: NÃO | CD17: NÃO | CE17: NÃO | CF17: NÃO | CG17: NÃO | CH17: NÃO | CI17: NÃO | CJ17: NÃO | CK17: NÃO | CL17: NÃO | CM17: NÃO | CN17: NÃO | CO17: NÃO | CP17: NÃO
T18: 0 | W18: ene | X18: =V7 -> 2025 | Y18: ene2025 | Z18: 13 | AF18: 0 | AI18: NO | AJ18: NO | AK18: NO | AL18: NO | AM18: NO | AN18: NO | AO18: NO | AP18: NO | AQ18: NO | AR18: NO | AS18: NO | AT18: NO | AU18: NO | AV18: NO | AW18: NO | AX18: NO | AY18: NO | AZ18: NO | BA18: NO | BB18: NÃO | BC18: NÃO | BD18: NÃO | BE18: NÃO | BF18: NÃO | BG18: NÃO | BH18: NÃO | BI18: NÃO | BJ18: NÃO | BK18: NÃO | BL18: NÃO | BM18: NÃO | BN18: NÃO | BO18: NÃO | BP18: NÃO | BQ18: NÃO | BR18: NÃO | BS18: NÃO | BT18: NÃO | BU18: NÃO | BV18: NÃO | BW18: NÃO | BX18: NÃO | BY18: NÃO | BZ18: NÃO | CA18: NÃO | CB18: NÃO | CC18: NÃO | CD18: NÃO | CE18: NÃO | CF18: NÃO | CG18: NÃO | CH18: NÃO | CI18: NÃO | CJ18: NÃO | CK18: NÃO | CL18: NÃO | CM18: NÃO | CN18: NÃO | CO18: NÃO | CP18: NÃO
T19: 0 | W19: feb | X19: =X18 -> 2025 | Y19: feb2025 | Z19: 14 | AF19: 0 | AI19: NO | AJ19: NO | AK19: NO | AL19: NO | AM19: NO | AN19: NO | AO19: NO | AP19: NO | AQ19: NO | AR19: NO | AS19: NO | AT19: NO | AU19: NO | AV19: NO | AW19: NO | AX19: NO | AY19: NO | AZ19: NO | BA19: NO | BB19: NÃO | BC19: NÃO | BD19: NÃO | BE19: NÃO | BF19: NÃO | BG19: NÃO | BH19: NÃO | BI19: NÃO | BJ19: NÃO | BK19: NÃO | BL19: NÃO | BM19: NÃO | BN19: NÃO | BO19: NÃO | BP19: NÃO | BQ19: NÃO | BR19: NÃO | BS19: NÃO | BT19: NÃO | BU19: NÃO | BV19: NÃO | BW19: NÃO | BX19: NÃO | BY19: NÃO | BZ19: NÃO | CA19: NÃO | CB19: NÃO | CC19: NÃO | CD19: NÃO | CE19: NÃO | CF19: NÃO | CG19: NÃO | CH19: NÃO | CI19: NÃO | CJ19: NÃO | CK19: NÃO | CL19: NÃO | CM19: NÃO | CN19: NÃO | CO19: NÃO | CP19: NÃO
T20: 0 | W20: mar | X20: =X19 -> 2025 | Y20: mar2025 | Z20: 15 | AF20: 0 | AI20: NO | AJ20: NO | AK20: NO | AL20: NO | AM20: NO | AN20: NO | AO20: NO | AP20: NO | AQ20: NO | AR20: NO | AS20: NO | AT20: NO | AU20: NO | AV20: NO | AW20: NO | AX20: NO | AY20: NO | AZ20: NO | BA20: NO | BB20: NÃO | BC20: NÃO | BD20: NÃO | BE20: NÃO | BF20: NÃO | BG20: NÃO | BH20: NÃO | BI20: NÃO | BJ20: NÃO | BK20: NÃO | BL20: NÃO | BM20: NÃO | BN20: NÃO | BO20: NÃO | BP20: NÃO | BQ20: NÃO | BR20: NÃO | BS20: NÃO | BT20: NÃO | BU20: NÃO | BV20: NÃO | BW20: NÃO | BX20: NÃO | BY20: NÃO | BZ20: NÃO | CA20: NÃO | CB20: NÃO | CC20: NÃO | CD20: NÃO | CE20: NÃO | CF20: NÃO | CG20: NÃO | CH20: NÃO | CI20: NÃO | CJ20: NÃO | CK20: NÃO | CL20: NÃO | CM20: NÃO | CN20: NÃO | CO20: NÃO | CP20: NÃO
T21: 0 | W21: abr | X21: 2025 | Y21: abr2025 | Z21: 16 | AF21: 0 | AI21: NO | AJ21: NO | AK21: NO | AL21: NO | AM21: NO | AN21: NO | AO21: NO | AP21: NO | AQ21: NO | AR21: NO | AS21: NO | AT21: NO | AU21: NO | AV21: NO | AW21: NO | AX21: NO | AY21: NO | AZ21: NO | BA21: NO | BB21: NÃO | BC21: NÃO | BD21: NÃO | BE21: NÃO | BF21: NÃO | BG21: NÃO | BH21: NÃO | BI21: NÃO | BJ21: NÃO | BK21: NÃO | BL21: NÃO | BM21: NÃO | BN21: NÃO | BO21: NÃO | BP21: NÃO | BQ21: NÃO | BR21: NÃO | BS21: NÃO | BT21: NÃO | BU21: NÃO | BV21: NÃO | BW21: NÃO | BX21: NÃO | BY21: NÃO | BZ21: NÃO | CA21: NÃO | CB21: NÃO | CC21: NÃO | CD21: NÃO | CE21: NÃO | CF21: NÃO | CG21: NÃO | CH21: NÃO | CI21: NÃO | CJ21: NÃO | CK21: NÃO | CL21: NÃO | CM21: NÃO | CN21: NÃO | CO21: NÃO | CP21: NÃO
T22: 0 | W22: may | X22: 2025 | Y22: may2025 | Z22: 17 | AF22: 0 | AI22: NO | AJ22: NO | AK22: NO | AL22: NO | AM22: NO | AN22: NO | AO22: NO | AP22: NO | AQ22: NO | AR22: NO | AS22: NO | AT22: NO | AU22: NO | AV22: NO | AW22: NO | AX22: NO | AY22: NO | AZ22: NO | BA22: NO | BB22: NÃO | BC22: NÃO | BD22: NÃO | BE22: NÃO | BF22: NÃO | BG22: NÃO | BH22: NÃO | BI22: NÃO | BJ22: NÃO | BK22: NÃO | BL22: NÃO | BM22: NÃO | BN22: NÃO | BO22: NÃO | BP22: NÃO | BQ22: NÃO | BR22: NÃO | BS22: NÃO | BT22: NÃO | BU22: NÃO | BV22: NÃO | BW22: NÃO | BX22: NÃO | BY22: NÃO | BZ22: NÃO | CA22: NÃO | CB22: NÃO | CC22: NÃO | CD22: NÃO | CE22: NÃO | CF22: NÃO | CG22: NÃO | CH22: NÃO | CI22: NÃO | CJ22: NÃO | CK22: NÃO | CL22: NÃO | CM22: NÃO | CN22: NÃO | CO22: NÃO | CP22: NÃO
T23: 0 | W23: jun | X23: 2025 | Y23: jun2025 | Z23: 18 | AF23: 0 | AI23: NO | AJ23: NO | AK23: NO | AL23: NO | AM23: NO | AN23: NO | AO23: NO | AP23: NO | AQ23: NO | AR23: NO | AS23: NO | AT23: NO | AU23: NO | AV23: NO | AW23: NO | AX23: NO | AY23: NO | AZ23: NO | BA23: NO | BB23: NÃO | BC23: NÃO | BD23: NÃO | BE23: NÃO | BF23: NÃO | BG23: NÃO | BH23: NÃO | BI23: NÃO | BJ23: NÃO | BK23: NÃO | BL23: NÃO | BM23: NÃO | BN23: NÃO | BO23: NÃO | BP23: NÃO | BQ23: NÃO | BR23: NÃO | BS23: NÃO | BT23: NÃO | BU23: NÃO | BV23: NÃO | BW23: NÃO | BX23: NÃO | BY23: NÃO | BZ23: NÃO | CA23: NÃO | CB23: NÃO | CC23: NÃO | CD23: NÃO | CE23: NÃO | CF23: NÃO | CG23: NÃO | CH23: NÃO | CI23: NÃO | CJ23: NÃO | CK23: NÃO | CL23: NÃO | CM23: NÃO | CN23: NÃO | CO23: NÃO | CP23: NÃO
T24: 0 | W24: jul | X24: 2025 | Y24: jul2025 | Z24: 19 | AF24: 0 | AI24: NO | AJ24: NO | AK24: NO | AL24: NO | AM24: NO | AN24: NO | AO24: NO | AP24: NO | AQ24: NO | AR24: NO | AS24: NO | AT24: NO | AU24: NO | AV24: NO | AW24: NO | AX24: NO | AY24: NO | AZ24: NO | BA24: NO | BB24: NÃO | BC24: NÃO | BD24: NÃO | BE24: NÃO | BF24: NÃO | BG24: NÃO | BH24: NÃO | BI24: NÃO | BJ24: NÃO | BK24: NÃO | BL24: NÃO | BM24: NÃO | BN24: NÃO | BO24: NÃO | BP24: NÃO | BQ24: NÃO | BR24: NÃO | BS24: NÃO | BT24: NÃO | BU24: NÃO | BV24: NÃO | BW24: NÃO | BX24: NÃO | BY24: NÃO | BZ24: NÃO | CA24: NÃO | CB24: NÃO | CC24: NÃO | CD24: NÃO | CE24: NÃO | CF24: NÃO | CG24: NÃO | CH24: NÃO | CI24: NÃO | CJ24: NÃO | CK24: NÃO | CL24: NÃO | CM24: NÃO | CN24: NÃO | CO24: NÃO | CP24: NÃO
T25: 0 | W25: aug | X25: 2025 | Y25: aug2025 | Z25: 20 | AF25: 0 | AI25: NO | AJ25: NO | AK25: NO | AL25: NO | AM25: NO | AN25: NO | AO25: NO | AP25: NO | AQ25: NO | AR25: NO | AS25: NO | AT25: NO | AU25: NO | AV25: NO | AW25: NO | AX25: NO | AY25: NO | AZ25: NO | BA25: NO | BB25: NÃO | BC25: NÃO | BD25: NÃO | BE25: NÃO | BF25: NÃO | BG25: NÃO | BH25: NÃO | BI25: NÃO | BJ25: NÃO | BK25: NÃO | BL25: NÃO | BM25: NÃO | BN25: NÃO | BO25: NÃO | BP25: NÃO | BQ25: NÃO | BR25: NÃO | BS25: NÃO | BT25: NÃO | BU25: NÃO | BV25: NÃO | BW25: NÃO | BX25: NÃO | BY25: NÃO | BZ25: NÃO | CA25: NÃO | CB25: NÃO | CC25: NÃO | CD25: NÃO | CE25: NÃO | CF25: NÃO | CG25: NÃO | CH25: NÃO | CI25: NÃO | CJ25: NÃO | CK25: NÃO | CL25: NÃO | CM25: NÃO | CN25: NÃO | CO25: NÃO | CP25: NÃO
T26: 0 | W26: sep | X26: 2025 | Y26: sep2025 | Z26: 21 | AF26: 0 | AI26: =IF(AND(AI$5>=$AC26,AI$5<=$AE26),$E26*$F26,"NO") -> NO | AJ26: NO | AK26: NO | AL26: NO | AM26: NO | AN26: NO | AO26: NO | AP26: NO | AQ26: NO | AR26: NO | AS26: =IF(AND(AS$5>=$AC26,AS$5<=$AE26),$E26*$F26,"NO") -> NO | AT26: NO | AU26: NO | AV26: NO | AW26: NO | AX26: NO | AY26: NO | AZ26: NO | BA26: NO | BB26: =IF(AND(BB$5>=$AC26,BB$5<=$AE26),$E26*$F26,"NÃO") -> NÃO | BC26: NÃO | BD26: NÃO | BE26: NÃO | BF26: =IF(AND(BF$5>=$AC26,BF$5<=$AE26),$E26*$F26,"NÃO") -> NÃO | BG26: NÃO | BH26: NÃO | BI26: NÃO | BJ26: NÃO | BK26: NÃO | BL26: NÃO | BM26: NÃO | BN26: NÃO | BO26: NÃO | BP26: =IF(AND(BP$5>=$AC26,BP$5<=$AE26),$E26*$F26,"NÃO") -> NÃO | BQ26: NÃO | BR26: NÃO | BS26: NÃO | BT26: NÃO | BU26: NÃO | BV26: NÃO | BW26: NÃO | BX26: NÃO | BY26: NÃO | BZ26: =IF(AND(BZ$5>=$AC26,BZ$5<=$AE26),$E26*$F26,"NÃO") -> NÃO | CA26: NÃO | CB26: NÃO | CC26: NÃO | CD26: NÃO | CE26: NÃO | CF26: NÃO | CG26: NÃO | CH26: NÃO | CI26: NÃO | CJ26: =IF(AND(CJ$5>=$AC26,CJ$5<=$AE26),$E26*$F26,"NÃO") -> NÃO | CK26: NÃO | CL26: NÃO | CM26: NÃO | CN26: NÃO | CO26: NÃO | CP26: NÃO
T27: 0 | W27: oct | X27: 2025 | Y27: oct2025 | Z27: 22 | AF27: 0 | AI27: NO | AJ27: NO | AK27: NO | AL27: NO | AM27: NO | AN27: NO | AO27: NO | AP27: NO | AQ27: NO | AR27: NO | AS27: NO | AT27: NO | AU27: NO | AV27: NO | AW27: NO | AX27: NO | AY27: NO | AZ27: NO | BA27: NO | BB27: NÃO | BC27: NÃO | BD27: NÃO | BE27: NÃO | BF27: NÃO | BG27: NÃO | BH27: NÃO | BI27: NÃO | BJ27: NÃO | BK27: NÃO | BL27: NÃO | BM27: NÃO | BN27: NÃO | BO27: NÃO | BP27: NÃO | BQ27: NÃO | BR27: NÃO | BS27: NÃO | BT27: NÃO | BU27: NÃO | BV27: NÃO | BW27: NÃO | BX27: NÃO | BY27: NÃO | BZ27: NÃO | CA27: NÃO | CB27: NÃO | CC27: NÃO | CD27: NÃO | CE27: NÃO | CF27: NÃO | CG27: NÃO | CH27: NÃO | CI27: NÃO | CJ27: NÃO | CK27: NÃO | CL27: NÃO | CM27: NÃO | CN27: NÃO | CO27: NÃO | CP27: NÃO
T28: 0 | W28: nov | X28: 2025 | Y28: nov2025 | Z28: 23 | AF28: 0 | AI28: NO | AJ28: NO | AK28: NO | AL28: NO | AM28: NO | AN28: NO | AO28: NO | AP28: NO | AQ28: NO | AR28: NO | AS28: NO | AT28: NO | AU28: NO | AV28: NO | AW28: NO | AX28: NO | AY28: NO | AZ28: NO | BA28: NO | BB28: NÃO | BC28: NÃO | BD28: NÃO | BE28: NÃO | BF28: NÃO | BG28: NÃO | BH28: NÃO | BI28: NÃO | BJ28: NÃO | BK28: NÃO | BL28: NÃO | BM28: NÃO | BN28: NÃO | BO28: NÃO | BP28: NÃO | BQ28: NÃO | BR28: NÃO | BS28: NÃO | BT28: NÃO | BU28: NÃO | BV28: NÃO | BW28: NÃO | BX28: NÃO | BY28: NÃO | BZ28: NÃO | CA28: NÃO | CB28: NÃO | CC28: NÃO | CD28: NÃO | CE28: NÃO | CF28: NÃO | CG28: NÃO | CH28: NÃO | CI28: NÃO | CJ28: NÃO | CK28: NÃO | CL28: NÃO | CM28: NÃO | CN28: NÃO | CO28: NÃO | CP28: NÃO
T29: 0 | W29: dic | X29: 2025 | Y29: dic2025 | Z29: 24 | AF29: 0 | AI29: NO | AJ29: NO | AK29: NO | AL29: NO | AM29: NO | AN29: NO | AO29: NO | AP29: NO | AQ29: NO | AR29: NO | AS29: NO | AT29: NO | AU29: NO | AV29: NO | AW29: NO | AX29: NO | AY29: NO | AZ29: NO | BA29: NO | BB29: NÃO | BC29: NÃO | BD29: NÃO | BE29: NÃO | BF29: NÃO | BG29: NÃO | BH29: NÃO | BI29: NÃO | BJ29: NÃO | BK29: NÃO | BL29: NÃO | BM29: NÃO | BN29: NÃO | BO29: NÃO | BP29: NÃO | BQ29: NÃO | BR29: NÃO | BS29: NÃO | BT29: NÃO | BU29: NÃO | BV29: NÃO | BW29: NÃO | BX29: NÃO | BY29: NÃO | BZ29: NÃO | CA29: NÃO | CB29: NÃO | CC29: NÃO | CD29: NÃO | CE29: NÃO | CF29: NÃO | CG29: NÃO | CH29: NÃO | CI29: NÃO | CJ29: NÃO | CK29: NÃO | CL29: NÃO | CM29: NÃO | CN29: NÃO | CO29: NÃO | CP29: NÃO
T30: 0 | W30: ene | X30: =V8 -> 2026 | Y30: ene2026 | Z30: 25 | AF30: 0 | AI30: NO | AJ30: NO | AK30: NO | AL30: NO | AM30: NO | AN30: NO | AO30: NO | AP30: NO | AQ30: NO | AR30: NO | AS30: NO | AT30: NO | AU30: NO | AV30: NO | AW30: NO | AX30: NO | AY30: NO | AZ30: NO | BA30: NO | BB30: NÃO | BC30: NÃO | BD30: NÃO | BE30: NÃO | BF30: NÃO | BG30: NÃO | BH30: NÃO | BI30: NÃO | BJ30: NÃO | BK30: NÃO | BL30: NÃO | BM30: NÃO | BN30: NÃO | BO30: NÃO | BP30: NÃO | BQ30: NÃO | BR30: NÃO | BS30: NÃO | BT30: NÃO | BU30: NÃO | BV30: NÃO | BW30: NÃO | BX30: NÃO | BY30: NÃO | BZ30: NÃO | CA30: NÃO | CB30: NÃO | CC30: NÃO | CD30: NÃO | CE30: NÃO | CF30: NÃO | CG30: NÃO | CH30: NÃO | CI30: NÃO | CJ30: NÃO | CK30: NÃO | CL30: NÃO | CM30: NÃO | CN30: NÃO | CO30: NÃO | CP30: NÃO
T31: 0 | W31: feb | X31: =X30 -> 2026 | Y31: feb2026 | Z31: 26 | AF31: 0 | AI31: NO | AJ31: NO | AK31: NO | AL31: NO | AM31: NO | AN31: NO | AO31: NO | AP31: NO | AQ31: NO | AR31: NO | AS31: NO | AT31: NO | AU31: NO | AV31: NO | AW31: NO | AX31: NO | AY31: NO | AZ31: NO | BA31: NO | BB31: NÃO | BC31: NÃO | BD31: NÃO | BE31: NÃO | BF31: NÃO | BG31: NÃO | BH31: NÃO | BI31: NÃO | BJ31: NÃO | BK31: NÃO | BL31: NÃO | BM31: NÃO | BN31: NÃO | BO31: NÃO | BP31: NÃO | BQ31: NÃO | BR31: NÃO | BS31: NÃO | BT31: NÃO | BU31: NÃO | BV31: NÃO | BW31: NÃO | BX31: NÃO | BY31: NÃO | BZ31: NÃO | CA31: NÃO | CB31: NÃO | CC31: NÃO | CD31: NÃO | CE31: NÃO | CF31: NÃO | CG31: NÃO | CH31: NÃO | CI31: NÃO | CJ31: NÃO | CK31: NÃO | CL31: NÃO | CM31: NÃO | CN31: NÃO | CO31: NÃO | CP31: NÃO
T32: 0 | W32: mar | X32: =X31 -> 2026 | Y32: mar2026 | Z32: 27 | AF32: 0 | AI32: NO | AJ32: NO | AK32: NO | AL32: NO | AM32: NO | AN32: NO | AO32: NO | AP32: NO | AQ32: NO | AR32: NO | AS32: NO | AT32: NO | AU32: NO | AV32: NO | AW32: NO | AX32: NO | AY32: NO | AZ32: NO | BA32: NO | BB32: NÃO | BC32: NÃO | BD32: NÃO | BE32: NÃO | BF32: NÃO | BG32: NÃO | BH32: NÃO | BI32: NÃO | BJ32: NÃO | BK32: NÃO | BL32: NÃO | BM32: NÃO | BN32: NÃO | BO32: NÃO | BP32: NÃO | BQ32: NÃO | BR32: NÃO | BS32: NÃO | BT32: NÃO | BU32: NÃO | BV32: NÃO | BW32: NÃO | BX32: NÃO | BY32: NÃO | BZ32: NÃO | CA32: NÃO | CB32: NÃO | CC32: NÃO | CD32: NÃO | CE32: NÃO | CF32: NÃO | CG32: NÃO | CH32: NÃO | CI32: NÃO | CJ32: NÃO | CK32: NÃO | CL32: NÃO | CM32: NÃO | CN32: NÃO | CO32: NÃO | CP32: NÃO
T33: 0 | W33: abr | X33: 2026 | Y33: abr2026 | Z33: 28 | AF33: 0 | AI33: NO | AJ33: NO | AK33: NO | AL33: NO | AM33: NO | AN33: NO | AO33: NO | AP33: NO | AQ33: NO | AR33: NO | AS33: NO | AT33: NO | AU33: NO | AV33: NO | AW33: NO | AX33: NO | AY33: NO | AZ33: NO | BA33: NO | BB33: NÃO | BC33: NÃO | BD33: NÃO | BE33: NÃO | BF33: NÃO | BG33: NÃO | BH33: NÃO | BI33: NÃO | BJ33: NÃO | BK33: NÃO | BL33: NÃO | BM33: NÃO | BN33: NÃO | BO33: NÃO | BP33: NÃO | BQ33: NÃO | BR33: NÃO | BS33: NÃO | BT33: NÃO | BU33: NÃO | BV33: NÃO | BW33: NÃO | BX33: NÃO | BY33: NÃO | BZ33: NÃO | CA33: NÃO | CB33: NÃO | CC33: NÃO | CD33: NÃO | CE33: NÃO | CF33: NÃO | CG33: NÃO | CH33: NÃO | CI33: NÃO | CJ33: NÃO | CK33: NÃO | CL33: NÃO | CM33: NÃO | CN33: NÃO | CO33: NÃO | CP33: NÃO
T34: 0 | W34: may | X34: 2026 | Y34: may2026 | Z34: 29 | AF34: 0 | AI34: NO | AJ34: NO | AK34: NO | AL34: NO | AM34: NO | AN34: NO | AO34: NO | AP34: NO | AQ34: NO | AR34: NO | AS34: NO | AT34: NO | AU34: NO | AV34: NO | AW34: NO | AX34: NO | AY34: NO | AZ34: NO | BA34: NO | BB34: NÃO | BC34: NÃO | BD34: NÃO | BE34: NÃO | BF34: NÃO | BG34: NÃO | BH34: NÃO | BI34: NÃO | BJ34: NÃO | BK34: NÃO | BL34: NÃO | BM34: NÃO | BN34: NÃO | BO34: NÃO | BP34: NÃO | BQ34: NÃO | BR34: NÃO | BS34: NÃO | BT34: NÃO | BU34: NÃO | BV34: NÃO | BW34: NÃO | BX34: NÃO | BY34: NÃO | BZ34: NÃO | CA34: NÃO | CB34: NÃO | CC34: NÃO | CD34: NÃO | CE34: NÃO | CF34: NÃO | CG34: NÃO | CH34: NÃO | CI34: NÃO | CJ34: NÃO | CK34: NÃO | CL34: NÃO | CM34: NÃO | CN34: NÃO | CO34: NÃO | CP34: NÃO
T35: 0 | W35: jun | X35: 2026 | Y35: jun2026 | Z35: 30 | AF35: 0 | AI35: NO | AJ35: NO | AK35: NO | AL35: NO | AM35: NO | AN35: NO | AO35: NO | AP35: NO | AQ35: NO | AR35: NO | AS35: NO | AT35: NO | AU35: NO | AV35: NO | AW35: NO | AX35: NO | AY35: NO | AZ35: NO | BA35: NO | BB35: NÃO | BC35: NÃO | BD35: NÃO | BE35: NÃO | BF35: NÃO | BG35: NÃO | BH35: NÃO | BI35: NÃO | BJ35: NÃO | BK35: NÃO | BL35: NÃO | BM35: NÃO | BN35: NÃO | BO35: NÃO | BP35: NÃO | BQ35: NÃO | BR35: NÃO | BS35: NÃO | BT35: NÃO | BU35: NÃO | BV35: NÃO | BW35: NÃO | BX35: NÃO | BY35: NÃO | BZ35: NÃO | CA35: NÃO | CB35: NÃO | CC35: NÃO | CD35: NÃO | CE35: NÃO | CF35: NÃO | CG35: NÃO | CH35: NÃO | CI35: NÃO | CJ35: NÃO | CK35: NÃO | CL35: NÃO | CM35: NÃO | CN35: NÃO | CO35: NÃO | CP35: NÃO
T36: 0 | W36: jul | X36: 2026 | Y36: jul2026 | Z36: 31 | AF36: 0 | AI36: =IF(AND(AI$5>=$AC36,AI$5<=$AE36),$E36*$F36,"NO") -> NO | AJ36: NO | AK36: NO | AL36: NO | AM36: NO | AN36: NO | AO36: NO | AP36: NO | AQ36: NO | AR36: NO | AS36: =IF(AND(AS$5>=$AC36,AS$5<=$AE36),$E36*$F36,"NO") -> NO | AT36: NO | AU36: NO | AV36: NO | AW36: NO | AX36: NO | AY36: NO | AZ36: NO | BA36: NO | BB36: =IF(AND(BB$5>=$AC36,BB$5<=$AE36),$E36*$F36,"NÃO") -> NÃO | BC36: NÃO | BD36: NÃO | BE36: NÃO | BF36: =IF(AND(BF$5>=$AC36,BF$5<=$AE36),$E36*$F36,"NÃO") -> NÃO | BG36: NÃO | BH36: NÃO | BI36: NÃO | BJ36: NÃO | BK36: NÃO | BL36: NÃO | BM36: NÃO | BN36: NÃO | BO36: NÃO | BP36: =IF(AND(BP$5>=$AC36,BP$5<=$AE36),$E36*$F36,"NÃO") -> NÃO | BQ36: NÃO | BR36: NÃO | BS36: NÃO | BT36: NÃO | BU36: NÃO | BV36: NÃO | BW36: NÃO | BX36: NÃO | BY36: NÃO | BZ36: =IF(AND(BZ$5>=$AC36,BZ$5<=$AE36),$E36*$F36,"NÃO") -> NÃO | CA36: NÃO | CB36: NÃO | CC36: NÃO | CD36: NÃO | CE36: NÃO | CF36: NÃO | CG36: NÃO | CH36: NÃO | CI36: NÃO | CJ36: =IF(AND(CJ$5>=$AC36,CJ$5<=$AE36),$E36*$F36,"NÃO") -> NÃO | CK36: NÃO | CL36: NÃO | CM36: NÃO | CN36: NÃO | CO36: NÃO | CP36: NÃO
T37: 0 | W37: aug | X37: 2026 | Y37: aug2026 | Z37: 32 | AF37: 0 | AI37: NO | AJ37: NO | AK37: NO | AL37: NO | AM37: NO | AN37: NO | AO37: NO | AP37: NO | AQ37: NO | AR37: NO | AS37: NO | AT37: NO | AU37: NO | AV37: NO | AW37: NO | AX37: NO | AY37: NO | AZ37: NO | BA37: NO | BB37: NÃO | BC37: NÃO | BD37: NÃO | BE37: NÃO | BF37: NÃO | BG37: NÃO | BH37: NÃO | BI37: NÃO | BJ37: NÃO | BK37: NÃO | BL37: NÃO | BM37: NÃO | BN37: NÃO | BO37: NÃO | BP37: NÃO | BQ37: NÃO | BR37: NÃO | BS37: NÃO | BT37: NÃO | BU37: NÃO | BV37: NÃO | BW37: NÃO | BX37: NÃO | BY37: NÃO | BZ37: NÃO | CA37: NÃO | CB37: NÃO | CC37: NÃO | CD37: NÃO | CE37: NÃO | CF37: NÃO | CG37: NÃO | CH37: NÃO | CI37: NÃO | CJ37: NÃO | CK37: NÃO | CL37: NÃO | CM37: NÃO | CN37: NÃO | CO37: NÃO | CP37: NÃO
T38: 0 | W38: sep | X38: 2026 | Y38: sep2026 | Z38: 33 | AF38: 0 | AI38: NO | AJ38: NO | AK38: NO | AL38: NO | AM38: NO | AN38: NO | AO38: NO | AP38: NO | AQ38: NO | AR38: NO | AS38: NO | AT38: NO | AU38: NO | AV38: NO | AW38: NO | AX38: NO | AY38: NO | AZ38: NO | BA38: NO | BB38: NÃO | BC38: NÃO | BD38: NÃO | BE38: NÃO | BF38: NÃO | BG38: NÃO | BH38: NÃO | BI38: NÃO | BJ38: NÃO | BK38: NÃO | BL38: NÃO | BM38: NÃO | BN38: NÃO | BO38: NÃO | BP38: NÃO | BQ38: NÃO | BR38: NÃO | BS38: NÃO | BT38: NÃO | BU38: NÃO | BV38: NÃO | BW38: NÃO | BX38: NÃO | BY38: NÃO | BZ38: NÃO | CA38: NÃO | CB38: NÃO | CC38: NÃO | CD38: NÃO | CE38: NÃO | CF38: NÃO | CG38: NÃO | CH38: NÃO | CI38: NÃO | CJ38: NÃO | CK38: NÃO | CL38: NÃO | CM38: NÃO | CN38: NÃO | CO38: NÃO | CP38: NÃO
T39: 0 | W39: oct | X39: 2026 | Y39: oct2026 | Z39: 34 | AF39: 0 | AI39: NO | AJ39: NO | AK39: NO | AL39: NO | AM39: NO | AN39: NO | AO39: NO | AP39: NO | AQ39: NO | AR39: NO | AS39: NO | AT39: NO | AU39: NO | AV39: NO | AW39: NO | AX39: NO | AY39: NO | AZ39: NO | BA39: NO | BB39: NÃO | BC39: NÃO | BD39: NÃO | BE39: NÃO | BF39: NÃO | BG39: NÃO | BH39: NÃO | BI39: NÃO | BJ39: NÃO | BK39: NÃO | BL39: NÃO | BM39: NÃO | BN39: NÃO | BO39: NÃO | BP39: NÃO | BQ39: NÃO | BR39: NÃO | BS39: NÃO | BT39: NÃO | BU39: NÃO | BV39: NÃO | BW39: NÃO | BX39: NÃO | BY39: NÃO | BZ39: NÃO | CA39: NÃO | CB39: NÃO | CC39: NÃO | CD39: NÃO | CE39: NÃO | CF39: NÃO | CG39: NÃO | CH39: NÃO | CI39: NÃO | CJ39: NÃO | CK39: NÃO | CL39: NÃO | CM39: NÃO | CN39: NÃO | CO39: NÃO | CP39: NÃO
T40: 0 | W40: nov | X40: 2026 | Y40: nov2026 | Z40: 35 | AF40: 0 | AI40: NO | AJ40: NO | AK40: NO | AL40: NO | AM40: NO | AN40: NO | AO40: NO | AP40: NO | AQ40: NO | AR40: NO | AS40: NO | AT40: NO | AU40: NO | AV40: NO | AW40: NO | AX40: NO | AY40: NO | AZ40: NO | BA40: NO | BB40: NÃO | BC40: NÃO | BD40: NÃO | BE40: NÃO | BF40: NÃO | BG40: NÃO | BH40: NÃO | BI40: NÃO | BJ40: NÃO | BK40: NÃO | BL40: NÃO | BM40: NÃO | BN40: NÃO | BO40: NÃO | BP40: NÃO | BQ40: NÃO | BR40: NÃO | BS40: NÃO | BT40: NÃO | BU40: NÃO | BV40: NÃO | BW40: NÃO | BX40: NÃO | BY40: NÃO | BZ40: NÃO | CA40: NÃO | CB40: NÃO | CC40: NÃO | CD40: NÃO | CE40: NÃO | CF40: NÃO | CG40: NÃO | CH40: NÃO | CI40: NÃO | CJ40: NÃO | CK40: NÃO | CL40: NÃO | CM40: NÃO | CN40: NÃO | CO40: NÃO | CP40: NÃO
T41: 0 | W41: dic | X41: 2026 | Y41: dic2026 | Z41: 36 | AF41: 0 | AI41: NO | AJ41: NO | AK41: NO | AL41: NO | AM41: NO | AN41: NO | AO41: NO | AP41: NO | AQ41: NO | AR41: NO | AS41: NO | AT41: NO | AU41: NO | AV41: NO | AW41: NO | AX41: NO | AY41: NO | AZ41: NO | BA41: NO | BB41: NÃO | BC41: NÃO | BD41: NÃO | BE41: NÃO | BF41: NÃO | BG41: NÃO | BH41: NÃO | BI41: NÃO | BJ41: NÃO | BK41: NÃO | BL41: NÃO | BM41: NÃO | BN41: NÃO | BO41: NÃO | BP41: NÃO | BQ41: NÃO | BR41: NÃO | BS41: NÃO | BT41: NÃO | BU41: NÃO | BV41: NÃO | BW41: NÃO | BX41: NÃO | BY41: NÃO | BZ41: NÃO | CA41: NÃO | CB41: NÃO | CC41: NÃO | CD41: NÃO | CE41: NÃO | CF41: NÃO | CG41: NÃO | CH41: NÃO | CI41: NÃO | CJ41: NÃO | CK41: NÃO | CL41: NÃO | CM41: NÃO | CN41: NÃO | CO41: NÃO | CP41: NÃO
T42: 0 | W42: ene | X42: =V9 -> 2027 | Y42: ene2027 | Z42: 37 | AF42: 0 | AI42: NO | AJ42: NO | AK42: NO | AL42: NO | AM42: NO | AN42: NO | AO42: NO | AP42: NO | AQ42: NO | AR42: NO | AS42: NO | AT42: NO | AU42: NO | AV42: NO | AW42: NO | AX42: NO | AY42: NO | AZ42: NO | BA42: NO | BB42: NÃO | BC42: NÃO | BD42: NÃO | BE42: NÃO | BF42: NÃO | BG42: NÃO | BH42: NÃO | BI42: NÃO | BJ42: NÃO | BK42: NÃO | BL42: NÃO | BM42: NÃO | BN42: NÃO | BO42: NÃO | BP42: NÃO | BQ42: NÃO | BR42: NÃO | BS42: NÃO | BT42: NÃO | BU42: NÃO | BV42: NÃO | BW42: NÃO | BX42: NÃO | BY42: NÃO | BZ42: NÃO | CA42: NÃO | CB42: NÃO | CC42: NÃO | CD42: NÃO | CE42: NÃO | CF42: NÃO | CG42: NÃO | CH42: NÃO | CI42: NÃO | CJ42: NÃO | CK42: NÃO | CL42: NÃO | CM42: NÃO | CN42: NÃO | CO42: NÃO | CP42: NÃO
T43: 0 | W43: feb | X43: =X42 -> 2027 | Y43: feb2027 | Z43: 38 | AF43: 0 | AI43: NO | AJ43: NO | AK43: NO | AL43: NO | AM43: NO | AN43: NO | AO43: NO | AP43: NO | AQ43: NO | AR43: NO | AS43: NO | AT43: NO | AU43: NO | AV43: NO | AW43: NO | AX43: NO | AY43: NO | AZ43: NO | BA43: NO | BB43: NÃO | BC43: NÃO | BD43: NÃO | BE43: NÃO | BF43: NÃO | BG43: NÃO | BH43: NÃO | BI43: NÃO | BJ43: NÃO | BK43: NÃO | BL43: NÃO | BM43: NÃO | BN43: NÃO | BO43: NÃO | BP43: NÃO | BQ43: NÃO | BR43: NÃO | BS43: NÃO | BT43: NÃO | BU43: NÃO | BV43: NÃO | BW43: NÃO | BX43: NÃO | BY43: NÃO | BZ43: NÃO | CA43: NÃO | CB43: NÃO | CC43: NÃO | CD43: NÃO | CE43: NÃO | CF43: NÃO | CG43: NÃO | CH43: NÃO | CI43: NÃO | CJ43: NÃO | CK43: NÃO | CL43: NÃO | CM43: NÃO | CN43: NÃO | CO43: NÃO | CP43: NÃO
T44: 0 | W44: mar | X44: =X43 -> 2027 | Y44: mar2027 | Z44: 39 | AF44: 0 | AI44: NO | AJ44: NO | AK44: NO | AL44: NO | AM44: NO | AN44: NO | AO44: NO | AP44: NO | AQ44: NO | AR44: NO | AS44: NO | AT44: NO | AU44: NO | AV44: NO | AW44: NO | AX44: NO | AY44: NO | AZ44: NO | BA44: NO | BB44: NÃO | BC44: NÃO | BD44: NÃO | BE44: NÃO | BF44: NÃO | BG44: NÃO | BH44: NÃO | BI44: NÃO | BJ44: NÃO | BK44: NÃO | BL44: NÃO | BM44: NÃO | BN44: NÃO | BO44: NÃO | BP44: NÃO | BQ44: NÃO | BR44: NÃO | BS44: NÃO | BT44: NÃO | BU44: NÃO | BV44: NÃO | BW44: NÃO | BX44: NÃO | BY44: NÃO | BZ44: NÃO | CA44: NÃO | CB44: NÃO | CC44: NÃO | CD44: NÃO | CE44: NÃO | CF44: NÃO | CG44: NÃO | CH44: NÃO | CI44: NÃO | CJ44: NÃO | CK44: NÃO | CL44: NÃO | CM44: NÃO | CN44: NÃO | CO44: NÃO | CP44: NÃO
T45: 0 | W45: abr | X45: 2027 | Y45: abr2027 | Z45: 40 | AF45: 0 | AI45: NO | AJ45: NO | AK45: NO | AL45: NO | AM45: NO | AN45: NO | AO45: NO | AP45: NO | AQ45: NO | AR45: NO | AS45: NO | AT45: NO | AU45: NO | AV45: NO | AW45: NO | AX45: NO | AY45: NO | AZ45: NO | BA45: NO | BB45: NÃO | BC45: NÃO | BD45: NÃO | BE45: NÃO | BF45: NÃO | BG45: NÃO | BH45: NÃO | BI45: NÃO | BJ45: NÃO | BK45: NÃO | BL45: NÃO | BM45: NÃO | BN45: NÃO | BO45: NÃO | BP45: NÃO | BQ45: NÃO | BR45: NÃO | BS45: NÃO | BT45: NÃO | BU45: NÃO | BV45: NÃO | BW45: NÃO | BX45: NÃO | BY45: NÃO | BZ45: NÃO | CA45: NÃO | CB45: NÃO | CC45: NÃO | CD45: NÃO | CE45: NÃO | CF45: NÃO | CG45: NÃO | CH45: NÃO | CI45: NÃO | CJ45: NÃO | CK45: NÃO | CL45: NÃO | CM45: NÃO | CN45: NÃO | CO45: NÃO | CP45: NÃO
T46: 0 | W46: may | X46: 2027 | Y46: may2027 | Z46: 41 | AF46: 0 | AI46: =IF(AND(AI$5>=$AC46,AI$5<=$AE46),$E46*$F46,"NO") -> NO | AJ46: NO | AK46: NO | AL46: NO | AM46: NO | AN46: NO | AO46: NO | AP46: NO | AQ46: NO | AR46: NO | AS46: =IF(AND(AS$5>=$AC46,AS$5<=$AE46),$E46*$F46,"NO") -> NO | AT46: NO | AU46: NO | AV46: NO | AW46: NO | AX46: NO | AY46: NO | AZ46: NO | BA46: NO | BB46: =IF(AND(BB$5>=$AC46,BB$5<=$AE46),$E46*$F46,"NÃO") -> NÃO | BC46: NÃO | BD46: NÃO | BE46: NÃO | BF46: =IF(AND(BF$5>=$AC46,BF$5<=$AE46),$E46*$F46,"NÃO") -> NÃO | BG46: NÃO | BH46: NÃO | BI46: NÃO | BJ46: NÃO | BK46: NÃO | BL46: NÃO | BM46: NÃO | BN46: NÃO | BO46: NÃO | BP46: =IF(AND(BP$5>=$AC46,BP$5<=$AE46),$E46*$F46,"NÃO") -> NÃO | BQ46: NÃO | BR46: NÃO | BS46: NÃO | BT46: NÃO | BU46: NÃO | BV46: NÃO | BW46: NÃO | BX46: NÃO | BY46: NÃO | BZ46: =IF(AND(BZ$5>=$AC46,BZ$5<=$AE46),$E46*$F46,"NÃO") -> NÃO | CA46: NÃO | CB46: NÃO | CC46: NÃO | CD46: NÃO | CE46: NÃO | CF46: NÃO | CG46: NÃO | CH46: NÃO | CI46: NÃO | CJ46: =IF(AND(CJ$5>=$AC46,CJ$5<=$AE46),$E46*$F46,"NÃO") -> NÃO | CK46: NÃO | CL46: NÃO | CM46: NÃO | CN46: NÃO | CO46: NÃO | CP46: NÃO
T47: 0 | W47: jun | X47: 2027 | Y47: jun2027 | Z47: 42 | AF47: 0 | AI47: NO | AJ47: NO | AK47: NO | AL47: NO | AM47: NO | AN47: NO | AO47: NO | AP47: NO | AQ47: NO | AR47: NO | AS47: NO | AT47: NO | AU47: NO | AV47: NO | AW47: NO | AX47: NO | AY47: NO | AZ47: NO | BA47: NO | BB47: NÃO | BC47: NÃO | BD47: NÃO | BE47: NÃO | BF47: NÃO | BG47: NÃO | BH47: NÃO | BI47: NÃO | BJ47: NÃO | BK47: NÃO | BL47: NÃO | BM47: NÃO | BN47: NÃO | BO47: NÃO | BP47: NÃO | BQ47: NÃO | BR47: NÃO | BS47: NÃO | BT47: NÃO | BU47: NÃO | BV47: NÃO | BW47: NÃO | BX47: NÃO | BY47: NÃO | BZ47: NÃO | CA47: NÃO | CB47: NÃO | CC47: NÃO | CD47: NÃO | CE47: NÃO | CF47: NÃO | CG47: NÃO | CH47: NÃO | CI47: NÃO | CJ47: NÃO | CK47: NÃO | CL47: NÃO | CM47: NÃO | CN47: NÃO | CO47: NÃO | CP47: NÃO
T48: 0 | W48: jul | X48: 2027 | Y48: jul2027 | Z48: 43 | AF48: 0 | AI48: NO | AJ48: NO | AK48: NO | AL48: NO | AM48: NO | AN48: NO | AO48: NO | AP48: NO | AQ48: NO | AR48: NO | AS48: NO | AT48: NO | AU48: NO | AV48: NO | AW48: NO | AX48: NO | AY48: NO | AZ48: NO | BA48: NO | BB48: NÃO | BC48: NÃO | BD48: NÃO | BE48: NÃO | BF48: NÃO | BG48: NÃO | BH48: NÃO | BI48: NÃO | BJ48: NÃO | BK48: NÃO | BL48: NÃO | BM48: NÃO | BN48: NÃO | BO48: NÃO | BP48: NÃO | BQ48: NÃO | BR48: NÃO | BS48: NÃO | BT48: NÃO | BU48: NÃO | BV48: NÃO | BW48: NÃO | BX48: NÃO | BY48: NÃO | BZ48: NÃO | CA48: NÃO | CB48: NÃO | CC48: NÃO | CD48: NÃO | CE48: NÃO | CF48: NÃO | CG48: NÃO | CH48: NÃO | CI48: NÃO | CJ48: NÃO | CK48: NÃO | CL48: NÃO | CM48: NÃO | CN48: NÃO | CO48: NÃO | CP48: NÃO
T49: 0 | W49: aug | X49: 2027 | Y49: aug2027 | Z49: 44 | AF49: 0 | AI49: NO | AJ49: NO | AK49: NO | AL49: NO | AM49: NO | AN49: NO | AO49: NO | AP49: NO | AQ49: NO | AR49: NO | AS49: NO | AT49: NO | AU49: NO | AV49: NO | AW49: NO | AX49: NO | AY49: NO | AZ49: NO | BA49: NO | BB49: NÃO | BC49: NÃO | BD49: NÃO | BE49: NÃO | BF49: NÃO | BG49: NÃO | BH49: NÃO | BI49: NÃO | BJ49: NÃO | BK49: NÃO | BL49: NÃO | BM49: NÃO | BN49: NÃO | BO49: NÃO | BP49: NÃO | BQ49: NÃO | BR49: NÃO | BS49: NÃO | BT49: NÃO | BU49: NÃO | BV49: NÃO | BW49: NÃO | BX49: NÃO | BY49: NÃO | BZ49: NÃO | CA49: NÃO | CB49: NÃO | CC49: NÃO | CD49: NÃO | CE49: NÃO | CF49: NÃO | CG49: NÃO | CH49: NÃO | CI49: NÃO | CJ49: NÃO | CK49: NÃO | CL49: NÃO | CM49: NÃO | CN49: NÃO | CO49: NÃO | CP49: NÃO
T50: 0 | W50: sep | X50: 2027 | Y50: sep2027 | Z50: 45 | AF50: 0 | AI50: NO | AJ50: NO | AK50: NO | AL50: NO | AM50: NO | AN50: NO | AO50: NO | AP50: NO | AQ50: NO | AR50: NO | AS50: NO | AT50: NO | AU50: NO | AV50: NO | AW50: NO | AX50: NO | AY50: NO | AZ50: NO | BA50: NO | BB50: NÃO | BC50: NÃO | BD50: NÃO | BE50: NÃO | BF50: NÃO | BG50: NÃO | BH50: NÃO | BI50: NÃO | BJ50: NÃO | BK50: NÃO | BL50: NÃO | BM50: NÃO | BN50: NÃO | BO50: NÃO | BP50: NÃO | BQ50: NÃO | BR50: NÃO | BS50: NÃO | BT50: NÃO | BU50: NÃO | BV50: NÃO | BW50: NÃO | BX50: NÃO | BY50: NÃO | BZ50: NÃO | CA50: NÃO | CB50: NÃO | CC50: NÃO | CD50: NÃO | CE50: NÃO | CF50: NÃO | CG50: NÃO | CH50: NÃO | CI50: NÃO | CJ50: NÃO | CK50: NÃO | CL50: NÃO | CM50: NÃO | CN50: NÃO | CO50: NÃO | CP50: NÃO
T51: 0 | W51: oct | X51: 2027 | Y51: oct2027 | Z51: 46 | AF51: 0 | AI51: NO | AJ51: NO | AK51: NO | AL51: NO | AM51: NO | AN51: NO | AO51: NO | AP51: NO | AQ51: NO | AR51: NO | AS51: NO | AT51: NO | AU51: NO | AV51: NO | AW51: NO | AX51: NO | AY51: NO | AZ51: NO | BA51: NO | BB51: NÃO | BC51: NÃO | BD51: NÃO | BE51: NÃO | BF51: NÃO | BG51: NÃO | BH51: NÃO | BI51: NÃO | BJ51: NÃO | BK51: NÃO | BL51: NÃO | BM51: NÃO | BN51: NÃO | BO51: NÃO | BP51: NÃO | BQ51: NÃO | BR51: NÃO | BS51: NÃO | BT51: NÃO | BU51: NÃO | BV51: NÃO | BW51: NÃO | BX51: NÃO | BY51: NÃO | BZ51: NÃO | CA51: NÃO | CB51: NÃO | CC51: NÃO | CD51: NÃO | CE51: NÃO | CF51: NÃO | CG51: NÃO | CH51: NÃO | CI51: NÃO | CJ51: NÃO | CK51: NÃO | CL51: NÃO | CM51: NÃO | CN51: NÃO | CO51: NÃO | CP51: NÃO
T52: 0 | W52: nov | X52: 2027 | Y52: nov2027 | Z52: 47 | AF52: 0 | AI52: NO | AJ52: NO | AK52: NO | AL52: NO | AM52: NO | AN52: NO | AO52: NO | AP52: NO | AQ52: NO | AR52: NO | AS52: NO | AT52: NO | AU52: NO | AV52: NO | AW52: NO | AX52: NO | AY52: NO | AZ52: NO | BA52: NO | BB52: NÃO | BC52: NÃO | BD52: NÃO | BE52: NÃO | BF52: NÃO | BG52: NÃO | BH52: NÃO | BI52: NÃO | BJ52: NÃO | BK52: NÃO | BL52: NÃO | BM52: NÃO | BN52: NÃO | BO52: NÃO | BP52: NÃO | BQ52: NÃO | BR52: NÃO | BS52: NÃO | BT52: NÃO | BU52: NÃO | BV52: NÃO | BW52: NÃO | BX52: NÃO | BY52: NÃO | BZ52: NÃO | CA52: NÃO | CB52: NÃO | CC52: NÃO | CD52: NÃO | CE52: NÃO | CF52: NÃO | CG52: NÃO | CH52: NÃO | CI52: NÃO | CJ52: NÃO | CK52: NÃO | CL52: NÃO | CM52: NÃO | CN52: NÃO | CO52: NÃO | CP52: NÃO
T53: 0 | W53: dic | X53: 2027 | Y53: dic2027 | Z53: 48 | AF53: 0 | AI53: NO | AJ53: NO | AK53: NO | AL53: NO | AM53: NO | AN53: NO | AO53: NO | AP53: NO | AQ53: NO | AR53: NO | AS53: NO | AT53: NO | AU53: NO | AV53: NO | AW53: NO | AX53: NO | AY53: NO | AZ53: NO | BA53: NO | BB53: NÃO | BC53: NÃO | BD53: NÃO | BE53: NÃO | BF53: NÃO | BG53: NÃO | BH53: NÃO | BI53: NÃO | BJ53: NÃO | BK53: NÃO | BL53: NÃO | BM53: NÃO | BN53: NÃO | BO53: NÃO | BP53: NÃO | BQ53: NÃO | BR53: NÃO | BS53: NÃO | BT53: NÃO | BU53: NÃO | BV53: NÃO | BW53: NÃO | BX53: NÃO | BY53: NÃO | BZ53: NÃO | CA53: NÃO | CB53: NÃO | CC53: NÃO | CD53: NÃO | CE53: NÃO | CF53: NÃO | CG53: NÃO | CH53: NÃO | CI53: NÃO | CJ53: NÃO | CK53: NÃO | CL53: NÃO | CM53: NÃO | CN53: NÃO | CO53: NÃO | CP53: NÃO
T54: 0 | W54: ene | X54: =V10 -> 2028 | Y54: ene2028 | Z54: 49 | AF54: 0 | AI54: NO | AJ54: NO | AK54: NO | AL54: NO | AM54: NO | AN54: NO | AO54: NO | AP54: NO | AQ54: NO | AR54: NO | AS54: NO | AT54: NO | AU54: NO | AV54: NO | AW54: NO | AX54: NO | AY54: NO | AZ54: NO | BA54: NO | BB54: NÃO | BC54: NÃO | BD54: NÃO | BE54: NÃO | BF54: NÃO | BG54: NÃO | BH54: NÃO | BI54: NÃO | BJ54: NÃO | BK54: NÃO | BL54: NÃO | BM54: NÃO | BN54: NÃO | BO54: NÃO | BP54: NÃO | BQ54: NÃO | BR54: NÃO | BS54: NÃO | BT54: NÃO | BU54: NÃO | BV54: NÃO | BW54: NÃO | BX54: NÃO | BY54: NÃO | BZ54: NÃO | CA54: NÃO | CB54: NÃO | CC54: NÃO | CD54: NÃO | CE54: NÃO | CF54: NÃO | CG54: NÃO | CH54: NÃO | CI54: NÃO | CJ54: NÃO | CK54: NÃO | CL54: NÃO | CM54: NÃO | CN54: NÃO | CO54: NÃO | CP54: NÃO
T55: 0 | W55: feb | X55: =X54 -> 2028 | Y55: feb2028 | Z55: 50 | AF55: 0 | AI55: NO | AJ55: NO | AK55: NO | AL55: NO | AM55: NO | AN55: NO | AO55: NO | AP55: NO | AQ55: NO | AR55: NO | AS55: NO | AT55: NO | AU55: NO | AV55: NO | AW55: NO | AX55: NO | AY55: NO | AZ55: NO | BA55: NO | BB55: NÃO | BC55: NÃO | BD55: NÃO | BE55: NÃO | BF55: NÃO | BG55: NÃO | BH55: NÃO | BI55: NÃO | BJ55: NÃO | BK55: NÃO | BL55: NÃO | BM55: NÃO | BN55: NÃO | BO55: NÃO | BP55: NÃO | BQ55: NÃO | BR55: NÃO | BS55: NÃO | BT55: NÃO | BU55: NÃO | BV55: NÃO | BW55: NÃO | BX55: NÃO | BY55: NÃO | BZ55: NÃO | CA55: NÃO | CB55: NÃO | CC55: NÃO | CD55: NÃO | CE55: NÃO | CF55: NÃO | CG55: NÃO | CH55: NÃO | CI55: NÃO | CJ55: NÃO | CK55: NÃO | CL55: NÃO | CM55: NÃO | CN55: NÃO | CO55: NÃO | CP55: NÃO
T56: 0 | W56: mar | X56: =X55 -> 2028 | Y56: mar2028 | Z56: 51 | AF56: 0 | AI56: =IF(AND(AI$5>=$AC56,AI$5<=$AE56),$E56*$F56,"NO") -> NO | AJ56: NO | AK56: NO | AL56: NO | AM56: NO | AN56: NO | AO56: NO | AP56: NO | AQ56: NO | AR56: NO | AS56: =IF(AND(AS$5>=$AC56,AS$5<=$AE56),$E56*$F56,"NO") -> NO | AT56: NO | AU56: NO | AV56: NO | AW56: NO | AX56: NO | AY56: NO | AZ56: NO | BA56: NO | BB56: =IF(AND(BB$5>=$AC56,BB$5<=$AE56),$E56*$F56,"NÃO") -> NÃO | BC56: NÃO | BD56: NÃO | BE56: NÃO | BF56: =IF(AND(BF$5>=$AC56,BF$5<=$AE56),$E56*$F56,"NÃO") -> NÃO | BG56: NÃO | BH56: NÃO | BI56: NÃO | BJ56: NÃO | BK56: NÃO | BL56: NÃO | BM56: NÃO | BN56: NÃO | BO56: NÃO | BP56: =IF(AND(BP$5>=$AC56,BP$5<=$AE56),$E56*$F56,"NÃO") -> NÃO | BQ56: NÃO | BR56: NÃO | BS56: NÃO | BT56: NÃO | BU56: NÃO | BV56: NÃO | BW56: NÃO | BX56: NÃO | BY56: NÃO | BZ56: =IF(AND(BZ$5>=$AC56,BZ$5<=$AE56),$E56*$F56,"NÃO") -> NÃO | CA56: NÃO | CB56: NÃO | CC56: NÃO | CD56: NÃO | CE56: NÃO | CF56: NÃO | CG56: NÃO | CH56: NÃO | CI56: NÃO | CJ56: =IF(AND(CJ$5>=$AC56,CJ$5<=$AE56),$E56*$F56,"NÃO") -> NÃO | CK56: NÃO | CL56: NÃO | CM56: NÃO | CN56: NÃO | CO56: NÃO | CP56: NÃO
T57: 0 | W57: abr | X57: 2028 | Y57: abr2028 | Z57: 52 | AF57: 0 | AI57: NO | AJ57: NO | AK57: NO | AL57: NO | AM57: NO | AN57: NO | AO57: NO | AP57: NO | AQ57: NO | AR57: NO | AS57: NO | AT57: NO | AU57: NO | AV57: NO | AW57: NO | AX57: NO | AY57: NO | AZ57: NO | BA57: NO | BB57: NÃO | BC57: NÃO | BD57: NÃO | BE57: NÃO | BF57: NÃO | BG57: NÃO | BH57: NÃO | BI57: NÃO | BJ57: NÃO | BK57: NÃO | BL57: NÃO | BM57: NÃO | BN57: NÃO | BO57: NÃO | BP57: NÃO | BQ57: NÃO | BR57: NÃO | BS57: NÃO | BT57: NÃO | BU57: NÃO | BV57: NÃO | BW57: NÃO | BX57: NÃO | BY57: NÃO | BZ57: NÃO | CA57: NÃO | CB57: NÃO | CC57: NÃO | CD57: NÃO | CE57: NÃO | CF57: NÃO | CG57: NÃO | CH57: NÃO | CI57: NÃO | CJ57: NÃO | CK57: NÃO | CL57: NÃO | CM57: NÃO | CN57: NÃO | CO57: NÃO | CP57: NÃO
T58: 0 | W58: may | X58: 2028 | Y58: may2028 | Z58: 53 | AF58: 0 | AI58: NO | AJ58: NO | AK58: NO | AL58: NO | AM58: NO | AN58: NO | AO58: NO | AP58: NO | AQ58: NO | AR58: NO | AS58: NO | AT58: NO | AU58: NO | AV58: NO | AW58: NO | AX58: NO | AY58: NO | AZ58: NO | BA58: NO | BB58: NÃO | BC58: NÃO | BD58: NÃO | BE58: NÃO | BF58: NÃO | BG58: NÃO | BH58: NÃO | BI58: NÃO | BJ58: NÃO | BK58: NÃO | BL58: NÃO | BM58: NÃO | BN58: NÃO | BO58: NÃO | BP58: NÃO | BQ58: NÃO | BR58: NÃO | BS58: NÃO | BT58: NÃO | BU58: NÃO | BV58: NÃO | BW58: NÃO | BX58: NÃO | BY58: NÃO | BZ58: NÃO | CA58: NÃO | CB58: NÃO | CC58: NÃO | CD58: NÃO | CE58: NÃO | CF58: NÃO | CG58: NÃO | CH58: NÃO | CI58: NÃO | CJ58: NÃO | CK58: NÃO | CL58: NÃO | CM58: NÃO | CN58: NÃO | CO58: NÃO | CP58: NÃO
T59: 0 | W59: jun | X59: 2028 | Y59: jun2028 | Z59: 54 | AF59: 0 | AI59: NO | AJ59: NO | AK59: NO | AL59: NO | AM59: NO | AN59: NO | AO59: NO | AP59: NO | AQ59: NO | AR59: NO | AS59: NO | AT59: NO | AU59: NO | AV59: NO | AW59: NO | AX59: NO | AY59: NO | AZ59: NO | BA59: NO | BB59: NÃO | BC59: NÃO | BD59: NÃO | BE59: NÃO | BF59: NÃO | BG59: NÃO | BH59: NÃO | BI59: NÃO | BJ59: NÃO | BK59: NÃO | BL59: NÃO | BM59: NÃO | BN59: NÃO | BO59: NÃO | BP59: NÃO | BQ59: NÃO | BR59: NÃO | BS59: NÃO | BT59: NÃO | BU59: NÃO | BV59: NÃO | BW59: NÃO | BX59: NÃO | BY59: NÃO | BZ59: NÃO | CA59: NÃO | CB59: NÃO | CC59: NÃO | CD59: NÃO | CE59: NÃO | CF59: NÃO | CG59: NÃO | CH59: NÃO | CI59: NÃO | CJ59: NÃO | CK59: NÃO | CL59: NÃO | CM59: NÃO | CN59: NÃO | CO59: NÃO | CP59: NÃO
T60: 0 | W60: jul | X60: 2028 | Y60: jul2028 | Z60: 55 | AF60: 0 | AI60: NO | AJ60: NO | AK60: NO | AL60: NO | AM60: NO | AN60: NO | AO60: NO | AP60: NO | AQ60: NO | AR60: NO | AS60: NO | AT60: NO | AU60: NO | AV60: NO | AW60: NO | AX60: NO | AY60: NO | AZ60: NO | BA60: NO | BB60: NÃO | BC60: NÃO | BD60: NÃO | BE60: NÃO | BF60: NÃO | BG60: NÃO | BH60: NÃO | BI60: NÃO | BJ60: NÃO | BK60: NÃO | BL60: NÃO | BM60: NÃO | BN60: NÃO | BO60: NÃO | BP60: NÃO | BQ60: NÃO | BR60: NÃO | BS60: NÃO | BT60: NÃO | BU60: NÃO | BV60: NÃO | BW60: NÃO | BX60: NÃO | BY60: NÃO | BZ60: NÃO | CA60: NÃO | CB60: NÃO | CC60: NÃO | CD60: NÃO | CE60: NÃO | CF60: NÃO | CG60: NÃO | CH60: NÃO | CI60: NÃO | CJ60: NÃO | CK60: NÃO | CL60: NÃO | CM60: NÃO | CN60: NÃO | CO60: NÃO | CP60: NÃO
T61: 0 | W61: aug | X61: 2028 | Y61: aug2028 | Z61: 56 | AF61: 0 | AI61: NO | AJ61: NO | AK61: NO | AL61: NO | AM61: NO | AN61: NO | AO61: NO | AP61: NO | AQ61: NO | AR61: NO | AS61: NO | AT61: NO | AU61: NO | AV61: NO | AW61: NO | AX61: NO | AY61: NO | AZ61: NO | BA61: NO | BB61: NÃO | BC61: NÃO | BD61: NÃO | BE61: NÃO | BF61: NÃO | BG61: NÃO | BH61: NÃO | BI61: NÃO | BJ61: NÃO | BK61: NÃO | BL61: NÃO | BM61: NÃO | BN61: NÃO | BO61: NÃO | BP61: NÃO | BQ61: NÃO | BR61: NÃO | BS61: NÃO | BT61: NÃO | BU61: NÃO | BV61: NÃO | BW61: NÃO | BX61: NÃO | BY61: NÃO | BZ61: NÃO | CA61: NÃO | CB61: NÃO | CC61: NÃO | CD61: NÃO | CE61: NÃO | CF61: NÃO | CG61: NÃO | CH61: NÃO | CI61: NÃO | CJ61: NÃO | CK61: NÃO | CL61: NÃO | CM61: NÃO | CN61: NÃO | CO61: NÃO | CP61: NÃO
T62: 0 | W62: sep | X62: 2028 | Y62: sep2028 | Z62: 57 | AF62: 0 | AI62: NO | AJ62: NO | AK62: NO | AL62: NO | AM62: NO | AN62: NO | AO62: NO | AP62: NO | AQ62: NO | AR62: NO | AS62: NO | AT62: NO | AU62: NO | AV62: NO | AW62: NO | AX62: NO | AY62: NO | AZ62: NO | BA62: NO | BB62: NÃO | BC62: NÃO | BD62: NÃO | BE62: NÃO | BF62: NÃO | BG62: NÃO | BH62: NÃO | BI62: NÃO | BJ62: NÃO | BK62: NÃO | BL62: NÃO | BM62: NÃO | BN62: NÃO | BO62: NÃO | BP62: NÃO | BQ62: NÃO | BR62: NÃO | BS62: NÃO | BT62: NÃO | BU62: NÃO | BV62: NÃO | BW62: NÃO | BX62: NÃO | BY62: NÃO | BZ62: NÃO | CA62: NÃO | CB62: NÃO | CC62: NÃO | CD62: NÃO | CE62: NÃO | CF62: NÃO | CG62: NÃO | CH62: NÃO | CI62: NÃO | CJ62: NÃO | CK62: NÃO | CL62: NÃO | CM62: NÃO | CN62: NÃO | CO62: NÃO | CP62: NÃO
T63: 0 | W63: oct | X63: 2028 | Y63: oct2028 | Z63: 58 | AF63: 0 | AI63: NO | AJ63: NO | AK63: NO | AL63: NO | AM63: NO | AN63: NO | AO63: NO | AP63: NO | AQ63: NO | AR63: NO | AS63: NO | AT63: NO | AU63: NO | AV63: NO | AW63: NO | AX63: NO | AY63: NO | AZ63: NO | BA63: NO | BB63: NÃO | BC63: NÃO | BD63: NÃO | BE63: NÃO | BF63: NÃO | BG63: NÃO | BH63: NÃO | BI63: NÃO | BJ63: NÃO | BK63: NÃO | BL63: NÃO | BM63: NÃO | BN63: NÃO | BO63: NÃO | BP63: NÃO | BQ63: NÃO | BR63: NÃO | BS63: NÃO | BT63: NÃO | BU63: NÃO | BV63: NÃO | BW63: NÃO | BX63: NÃO | BY63: NÃO | BZ63: NÃO | CA63: NÃO | CB63: NÃO | CC63: NÃO | CD63: NÃO | CE63: NÃO | CF63: NÃO | CG63: NÃO | CH63: NÃO | CI63: NÃO | CJ63: NÃO | CK63: NÃO | CL63: NÃO | CM63: NÃO | CN63: NÃO | CO63: NÃO | CP63: NÃO
T64: 0 | W64: nov | X64: 2028 | Y64: nov2028 | Z64: 59 | AF64: 0 | AI64: NO | AJ64: NO | AK64: NO | AL64: NO | AM64: NO | AN64: NO | AO64: NO | AP64: NO | AQ64: NO | AR64: NO | AS64: NO | AT64: NO | AU64: NO | AV64: NO | AW64: NO | AX64: NO | AY64: NO | AZ64: NO | BA64: NO | BB64: NÃO | BC64: NÃO | BD64: NÃO | BE64: NÃO | BF64: NÃO | BG64: NÃO | BH64: NÃO | BI64: NÃO | BJ64: NÃO | BK64: NÃO | BL64: NÃO | BM64: NÃO | BN64: NÃO | BO64: NÃO | BP64: NÃO | BQ64: NÃO | BR64: NÃO | BS64: NÃO | BT64: NÃO | BU64: NÃO | BV64: NÃO | BW64: NÃO | BX64: NÃO | BY64: NÃO | BZ64: NÃO | CA64: NÃO | CB64: NÃO | CC64: NÃO | CD64: NÃO | CE64: NÃO | CF64: NÃO | CG64: NÃO | CH64: NÃO | CI64: NÃO | CJ64: NÃO | CK64: NÃO | CL64: NÃO | CM64: NÃO | CN64: NÃO | CO64: NÃO | CP64: NÃO
T65: 0 | W65: dic | X65: 2028 | Y65: dic2028 | Z65: 60 | AF65: 0 | AI65: NO | AJ65: NO | AK65: NO | AL65: NO | AM65: NO | AN65: NO | AO65: NO | AP65: NO | AQ65: NO | AR65: NO | AS65: NO | AT65: NO | AU65: NO | AV65: NO | AW65: NO | AX65: NO | AY65: NO | AZ65: NO | BA65: NO | BB65: NÃO | BC65: NÃO | BD65: NÃO | BE65: NÃO | BF65: NÃO | BG65: NÃO | BH65: NÃO | BI65: NÃO | BJ65: NÃO | BK65: NÃO | BL65: NÃO | BM65: NÃO | BN65: NÃO | BO65: NÃO | BP65: NÃO | BQ65: NÃO | BR65: NÃO | BS65: NÃO | BT65: NÃO | BU65: NÃO | BV65: NÃO | BW65: NÃO | BX65: NÃO | BY65: NÃO | BZ65: NÃO | CA65: NÃO | CB65: NÃO | CC65: NÃO | CD65: NÃO | CE65: NÃO | CF65: NÃO | CG65: NÃO | CH65: NÃO | CI65: NÃO | CJ65: NÃO | CK65: NÃO | CL65: NÃO | CM65: NÃO | CN65: NÃO | CO65: NÃO | CP65: NÃO
T66: 0 | AF66: 0 | AI66: =IF(AND(AI$5>=$AC66,AI$5<=$AE66),$E66*$F66,"NO") -> NO | AJ66: NO | AK66: NO | AL66: NO | AM66: NO | AN66: NO | AO66: NO | AP66: NO | AQ66: NO | AR66: NO | AS66: =IF(AND(AS$5>=$AC66,AS$5<=$AE66),$E66*$F66,"NO") -> NO | AT66: NO | AU66: NO | AV66: NO | AW66: NO | AX66: NO | AY66: NO | AZ66: NO | BA66: NO | BB66: =IF(AND(BB$5>=$AC66,BB$5<=$AE66),$E66*$F66,"NÃO") -> NÃO | BC66: NÃO | BD66: NÃO | BE66: NÃO | BF66: =IF(AND(BF$5>=$AC66,BF$5<=$AE66),$E66*$F66,"NÃO") -> NÃO | BG66: NÃO | BH66: NÃO | BI66: NÃO | BJ66: NÃO | BK66: NÃO | BL66: NÃO | BM66: NÃO | BN66: NÃO | BO66: NÃO | BP66: =IF(AND(BP$5>=$AC66,BP$5<=$AE66),$E66*$F66,"NÃO") -> NÃO | BQ66: NÃO | BR66: NÃO | BS66: NÃO | BT66: NÃO | BU66: NÃO | BV66: NÃO | BW66: NÃO | BX66: NÃO | BY66: NÃO | BZ66: =IF(AND(BZ$5>=$AC66,BZ$5<=$AE66),$E66*$F66,"NÃO") -> NÃO | CA66: NÃO | CB66: NÃO | CC66: NÃO | CD66: NÃO | CE66: NÃO | CF66: NÃO | CG66: NÃO | CH66: NÃO | CI66: NÃO | CJ66: =IF(AND(CJ$5>=$AC66,CJ$5<=$AE66),$E66*$F66,"NÃO") -> NÃO | CK66: NÃO | CL66: NÃO | CM66: NÃO | CN66: NÃO | CO66: NÃO | CP66: NÃO
T67: 0 | AF67: 0 | AI67: NO | AJ67: NO | AK67: NO | AL67: NO | AM67: NO | AN67: NO | AO67: NO | AP67: NO | AQ67: NO | AR67: NO | AS67: NO | AT67: NO | AU67: NO | AV67: NO | AW67: NO | AX67: NO | AY67: NO | AZ67: NO | BA67: NO | BB67: NÃO | BC67: NÃO | BD67: NÃO | BE67: NÃO | BF67: NÃO | BG67: NÃO | BH67: NÃO | BI67: NÃO | BJ67: NÃO | BK67: NÃO | BL67: NÃO | BM67: NÃO | BN67: NÃO | BO67: NÃO | BP67: NÃO | BQ67: NÃO | BR67: NÃO | BS67: NÃO | BT67: NÃO | BU67: NÃO | BV67: NÃO | BW67: NÃO | BX67: NÃO | BY67: NÃO | BZ67: NÃO | CA67: NÃO | CB67: NÃO | CC67: NÃO | CD67: NÃO | CE67: NÃO | CF67: NÃO | CG67: NÃO | CH67: NÃO | CI67: NÃO | CJ67: NÃO | CK67: NÃO | CL67: NÃO | CM67: NÃO | CN67: NÃO | CO67: NÃO | CP67: NÃO
T68: 0 | AF68: 0 | AI68: NO | AJ68: NO | AK68: NO | AL68: NO | AM68: NO | AN68: NO | AO68: NO | AP68: NO | AQ68: NO | AR68: NO | AS68: NO | AT68: NO | AU68: NO | AV68: NO | AW68: NO | AX68: NO | AY68: NO | AZ68: NO | BA68: NO | BB68: NÃO | BC68: NÃO | BD68: NÃO | BE68: NÃO | BF68: NÃO | BG68: NÃO | BH68: NÃO | BI68: NÃO | BJ68: NÃO | BK68: NÃO | BL68: NÃO | BM68: NÃO | BN68: NÃO | BO68: NÃO | BP68: NÃO | BQ68: NÃO | BR68: NÃO | BS68: NÃO | BT68: NÃO | BU68: NÃO | BV68: NÃO | BW68: NÃO | BX68: NÃO | BY68: NÃO | BZ68: NÃO | CA68: NÃO | CB68: NÃO | CC68: NÃO | CD68: NÃO | CE68: NÃO | CF68: NÃO | CG68: NÃO | CH68: NÃO | CI68: NÃO | CJ68: NÃO | CK68: NÃO | CL68: NÃO | CM68: NÃO | CN68: NÃO | CO68: NÃO | CP68: NÃO
T69: 0 | AF69: 0 | AI69: NO | AJ69: NO | AK69: NO | AL69: NO | AM69: NO | AN69: NO | AO69: NO | AP69: NO | AQ69: NO | AR69: NO | AS69: NO | AT69: NO | AU69: NO | AV69: NO | AW69: NO | AX69: NO | AY69: NO | AZ69: NO | BA69: NO | BB69: NÃO | BC69: NÃO | BD69: NÃO | BE69: NÃO | BF69: NÃO | BG69: NÃO | BH69: NÃO | BI69: NÃO | BJ69: NÃO | BK69: NÃO | BL69: NÃO | BM69: NÃO | BN69: NÃO | BO69: NÃO | BP69: NÃO | BQ69: NÃO | BR69: NÃO | BS69: NÃO | BT69: NÃO | BU69: NÃO | BV69: NÃO | BW69: NÃO | BX69: NÃO | BY69: NÃO | BZ69: NÃO | CA69: NÃO | CB69: NÃO | CC69: NÃO | CD69: NÃO | CE69: NÃO | CF69: NÃO | CG69: NÃO | CH69: NÃO | CI69: NÃO | CJ69: NÃO | CK69: NÃO | CL69: NÃO | CM69: NÃO | CN69: NÃO | CO69: NÃO | CP69: NÃO
T70: 0 | AF70: 0 | AI70: NO | AJ70: NO | AK70: NO | AL70: NO | AM70: NO | AN70: NO | AO70: NO | AP70: NO | AQ70: NO | AR70: NO | AS70: NO | AT70: NO | AU70: NO | AV70: NO | AW70: NO | AX70: NO | AY70: NO | AZ70: NO | BA70: NO | BB70: NÃO | BC70: NÃO | BD70: NÃO | BE70: NÃO | BF70: NÃO | BG70: NÃO | BH70: NÃO | BI70: NÃO | BJ70: NÃO | BK70: NÃO | BL70: NÃO | BM70: NÃO | BN70: NÃO | BO70: NÃO | BP70: NÃO | BQ70: NÃO | BR70: NÃO | BS70: NÃO | BT70: NÃO | BU70: NÃO | BV70: NÃO | BW70: NÃO | BX70: NÃO | BY70: NÃO | BZ70: NÃO | CA70: NÃO | CB70: NÃO | CC70: NÃO | CD70: NÃO | CE70: NÃO | CF70: NÃO | CG70: NÃO | CH70: NÃO | CI70: NÃO | CJ70: NÃO | CK70: NÃO | CL70: NÃO | CM70: NÃO | CN70: NÃO | CO70: NÃO | CP70: NÃO
G71: =IF(C71="","",E71*7.09%) ->  | O71: =IF(E71="","",AG71) ->  | P71: =IF(E71="","",AH71) ->  | Q71: =IF(E71="","",AI71) ->  | R71: =IF(E71="","",AJ71) ->  | S71: =IF(E71="","",AK71) ->  | T71: =AF71 -> 0 | AB71: =CONCATENATE(K71,L71) ->  | AC71: =IF(AB71="","",VLOOKUP(AB71,$Y$6:$Z$65,2,FALSE)) ->  | AD71: =CONCATENATE(M71,N71) ->  | AE71: =IFERROR(VLOOKUP(AD71,$Y$6:$Z$65,2,FALSE),"") ->  | AF71: =IFERROR(SUM(AG71:AK71),"") -> 0 | AG71: =IFERROR((AE71-AC71+1)*G71*F71,"") ->  | AH71: =IFERROR((AE71-AC71+1)*H71*F71,"") ->  | AI71: NO | AJ71: NO | AK71: NO | AL71: NO | AM71: NO | AN71: NO | AO71: NO | AP71: NO | AQ71: NO | AR71: NO | AS71: NO | AT71: NO | AU71: NO | AV71: NO | AW71: NO | AX71: NO | AY71: NO | AZ71: NO | BA71: NO | BB71: NÃO | BC71: NÃO | BD71: NÃO | BE71: NÃO | BF71: NÃO | BG71: NÃO | BH71: NÃO | BI71: NÃO | BJ71: NÃO | BK71: NÃO | BL71: NÃO | BM71: NÃO | BN71: NÃO | BO71: NÃO | BP71: NÃO | BQ71: NÃO | BR71: NÃO | BS71: NÃO | BT71: NÃO | BU71: NÃO | BV71: NÃO | BW71: NÃO | BX71: NÃO | BY71: NÃO | BZ71: NÃO | CA71: NÃO | CB71: NÃO | CC71: NÃO | CD71: NÃO | CE71: NÃO | CF71: NÃO | CG71: NÃO | CH71: NÃO | CI71: NÃO | CJ71: NÃO | CK71: NÃO | CL71: NÃO | CM71: NÃO | CN71: NÃO | CO71: NÃO | CP71: NÃO
H72: =IF(C72="","",E72*7.1%) ->  | I72: =IF(C72="","",E72*1%) ->  | J72: =IF(C72="","",E72*1%) ->  | T72: 0 | AF72: 0 | AI72: NO | AJ72: NO | AK72: NO | AL72: NO | AM72: NO | AN72: NO | AO72: NO | AP72: NO | AQ72: NO | AR72: NO | AS72: NO | AT72: NO | AU72: NO | AV72: NO | AW72: NO | AX72: NO | AY72: NO | AZ72: NO | BA72: NO | BB72: NÃO | BC72: NÃO | BD72: NÃO | BE72: NÃO | BF72: NÃO | BG72: NÃO | BH72: NÃO | BI72: NÃO | BJ72: NÃO | BK72: NÃO | BL72: NÃO | BM72: NÃO | BN72: NÃO | BO72: NÃO | BP72: NÃO | BQ72: NÃO | BR72: NÃO | BS72: NÃO | BT72: NÃO | BU72: NÃO | BV72: NÃO | BW72: NÃO | BX72: NÃO | BY72: NÃO | BZ72: NÃO | CA72: NÃO | CB72: NÃO | CC72: NÃO | CD72: NÃO | CE72: NÃO | CF72: NÃO | CG72: NÃO | CH72: NÃO | CI72: NÃO | CJ72: NÃO | CK72: NÃO | CL72: NÃO | CM72: NÃO | CN72: NÃO | CO72: NÃO | CP72: NÃO
T73: 0 | AF73: 0 | AI73: NO | AJ73: NO | AK73: NO | AL73: NO | AM73: NO | AN73: NO | AO73: NO | AP73: NO | AQ73: NO | AR73: NO | AS73: NO | AT73: NO | AU73: NO | AV73: NO | AW73: NO | AX73: NO | AY73: NO | AZ73: NO | BA73: NO | BB73: NÃO | BC73: NÃO | BD73: NÃO | BE73: NÃO | BF73: NÃO | BG73: NÃO | BH73: NÃO | BI73: NÃO | BJ73: NÃO | BK73: NÃO | BL73: NÃO | BM73: NÃO | BN73: NÃO | BO73: NÃO | BP73: NÃO | BQ73: NÃO | BR73: NÃO | BS73: NÃO | BT73: NÃO | BU73: NÃO | BV73: NÃO | BW73: NÃO | BX73: NÃO | BY73: NÃO | BZ73: NÃO | CA73: NÃO | CB73: NÃO | CC73: NÃO | CD73: NÃO | CE73: NÃO | CF73: NÃO | CG73: NÃO | CH73: NÃO | CI73: NÃO | CJ73: NÃO | CK73: NÃO | CL73: NÃO | CM73: NÃO | CN73: NÃO | CO73: NÃO | CP73: NÃO
T74: 0 | AF74: 0 | AI74: NO | AJ74: NO | AK74: NO | AL74: NO | AM74: NO | AN74: NO | AO74: NO | AP74: NO | AQ74: NO | AR74: NO | AS74: NO | AT74: NO | AU74: NO | AV74: NO | AW74: NO | AX74: NO | AY74: NO | AZ74: NO | BA74: NO | BB74: NÃO | BC74: NÃO | BD74: NÃO | BE74: NÃO | BF74: NÃO | BG74: NÃO | BH74: NÃO | BI74: NÃO | BJ74: NÃO | BK74: NÃO | BL74: NÃO | BM74: NÃO | BN74: NÃO | BO74: NÃO | BP74: NÃO | BQ74: NÃO | BR74: NÃO | BS74: NÃO | BT74: NÃO | BU74: NÃO | BV74: NÃO | BW74: NÃO | BX74: NÃO | BY74: NÃO | BZ74: NÃO | CA74: NÃO | CB74: NÃO | CC74: NÃO | CD74: NÃO | CE74: NÃO | CF74: NÃO | CG74: NÃO | CH74: NÃO | CI74: NÃO | CJ74: NÃO | CK74: NÃO | CL74: NÃO | CM74: NÃO | CN74: NÃO | CO74: NÃO | CP74: NÃO
T75: 0 | AF75: 0 | AI75: NO | AJ75: NO | AK75: NO | AL75: NO | AM75: NO | AN75: NO | AO75: NO | AP75: NO | AQ75: NO | AR75: NO | AS75: NO | AT75: NO | AU75: NO | AV75: NO | AW75: NO | AX75: NO | AY75: NO | AZ75: NO | BA75: NO | BB75: NÃO | BC75: NÃO | BD75: NÃO | BE75: NÃO | BF75: NÃO | BG75: NÃO | BH75: NÃO | BI75: NÃO | BJ75: NÃO | BK75: NÃO | BL75: NÃO | BM75: NÃO | BN75: NÃO | BO75: NÃO | BP75: NÃO | BQ75: NÃO | BR75: NÃO | BS75: NÃO | BT75: NÃO | BU75: NÃO | BV75: NÃO | BW75: NÃO | BX75: NÃO | BY75: NÃO | BZ75: NÃO | CA75: NÃO | CB75: NÃO | CC75: NÃO | CD75: NÃO | CE75: NÃO | CF75: NÃO | CG75: NÃO | CH75: NÃO | CI75: NÃO | CJ75: NÃO | CK75: NÃO | CL75: NÃO | CM75: NÃO | CN75: NÃO | CO75: NÃO | CP75: NÃO
T76: 0 | AF76: 0 | AI76: =IF(AND(AI$5>=$AC76,AI$5<=$AE76),$E76*$F76,"NO") -> NO | AJ76: NO | AK76: NO | AL76: NO | AM76: NO | AN76: NO | AO76: NO | AP76: NO | AQ76: NO | AR76: NO | AS76: =IF(AND(AS$5>=$AC76,AS$5<=$AE76),$E76*$F76,"NO") -> NO | AT76: NO | AU76: NO | AV76: NO | AW76: NO | AX76: NO | AY76: NO | AZ76: NO | BA76: NO | BB76: =IF(AND(BB$5>=$AC76,BB$5<=$AE76),$E76*$F76,"NÃO") -> NÃO | BC76: NÃO | BD76: NÃO | BE76: NÃO | BF76: =IF(AND(BF$5>=$AC76,BF$5<=$AE76),$E76*$F76,"NÃO") -> NÃO | BG76: NÃO | BH76: NÃO | BI76: NÃO | BJ76: NÃO | BK76: NÃO | BL76: NÃO | BM76: NÃO | BN76: NÃO | BO76: NÃO | BP76: =IF(AND(BP$5>=$AC76,BP$5<=$AE76),$E76*$F76,"NÃO") -> NÃO | BQ76: NÃO | BR76: NÃO | BS76: NÃO | BT76: NÃO | BU76: NÃO | BV76: NÃO | BW76: NÃO | BX76: NÃO | BY76: NÃO | BZ76: =IF(AND(BZ$5>=$AC76,BZ$5<=$AE76),$E76*$F76,"NÃO") -> NÃO | CA76: NÃO | CB76: NÃO | CC76: NÃO | CD76: NÃO | CE76: NÃO | CF76: NÃO | CG76: NÃO | CH76: NÃO | CI76: NÃO | CJ76: =IF(AND(CJ$5>=$AC76,CJ$5<=$AE76),$E76*$F76,"NÃO") -> NÃO | CK76: NÃO | CL76: NÃO | CM76: NÃO | CN76: NÃO | CO76: NÃO | CP76: NÃO
T77: 0 | AF77: 0 | AI77: NO | AJ77: NO | AK77: NO | AL77: NO | AM77: NO | AN77: NO | AO77: NO | AP77: NO | AQ77: NO | AR77: NO | AS77: NO | AT77: NO | AU77: NO | AV77: NO | AW77: NO | AX77: NO | AY77: NO | AZ77: NO | BA77: NO | BB77: NÃO | BC77: NÃO | BD77: NÃO | BE77: NÃO | BF77: NÃO | BG77: NÃO | BH77: NÃO | BI77: NÃO | BJ77: NÃO | BK77: NÃO | BL77: NÃO | BM77: NÃO | BN77: NÃO | BO77: NÃO | BP77: NÃO | BQ77: NÃO | BR77: NÃO | BS77: NÃO | BT77: NÃO | BU77: NÃO | BV77: NÃO | BW77: NÃO | BX77: NÃO | BY77: NÃO | BZ77: NÃO | CA77: NÃO | CB77: NÃO | CC77: NÃO | CD77: NÃO | CE77: NÃO | CF77: NÃO | CG77: NÃO | CH77: NÃO | CI77: NÃO | CJ77: NÃO | CK77: NÃO | CL77: NÃO | CM77: NÃO | CN77: NÃO | CO77: NÃO | CP77: NÃO
T78: 0 | AF78: 0 | AI78: NO | AJ78: NO | AK78: NO | AL78: NO | AM78: NO | AN78: NO | AO78: NO | AP78: NO | AQ78: NO | AR78: NO | AS78: NO | AT78: NO | AU78: NO | AV78: NO | AW78: NO | AX78: NO | AY78: NO | AZ78: NO | BA78: NO | BB78: NÃO | BC78: NÃO | BD78: NÃO | BE78: NÃO | BF78: NÃO | BG78: NÃO | BH78: NÃO | BI78: NÃO | BJ78: NÃO | BK78: NÃO | BL78: NÃO | BM78: NÃO | BN78: NÃO | BO78: NÃO | BP78: NÃO | BQ78: NÃO | BR78: NÃO | BS78: NÃO | BT78: NÃO | BU78: NÃO | BV78: NÃO | BW78: NÃO | BX78: NÃO | BY78: NÃO | BZ78: NÃO | CA78: NÃO | CB78: NÃO | CC78: NÃO | CD78: NÃO | CE78: NÃO | CF78: NÃO | CG78: NÃO | CH78: NÃO | CI78: NÃO | CJ78: NÃO | CK78: NÃO | CL78: NÃO | CM78: NÃO | CN78: NÃO | CO78: NÃO | CP78: NÃO
T79: 0 | AF79: 0 | AI79: NO | AJ79: NO | AK79: NO | AL79: NO | AM79: NO | AN79: NO | AO79: NO | AP79: NO | AQ79: NO | AR79: NO | AS79: NO | AT79: NO | AU79: NO | AV79: NO | AW79: NO | AX79: NO | AY79: NO | AZ79: NO | BA79: NO | BB79: NÃO | BC79: NÃO | BD79: NÃO | BE79: NÃO | BF79: NÃO | BG79: NÃO | BH79: NÃO | BI79: NÃO | BJ79: NÃO | BK79: NÃO | BL79: NÃO | BM79: NÃO | BN79: NÃO | BO79: NÃO | BP79: NÃO | BQ79: NÃO | BR79: NÃO | BS79: NÃO | BT79: NÃO | BU79: NÃO | BV79: NÃO | BW79: NÃO | BX79: NÃO | BY79: NÃO | BZ79: NÃO | CA79: NÃO | CB79: NÃO | CC79: NÃO | CD79: NÃO | CE79: NÃO | CF79: NÃO | CG79: NÃO | CH79: NÃO | CI79: NÃO | CJ79: NÃO | CK79: NÃO | CL79: NÃO | CM79: NÃO | CN79: NÃO | CO79: NÃO | CP79: NÃO
T80: 0 | AF80: 0 | AI80: NO | AJ80: NO | AK80: NO | AL80: NO | AM80: NO | AN80: NO | AO80: NO | AP80: NO | AQ80: NO | AR80: NO | AS80: NO | AT80: NO | AU80: NO | AV80: NO | AW80: NO | AX80: NO | AY80: NO | AZ80: NO | BA80: NO | BB80: NÃO | BC80: NÃO | BD80: NÃO | BE80: NÃO | BF80: NÃO | BG80: NÃO | BH80: NÃO | BI80: NÃO | BJ80: NÃO | BK80: NÃO | BL80: NÃO | BM80: NÃO | BN80: NÃO | BO80: NÃO | BP80: NÃO | BQ80: NÃO | BR80: NÃO | BS80: NÃO | BT80: NÃO | BU80: NÃO | BV80: NÃO | BW80: NÃO | BX80: NÃO | BY80: NÃO | BZ80: NÃO | CA80: NÃO | CB80: NÃO | CC80: NÃO | CD80: NÃO | CE80: NÃO | CF80: NÃO | CG80: NÃO | CH80: NÃO | CI80: NÃO | CJ80: NÃO | CK80: NÃO | CL80: NÃO | CM80: NÃO | CN80: NÃO | CO80: NÃO | CP80: NÃO
T81: 0 | AF81: 0 | AI81: NO | AJ81: NO | AK81: NO | AL81: NO | AM81: NO | AN81: NO | AO81: NO | AP81: NO | AQ81: NO | AR81: NO | AS81: NO | AT81: NO | AU81: NO | AV81: NO | AW81: NO | AX81: NO | AY81: NO | AZ81: NO | BA81: NO | BB81: NÃO | BC81: NÃO | BD81: NÃO | BE81: NÃO | BF81: NÃO | BG81: NÃO | BH81: NÃO | BI81: NÃO | BJ81: NÃO | BK81: NÃO | BL81: NÃO | BM81: NÃO | BN81: NÃO | BO81: NÃO | BP81: NÃO | BQ81: NÃO | BR81: NÃO | BS81: NÃO | BT81: NÃO | BU81: NÃO | BV81: NÃO | BW81: NÃO | BX81: NÃO | BY81: NÃO | BZ81: NÃO | CA81: NÃO | CB81: NÃO | CC81: NÃO | CD81: NÃO | CE81: NÃO | CF81: NÃO | CG81: NÃO | CH81: NÃO | CI81: NÃO | CJ81: NÃO | CK81: NÃO | CL81: NÃO | CM81: NÃO | CN81: NÃO | CO81: NÃO | CP81: NÃO
T82: 0 | AF82: 0 | AI82: NO | AJ82: NO | AK82: NO | AL82: NO | AM82: NO | AN82: NO | AO82: NO | AP82: NO | AQ82: NO | AR82: NO | AS82: NO | AT82: NO | AU82: NO | AV82: NO | AW82: NO | AX82: NO | AY82: NO | AZ82: NO | BA82: NO | BB82: NÃO | BC82: NÃO | BD82: NÃO | BE82: NÃO | BF82: NÃO | BG82: NÃO | BH82: NÃO | BI82: NÃO | BJ82: NÃO | BK82: NÃO | BL82: NÃO | BM82: NÃO | BN82: NÃO | BO82: NÃO | BP82: NÃO | BQ82: NÃO | BR82: NÃO | BS82: NÃO | BT82: NÃO | BU82: NÃO | BV82: NÃO | BW82: NÃO | BX82: NÃO | BY82: NÃO | BZ82: NÃO | CA82: NÃO | CB82: NÃO | CC82: NÃO | CD82: NÃO | CE82: NÃO | CF82: NÃO | CG82: NÃO | CH82: NÃO | CI82: NÃO | CJ82: NÃO | CK82: NÃO | CL82: NÃO | CM82: NÃO | CN82: NÃO | CO82: NÃO | CP82: NÃO
T83: 0 | AF83: 0 | AI83: NO | AJ83: NO | AK83: NO | AL83: NO | AM83: NO | AN83: NO | AO83: NO | AP83: NO | AQ83: NO | AR83: NO | AS83: NO | AT83: NO | AU83: NO | AV83: NO | AW83: NO | AX83: NO | AY83: NO | AZ83: NO | BA83: NO | BB83: NÃO | BC83: NÃO | BD83: NÃO | BE83: NÃO | BF83: NÃO | BG83: NÃO | BH83: NÃO | BI83: NÃO | BJ83: NÃO | BK83: NÃO | BL83: NÃO | BM83: NÃO | BN83: NÃO | BO83: NÃO | BP83: NÃO | BQ83: NÃO | BR83: NÃO | BS83: NÃO | BT83: NÃO | BU83: NÃO | BV83: NÃO | BW83: NÃO | BX83: NÃO | BY83: NÃO | BZ83: NÃO | CA83: NÃO | CB83: NÃO | CC83: NÃO | CD83: NÃO | CE83: NÃO | CF83: NÃO | CG83: NÃO | CH83: NÃO | CI83: NÃO | CJ83: NÃO | CK83: NÃO | CL83: NÃO | CM83: NÃO | CN83: NÃO | CO83: NÃO | CP83: NÃO
T84: 0 | AF84: 0 | AI84: NO | AJ84: NO | AK84: NO | AL84: NO | AM84: NO | AN84: NO | AO84: NO | AP84: NO | AQ84: NO | AR84: NO | AS84: NO | AT84: NO | AU84: NO | AV84: NO | AW84: NO | AX84: NO | AY84: NO | AZ84: NO | BA84: NO | BB84: NÃO | BC84: NÃO | BD84: NÃO | BE84: NÃO | BF84: NÃO | BG84: NÃO | BH84: NÃO | BI84: NÃO | BJ84: NÃO | BK84: NÃO | BL84: NÃO | BM84: NÃO | BN84: NÃO | BO84: NÃO | BP84: NÃO | BQ84: NÃO | BR84: NÃO | BS84: NÃO | BT84: NÃO | BU84: NÃO | BV84: NÃO | BW84: NÃO | BX84: NÃO | BY84: NÃO | BZ84: NÃO | CA84: NÃO | CB84: NÃO | CC84: NÃO | CD84: NÃO | CE84: NÃO | CF84: NÃO | CG84: NÃO | CH84: NÃO | CI84: NÃO | CJ84: NÃO | CK84: NÃO | CL84: NÃO | CM84: NÃO | CN84: NÃO | CO84: NÃO | CP84: NÃO
T85: 0 | AF85: 0 | AI85: NO | AJ85: NO | AK85: NO | AL85: NO | AM85: NO | AN85: NO | AO85: NO | AP85: NO | AQ85: NO | AR85: NO | AS85: NO | AT85: NO | AU85: NO | AV85: NO | AW85: NO | AX85: NO | AY85: NO | AZ85: NO | BA85: NO | BB85: NÃO | BC85: NÃO | BD85: NÃO | BE85: NÃO | BF85: NÃO | BG85: NÃO | BH85: NÃO | BI85: NÃO | BJ85: NÃO | BK85: NÃO | BL85: NÃO | BM85: NÃO | BN85: NÃO | BO85: NÃO | BP85: NÃO | BQ85: NÃO | BR85: NÃO | BS85: NÃO | BT85: NÃO | BU85: NÃO | BV85: NÃO | BW85: NÃO | BX85: NÃO | BY85: NÃO | BZ85: NÃO | CA85: NÃO | CB85: NÃO | CC85: NÃO | CD85: NÃO | CE85: NÃO | CF85: NÃO | CG85: NÃO | CH85: NÃO | CI85: NÃO | CJ85: NÃO | CK85: NÃO | CL85: NÃO | CM85: NÃO | CN85: NÃO | CO85: NÃO | CP85: NÃO
T86: 0 | AF86: 0 | AI86: =IF(AND(AI$5>=$AC86,AI$5<=$AE86),$E86*$F86,"NO") -> NO | AJ86: NO | AK86: NO | AL86: NO | AM86: NO | AN86: NO | AO86: NO | AP86: NO | AQ86: NO | AR86: NO | AS86: =IF(AND(AS$5>=$AC86,AS$5<=$AE86),$E86*$F86,"NO") -> NO | AT86: NO | AU86: NO | AV86: NO | AW86: NO | AX86: NO | AY86: NO | AZ86: NO | BA86: NO | BB86: =IF(AND(BB$5>=$AC86,BB$5<=$AE86),$E86*$F86,"NÃO") -> NÃO | BC86: NÃO | BD86: NÃO | BE86: NÃO | BF86: =IF(AND(BF$5>=$AC86,BF$5<=$AE86),$E86*$F86,"NÃO") -> NÃO | BG86: NÃO | BH86: NÃO | BI86: NÃO | BJ86: NÃO | BK86: NÃO | BL86: NÃO | BM86: NÃO | BN86: NÃO | BO86: NÃO | BP86: =IF(AND(BP$5>=$AC86,BP$5<=$AE86),$E86*$F86,"NÃO") -> NÃO | BQ86: NÃO | BR86: NÃO | BS86: NÃO | BT86: NÃO | BU86: NÃO | BV86: NÃO | BW86: NÃO | BX86: NÃO | BY86: NÃO | BZ86: =IF(AND(BZ$5>=$AC86,BZ$5<=$AE86),$E86*$F86,"NÃO") -> NÃO | CA86: NÃO | CB86: NÃO | CC86: NÃO | CD86: NÃO | CE86: NÃO | CF86: NÃO | CG86: NÃO | CH86: NÃO | CI86: NÃO | CJ86: =IF(AND(CJ$5>=$AC86,CJ$5<=$AE86),$E86*$F86,"NÃO") -> NÃO | CK86: NÃO | CL86: NÃO | CM86: NÃO | CN86: NÃO | CO86: NÃO | CP86: NÃO
T87: 0 | AF87: 0 | AI87: NO | AJ87: NO | AK87: NO | AL87: NO | AM87: NO | AN87: NO | AO87: NO | AP87: NO | AQ87: NO | AR87: NO | AS87: NO | AT87: NO | AU87: NO | AV87: NO | AW87: NO | AX87: NO | AY87: NO | AZ87: NO | BA87: NO | BB87: NÃO | BC87: NÃO | BD87: NÃO | BE87: NÃO | BF87: NÃO | BG87: NÃO | BH87: NÃO | BI87: NÃO | BJ87: NÃO | BK87: NÃO | BL87: NÃO | BM87: NÃO | BN87: NÃO | BO87: NÃO | BP87: NÃO | BQ87: NÃO | BR87: NÃO | BS87: NÃO | BT87: NÃO | BU87: NÃO | BV87: NÃO | BW87: NÃO | BX87: NÃO | BY87: NÃO | BZ87: NÃO | CA87: NÃO | CB87: NÃO | CC87: NÃO | CD87: NÃO | CE87: NÃO | CF87: NÃO | CG87: NÃO | CH87: NÃO | CI87: NÃO | CJ87: NÃO | CK87: NÃO | CL87: NÃO | CM87: NÃO | CN87: NÃO | CO87: NÃO | CP87: NÃO
T88: 0 | AF88: 0 | AI88: NO | AJ88: NO | AK88: NO | AL88: NO | AM88: NO | AN88: NO | AO88: NO | AP88: NO | AQ88: NO | AR88: NO | AS88: NO | AT88: NO | AU88: NO | AV88: NO | AW88: NO | AX88: NO | AY88: NO | AZ88: NO | BA88: NO | BB88: NÃO | BC88: NÃO | BD88: NÃO | BE88: NÃO | BF88: NÃO | BG88: NÃO | BH88: NÃO | BI88: NÃO | BJ88: NÃO | BK88: NÃO | BL88: NÃO | BM88: NÃO | BN88: NÃO | BO88: NÃO | BP88: NÃO | BQ88: NÃO | BR88: NÃO | BS88: NÃO | BT88: NÃO | BU88: NÃO | BV88: NÃO | BW88: NÃO | BX88: NÃO | BY88: NÃO | BZ88: NÃO | CA88: NÃO | CB88: NÃO | CC88: NÃO | CD88: NÃO | CE88: NÃO | CF88: NÃO | CG88: NÃO | CH88: NÃO | CI88: NÃO | CJ88: NÃO | CK88: NÃO | CL88: NÃO | CM88: NÃO | CN88: NÃO | CO88: NÃO | CP88: NÃO
T89: 0 | AF89: 0 | AI89: NO | AJ89: NO | AK89: NO | AL89: NO | AM89: NO | AN89: NO | AO89: NO | AP89: NO | AQ89: NO | AR89: NO | AS89: NO | AT89: NO | AU89: NO | AV89: NO | AW89: NO | AX89: NO | AY89: NO | AZ89: NO | BA89: NO | BB89: NÃO | BC89: NÃO | BD89: NÃO | BE89: NÃO | BF89: NÃO | BG89: NÃO | BH89: NÃO | BI89: NÃO | BJ89: NÃO | BK89: NÃO | BL89: NÃO | BM89: NÃO | BN89: NÃO | BO89: NÃO | BP89: NÃO | BQ89: NÃO | BR89: NÃO | BS89: NÃO | BT89: NÃO | BU89: NÃO | BV89: NÃO | BW89: NÃO | BX89: NÃO | BY89: NÃO | BZ89: NÃO | CA89: NÃO | CB89: NÃO | CC89: NÃO | CD89: NÃO | CE89: NÃO | CF89: NÃO | CG89: NÃO | CH89: NÃO | CI89: NÃO | CJ89: NÃO | CK89: NÃO | CL89: NÃO | CM89: NÃO | CN89: NÃO | CO89: NÃO | CP89: NÃO
T90: 0 | AF90: 0 | AI90: NO | AJ90: NO | AK90: NO | AL90: NO | AM90: NO | AN90: NO | AO90: NO | AP90: NO | AQ90: NO | AR90: NO | AS90: NO | AT90: NO | AU90: NO | AV90: NO | AW90: NO | AX90: NO | AY90: NO | AZ90: NO | BA90: NO | BB90: NÃO | BC90: NÃO | BD90: NÃO | BE90: NÃO | BF90: NÃO | BG90: NÃO | BH90: NÃO | BI90: NÃO | BJ90: NÃO | BK90: NÃO | BL90: NÃO | BM90: NÃO | BN90: NÃO | BO90: NÃO | BP90: NÃO | BQ90: NÃO | BR90: NÃO | BS90: NÃO | BT90: NÃO | BU90: NÃO | BV90: NÃO | BW90: NÃO | BX90: NÃO | BY90: NÃO | BZ90: NÃO | CA90: NÃO | CB90: NÃO | CC90: NÃO | CD90: NÃO | CE90: NÃO | CF90: NÃO | CG90: NÃO | CH90: NÃO | CI90: NÃO | CJ90: NÃO | CK90: NÃO | CL90: NÃO | CM90: NÃO | CN90: NÃO | CO90: NÃO | CP90: NÃO
T91: 0 | AF91: 0 | AI91: NO | AJ91: NO | AK91: NO | AL91: NO | AM91: NO | AN91: NO | AO91: NO | AP91: NO | AQ91: NO | AR91: NO | AS91: NO | AT91: NO | AU91: NO | AV91: NO | AW91: NO | AX91: NO | AY91: NO | AZ91: NO | BA91: NO | BB91: NÃO | BC91: NÃO | BD91: NÃO | BE91: NÃO | BF91: NÃO | BG91: NÃO | BH91: NÃO | BI91: NÃO | BJ91: NÃO | BK91: NÃO | BL91: NÃO | BM91: NÃO | BN91: NÃO | BO91: NÃO | BP91: NÃO | BQ91: NÃO | BR91: NÃO | BS91: NÃO | BT91: NÃO | BU91: NÃO | BV91: NÃO | BW91: NÃO | BX91: NÃO | BY91: NÃO | BZ91: NÃO | CA91: NÃO | CB91: NÃO | CC91: NÃO | CD91: NÃO | CE91: NÃO | CF91: NÃO | CG91: NÃO | CH91: NÃO | CI91: NÃO | CJ91: NÃO | CK91: NÃO | CL91: NÃO | CM91: NÃO | CN91: NÃO | CO91: NÃO | CP91: NÃO
T92: 0 | AF92: 0 | AI92: NO | AJ92: NO | AK92: NO | AL92: NO | AM92: NO | AN92: NO | AO92: NO | AP92: NO | AQ92: NO | AR92: NO | AS92: NO | AT92: NO | AU92: NO | AV92: NO | AW92: NO | AX92: NO | AY92: NO | AZ92: NO | BA92: NO | BB92: NÃO | BC92: NÃO | BD92: NÃO | BE92: NÃO | BF92: NÃO | BG92: NÃO | BH92: NÃO | BI92: NÃO | BJ92: NÃO | BK92: NÃO | BL92: NÃO | BM92: NÃO | BN92: NÃO | BO92: NÃO | BP92: NÃO | BQ92: NÃO | BR92: NÃO | BS92: NÃO | BT92: NÃO | BU92: NÃO | BV92: NÃO | BW92: NÃO | BX92: NÃO | BY92: NÃO | BZ92: NÃO | CA92: NÃO | CB92: NÃO | CC92: NÃO | CD92: NÃO | CE92: NÃO | CF92: NÃO | CG92: NÃO | CH92: NÃO | CI92: NÃO | CJ92: NÃO | CK92: NÃO | CL92: NÃO | CM92: NÃO | CN92: NÃO | CO92: NÃO | CP92: NÃO
T93: 0 | AF93: 0 | AI93: NO | AJ93: NO | AK93: NO | AL93: NO | AM93: NO | AN93: NO | AO93: NO | AP93: NO | AQ93: NO | AR93: NO | AS93: NO | AT93: NO | AU93: NO | AV93: NO | AW93: NO | AX93: NO | AY93: NO | AZ93: NO | BA93: NO | BB93: NÃO | BC93: NÃO | BD93: NÃO | BE93: NÃO | BF93: NÃO | BG93: NÃO | BH93: NÃO | BI93: NÃO | BJ93: NÃO | BK93: NÃO | BL93: NÃO | BM93: NÃO | BN93: NÃO | BO93: NÃO | BP93: NÃO | BQ93: NÃO | BR93: NÃO | BS93: NÃO | BT93: NÃO | BU93: NÃO | BV93: NÃO | BW93: NÃO | BX93: NÃO | BY93: NÃO | BZ93: NÃO | CA93: NÃO | CB93: NÃO | CC93: NÃO | CD93: NÃO | CE93: NÃO | CF93: NÃO | CG93: NÃO | CH93: NÃO | CI93: NÃO | CJ93: NÃO | CK93: NÃO | CL93: NÃO | CM93: NÃO | CN93: NÃO | CO93: NÃO | CP93: NÃO
T94: 0 | AF94: 0 | AI94: NO | AJ94: NO | AK94: NO | AL94: NO | AM94: NO | AN94: NO | AO94: NO | AP94: NO | AQ94: NO | AR94: NO | AS94: NO | AT94: NO | AU94: NO | AV94: NO | AW94: NO | AX94: NO | AY94: NO | AZ94: NO | BA94: NO | BB94: NÃO | BC94: NÃO | BD94: NÃO | BE94: NÃO | BF94: NÃO | BG94: NÃO | BH94: NÃO | BI94: NÃO | BJ94: NÃO | BK94: NÃO | BL94: NÃO | BM94: NÃO | BN94: NÃO | BO94: NÃO | BP94: NÃO | BQ94: NÃO | BR94: NÃO | BS94: NÃO | BT94: NÃO | BU94: NÃO | BV94: NÃO | BW94: NÃO | BX94: NÃO | BY94: NÃO | BZ94: NÃO | CA94: NÃO | CB94: NÃO | CC94: NÃO | CD94: NÃO | CE94: NÃO | CF94: NÃO | CG94: NÃO | CH94: NÃO | CI94: NÃO | CJ94: NÃO | CK94: NÃO | CL94: NÃO | CM94: NÃO | CN94: NÃO | CO94: NÃO | CP94: NÃO
T95: 0 | AF95: 0 | AI95: NO | AJ95: NO | AK95: NO | AL95: NO | AM95: NO | AN95: NO | AO95: NO | AP95: NO | AQ95: NO | AR95: NO | AS95: NO | AT95: NO | AU95: NO | AV95: NO | AW95: NO | AX95: NO | AY95: NO | AZ95: NO | BA95: NO | BB95: NÃO | BC95: NÃO | BD95: NÃO | BE95: NÃO | BF95: NÃO | BG95: NÃO | BH95: NÃO | BI95: NÃO | BJ95: NÃO | BK95: NÃO | BL95: NÃO | BM95: NÃO | BN95: NÃO | BO95: NÃO | BP95: NÃO | BQ95: NÃO | BR95: NÃO | BS95: NÃO | BT95: NÃO | BU95: NÃO | BV95: NÃO | BW95: NÃO | BX95: NÃO | BY95: NÃO | BZ95: NÃO | CA95: NÃO | CB95: NÃO | CC95: NÃO | CD95: NÃO | CE95: NÃO | CF95: NÃO | CG95: NÃO | CH95: NÃO | CI95: NÃO | CJ95: NÃO | CK95: NÃO | CL95: NÃO | CM95: NÃO | CN95: NÃO | CO95: NÃO | CP95: NÃO
T96: 0 | AF96: 0 | AI96: =IF(AND(AI$5>=$AC96,AI$5<=$AE96),$E96*$F96,"NO") -> NO | AJ96: NO | AK96: NO | AL96: NO | AM96: NO | AN96: NO | AO96: NO | AP96: NO | AQ96: NO | AR96: NO | AS96: =IF(AND(AS$5>=$AC96,AS$5<=$AE96),$E96*$F96,"NO") -> NO | AT96: NO | AU96: NO | AV96: NO | AW96: NO | AX96: NO | AY96: NO | AZ96: NO | BA96: NO | BB96: =IF(AND(BB$5>=$AC96,BB$5<=$AE96),$E96*$F96,"NÃO") -> NÃO | BC96: NÃO | BD96: NÃO | BE96: NÃO | BF96: =IF(AND(BF$5>=$AC96,BF$5<=$AE96),$E96*$F96,"NÃO") -> NÃO | BG96: NÃO | BH96: NÃO | BI96: NÃO | BJ96: NÃO | BK96: NÃO | BL96: NÃO | BM96: NÃO | BN96: NÃO | BO96: NÃO | BP96: =IF(AND(BP$5>=$AC96,BP$5<=$AE96),$E96*$F96,"NÃO") -> NÃO | BQ96: NÃO | BR96: NÃO | BS96: NÃO | BT96: NÃO | BU96: NÃO | BV96: NÃO | BW96: NÃO | BX96: NÃO | BY96: NÃO | BZ96: =IF(AND(BZ$5>=$AC96,BZ$5<=$AE96),$E96*$F96,"NÃO") -> NÃO | CA96: NÃO | CB96: NÃO | CC96: NÃO | CD96: NÃO | CE96: NÃO | CF96: NÃO | CG96: NÃO | CH96: NÃO | CI96: NÃO | CJ96: =IF(AND(CJ$5>=$AC96,CJ$5<=$AE96),$E96*$F96,"NÃO") -> NÃO | CK96: NÃO | CL96: NÃO | CM96: NÃO | CN96: NÃO | CO96: NÃO | CP96: NÃO
T97: 0 | AF97: 0 | AI97: NO | AJ97: NO | AK97: NO | AL97: NO | AM97: NO | AN97: NO | AO97: NO | AP97: NO | AQ97: NO | AR97: NO | AS97: NO | AT97: NO | AU97: NO | AV97: NO | AW97: NO | AX97: NO | AY97: NO | AZ97: NO | BA97: NO | BB97: NÃO | BC97: NÃO | BD97: NÃO | BE97: NÃO | BF97: NÃO | BG97: NÃO | BH97: NÃO | BI97: NÃO | BJ97: NÃO | BK97: NÃO | BL97: NÃO | BM97: NÃO | BN97: NÃO | BO97: NÃO | BP97: NÃO | BQ97: NÃO | BR97: NÃO | BS97: NÃO | BT97: NÃO | BU97: NÃO | BV97: NÃO | BW97: NÃO | BX97: NÃO | BY97: NÃO | BZ97: NÃO | CA97: NÃO | CB97: NÃO | CC97: NÃO | CD97: NÃO | CE97: NÃO | CF97: NÃO | CG97: NÃO | CH97: NÃO | CI97: NÃO | CJ97: NÃO | CK97: NÃO | CL97: NÃO | CM97: NÃO | CN97: NÃO | CO97: NÃO | CP97: NÃO
T98: 0 | AF98: 0 | AI98: NO | AJ98: NO | AK98: NO | AL98: NO | AM98: NO | AN98: NO | AO98: NO | AP98: NO | AQ98: NO | AR98: NO | AS98: NO | AT98: NO | AU98: NO | AV98: NO | AW98: NO | AX98: NO | AY98: NO | AZ98: NO | BA98: NO | BB98: NÃO | BC98: NÃO | BD98: NÃO | BE98: NÃO | BF98: NÃO | BG98: NÃO | BH98: NÃO | BI98: NÃO | BJ98: NÃO | BK98: NÃO | BL98: NÃO | BM98: NÃO | BN98: NÃO | BO98: NÃO | BP98: NÃO | BQ98: NÃO | BR98: NÃO | BS98: NÃO | BT98: NÃO | BU98: NÃO | BV98: NÃO | BW98: NÃO | BX98: NÃO | BY98: NÃO | BZ98: NÃO | CA98: NÃO | CB98: NÃO | CC98: NÃO | CD98: NÃO | CE98: NÃO | CF98: NÃO | CG98: NÃO | CH98: NÃO | CI98: NÃO | CJ98: NÃO | CK98: NÃO | CL98: NÃO | CM98: NÃO | CN98: NÃO | CO98: NÃO | CP98: NÃO
T99: 0 | AF99: 0 | AI99: NO | AJ99: NO | AK99: NO | AL99: NO | AM99: NO | AN99: NO | AO99: NO | AP99: NO | AQ99: NO | AR99: NO | AS99: NO | AT99: NO | AU99: NO | AV99: NO | AW99: NO | AX99: NO | AY99: NO | AZ99: NO | BA99: NO | BB99: NÃO | BC99: NÃO | BD99: NÃO | BE99: NÃO | BF99: NÃO | BG99: NÃO | BH99: NÃO | BI99: NÃO | BJ99: NÃO | BK99: NÃO | BL99: NÃO | BM99: NÃO | BN99: NÃO | BO99: NÃO | BP99: NÃO | BQ99: NÃO | BR99: NÃO | BS99: NÃO | BT99: NÃO | BU99: NÃO | BV99: NÃO | BW99: NÃO | BX99: NÃO | BY99: NÃO | BZ99: NÃO | CA99: NÃO | CB99: NÃO | CC99: NÃO | CD99: NÃO | CE99: NÃO | CF99: NÃO | CG99: NÃO | CH99: NÃO | CI99: NÃO | CJ99: NÃO | CK99: NÃO | CL99: NÃO | CM99: NÃO | CN99: NÃO | CO99: NÃO | CP99: NÃO
T100: 0 | AF100: 0 | AI100: NO | AJ100: NO | AK100: NO | AL100: NO | AM100: NO | AN100: NO | AO100: NO | AP100: NO | AQ100: NO | AR100: NO | AS100: NO | AT100: NO | AU100: NO | AV100: NO | AW100: NO | AX100: NO | AY100: NO | AZ100: NO | BA100: NO | BB100: NÃO | BC100: NÃO | BD100: NÃO | BE100: NÃO | BF100: NÃO | BG100: NÃO | BH100: NÃO | BI100: NÃO | BJ100: NÃO | BK100: NÃO | BL100: NÃO | BM100: NÃO | BN100: NÃO | BO100: NÃO | BP100: NÃO | BQ100: NÃO | BR100: NÃO | BS100: NÃO | BT100: NÃO | BU100: NÃO | BV100: NÃO | BW100: NÃO | BX100: NÃO | BY100: NÃO | BZ100: NÃO | CA100: NÃO | CB100: NÃO | CC100: NÃO | CD100: NÃO | CE100: NÃO | CF100: NÃO | CG100: NÃO | CH100: NÃO | CI100: NÃO | CJ100: NÃO | CK100: NÃO | CL100: NÃO | CM100: NÃO | CN100: NÃO | CO100: NÃO | CP100: NÃO
T101: 0 | AF101: 0 | AI101: NO | AJ101: NO | AK101: NO | AL101: NO | AM101: NO | AN101: NO | AO101: NO | AP101: NO | AQ101: NO | AR101: NO | AS101: NO | AT101: NO | AU101: NO | AV101: NO | AW101: NO | AX101: NO | AY101: NO | AZ101: NO | BA101: NO | BB101: NÃO | BC101: NÃO | BD101: NÃO | BE101: NÃO | BF101: NÃO | BG101: NÃO | BH101: NÃO | BI101: NÃO | BJ101: NÃO | BK101: NÃO | BL101: NÃO | BM101: NÃO | BN101: NÃO | BO101: NÃO | BP101: NÃO | BQ101: NÃO | BR101: NÃO | BS101: NÃO | BT101: NÃO | BU101: NÃO | BV101: NÃO | BW101: NÃO | BX101: NÃO | BY101: NÃO | BZ101: NÃO | CA101: NÃO | CB101: NÃO | CC101: NÃO | CD101: NÃO | CE101: NÃO | CF101: NÃO | CG101: NÃO | CH101: NÃO | CI101: NÃO | CJ101: NÃO | CK101: NÃO | CL101: NÃO | CM101: NÃO | CN101: NÃO | CO101: NÃO | CP101: NÃO
T102: 0 | AB102: =CONCATENATE(K102,L102) ->  | AC102: =IF(AB102="","",VLOOKUP(AB102,$Y$6:$Z$65,2,FALSE)) ->  | AD102: =CONCATENATE(M102,N102) ->  | AE102: =IFERROR(VLOOKUP(AD102,$Y$6:$Z$65,2,FALSE),"") ->  | AF102: =IFERROR(SUM(AG102:AK102),"") -> 0 | AG102: =IFERROR((AE102-AC102+1)*G102*F102,"") ->  | AH102: =IFERROR((AE102-AC102+1)*H102*F102,"") ->  | AI102: NO | AJ102: NO | AK102: NO | AL102: NO | AM102: NO | AN102: NO | AO102: NO | AP102: NO | AQ102: NO | AR102: NO | AS102: NO | AT102: NO | AU102: NO | AV102: NO | AW102: NO | AX102: NO | AY102: NO | AZ102: NO | BA102: NO | BB102: NÃO | BC102: NÃO | BD102: NÃO | BE102: NÃO | BF102: NÃO | BG102: NÃO | BH102: NÃO | BI102: NÃO | BJ102: NÃO | BK102: NÃO | BL102: NÃO | BM102: NÃO | BN102: NÃO | BO102: NÃO | BP102: NÃO | BQ102: NÃO | BR102: NÃO | BS102: NÃO | BT102: NÃO | BU102: NÃO | BV102: NÃO | BW102: NÃO | BX102: NÃO | BY102: NÃO | BZ102: NÃO | CA102: NÃO | CB102: NÃO | CC102: NÃO | CD102: NÃO | CE102: NÃO | CF102: NÃO | CG102: NÃO | CH102: NÃO | CI102: NÃO | CJ102: NÃO | CK102: NÃO | CL102: NÃO | CM102: NÃO | CN102: NÃO | CO102: NÃO | CP102: NÃO
T103: 0 | AB103: =CONCATENATE(K103,L103) ->  | AC103: =IF(AB103="","",VLOOKUP(AB103,$Y$6:$Z$65,2,FALSE)) ->  | AD103: =CONCATENATE(M103,N103) ->  | AE103: =IFERROR(VLOOKUP(AD103,$Y$6:$Z$65,2,FALSE),"") ->  | AF103: =IFERROR(SUM(AG103:AK103),"") -> 0 | AG103: =IFERROR((AE103-AC103+1)*G103*F103,"") ->  | AH103: =IFERROR((AE103-AC103+1)*H103*F103,"") ->  | AI103: NO | AJ103: NO | AK103: NO | AL103: NO | AM103: NO | AN103: NO | AO103: NO | AP103: NO | AQ103: NO | AR103: NO | AS103: NO | AT103: NO | AU103: NO | AV103: NO | AW103: NO | AX103: NO | AY103: NO | AZ103: NO | BA103: NO | BB103: NÃO | BC103: NÃO | BD103: NÃO | BE103: NÃO | BF103: NÃO | BG103: NÃO | BH103: NÃO | BI103: NÃO | BJ103: NÃO | BK103: NÃO | BL103: NÃO | BM103: NÃO | BN103: NÃO | BO103: NÃO | BP103: NÃO | BQ103: NÃO | BR103: NÃO | BS103: NÃO | BT103: NÃO | BU103: NÃO | BV103: NÃO | BW103: NÃO | BX103: NÃO | BY103: NÃO | BZ103: NÃO | CA103: NÃO | CB103: NÃO | CC103: NÃO | CD103: NÃO | CE103: NÃO | CF103: NÃO | CG103: NÃO | CH103: NÃO | CI103: NÃO | CJ103: NÃO | CK103: NÃO | CL103: NÃO | CM103: NÃO | CN103: NÃO | CO103: NÃO | CP103: NÃO
T104: 0 | AF104: 0 | AI104: NO | AJ104: NO | AK104: NO | AL104: NO | AM104: NO | AN104: NO | AO104: NO | AP104: NO | AQ104: NO | AR104: NO | AS104: NO | AT104: NO | AU104: NO | AV104: NO | AW104: NO | AX104: NO | AY104: NO | AZ104: NO | BA104: NO | BB104: NÃO | BC104: NÃO | BD104: NÃO | BE104: NÃO | BF104: NÃO | BG104: NÃO | BH104: NÃO | BI104: NÃO | BJ104: NÃO | BK104: NÃO | BL104: NÃO | BM104: NÃO | BN104: NÃO | BO104: NÃO | BP104: NÃO | BQ104: NÃO | BR104: NÃO | BS104: NÃO | BT104: NÃO | BU104: NÃO | BV104: NÃO | BW104: NÃO | BX104: NÃO | BY104: NÃO | BZ104: NÃO | CA104: NÃO | CB104: NÃO | CC104: NÃO | CD104: NÃO | CE104: NÃO | CF104: NÃO | CG104: NÃO | CH104: NÃO | CI104: NÃO | CJ104: NÃO | CK104: NÃO | CL104: NÃO | CM104: NÃO | CN104: NÃO | CO104: NÃO | CP104: NÃO
T105: 0 | AF105: 0 | AI105: NO | AJ105: NO | AK105: NO | AL105: NO | AM105: NO | AN105: NO | AO105: NO | AP105: NO | AQ105: NO | AR105: NO | AS105: NO | AT105: NO | AU105: NO | AV105: NO | AW105: NO | AX105: NO | AY105: NO | AZ105: NO | BA105: NO | BB105: NÃO | BC105: NÃO | BD105: NÃO | BE105: NÃO | BF105: NÃO | BG105: NÃO | BH105: NÃO | BI105: NÃO | BJ105: NÃO | BK105: NÃO | BL105: NÃO | BM105: NÃO | BN105: NÃO | BO105: NÃO | BP105: NÃO | BQ105: NÃO | BR105: NÃO | BS105: NÃO | BT105: NÃO | BU105: NÃO | BV105: NÃO | BW105: NÃO | BX105: NÃO | BY105: NÃO | BZ105: NÃO | CA105: NÃO | CB105: NÃO | CC105: NÃO | CD105: NÃO | CE105: NÃO | CF105: NÃO | CG105: NÃO | CH105: NÃO | CI105: NÃO | CJ105: NÃO | CK105: NÃO | CL105: NÃO | CM105: NÃO | CN105: NÃO | CO105: NÃO | CP105: NÃO
AF106: 0 | AI106: =IFERROR((AE106-AC106+1)*I106*F106,"") ->  | AJ106: =IFERROR((AE106-AC106+1)*J106*F106,"") ->  | AK106: =IFERROR((AE106-AC106+1)*E106*F106,"") -> 
AF107: 0
AF108: 0
AF109: 0
AF110: 0
AF111: 0
AF112: 0

Sheet MODELAGEM
C4: Socios clave ¿A quién puedes ayudar? | D4: Actividades Clave ¿Qué haces tú? | E4: Propuesta de Valor ¿Qué entregas tú? | G4: Relaciones ¿Cómo tú interactúas? | H4: Segmentos de Clientes ¿A quién ayudas tú?
C5: grupo tequin | D5: distribuccion de café a negocios empresariales | E5: Ayudar a los pequeños y medianos caficultores de Juncalito. | G5: Asistencias personalizadas | H5: nicho de mercado
C6: Holi print rd | D6: Venta a terceros (supermercados, etc…) | E6: Entregar café fresco a los clientes | G6: - | H6: diversificacion
C7: café sabaneta | D7: - | E7: Una presentacion elegante y acompañado con un buen empaque. | G7: - | H7: -
C8: - | D8: Recursos Clave ¿Quién eres tú y qué tienes? | E8: - | G8: Canales ¿Cómo entregas y recibes? | H8: -
C9: - | D9: Humanos | E9: - | G9: Compra | H9: -
C10: - | D10: Tecnologicos | E10: - | G10: Entrega | H10: -
C11: - | D11: - | E11: - | G11: Post-venta | H11: -
C12: Estructura de Costo ¿Cómo pagas tú? | F12: Fuentes de Ingresos ¿Qué ganas tú?
C13: El cafe | F13: Los clientes estan dispuestos a pagar 314$, mas itbis.
C14: Embalaje del producto. | F14: Transferencias o cheques.
C15: - | F15: -

Sheet MODELAGEM_CURVAL
D4: Calidad | E4: Eficiencia | F4: Sencillez | G4: Contenido | H4: Atención | S4: Promedio Total | U4: suma | V4: desempate | W4: empresas | X4: Pos | Y4: Conccorentes | AA4: Su principal atributo | AC4: desempate | AD4: suma | AE4: repet | AF4: Pos | AG4: rango | AI4: Tu peor atributo | AJ4: rango
C5: =IF(IG_EM!D6="","",IG_EM!D6) ->  | D5: 5 | E5: 5 | F5: 5 | G5: 5 | H5: 5 | S5: =IFERROR(AVERAGE(D5:R5),"-") -> 5 | U5: =IF(C5="","",SUM(S5,V5)) ->  | V5: =IF(C5="","",0.00001) ->  | W5: =IF(C5="","",C5) ->  | X5: 1 | Y5: =IFERROR(VLOOKUP(LARGE($U$5:$U$10,X5),$U$5:$X$10,3,FALSE),"") ->  | AA5: =D4 -> Calidad | AB5: =IF(D5="","",D5) -> 5 | AC5: 1e-05 | AD5: =IF(AB5="","",SUM(AB5:AC5)) -> 5.00001 | AE5: =IF(AD5="","",AA5) -> Calidad | AF5: 1 | AG5: =IFERROR(VLOOKUP(LARGE($AD$5:$AD$19,AF5),$AD$5:$AE$19,2,FALSE),"") -> Atención | AI5: 1 | AJ5: =IFERROR(VLOOKUP(SMALL($AD$5:$AD$19,AF5),$AD$5:$AE$19,2,FALSE),"") -> Calidad
C6: Café Anibalito | D6: 4 | E6: 1 | F6: 4 | G6: 4 | H6: 5 | S6: =IFERROR(AVERAGE(D6:R6),"-") -> 3.6 | U6: =IF(C6="","",SUM(S6,V6)) ->  | V6: =IF(C6="","",V5+$V$5) ->  | W6: =IF(C6="","",C6) -> Café Anibalito | X6: 2 | Y6: =IFERROR(VLOOKUP(LARGE($U$5:$U$10,X6),$U$5:$X$10,3,FALSE),"") ->  | AA6: =E4 -> Eficiencia | AB6: =IF(E5="","",E5) -> 5 | AC6: =AC5+$AC$5 -> 2e-05 | AD6: =IF(AB6="","",SUM(AB6:AC6)) -> 5.00002 | AE6: =IF(AD6="","",AA6) -> Eficiencia
C7: Poesia Colada | D7: 4 | E7: 4 | F7: 4 | G7: 4 | H7: 5 | S7: 4.2 | V7: =IF(C7="","",V6+$V$5) ->  | W7: Poesia Colada | X7: 3 | AA7: =F4 -> Sencillez | AB7: =IF(F5="","",F5) -> 5 | AC7: =AC6+$AC$5 -> 3e-05 | AD7: 5.00003 | AE7: Sencillez
C8: Color Café | D8: 4 | E8: 4 | F8: 4 | G8: 4 | H8: 4 | S8: 4 | W8: Color Café | X8: 4 | AA8: =G4 -> Contenido | AB8: =IF(G5="","",G5) -> 5 | AC8: 4e-05 | AD8: 5.00004 | AE8: Contenido
C9: Competencia 4 | S9: - | W9: Competencia 4 | X9: 5 | AA9: =H4 -> Atención | AB9: =IF(H5="","",H5) -> 5 | AC9: 5e-05 | AD9: 5.00005 | AE9: Atención
C10: Competencia 5 | S10: - | V10: =IF(C10="","",V9+$V$5) ->  | W10: Competencia 5 | X10: 6 | AA10: =I4 -> 0 | AB10: =IF(I5="","",I5) ->  | AC10: 6e-05
C11: Curva de Valor | W11: Curva de Valor | AA11: =J4 -> 0 | AB11: =IF(J5="","",J5) ->  | AC11: 7e-05
AA12: =K4 -> 0 | AB12: =IF(K5="","",K5) ->  | AC12: 8e-05
AA13: =L4 -> 0 | AB13: =IF(L5="","",L5) ->  | AC13: 9e-05
AA14: =M4 -> 0 | AB14: =IF(M5="","",M5) ->  | AC14: 0.0001
AA15: =N4 -> 0 | AB15: =IF(N5="","",N5) ->  | AC15: 0.00011
AA16: =O4 -> 0 | AB16: =IF(O5="","",O5) ->  | AC16: 0.00012
AA17: =P4 -> 0 | AB17: =IF(P5="","",P5) ->  | AC17: 0.00013
AA18: =Q4 -> 0 | AB18: =IF(Q5="","",Q5) ->  | AC18: 0.00014
AA19: =R4 -> 0 | AB19: =IF(R5="","",R5) ->  | AC19: 0.00015
C21: Alertas y pistas en el relleno
C23: ! | D23: ="Usted optó por un modelo de negocio donde su mayor característica es "&AG5&"." -> Usted optó por un modelo de negocio donde su mayor característica es Atención.
C24: ! | D24: =IF(COUNTA(D5:R5)>7, "De las 15 posibles características, usted ha utilizado"&COUNTA(D5:R5)&"."," "&COUNTA(E7:S7)&". Haga una reflexión y trate de identificar si las características utilizadas son suficientes para el análisis.") -> 5. Haga una reflexión y trate de identificar si las características utilizadas son suficientes para el análisis.
C25: =IF(Y5=C5,":)",":(") -> :) | D25: =IF(Y5=C5,"Su promedio es mayor que el de su competencia. Sigue así.","Su promedio es menor que el de sus competidores. Busque revisar sus puntos débiles para aumentar la evaluación de estos atributos.") -> Su promedio es mayor que el de su competencia. Sigue así.
C26: X | D26: ="Su mayor punto débil es "&AJ5&". Tal vez éste pueda ser el primer punto de mejoria para buscar una mayor competitividad." -> Su mayor punto débil es Calidad. Tal vez éste pueda ser el primer punto de mejoria para buscar una mayor competitividad.
C27: :) | D27: ="Su mayor punto fuerte es "&AG5&". Este puede ser su principal argumento de venta y debe haber un esfuerzo para aprovechar los beneficios de esta fuerza." -> Su mayor punto fuerte es Atención. Este puede ser su principal argumento de venta y debe haber un esfuerzo para aprovechar los beneficios de esta fuerza.

Sheet ESTRATÉGIA
C4: Información de la empresa
C5: Nombre | D5: =IG_EM!D5 -> Café Don Anibalito | J5: DIRETRIZES
C6: Año de inicio del Plan de Negocios | D6: =IG_EM!G11 -> 2024 | J6: FORÇAS COMPETITIVAS
J7: SWOT
C8: Establezca las principales directrices de su empresa | J8: ESTRATÉGIA
C9: Misión | D9: Capacitar y apoyar a los medianos y pequeños caficultores de la zona Juncalito y zonas aledañas.
C10: Visión | D10: Nos visualizamos como una futura marca pais, que muestre al mundo la calidad del café que se cosecha en la Republica Dominicana.
C12: Establezca los valores de su empresa
C13: Atención ágil | G13: =COUNTA(C13:D22) -> 4
C14: Calidad
C15: Transparencia
C16: Solidaridad
D90: =ESTRATÉGIA!C13&", " -> Atención ágil,

Sheet ESTRATÉGIA_FC
C4: 1. COMPETIDORES | H4: Puntos de calificación | J4: Puntos de calificación | M4: Puntos de factores
C5: En la industria que desea entrar/donde actúas ¿existen ya competidores establecidos? | D5: Concuerdo Totalmente | E5: Muy importante | F5: =IFERROR(M5*N5,"-") -> 10 | H5: Concuerdo totalmente | I5: 5 | J5: Muy importante | K5: 2 | M5: =IF(D5="","",VLOOKUP(D5,$H$5:$I$9,2,FALSE)) -> 5 | N5: =IF(E5="","",VLOOKUP(E5,$J$5:$K$7,2,FALSE)) -> 2
C6: ¿El o los competidores actuales logran satisfacer la totalidad del mercado? | D6: Concuerdo en Parte | E6: Importante | F6: =IFERROR(M6*N6,"-") -> 6 | H6: Concuerdo en parte | I6: 4 | J6: importante | K6: 1.5 | M6: =IF(D6="","",VLOOKUP(D6,$H$5:$I$9,2,FALSE)) -> 4 | N6: =IF(E6="","",VLOOKUP(E6,$J$5:$K$7,2,FALSE)) -> 1.5
C7: ¿Ya existe una competencia explícita entre los competidores? | D7: Concuerdo Totalmente | E7: Muy importante | F7: 10 | H7: Indiferente | I7: 3 | J7: Sin importancia | K7: 1 | M7: 5 | N7: 2
C8: ¿Usted va a entrar en el mismo mercado que ellos? | D8: Concuerdo en Parte | E8: Importante | F8: 6 | H8: en desacuerdo | I8: 2 | M8: 4 | N8: 1.5
C9: ¿La diversidad de esos competidores es alta? | D9: En desacuerdo | E9: Importante | F9: 3 | H9: Muy en desacuerdo | I9: 0 | M9: 2 | N9: 1.5
C10: ¿Hay una guerra de precio o de calidad en el sector deseado? | D10: Concuerdo en Parte | E10: Sin importancia | F10: 4 | M10: 4 | N10: 1
C12: 2. PODER DE NEGOCIACIÓN DE LOS CLIENTES | H12: COMPETIDORES | I12: =SUM(F5:F10) -> 39
C13: ¿Sus clientes son sensibles al cambio de precios? | D13: En desacuerdo | E13: Importante | F13: =IFERROR(M13*N13,"-") -> 3 | H13: CLIENTES | I13: =SUM(F13:F18) -> 17 | M13: 2 | N13: 1.5
C14: ¿Hay una escasez de clientes para su negocio en relación a su sector? | D14: Muy en Desacuerdo | E14: Sin importancia | F14: 0 | H14: PROVEEDORES | I14: =SUM(F21:F26) -> 31 | M14: 0 | N14: 1
C15: ¿Usted tiene dificultad para retener a sus clientes? | D15: En desacuerdo | E15: Sin importancia | F15: 2 | H15: NUEVOS COMPETIDORES | I15: =SUM(F29:F34) -> 20.5 | M15: 2 | N15: 1
C16: ¿El volumen de compra de sus clientes es alto? | D16: Indiferente | E16: Muy importante | F16: 6 | H16: SUBSTITUTOS | I16: =SUM(F37:F42) -> 23.5 | M16: 3 | N16: 2
C17: ¿El costo para que el cliente cambie de proveedor es bajo? | D17: Concuerdo en Parte | E17: Importante | F17: 6 | M17: 4 | N17: 1.5
C18: ¿Hay una posibilidad de que su cliente haga su propio producto? | D18: Muy en Desacuerdo | E18: Sin importancia | F18: 0 | M18: 0 | N18: 1
C20: 3. PODER DE NEGOCIACIÓN DE LOS PROVEEDORES
C21: ¿Existen pocos proveedores para los insumos de su negocio? | D21: Concuerdo Totalmente | E21: Muy importante | F21: =IFERROR(M21*N21,"-") -> 10 | M21: 5 | N21: 2
C22: ¿El precio de los insumos necesarios para su negocio es fuertemente variable? | D22: Concuerdo en Parte | E22: Importante | F22: 6 | M22: 4 | N22: 1.5
C23: ¿El perfil profesional necesario para su negocio es fácil de encontrar? | D23: Indiferente | E23: Sin importancia | F23: 3 | M23: 3 | N23: 1
C24: ¿Hay una falta de formación profesional para el mercado de sus proveedores? | D24: Concuerdo en Parte | E24: Muy importante | F24: 8 | M24: 4 | N24: 2
C25: ¿Usted tiene dificultad para sustituir sus insumos por otro tipo (calidad, precio, etc.)? | D25: Muy en Desacuerdo | E25: Importante | F25: 0 | M25: 0 | N25: 1.5
C26: ¿Existe una investigación para mejorar la tecnología en el ámbito de sus proveedores? | D26: Concuerdo en Parte | E26: Sin importancia | F26: 4 | M26: 4 | N26: 1
C28: 4 AMENAZA DE ENTRADA DE NUEVOS COMPETIDORES
C29: ¿El costo para iniciar un nuevo negocio dentro de su industria es bajo? | D29: En desacuerdo | E29: Muy importante | F29: =IFERROR(M29*N29,"-") -> 4 | M29: 2 | N29: 2
C30: ¿Hay espacio para otros competidores además de los que ya están establecidos? | D30: Concuerdo en Parte | E30: Importante | F30: 6 | M30: 4 | N30: 1.5
C31: ¿La industria es pequeña? | D31: Muy en Desacuerdo | E31: Muy importante | F31: 0 | M31: 0 | N31: 2
C32: ¿Los costos para el cambio de clientes son bajos? | D32: Concuerdo en Parte | E32: Importante | F32: 6 | M32: 4 | N32: 1.5
C33: ¿Hay una escasez en los puntos de venta para este tipo de negocio? | D33: Indiferente | E33: Importante | F33: 4.5 | M33: 3 | N33: 1.5
C34: ¿Existe un riesgo de las nuevas tecnologías derribaren las barreras de entrada? | D34: Muy en Desacuerdo | E34: Sin importancia | F34: 0 | M34: 0 | N34: 1
C36: 5. AMENAZA DE PRODUCTOS SUSTITUTOS
C37: ¿Existen sustitutos directos a su producto / servicio? | D37: Concuerdo en Parte | E37: Sin importancia | F37: =IFERROR(M37*N37,"-") -> 4 | M37: 4 | N37: 1
C38: ¿Los productos sustitutos tienen un alto grado de innovación? | D38: En desacuerdo | E38: Importante | F38: 3 | M38: 2 | N38: 1.5
C39: ¿Existe una propensión de que sus clientes cambien su oferta por la de los sustitutos? | D39: Muy en Desacuerdo | E39: Sin importancia | F39: 0 | M39: 0 | N39: 1
C40: ¿El costo del cambio de sus clientes para el sustituto es bajo? | D40: En desacuerdo | E40: Muy importante | F40: 4 | M40: 2 | N40: 2
C41: ¿El precio de los productos sustitutos es inferior al de su producto o servicio? | D41: Concuerdo Totalmente | E41: Importante | F41: 7.5 | M41: 5 | N41: 1.5
C42: ¿La calidad de los productos sustitutos es superior a la calidad de su producto o servicio? | D42: Concuerdo Totalmente | E42: Sin importancia | F42: 5 | M42: 5 | N42: 1

Sheet ESTRATÉGIA_SWOT
C4: Descripción de las Fortalezas y Debilidades | H4: importancia de la lista | K4: artículo | L4: clasificación | M4: fuerza | N4: debilidad | O4: oportunidad | P4: amenaza | Q4: desempate | R4: repeticiones | T4: la clasificación | U4: fuerza | W4: la clasificación | X4: debilidad | Z4: la clasificación | AA4: oportunidad | AC4: la clasificación | AD4: amenaza
C5: La empresa tiene un diferencial innovador | D5: Fuerza | E5: Muy importante | F5: =IF(E5="","-",VLOOKUP(E5,$H$5:$I$9,2,FALSE)) -> 10 | H5: Muy importante | I5: 10 | K5: =C5 -> La empresa tiene un diferencial innovador | L5: =D5 -> Fuerza | M5: =IFERROR(IF($L5=M$4,$F5,"")+$Q5,"") -> 10.000001 | N5: =IFERROR(IF($L5=N$4,$F5,"")+$Q5,"") ->  | Q5: 1e-06 | R5: =K5 -> La empresa tiene un diferencial innovador | T5: 1 | U5: =IFERROR(VLOOKUP(LARGE($M$5:$M$26,T5),$M$5:$R$26,6,FALSE),"") -> El negocio puede crecer (en escalas) | W5: 1 | X5: =IFERROR(VLOOKUP(LARGE($N$5:$N$26,T5),$N$5:$R$26,5,FALSE),"") -> El costo es bajo por lo que ayuda a obtener un mayor beneficio | Z5: 1 | AA5: =IFERROR(VLOOKUP(LARGE($O$5:$O$26,T5),$O$5:$R$26,4,FALSE),"") -> Se interesa por iniciativas socioambientales | AC5: 1 | AD5: =IFERROR(VLOOKUP(LARGE($P$5:$P$26,T5),$P$5:$R$26,3,FALSE),"") -> La empresa realiza grandes eventos
C6: La propia tecnología es esencial para el negocio | D6: Debilidad | E6: Importante | F6: =IF(E6="","-",VLOOKUP(E6,$H$5:$I$9,2,FALSE)) -> 7.5 | H6: Importante | I6: 7.5 | K6: =C6 -> La propia tecnología es esencial para el negocio | L6: Debilidad | M6: =IFERROR(IF($L6=M$4,$F6,"")+$Q6,"") ->  | N6: 7.500002 | Q6: =Q5+$Q$5 -> 2e-06 | R6: =K6 -> La propia tecnología es esencial para el negocio | T6: 2 | U6: =IFERROR(VLOOKUP(LARGE($M$5:$M$26,T6),$M$5:$R$26,6,FALSE),"") -> El equipo es competente y organizado | W6: 2 | X6: =IFERROR(VLOOKUP(LARGE($N$5:$N$26,T6),$N$5:$R$26,5,FALSE),"") -> La infraestructura se adapta a las necesidades | Z6: 2 | AA6: =IFERROR(VLOOKUP(LARGE($O$5:$O$26,T6),$O$5:$R$26,4,FALSE),"") -> Se aprovecha de las políticas gubernamentales | AC6: 2 | AD6: =IFERROR(VLOOKUP(LARGE($P$5:$P$26,T6),$P$5:$R$26,3,FALSE),"") -> 
C7: El producto es de calidad | D7: Fuerza | E7: Muy importante | F7: 10 | H7: Indiferente | I7: 5 | K7: El producto es de calidad | L7: Fuerza | M7: 10.000003 | Q7: =Q6+$Q$5 -> 3e-06 | R7: El producto es de calidad | T7: 3 | U7: =IFERROR(VLOOKUP(LARGE($M$5:$M$26,T7),$M$5:$R$26,6,FALSE),"") -> El producto es de calidad | W7: 3 | X7: =IFERROR(VLOOKUP(LARGE($N$5:$N$26,T7),$N$5:$R$26,5,FALSE),"") -> La propia tecnología es esencial para el negocio | Z7: 3 | AA7: Hay mercados sin explorar | AC7: 3
C8: La lista de productos / servicios es variada | D8: Debilidad | E8: Indiferente | F8: 5 | H8: Poco Importante | I8: 2.5 | K8: La lista de productos / servicios es variada | L8: Debilidad | N8: 5.000004 | Q8: 4e-06 | R8: La lista de productos / servicios es variada
C9: El costo es bajo por lo que ayuda a obtener un mayor beneficio | D9: Debilidad | E9: Muy importante | F9: 10 | H9: Sin Importancia | I9: 0 | K9: El costo es bajo por lo que ayuda a obtener un mayor beneficio | L9: Debilidad | N9: 10.000005 | Q9: 5e-06 | R9: El costo es bajo por lo que ayuda a obtener un mayor beneficio
C10: El equipo es competente y organizado | D10: Fuerza | E10: Muy importante | F10: 10 | K10: El equipo es competente y organizado | L10: Fuerza | M10: 10.000006 | Q10: 6e-06 | R10: El equipo es competente y organizado
C11: La infraestructura se adapta a las necesidades | D11: Debilidad | E11: Importante | F11: 7.5 | K11: La infraestructura se adapta a las necesidades | L11: Debilidad | N11: 7.500007 | Q11: 7e-06 | R11: La infraestructura se adapta a las necesidades
C12: Los medios para realizar las ventas están diversificados | D12: Debilidad | E12: Poco Importante | F12: 2.5 | K12: Los medios para realizar las ventas están diversificados | L12: Debilidad | N12: 2.500008 | Q12: 8e-06 | R12: Los medios para realizar las ventas están diversificados
C13: Hay recursos financieros disponibles | D13: Debilidad | E13: Indiferente | F13: 5 | K13: Hay recursos financieros disponibles | L13: Debilidad | N13: 5.000009 | Q13: 9e-06 | R13: Hay recursos financieros disponibles
C14: El negocio puede crecer (en escalas) | D14: Fuerza | E14: Muy importante | F14: 10 | K14: El negocio puede crecer (en escalas) | L14: Fuerza | M14: 10.00001 | Q14: 1e-05 | R14: El negocio puede crecer (en escalas)
K15: 0 | L15: 0 | Q15: 1.1e-05 | R15: 0
C16: Descripción de las Oportunidades y Amenazas | K16: Descripción de las Oportunidades y Amenazas | L16: 0 | Q16: 1.2e-05 | R16: Descripción de las Oportunidades y Amenazas
C17: Hay mercados sin explorar | D17: Oportunidad | E17: Muy importante | F17: =IF(E17="","-",VLOOKUP(E17,$H$5:$I$9,2,FALSE)) -> 10 | K17: Hay mercados sin explorar | L17: Oportunidad | O17: 10.000013 | Q17: 1.3e-05 | R17: Hay mercados sin explorar
C18: Posibilidad de establecer asociaciones estratégicas | D18: Oportunidad | E18: Importante | F18: =IF(E18="","-",VLOOKUP(E18,$H$5:$I$9,2,FALSE)) -> 7.5 | K18: Posibilidad de establecer asociaciones estratégicas | L18: Oportunidad | O18: 7.500014 | Q18: 1.4e-05 | R18: Posibilidad de establecer asociaciones estratégicas
C19: Existem pocos competidores en el mercado | D19: Oportunidad | E19: Poco Importante | F19: 2.5 | K19: Existem pocos competidores en el mercado | L19: Oportunidad | O19: 2.500015 | Q19: 1.5e-05 | R19: Existem pocos competidores en el mercado
C20: Se aprovecha de las políticas gubernamentales | D20: Oportunidad | E20: Muy importante | F20: 10 | K20: Se aprovecha de las políticas gubernamentales | L20: Oportunidad | O20: 10.000016 | Q20: 1.6e-05 | R20: Se aprovecha de las políticas gubernamentales
C21: Se aprovecha del avanzo tecnológico | D21: Oportunidad | E21: Importante | F21: 7.5 | K21: Se aprovecha del avanzo tecnológico | L21: Oportunidad | O21: 7.500017 | Q21: 1.7e-05 | R21: Se aprovecha del avanzo tecnológico
C22: Ocurre una reducción de tasas e impuestos | D22: Oportunidad | E22: Poco Importante | F22: 2.5 | K22: Ocurre una reducción de tasas e impuestos | L22: Oportunidad | O22: 2.500018 | Q22: 1.8e-05 | R22: Ocurre una reducción de tasas e impuestos
C23: Usted está en un ambiente de colaboración | D23: Oportunidad | E23: Importante | F23: 7.5 | K23: Usted está en un ambiente de colaboración | L23: Oportunidad | O23: 7.500019 | Q23: 1.9e-05 | R23: Usted está en un ambiente de colaboración
C24: La empresa realiza grandes eventos | D24: Amenaza | E24: Poco Importante | F24: 2.5 | K24: La empresa realiza grandes eventos | L24: Amenaza | P24: 2.50002 | Q24: 2e-05 | R24: La empresa realiza grandes eventos
C25: Se interesa por iniciativas socioambientales | D25: Oportunidad | E25: Muy importante | F25: 10 | K25: Se interesa por iniciativas socioambientales | L25: Oportunidad | O25: 10.000021 | Q25: 2.1e-05 | R25: Se interesa por iniciativas socioambientales
C26: Lanza nuevas líneas de productos | D26: Oportunidad | E26: Importante | F26: 7.5 | K26: Lanza nuevas líneas de productos | L26: Oportunidad | O26: 7.500022 | Q26: 2.2e-05 | R26: Lanza nuevas líneas de productos

Sheet ESTRATÉGIA_EST
C4: Establezca las principales metas de su empresa
C6: Registro de las metas | F6: Año 1 | H6: Año 2 | J6: Año 3 | L6: Año 4 | N6: Año 5
C7: Meta | D7: Area | E7: Formato | F7: Previsto | G7: Realizado | H7: Previsto | I7: Realizado | J7: Previsto | K7: Realizado | L7: Previsto | M7: Realizado | N7: Previsto | O7: Realizado
C8: En el primer año tener las maquinarias necesarias para mayor produccion. | D8: Producción | E8: Número | F8: 4 | G8: 3 | H8: 0 | I8: 0 | J8: 0 | K8: 0 | L8: 0 | M8: 0 | N8: 0 | O8: 0
C9: Facturar lo necesario para cubrir gastos y que deje ganancias para inversion. | D9: Financiero | E9: Moneda (DOP $) | F9: 9113699 | G9: 7115155 | H9: 4215042 | I9: 6849228 | J9: 7145902 | K9: 7758365 | L9: 7442680 | M9: 7785136 | N9: 5023642 | O9: 2483466
C10: Hacer alianzas estrategicas con diferentes supermercados, para vender mas. | D10: Comercial | E10: Percentual (%) | F10: 0 | G10: 0 | H10: 0 | I10: 0 | J10: 3 | K10: 1 | L10: 0.5 | M10: 0.1 | N10: 0.2 | O10: 0.35
C11: Posicionar la marca ante los dominicanos, para resaltar lo mejor de nuestro café Dominicano. | D11: Mercadeo | E11: Percentual (%) | F11: 0 | G11: 0 | H11: 0 | I11: 0 | J11: 0 | K11: 0 | L11: 0.5 | M11: 0.27 | N11: 0 | O11: 0
C19: Establecer planes de acción para establecer metas
C21: Los planes de acción
C22: meta | F22: Plan de acción | I22: responsable | J22: primero | K22: final | L22: estatus
C23: Desarrollar más hojas de cálculo | F23: la contratación de contratistas | I23: Rafael | J23: 42955 | K23: 42967 | L23: No se ha iniciado
C24: aumentar los ingresos | F24: Crear nuevas campañas en AdWords | I24: Filippo | J24: 42993 | K24: 43001 | L24: En proceso
C25: TX mejorar la conversión | F25: Mejorar la página del producto y la navegación del sitio | I25: Filippo | J25: 43020 | K25: 43051 | L25: Concluido dentro del plazo

Sheet MARKETING
C4: Vea lo que ya ha sido definido por usted acerca del producto o servicio.
C5: =MODELAGEM_CURVAL!$D$23 -> Usted optó por un modelo de negocio donde su mayor característica es Atención.
C7: Responda las siguientes preguntas
C9: ¿Qué espera el cliente del producto / servicio?
C10: Esperan un producto de calidad, que llene las expectativas del mejor café de nuestra tierra Dominicana.
C12: ¿Cuáles atributos él debe tener?
C13: Buena presentacion y un café de calidad al gusto del Dominicano.
C15: ¿Cómo él será utilizado?
C16: Producto fisico.
C18: ¿Qué imagen del producto / servicio usted quiere transmitir?
C19: Calidad y hecho por manos Dominicanas
C21: ¿Cómo pretende trabajar esa marca?
C22: Trabajaremos arduamente para convertirla en una marca pais

Sheet MARKETING_PRECIO
C4: Vea lo que ya ha sido definido por usted en cuanto al precio
C5: =CONCATENATE(MODELAGEM!F13," - ",MODELAGEM!F14," - ",MODELAGEM!F15) -> Los clientes estan dispuestos a pagar 314$, mas itbis. - Transferencias o cheques. - -
C7: Contesta las preguntas abajo | U7: estrategias de precios | X7: referencia | Y7: repetición | AA7: estrategia elegida
H8: puntos de rating | K8: puntos Generados | M8: eje horizontal | N8: eje vertical | Q8: alto | R8: promedio | S8: bajo | U8: Estrategia Premium | V8: alto | W8: alto | X8: =IF(Q9=0,0,1) -> 0 | Y8: =U8 -> Estrategia Premium | AA8: =VLOOKUP(1,$X$8:$Y$16,2,FALSE) -> Estrategia de Precio Mediano
C9: Su estrategia de ventas se refiere a una gran demanda | F9: Indiferente | H9: Concuerdo totalmente | I9: 5 | K9: =IFERROR(VLOOKUP(F9,$H$9:$I$13,2,FALSE),0) -> 3 | M9: =IF(SUM(K9:K10,K12:K13)>12,"bajo",IF(SUM(K9:K10,K12:K13)>8,"promedio","alto")) -> promedio | N9: =IF(K11>2,"alto",IF(K11=2,"promedio","bajo")) -> promedio | P9: alto | Q9: =IF(AND($P9=$N$9,Q$8=$M$9),1,0) -> 0 | R9: =IF(AND($P9=$N$9,R$8=$M$9),1,0) -> 0 | S9: 0 | U9: Estrategia de Alto Precio | V9: promedio | W9: alto | X9: =IF(Q10=0,0,1) -> 0 | Y9: =U9 -> Estrategia de Alto Precio
C10: El cliente está fuertemente influenciado por el precio | F10: Indiferente | H10: Concuerdo en Parte | I10: 4 | K10: =IFERROR(VLOOKUP(F10,$H$9:$I$13,2,FALSE),0) -> 3 | P10: promedio | Q10: =IF(AND($P10=$N$9,Q$8=$M$9),1,0) -> 0 | R10: 1 | S10: 0 | U10: Estrategia de Descuento | V10: bajo | W10: alto | X10: 0 | Y10: Estrategia de Descuento
C11: El cliente valora la calidad del producto sobre el precio | F11: En desacuerdo | H11: Indiferente | I11: 3 | K11: =IFERROR(VLOOKUP(F11,$H$9:$I$13,2,FALSE),0) -> 2 | P11: bajo | Q11: 0 | R11: 0 | S11: 0 | U11: Estrategia de Alto Valor | V11: alto | W11: promedio | X11: =IF(R9=0,0,1) -> 0 | Y11: Estrategia de Alto Valor
C12: Su estrategia tiene como objetivo acelerar la penetración en el mercado | F12: Indiferente | H12: En desacuerdo | I12: 2 | K12: 3 | U12: Estrategia de Precio Mediano | V12: promedio | W12: promedio | X12: =IF(R10=0,0,1) -> 1 | Y12: Estrategia de Precio Mediano
C13: Su línea de productos / servicios es considerada de primera calidad | F13: Indiferente | H13: Muy en desacuerdo | I13: 1 | K13: 3 | U13: Estrategia de Economía Falsa | V13: bajo | W13: promedio | X13: 0 | Y13: Estrategia de Economía Falsa
U14: Estrategia de Valor Supremo | V14: alto | W14: bajo | X14: =IF(S9=0,0,1) -> 0 | Y14: Estrategia de Valor Supremo
C15: Estrategia de Precio Definido | U15: Estrategia de Valor Mediano | V15: promedio | W15: bajo | X15: =IF(S10=0,0,1) -> 0 | Y15: Estrategia de Valor Mediano
U16: Estrategia de Economía | V16: bajo | W16: bajo | X16: 0 | Y16: Estrategia de Economía
C17: La estrategia definida de precio fue: | F17: =AA8 -> Estrategia de Precio Mediano
C19: Visión | D19: Alto Precio | E19: Precio Mediano | F19: Precio Bajo
C20: Calidad Alta | D20: Estrategia Premium | E20: Estrategia de Alto Valor | F20: Estrategia de Valor Supremo
C21: Calidad Mediana | D21: Estrategia de Alto Precio | E21: Estrategia de Precio Mediano | F21: Estrategia de Valor Mediano
C22: Calidad Baja | D22: Estrategia de Descuento | E22: Estrategia de Economía Falsa | F22: Estrategia de Economía
C24: Estrategia Premium - Para productos de alta calidad. En este caso, se puede practicar un precio alto, con el fin de alcanzar el nivel máximo del mercado con un prestigio de la imagen en el mercado. | H24: Estrategia Premium | I24: =C24 -> Estrategia Premium - Para productos de alta calidad. En este caso, se puede practicar un precio alto, con el fin de alcanzar el nivel máximo del mercado con un prestigio de la imagen en el mercado.
C25: Estrategia de Alto Valor - Para productos de alta calidad. Se practica un precio promedio tratando de obtener una rápida penetración en el mercado. | H25: Estrategia de Alto Valor | I25: =C25 -> Estrategia de Alto Valor - Para productos de alta calidad. Se practica un precio promedio tratando de obtener una rápida penetración en el mercado.
C26: Estrategia de Valor Supremo - Producto de alta calidad por un precio bajo. Recomendado para conseguir un rápido ingreso en el mercado. | H26: Estrategia de Valor Supremo | I26: Estrategia de Valor Supremo - Producto de alta calidad por un precio bajo. Recomendado para conseguir un rápido ingreso en el mercado.
C27: Estrategia de Alto Precio - Producto de calidad mediana y de precio alto. Es una estrategia que valora el producto a través del precio psicológico, buscando la rentabilidad a corto plazo. | H27: Estrategia de Alto Precio | I27: Estrategia de Alto Precio - Producto de calidad mediana y de precio alto. Es una estrategia que valora el producto a través del precio psicológico, buscando la rentabilidad a corto plazo.
C28: Estrategia de Precio Mediano - El precio corresponde a la calidad del producto, buscando una participación aceptable en el mercado. | H28: Estrategia de Precio Mediano | I28: Estrategia de Precio Mediano - El precio corresponde a la calidad del producto, buscando una participación aceptable en el mercado.
C29: Estrategia de Valor Mediano - Producto de calidad mediana por precio bajo. Recomendado para obtener un rápido ingreso en el mercado. | H29: Estrategia de Valor Mediano | I29: Estrategia de Valor Mediano - Producto de calidad mediana por precio bajo. Recomendado para obtener un rápido ingreso en el mercado.
C30: Estrategia de Descuento - Alto precio y baja calidad. Se tiene una ventaja inicial y hay un rápido retiro del mercado. | H30: Estrategia de Descuento | I30: Estrategia de Descuento - Alto precio y baja calidad. Se tiene una ventaja inicial y hay un rápido retiro del mercado.
C31: Estrategia de Economía Falsa - Precio mediano para un producto de baja calidad. Se puede buscar con esta estrategia sacar ventaja de la marca o de una falsa imagen creada. | H31: Estrategia de Economía Falsa | I31: Estrategia de Economía Falsa - Precio mediano para un producto de baja calidad. Se puede buscar con esta estrategia sacar ventaja de la marca o de una falsa imagen creada.
C32: Estrategia de Economía - Bajo precio y baja calidad. Se busca vender con esta estrategia grandes cantidades. | H32: Estrategia de Economía | I32: Estrategia de Economía - Bajo precio y baja calidad. Se busca vender con esta estrategia grandes cantidades.

Sheet MARKETING_PLAZA
C4: Vea lo que ya fue establecido por usted en Plaza
C5: =CONCATENATE(MODELAGEM!G9," - ",MODELAGEM!G10," - ",MODELAGEM!G11) -> Compra - Entrega - Post-venta
C7: Conteste las siguientes preguntas
C9: ¿En qué lugares (o tipos de medios de comunicación) el cliente busca su producto?
C10: Tienda online y supermercado
C12: ¿Cómo usted puede acceder a los canales de distribución?
C13: Realizando asociaciones
C15: ¿Cuáles son sus canales de venta?
C16: Mayoristas.
C18: ¿Dónde se encuentran sus competidores?
C19: Supermercados y tiendas.

Sheet MARKETING_PROMO
C4: Vea lo que ya fue establecido por usted en Promoción
C5: =CONCATENATE(MARKETING_PLAZA!C10," - ",MARKETING_PLAZA!C13," - ",MARKETING_PLAZA!C16," - ",MARKETING_PLAZA!C19," - ",) -> Tienda online y supermercado - Realizando asociaciones - Mayoristas. - Supermercados y tiendas. -
C7: Plan de Marketing Offline
C8: Descripción de los Medios | D8: Valor de la inversión en el lanzamiento | E8: Año 1 de inversión | F8: Año 2 de inversión | G8: Año 3 de inversión | H8: Año 4 de precisión | I8: Año 5 de inversión | J8: Total de la Inversión
C9: Eventos presenciales | D9: 4000 | E9: 0 | F9: 0 | G9: 0 | H9: 0 | I9: 0 | J9: =SUM(D9:I9) -> 4000
J10: =SUM(D10:I10) -> 0
J11: 0
J12: 0
J13: 0
J14: 0
J15: 0
J16: 0
J17: 0
J18: 0
C20: Plan de Marketing Online
C21: Descripción de los Medios | D21: Valor de la inversión en el lanzamiento | E21: Año 1 de inversión | F21: Año 2 de inversión | G21: Año 3 de inversión | H21: Año 4 de precisión | I21: Año 5 de inversión | J21: Total de la Inversión
C22: Adwords | D22: 0 | E22: 10000 | F22: 20000 | G22: 25000 | H22: 28000 | I22: 30000 | J22: =SUM(D22:I22) -> 113000
C23: Facebook Ads | D23: 0 | E23: 1000 | F23: 2000 | G23: 2500 | H23: 3000 | I23: 3500 | J23: =SUM(D23:I23) -> 12000
J24: 0
J25: 0
J26: 0
J27: 0
J28: 0
J29: 0
J30: 0
J31: 0

Sheet MERCADO
C4: Describa el problema u oportunidad identificada
C5: Dificultad en el uso de herramientas confiables de gestión
C7: Sobre los clientes
C8: ¿Quiénes y cuántos sufren con este problema o se beneficiarían de la solución? | D8: Caficultores y el cliente final
C9: ¿De qué tamaño es este mercado? | D9: 8000000
C10: ¿Cuánto de este mercado usted pretende alcanzar? | D10: 0.25
C11: Tamaño del mercado alcanzado | D11: =IFERROR(D9*D10,"") -> 2000000
C13: Sobre los competidores y sustitutos
C14: ¿Quiénes son las empresas que exploran esa oportunidad? | D14: Empresa Poesia Colada, Induban y color café
C15: ¿Cómo ellas exploran esa oportunidad?, ¿Y cuáles son sus puntos débiles? | D15: Con la creacion de contenido para redes sociales - no hacen enfasis en dar ayudas sociales
C17: Sobre los nuevos participantes
C18: ¿Quiénes y cómo exploran esa oportunidad hoy en día? | D18: los caficultores
C19: ¿Cuáles son los vacíos de esas soluciones? | D19: No hay marcas atendiendo a desarrollar mas el café de especialidad Dominicano.
C21: ¿Cuáles son los recursos necesarios para el negocio? (Marque como disponible los productos que ya tienes)
C22: Recursos | D22: Disponibilidad
C23: Equipo con conocimiento en venta directas | D23: Disponible
C24: Equipo con conocimiento en calidad de exportacion | D24: No Disponible
C25: Alto importe financiero | D25: No Disponible
C26: Equipo con conocimiento en marketing digital | D26: Disponible

Sheet FINANZAS
C4: Precios
C5: Descripción | D5: Costo de las Materias Primas | E5: Costo de la Mano de Obra | F5: Costo de Embalaje | G5: Costo del Producto | H5: Margen | I5: Precio con Margen | J5: Impuestos | K5: Precio Final | L5: Costos de Unidades Directas | M5: Impuestos | N5: Margen de Contribución
C6: Café Anibalito | D6: =17500/220.462 -> 79.37875915 | E6: 10 | F6: 50 | G6: =IF($C6="","",SUM(D6:F6)) -> 139.3787592 | H6: 1.25 | I6: =IF($C6="","",G6*(1+H6)) -> 313.6022081 | J6: 0.18 | K6: =IF($C6="","",I6/(1-J6)) -> 382.4417172 | L6: =IF($C6="","",G6) -> 139.3787592 | M6: =IF($C6="","",J6*K6) -> 68.83950909 | N6: =IFERROR(K6-L6-M6,"") -> 174.2234489
C7: café en sobre | D7: 15 | E7: 5 | F7: 5 | G7: =IF($C7="","",SUM(D7:F7)) -> 25 | H7: 0.2 | I7: =IF($C7="","",G7*(1+H7)) -> 30 | J7: 0.18 | K7: =IF($C7="","",I7/(1-J7)) -> 36.58536585 | L7: =IF($C7="","",G7) -> 25 | M7: =IF($C7="","",J7*K7) -> 6.585365854 | N7: =IFERROR(K7-L7-M7,"") -> 5
C8: 1 | D8: =17500/220.462 -> 79.37875915 | E8: 10 | F8: 50 | G8: 139.3787592 | H8: 0.02 | I8: 142.1663343 | K8: 142.1663343 | L8: 139.3787592 | M8: 0 | N8: 2.787575183
C9: 2 | D9: 15 | E9: 5 | F9: 5 | G9: 25 | H9: 0.03 | I9: 25.75 | K9: 25.75 | L9: 25 | M9: 0 | N9: 0.75
C10: 3 | D10: =17500/220.462 -> 79.37875915 | E10: 10 | F10: 50 | G10: 139.3787592 | H10: 0.02 | I10: 142.1663343 | K10: 142.1663343 | L10: 139.3787592 | M10: 0 | N10: 2.787575183
C11: 4 | D11: 15 | E11: 5 | F11: 5 | G11: 25 | H11: 0.03 | I11: 25.75 | K11: 25.75 | L11: 25 | M11: 0 | N11: 0.75
C12: 5 | D12: 15 | E12: 5 | F12: 5 | G12: 25 | H12: 0.15 | I12: 28.75 | K12: 28.75 | L12: 25 | M12: 0 | N12: 3.75
C13: 6 | D13: 20 | E13: 10 | F13: 3 | G13: 33 | H13: 0.6 | I13: 52.8 | K13: 52.8 | L13: 33 | M13: 0 | N13: 19.8
C14: 7 | D14: 20 | E14: 20 | F14: 20 | G14: 60 | I14: 60 | K14: 60 | L14: 60 | M14: 0 | N14: 0
C15: 8 | D15: 20 | E15: 20 | F15: 2 | G15: 42 | I15: 42 | K15: 42 | L15: 42 | M15: 0 | N15: 0

Sheet FINANZAS_RESUMEN
C4: Seleccione el año ->
C6: Análisis de las Proyecciones de los Ingresos (relleno realizado de acuerdo a los valores de precio y de proyección en los años 1-5)
C7: Descripción | D7: Precio de venta | E7: Costo Directo | F7: Proyección de Ingreso año 1 | G7: Proyección de Ingreso año 2 | H7: Proyección de Ingreso año 3 | I7: Proyección de Ingreso año 4 | J7: Proyección de Ingreso año 5 | K7: Proyección Total
C8: =PROJ1!C8 -> Café Anibalito | D8: =FINANZAS!K6 -> 382.4417172 | E8: =FINANZAS!L6 -> 139.3787592 | F8: =PROJ1!P8 -> 1185569.323 | G8: =PROJ2!P8 -> 2332894.475 | H8: =PROJ3!P8 -> 2332894.475 | I8: =PROJ4!P8 -> 2332894.475 | J8: =PROJ5!P8 -> 2332894.475 | K8: =SUM(F8:J8) -> 10517147.22
C9: =PROJ1!C9 -> café en sobre | D9: =FINANZAS!K7 -> 36.58536585 | E9: =FINANZAS!L7 -> 25 | F9: =PROJ1!P9 -> 65853.65854 | G9: =PROJ2!P9 -> 131707.3171 | H9: =PROJ3!P9 -> 131707.3171 | I9: =PROJ4!P9 -> 131707.3171 | J9: =PROJ5!P9 -> 131707.3171 | K9: 592682.9268
C10: =PROJ1!C10 -> 1 | D10: =FINANZAS!K8 -> 142.1663343 | E10: =FINANZAS!L8 -> 139.3787592 | F10: =PROJ1!P10 -> 440715.6364 | G10: =PROJ2!P10 -> 867214.6394 | H10: =PROJ3!P10 -> 867214.6394 | I10: =PROJ4!P10 -> 867214.6394 | J10: =PROJ5!P10 -> 867214.6394 | K10: 3909574.194
C11: =PROJ1!C11 -> 2 | D11: =FINANZAS!K9 -> 25.75 | E11: =FINANZAS!L9 -> 25 | F11: =PROJ1!P11 -> 46350 | G11: =PROJ2!P11 -> 92700 | H11: =PROJ3!P11 -> 92700 | I11: =PROJ4!P11 -> 92700 | J11: =PROJ5!P11 -> 92700 | K11: 417150
C12: =PROJ1!C12 -> 3 | D12: =FINANZAS!K10 -> 142.1663343 | E12: =FINANZAS!L10 -> 139.3787592 | F12: =PROJ1!P12 -> 440715.6364 | G12: =PROJ2!P12 -> 867214.6394 | H12: =PROJ3!P12 -> 867214.6394 | I12: =PROJ4!P12 -> 867214.6394 | J12: =PROJ5!P12 -> 867214.6394 | K12: 3909574.194
C13: =PROJ1!C13 -> 4 | D13: =FINANZAS!K11 -> 25.75 | E13: =FINANZAS!L11 -> 25 | F13: =PROJ1!P13 -> 46350 | G13: =PROJ2!P13 -> 92700 | H13: =PROJ3!P13 -> 92700 | I13: =PROJ4!P13 -> 92700 | J13: =PROJ5!P13 -> 92700 | K13: 417150
C14: =PROJ1!C14 -> 5 | D14: =FINANZAS!K12 -> 28.75 | E14: =FINANZAS!L12 -> 25 | F14: =PROJ1!P14 -> 51750 | G14: =PROJ2!P14 -> 175375 | H14: =PROJ3!P14 -> 175375 | I14: =PROJ4!P14 -> 175375 | J14: =PROJ5!P14 -> 175375 | K14: 753250
C15: =PROJ1!C15 -> 6 | D15: =FINANZAS!K13 -> 52.8 | E15: =FINANZAS!L13 -> 33 | F15: =PROJ1!P15 -> 29040 | G15: =PROJ2!P15 -> 322080 | H15: =PROJ3!P15 -> 0 | I15: =PROJ4!P15 -> 0 | J15: =PROJ5!P15 -> 0 | K15: 351120
C16: =PROJ1!C16 -> 7 | D16: =FINANZAS!K14 -> 60 | E16: =FINANZAS!L14 -> 60 | F16: =PROJ1!P16 -> 0 | G16: =PROJ2!P16 -> 0 | H16: =PROJ3!P16 -> 0 | I16: =PROJ4!P16 -> 0 | J16: =PROJ5!P16 -> 0 | K16: 0
C17: =PROJ1!C17 -> 8 | D17: =FINANZAS!K15 -> 42 | E17: =FINANZAS!L15 -> 42 | F17: =PROJ1!P17 -> 0 | G17: =PROJ2!P17 -> 0 | H17: =PROJ3!P17 -> 0 | I17: =PROJ4!P17 -> 42000 | J17: =PROJ5!P17 -> 0 | K17: 42000
C18: =PROJ1!C18 ->  | D18: =FINANZAS!K16 ->  | E18: =FINANZAS!L16 ->  | F18: =PROJ1!P18 -> 0 | G18: =PROJ2!P18 -> 0 | H18: =PROJ3!P18 -> 0 | I18: =PROJ4!P18 -> 0 | J18: =PROJ5!P18 -> 0 | K18: 0
C19: =PROJ1!C19 ->  | D19: =FINANZAS!K17 ->  | E19: =FINANZAS!L17 ->  | F19: =PROJ1!P19 -> 0 | G19: =PROJ2!P19 -> 0 | H19: =PROJ3!P19 -> 0 | I19: =PROJ4!P19 -> 0 | J19: =PROJ5!P19 -> 0 | K19: 0
C20: =PROJ1!C20 ->  | D20: =FINANZAS!K18 ->  | E20: =FINANZAS!L18 ->  | F20: =PROJ1!P20 -> 0 | G20: =PROJ2!P20 -> 0 | H20: =PROJ3!P20 -> 0 | I20: =PROJ4!P20 -> 0 | J20: =PROJ5!P20 -> 0 | K20: 0
C21: =PROJ1!C21 ->  | D21: =FINANZAS!K19 ->  | E21: =FINANZAS!L19 ->  | F21: =PROJ1!P21 -> 0 | G21: =PROJ2!P21 -> 0 | H21: =PROJ3!P21 -> 0 | I21: =PROJ4!P21 -> 0 | J21: =PROJ5!P21 -> 0 | K21: 0
C22: =PROJ1!C22 ->  | D22: =FINANZAS!K20 ->  | E22: =FINANZAS!L20 ->  | F22: =PROJ1!P22 -> 0 | G22: =PROJ2!P22 -> 0 | H22: =PROJ3!P22 -> 0 | I22: =PROJ4!P22 -> 0 | J22: =PROJ5!P22 -> 0 | K22: 0
C23: =PROJ1!C23 ->  | D23: =FINANZAS!K21 ->  | E23: =FINANZAS!L21 ->  | F23: =PROJ1!P23 -> 0 | G23: =PROJ2!P23 -> 0 | H23: =PROJ3!P23 -> 0 | I23: =PROJ4!P23 -> 0 | J23: =PROJ5!P23 -> 0 | K23: 0
C24: =PROJ1!C24 ->  | D24: =FINANZAS!K22 ->  | E24: =FINANZAS!L22 ->  | F24: =PROJ1!P24 -> 0 | G24: =PROJ2!P24 -> 0 | H24: =PROJ3!P24 -> 0 | I24: =PROJ4!P24 -> 0 | J24: =PROJ5!P24 -> 0 | K24: 0
C25: =PROJ1!C25 ->  | D25: =FINANZAS!K23 ->  | E25: =FINANZAS!L23 ->  | F25: =PROJ1!P25 -> 0 | G25: =PROJ2!P25 -> 0 | H25: =PROJ3!P25 -> 0 | I25: =PROJ4!P25 -> 0 | J25: =PROJ5!P25 -> 0 | K25: 0
C26: =PROJ1!C26 ->  | D26: =FINANZAS!K24 ->  | E26: =FINANZAS!L24 ->  | F26: =PROJ1!P26 -> 0 | G26: =PROJ2!P26 -> 0 | H26: =PROJ3!P26 -> 0 | I26: =PROJ4!P26 -> 0 | J26: =PROJ5!P26 -> 0 | K26: 0
C27: =PROJ1!C27 ->  | D27: =FINANZAS!K25 ->  | E27: =FINANZAS!L25 ->  | F27: =PROJ1!P27 -> 0 | G27: =PROJ2!P27 -> 0 | H27: =PROJ3!P27 -> 0 | I27: =PROJ4!P27 -> 0 | J27: =PROJ5!P27 -> 0 | K27: 0
C28: =PROJ1!C28 ->  | D28: =FINANZAS!K26 ->  | E28: =FINANZAS!L26 ->  | F28: =PROJ1!P28 -> 0 | G28: =PROJ2!P28 -> 0 | H28: =PROJ3!P28 -> 0 | I28: =PROJ4!P28 -> 0 | J28: =PROJ5!P28 -> 0 | K28: 0
C29: =PROJ1!C29 ->  | D29: =FINANZAS!K27 ->  | E29: =FINANZAS!L27 ->  | F29: =PROJ1!P29 -> 0 | G29: =PROJ2!P29 -> 0 | H29: =PROJ3!P29 -> 0 | I29: =PROJ4!P29 -> 0 | J29: =PROJ5!P29 -> 0 | K29: 0
C30: =PROJ1!C30 ->  | D30: =FINANZAS!K28 ->  | E30: =FINANZAS!L28 ->  | F30: =PROJ1!P30 -> 0 | G30: =PROJ2!P30 -> 0 | H30: =PROJ3!P30 -> 0 | I30: =PROJ4!P30 -> 0 | J30: =PROJ5!P30 -> 0 | K30: 0
C31: =PROJ1!C31 ->  | D31: =FINANZAS!K29 ->  | E31: =FINANZAS!L29 ->  | F31: =PROJ1!P31 -> 0 | G31: =PROJ2!P31 -> 0 | H31: =PROJ3!P31 -> 0 | I31: =PROJ4!P31 -> 0 | J31: =PROJ5!P31 -> 0 | K31: 0
C32: =PROJ1!C32 ->  | D32: =FINANZAS!K30 ->  | E32: =FINANZAS!L30 ->  | F32: =PROJ1!P32 -> 0 | G32: =PROJ2!P32 -> 0 | H32: =PROJ3!P32 -> 0 | I32: =PROJ4!P32 -> 0 | J32: =PROJ5!P32 -> 0 | K32: 0
C33: =PROJ1!C33 ->  | D33: =FINANZAS!K31 ->  | E33: =FINANZAS!L31 ->  | F33: =PROJ1!P33 -> 0 | G33: =PROJ2!P33 -> 0 | H33: =PROJ3!P33 -> 0 | I33: =PROJ4!P33 -> 0 | J33: =PROJ5!P33 -> 0 | K33: 0
C34: =PROJ1!C34 ->  | D34: =FINANZAS!K32 ->  | E34: =FINANZAS!L32 ->  | F34: =PROJ1!P34 -> 0 | G34: =PROJ2!P34 -> 0 | H34: =PROJ3!P34 -> 0 | I34: =PROJ4!P34 -> 0 | J34: =PROJ5!P34 -> 0 | K34: 0
C35: =PROJ1!C35 ->  | D35: =FINANZAS!K33 ->  | E35: =FINANZAS!L33 ->  | F35: =PROJ1!P35 -> 0 | G35: =PROJ2!P35 -> 0 | H35: =PROJ3!P35 -> 0 | I35: =PROJ4!P35 -> 0 | J35: =PROJ5!P35 -> 0 | K35: 0
C36: =PROJ1!C36 ->  | D36: =FINANZAS!K34 ->  | E36: =FINANZAS!L34 ->  | F36: =PROJ1!P36 -> 0 | G36: =PROJ2!P36 -> 0 | H36: =PROJ3!P36 -> 0 | I36: =PROJ4!P36 -> 0 | J36: =PROJ5!P36 -> 0 | K36: 0
C37: =PROJ1!C37 ->  | D37: =FINANZAS!K35 ->  | E37: =FINANZAS!L35 ->  | F37: =PROJ1!P37 -> 0 | G37: =PROJ2!P37 -> 0 | H37: =PROJ3!P37 -> 0 | I37: =PROJ4!P37 -> 0 | J37: =PROJ5!P37 -> 0 | K37: 0

Sheet PROJ1
C4: Seleccione el año -> | D4: resumen | E4: 1 año | F4: 2 años | G4: 3 años | H4: 4 años | I4: 5 años
C6: Proyecte una cantidad de ventas realizadas por cada producto o servicio en los meses siguientes | S6: Proyección de ingresos | AF6: Los costos variables | AS6: impuestos | BF6: Margen de contribución
C7: Descripción | D7: Enero | E7: Febrero | F7: Marzo | G7: Abril | H7: Mayo | I7: Junio | J7: Julio | K7: Agosto | L7: Septiembre | M7: Octubre | N7: Noviembre | O7: Diciembre | P7: Total | R7: repetición | S7: enero | T7: febrero | U7: marzo | V7: abril | W7: mayo | X7: junio | Y7: julio | Z7: agosto | AA7: septiembre | AB7: octubre | AC7: noviembre | AD7: diciembre | AF7: enero | AG7: febrero | AH7: marzo | AI7: abril | AJ7: mayo | AK7: junio | AL7: julio | AM7: agosto | AN7: septiembre | AO7: octubre | AP7: noviembre | AQ7: diciembre | AS7: enero | AT7: febrero | AU7: marzo | AV7: abril | AW7: mayo | AX7: junio | AY7: julio | AZ7: agosto | BA7: septiembre | BB7: octubre | BC7: noviembre | BD7: diciembre | BF7: enero | BG7: febrero | BH7: marzo | BI7: abril | BJ7: mayo | BK7: junio | BL7: julio | BM7: agosto | BN7: septiembre | BO7: octubre | BP7: noviembre | BQ7: diciembre
C8: =IF(FINANZAS!C6="","",FINANZAS!C6) -> Café Anibalito | J8: 200 | K8: 500 | L8: 500 | M8: 600 | N8: 600 | O8: 700 | P8: =SUM(S8:AD8) -> 1185569.323 | R8: =C8 -> Café Anibalito | S8: =IFERROR(D8*FINANZAS!$K6,0) -> 0 | T8: =IFERROR(E8*FINANZAS!$K6,0) -> 0 | U8: =IFERROR(F8*FINANZAS!$K6,0) -> 0 | V8: =IFERROR(G8*FINANZAS!$K6,0) -> 0 | W8: =IFERROR(H8*FINANZAS!$K6,0) -> 0 | X8: =IFERROR(I8*FINANZAS!$K6,0) -> 0 | Y8: =IFERROR(J8*FINANZAS!$K6,0) -> 76488.34344 | Z8: =IFERROR(K8*FINANZAS!$K6,0) -> 191220.8586 | AA8: =IFERROR(L8*FINANZAS!$K6,0) -> 191220.8586 | AB8: =IFERROR(M8*FINANZAS!$K6,0) -> 229465.0303 | AC8: =IFERROR(N8*FINANZAS!$K6,0) -> 229465.0303 | AD8: =IFERROR(O8*FINANZAS!$K6,0) -> 267709.202 | AF8: =IFERROR(D8*FINANZAS!$G6,0) -> 0 | AG8: =IFERROR(E8*FINANZAS!$G6,0) -> 0 | AH8: =IFERROR(F8*FINANZAS!$G6,0) -> 0 | AI8: =IFERROR(G8*FINANZAS!$G6,0) -> 0 | AJ8: =IFERROR(H8*FINANZAS!$G6,0) -> 0 | AK8: =IFERROR(I8*FINANZAS!$G6,0) -> 0 | AL8: =IFERROR(J8*FINANZAS!$G6,0) -> 27875.75183 | AM8: =IFERROR(K8*FINANZAS!$G6,0) -> 69689.37958 | AN8: =IFERROR(L8*FINANZAS!$G6,0) -> 69689.37958 | AO8: =IFERROR(M8*FINANZAS!$G6,0) -> 83627.25549 | AP8: =IFERROR(N8*FINANZAS!$G6,0) -> 83627.25549 | AQ8: =IFERROR(O8*FINANZAS!$G6,0) -> 97565.13141 | AS8: =S8*FINANZAS!$J6 -> 0 | AT8: =T8*FINANZAS!$J6 -> 0 | AU8: =U8*FINANZAS!$J6 -> 0 | AV8: =V8*FINANZAS!$J6 -> 0 | AW8: =W8*FINANZAS!$J6 -> 0 | AX8: =X8*FINANZAS!$J6 -> 0 | AY8: =Y8*FINANZAS!$J6 -> 13767.90182 | AZ8: =Z8*FINANZAS!$J6 -> 34419.75455 | BA8: =AA8*FINANZAS!$J6 -> 34419.75455 | BB8: =AB8*FINANZAS!$J6 -> 41303.70546 | BC8: =AC8*FINANZAS!$J6 -> 41303.70546 | BD8: =AD8*FINANZAS!$J6 -> 48187.65637 | BF8: =IFERROR(D8*FINANZAS!$N6,0) -> 0 | BG8: =IFERROR(E8*FINANZAS!$N6,0) -> 0 | BH8: =IFERROR(F8*FINANZAS!$N6,0) -> 0 | BI8: =IFERROR(G8*FINANZAS!$N6,0) -> 0 | BJ8: =IFERROR(H8*FINANZAS!$N6,0) -> 0 | BK8: =IFERROR(I8*FINANZAS!$N6,0) -> 0 | BL8: =IFERROR(J8*FINANZAS!$N6,0) -> 34844.68979 | BM8: =IFERROR(K8*FINANZAS!$N6,0) -> 87111.72447 | BN8: =IFERROR(L8*FINANZAS!$N6,0) -> 87111.72447 | BO8: =IFERROR(M8*FINANZAS!$N6,0) -> 104534.0694 | BP8: =IFERROR(N8*FINANZAS!$N6,0) -> 104534.0694 | BQ8: =IFERROR(O8*FINANZAS!$N6,0) -> 121956.4143
C9: =IF(FINANZAS!C7="","",FINANZAS!C7) -> café en sobre | J9: 300 | K9: 300 | L9: 300 | M9: 300 | N9: 300 | O9: 300 | P9: =SUM(S9:AD9) -> 65853.65854 | R9: =C9 -> café en sobre | S9: =IFERROR(D9*FINANZAS!$K7,0) -> 0 | T9: =IFERROR(E9*FINANZAS!$K7,0) -> 0 | U9: =IFERROR(F9*FINANZAS!$K7,0) -> 0 | V9: =IFERROR(G9*FINANZAS!$K7,0) -> 0 | W9: =IFERROR(H9*FINANZAS!$K7,0) -> 0 | X9: =IFERROR(I9*FINANZAS!$K7,0) -> 0 | Y9: =IFERROR(J9*FINANZAS!$K7,0) -> 10975.60976 | Z9: =IFERROR(K9*FINANZAS!$K7,0) -> 10975.60976 | AA9: =IFERROR(L9*FINANZAS!$K7,0) -> 10975.60976 | AB9: =IFERROR(M9*FINANZAS!$K7,0) -> 10975.60976 | AC9: =IFERROR(N9*FINANZAS!$K7,0) -> 10975.60976 | AD9: =IFERROR(O9*FINANZAS!$K7,0) -> 10975.60976 | AF9: =IFERROR(D9*FINANZAS!$G7,0) -> 0 | AG9: =IFERROR(E9*FINANZAS!$G7,0) -> 0 | AH9: =IFERROR(F9*FINANZAS!$G7,0) -> 0 | AI9: =IFERROR(G9*FINANZAS!$G7,0) -> 0 | AJ9: =IFERROR(H9*FINANZAS!$G7,0) -> 0 | AK9: =IFERROR(I9*FINANZAS!$G7,0) -> 0 | AL9: =IFERROR(J9*FINANZAS!$G7,0) -> 7500 | AM9: =IFERROR(K9*FINANZAS!$G7,0) -> 7500 | AN9: =IFERROR(L9*FINANZAS!$G7,0) -> 7500 | AO9: =IFERROR(M9*FINANZAS!$G7,0) -> 7500 | AP9: =IFERROR(N9*FINANZAS!$G7,0) -> 7500 | AQ9: =IFERROR(O9*FINANZAS!$G7,0) -> 7500 | AS9: =S9*FINANZAS!$J7 -> 0 | AT9: =T9*FINANZAS!$J7 -> 0 | AU9: =U9*FINANZAS!$J7 -> 0 | AV9: =V9*FINANZAS!$J7 -> 0 | AW9: =W9*FINANZAS!$J7 -> 0 | AX9: =X9*FINANZAS!$J7 -> 0 | AY9: =Y9*FINANZAS!$J7 -> 1975.609756 | AZ9: =Z9*FINANZAS!$J7 -> 1975.609756 | BA9: =AA9*FINANZAS!$J7 -> 1975.609756 | BB9: =AB9*FINANZAS!$J7 -> 1975.609756 | BC9: =AC9*FINANZAS!$J7 -> 1975.609756 | BD9: =AD9*FINANZAS!$J7 -> 1975.609756 | BF9: =IFERROR(D9*FINANZAS!$N7,0) -> 0 | BG9: =IFERROR(E9*FINANZAS!$N7,0) -> 0 | BH9: =IFERROR(F9*FINANZAS!$N7,0) -> 0 | BI9: =IFERROR(G9*FINANZAS!$N7,0) -> 0 | BJ9: =IFERROR(H9*FINANZAS!$N7,0) -> 0 | BK9: =IFERROR(I9*FINANZAS!$N7,0) -> 0 | BL9: =IFERROR(J9*FINANZAS!$N7,0) -> 1500 | BM9: =IFERROR(K9*FINANZAS!$N7,0) -> 1500 | BN9: =IFERROR(L9*FINANZAS!$N7,0) -> 1500 | BO9: =IFERROR(M9*FINANZAS!$N7,0) -> 1500 | BP9: =IFERROR(N9*FINANZAS!$N7,0) -> 1500 | BQ9: =IFERROR(O9*FINANZAS!$N7,0) -> 1500
C10: =IF(FINANZAS!C8="","",FINANZAS!C8) -> 1 | J10: 200 | K10: 500 | L10: 500 | M10: 600 | N10: 600 | O10: 700 | P10: 440715.6364 | R10: 1 | S10: =IFERROR(D10*FINANZAS!$K8,0) -> 0 | T10: =IFERROR(E10*FINANZAS!$K8,0) -> 0 | U10: =IFERROR(F10*FINANZAS!$K8,0) -> 0 | V10: =IFERROR(G10*FINANZAS!$K8,0) -> 0 | W10: =IFERROR(H10*FINANZAS!$K8,0) -> 0 | X10: =IFERROR(I10*FINANZAS!$K8,0) -> 0 | Y10: =IFERROR(J10*FINANZAS!$K8,0) -> 28433.26687 | Z10: =IFERROR(K10*FINANZAS!$K8,0) -> 71083.16717 | AA10: =IFERROR(L10*FINANZAS!$K8,0) -> 71083.16717 | AB10: =IFERROR(M10*FINANZAS!$K8,0) -> 85299.8006 | AC10: =IFERROR(N10*FINANZAS!$K8,0) -> 85299.8006 | AD10: =IFERROR(O10*FINANZAS!$K8,0) -> 99516.43403 | AF10: =IFERROR(D10*FINANZAS!$G8,0) -> 0 | AG10: =IFERROR(E10*FINANZAS!$G8,0) -> 0 | AH10: =IFERROR(F10*FINANZAS!$G8,0) -> 0 | AI10: =IFERROR(G10*FINANZAS!$G8,0) -> 0 | AJ10: =IFERROR(H10*FINANZAS!$G8,0) -> 0 | AK10: =IFERROR(I10*FINANZAS!$G8,0) -> 0 | AL10: =IFERROR(J10*FINANZAS!$G8,0) -> 27875.75183 | AM10: =IFERROR(K10*FINANZAS!$G8,0) -> 69689.37958 | AN10: =IFERROR(L10*FINANZAS!$G8,0) -> 69689.37958 | AO10: =IFERROR(M10*FINANZAS!$G8,0) -> 83627.25549 | AP10: =IFERROR(N10*FINANZAS!$G8,0) -> 83627.25549 | AQ10: =IFERROR(O10*FINANZAS!$G8,0) -> 97565.13141 | AS10: =S10*FINANZAS!$J8 -> 0 | AT10: =T10*FINANZAS!$J8 -> 0 | AU10: =U10*FINANZAS!$J8 -> 0 | AV10: =V10*FINANZAS!$J8 -> 0 | AW10: =W10*FINANZAS!$J8 -> 0 | AX10: =X10*FINANZAS!$J8 -> 0 | AY10: =Y10*FINANZAS!$J8 -> 0 | AZ10: =Z10*FINANZAS!$J8 -> 0 | BA10: =AA10*FINANZAS!$J8 -> 0 | BB10: =AB10*FINANZAS!$J8 -> 0 | BC10: =AC10*FINANZAS!$J8 -> 0 | BD10: =AD10*FINANZAS!$J8 -> 0 | BF10: =IFERROR(D10*FINANZAS!$N8,0) -> 0 | BG10: =IFERROR(E10*FINANZAS!$N8,0) -> 0 | BH10: =IFERROR(F10*FINANZAS!$N8,0) -> 0 | BI10: =IFERROR(G10*FINANZAS!$N8,0) -> 0 | BJ10: =IFERROR(H10*FINANZAS!$N8,0) -> 0 | BK10: =IFERROR(I10*FINANZAS!$N8,0) -> 0 | BL10: =IFERROR(J10*FINANZAS!$N8,0) -> 557.5150366 | BM10: =IFERROR(K10*FINANZAS!$N8,0) -> 1393.787592 | BN10: =IFERROR(L10*FINANZAS!$N8,0) -> 1393.787592 | BO10: =IFERROR(M10*FINANZAS!$N8,0) -> 1672.54511 | BP10: =IFERROR(N10*FINANZAS!$N8,0) -> 1672.54511 | BQ10: =IFERROR(O10*FINANZAS!$N8,0) -> 1951.302628
C11: =IF(FINANZAS!C9="","",FINANZAS!C9) -> 2 | J11: 300 | K11: 300 | L11: 300 | M11: 300 | N11: 300 | O11: 300 | P11: 46350 | R11: 2 | S11: =IFERROR(D11*FINANZAS!$K9,0) -> 0 | T11: =IFERROR(E11*FINANZAS!$K9,0) -> 0 | U11: =IFERROR(F11*FINANZAS!$K9,0) -> 0 | V11: =IFERROR(G11*FINANZAS!$K9,0) -> 0 | W11: =IFERROR(H11*FINANZAS!$K9,0) -> 0 | X11: =IFERROR(I11*FINANZAS!$K9,0) -> 0 | Y11: =IFERROR(J11*FINANZAS!$K9,0) -> 7725 | Z11: =IFERROR(K11*FINANZAS!$K9,0) -> 7725 | AA11: =IFERROR(L11*FINANZAS!$K9,0) -> 7725 | AB11: =IFERROR(M11*FINANZAS!$K9,0) -> 7725 | AC11: =IFERROR(N11*FINANZAS!$K9,0) -> 7725 | AD11: =IFERROR(O11*FINANZAS!$K9,0) -> 7725 | AF11: =IFERROR(D11*FINANZAS!$G9,0) -> 0 | AG11: =IFERROR(E11*FINANZAS!$G9,0) -> 0 | AH11: =IFERROR(F11*FINANZAS!$G9,0) -> 0 | AI11: =IFERROR(G11*FINANZAS!$G9,0) -> 0 | AJ11: =IFERROR(H11*FINANZAS!$G9,0) -> 0 | AK11: =IFERROR(I11*FINANZAS!$G9,0) -> 0 | AL11: =IFERROR(J11*FINANZAS!$G9,0) -> 7500 | AM11: =IFERROR(K11*FINANZAS!$G9,0) -> 7500 | AN11: =IFERROR(L11*FINANZAS!$G9,0) -> 7500 | AO11: =IFERROR(M11*FINANZAS!$G9,0) -> 7500 | AP11: =IFERROR(N11*FINANZAS!$G9,0) -> 7500 | AQ11: =IFERROR(O11*FINANZAS!$G9,0) -> 7500 | AS11: =S11*FINANZAS!$J9 -> 0 | AT11: =T11*FINANZAS!$J9 -> 0 | AU11: =U11*FINANZAS!$J9 -> 0 | AV11: =V11*FINANZAS!$J9 -> 0 | AW11: =W11*FINANZAS!$J9 -> 0 | AX11: =X11*FINANZAS!$J9 -> 0 | AY11: =Y11*FINANZAS!$J9 -> 0 | AZ11: =Z11*FINANZAS!$J9 -> 0 | BA11: =AA11*FINANZAS!$J9 -> 0 | BB11: =AB11*FINANZAS!$J9 -> 0 | BC11: =AC11*FINANZAS!$J9 -> 0 | BD11: =AD11*FINANZAS!$J9 -> 0 | BF11: =IFERROR(D11*FINANZAS!$N9,0) -> 0 | BG11: =IFERROR(E11*FINANZAS!$N9,0) -> 0 | BH11: =IFERROR(F11*FINANZAS!$N9,0) -> 0 | BI11: =IFERROR(G11*FINANZAS!$N9,0) -> 0 | BJ11: =IFERROR(H11*FINANZAS!$N9,0) -> 0 | BK11: =IFERROR(I11*FINANZAS!$N9,0) -> 0 | BL11: =IFERROR(J11*FINANZAS!$N9,0) -> 225 | BM11: =IFERROR(K11*FINANZAS!$N9,0) -> 225 | BN11: =IFERROR(L11*FINANZAS!$N9,0) -> 225 | BO11: =IFERROR(M11*FINANZAS!$N9,0) -> 225 | BP11: =IFERROR(N11*FINANZAS!$N9,0) -> 225 | BQ11: =IFERROR(O11*FINANZAS!$N9,0) -> 225
C12: =IF(FINANZAS!C10="","",FINANZAS!C10) -> 3 | J12: 200 | K12: 500 | L12: 500 | M12: 600 | N12: 600 | O12: 700 | P12: 440715.6364 | R12: 3 | S12: =IFERROR(D12*FINANZAS!$K10,0) -> 0 | T12: =IFERROR(E12*FINANZAS!$K10,0) -> 0 | U12: =IFERROR(F12*FINANZAS!$K10,0) -> 0 | V12: =IFERROR(G12*FINANZAS!$K10,0) -> 0 | W12: =IFERROR(H12*FINANZAS!$K10,0) -> 0 | X12: =IFERROR(I12*FINANZAS!$K10,0) -> 0 | Y12: =IFERROR(J12*FINANZAS!$K10,0) -> 28433.26687 | Z12: =IFERROR(K12*FINANZAS!$K10,0) -> 71083.16717 | AA12: =IFERROR(L12*FINANZAS!$K10,0) -> 71083.16717 | AB12: =IFERROR(M12*FINANZAS!$K10,0) -> 85299.8006 | AC12: =IFERROR(N12*FINANZAS!$K10,0) -> 85299.8006 | AD12: =IFERROR(O12*FINANZAS!$K10,0) -> 99516.43403 | AF12: =IFERROR(D12*FINANZAS!$G10,0) -> 0 | AG12: =IFERROR(E12*FINANZAS!$G10,0) -> 0 | AH12: =IFERROR(F12*FINANZAS!$G10,0) -> 0 | AI12: =IFERROR(G12*FINANZAS!$G10,0) -> 0 | AJ12: =IFERROR(H12*FINANZAS!$G10,0) -> 0 | AK12: =IFERROR(I12*FINANZAS!$G10,0) -> 0 | AL12: =IFERROR(J12*FINANZAS!$G10,0) -> 27875.75183 | AM12: =IFERROR(K12*FINANZAS!$G10,0) -> 69689.37958 | AN12: =IFERROR(L12*FINANZAS!$G10,0) -> 69689.37958 | AO12: =IFERROR(M12*FINANZAS!$G10,0) -> 83627.25549 | AP12: =IFERROR(N12*FINANZAS!$G10,0) -> 83627.25549 | AQ12: =IFERROR(O12*FINANZAS!$G10,0) -> 97565.13141 | AS12: =S12*FINANZAS!$J10 -> 0 | AT12: =T12*FINANZAS!$J10 -> 0 | AU12: =U12*FINANZAS!$J10 -> 0 | AV12: =V12*FINANZAS!$J10 -> 0 | AW12: =W12*FINANZAS!$J10 -> 0 | AX12: =X12*FINANZAS!$J10 -> 0 | AY12: =Y12*FINANZAS!$J10 -> 0 | AZ12: =Z12*FINANZAS!$J10 -> 0 | BA12: =AA12*FINANZAS!$J10 -> 0 | BB12: =AB12*FINANZAS!$J10 -> 0 | BC12: =AC12*FINANZAS!$J10 -> 0 | BD12: =AD12*FINANZAS!$J10 -> 0 | BF12: =IFERROR(D12*FINANZAS!$N10,0) -> 0 | BG12: =IFERROR(E12*FINANZAS!$N10,0) -> 0 | BH12: =IFERROR(F12*FINANZAS!$N10,0) -> 0 | BI12: =IFERROR(G12*FINANZAS!$N10,0) -> 0 | BJ12: =IFERROR(H12*FINANZAS!$N10,0) -> 0 | BK12: =IFERROR(I12*FINANZAS!$N10,0) -> 0 | BL12: =IFERROR(J12*FINANZAS!$N10,0) -> 557.5150366 | BM12: =IFERROR(K12*FINANZAS!$N10,0) -> 1393.787592 | BN12: =IFERROR(L12*FINANZAS!$N10,0) -> 1393.787592 | BO12: =IFERROR(M12*FINANZAS!$N10,0) -> 1672.54511 | BP12: =IFERROR(N12*FINANZAS!$N10,0) -> 1672.54511 | BQ12: =IFERROR(O12*FINANZAS!$N10,0) -> 1951.302628
C13: =IF(FINANZAS!C11="","",FINANZAS!C11) -> 4 | J13: 300 | K13: 300 | L13: 300 | M13: 300 | N13: 300 | O13: 300 | P13: 46350 | R13: 4 | S13: =IFERROR(D13*FINANZAS!$K11,0) -> 0 | T13: =IFERROR(E13*FINANZAS!$K11,0) -> 0 | U13: =IFERROR(F13*FINANZAS!$K11,0) -> 0 | V13: =IFERROR(G13*FINANZAS!$K11,0) -> 0 | W13: =IFERROR(H13*FINANZAS!$K11,0) -> 0 | X13: =IFERROR(I13*FINANZAS!$K11,0) -> 0 | Y13: =IFERROR(J13*FINANZAS!$K11,0) -> 7725 | Z13: =IFERROR(K13*FINANZAS!$K11,0) -> 7725 | AA13: =IFERROR(L13*FINANZAS!$K11,0) -> 7725 | AB13: =IFERROR(M13*FINANZAS!$K11,0) -> 7725 | AC13: =IFERROR(N13*FINANZAS!$K11,0) -> 7725 | AD13: =IFERROR(O13*FINANZAS!$K11,0) -> 7725 | AF13: =IFERROR(D13*FINANZAS!$G11,0) -> 0 | AG13: =IFERROR(E13*FINANZAS!$G11,0) -> 0 | AH13: =IFERROR(F13*FINANZAS!$G11,0) -> 0 | AI13: =IFERROR(G13*FINANZAS!$G11,0) -> 0 | AJ13: =IFERROR(H13*FINANZAS!$G11,0) -> 0 | AK13: =IFERROR(I13*FINANZAS!$G11,0) -> 0 | AL13: =IFERROR(J13*FINANZAS!$G11,0) -> 7500 | AM13: =IFERROR(K13*FINANZAS!$G11,0) -> 7500 | AN13: =IFERROR(L13*FINANZAS!$G11,0) -> 7500 | AO13: =IFERROR(M13*FINANZAS!$G11,0) -> 7500 | AP13: =IFERROR(N13*FINANZAS!$G11,0) -> 7500 | AQ13: =IFERROR(O13*FINANZAS!$G11,0) -> 7500 | AS13: =S13*FINANZAS!$J11 -> 0 | AT13: =T13*FINANZAS!$J11 -> 0 | AU13: =U13*FINANZAS!$J11 -> 0 | AV13: =V13*FINANZAS!$J11 -> 0 | AW13: =W13*FINANZAS!$J11 -> 0 | AX13: =X13*FINANZAS!$J11 -> 0 | AY13: =Y13*FINANZAS!$J11 -> 0 | AZ13: =Z13*FINANZAS!$J11 -> 0 | BA13: =AA13*FINANZAS!$J11 -> 0 | BB13: =AB13*FINANZAS!$J11 -> 0 | BC13: =AC13*FINANZAS!$J11 -> 0 | BD13: =AD13*FINANZAS!$J11 -> 0 | BF13: =IFERROR(D13*FINANZAS!$N11,0) -> 0 | BG13: =IFERROR(E13*FINANZAS!$N11,0) -> 0 | BH13: =IFERROR(F13*FINANZAS!$N11,0) -> 0 | BI13: =IFERROR(G13*FINANZAS!$N11,0) -> 0 | BJ13: =IFERROR(H13*FINANZAS!$N11,0) -> 0 | BK13: =IFERROR(I13*FINANZAS!$N11,0) -> 0 | BL13: =IFERROR(J13*FINANZAS!$N11,0) -> 225 | BM13: =IFERROR(K13*FINANZAS!$N11,0) -> 225 | BN13: =IFERROR(L13*FINANZAS!$N11,0) -> 225 | BO13: =IFERROR(M13*FINANZAS!$N11,0) -> 225 | BP13: =IFERROR(N13*FINANZAS!$N11,0) -> 225 | BQ13: =IFERROR(O13*FINANZAS!$N11,0) -> 225
C14: =IF(FINANZAS!C12="","",FINANZAS!C12) -> 5 | J14: 300 | K14: 300 | L14: 300 | M14: 300 | N14: 300 | O14: 300 | P14: 51750 | R14: 5 | S14: =IFERROR(D14*FINANZAS!$K12,0) -> 0 | T14: =IFERROR(E14*FINANZAS!$K12,0) -> 0 | U14: =IFERROR(F14*FINANZAS!$K12,0) -> 0 | V14: =IFERROR(G14*FINANZAS!$K12,0) -> 0 | W14: =IFERROR(H14*FINANZAS!$K12,0) -> 0 | X14: =IFERROR(I14*FINANZAS!$K12,0) -> 0 | Y14: =IFERROR(J14*FINANZAS!$K12,0) -> 8625 | Z14: =IFERROR(K14*FINANZAS!$K12,0) -> 8625 | AA14: =IFERROR(L14*FINANZAS!$K12,0) -> 8625 | AB14: =IFERROR(M14*FINANZAS!$K12,0) -> 8625 | AC14: =IFERROR(N14*FINANZAS!$K12,0) -> 8625 | AD14: =IFERROR(O14*FINANZAS!$K12,0) -> 8625 | AF14: =IFERROR(D14*FINANZAS!$G12,0) -> 0 | AG14: =IFERROR(E14*FINANZAS!$G12,0) -> 0 | AH14: =IFERROR(F14*FINANZAS!$G12,0) -> 0 | AI14: =IFERROR(G14*FINANZAS!$G12,0) -> 0 | AJ14: =IFERROR(H14*FINANZAS!$G12,0) -> 0 | AK14: =IFERROR(I14*FINANZAS!$G12,0) -> 0 | AL14: =IFERROR(J14*FINANZAS!$G12,0) -> 7500 | AM14: =IFERROR(K14*FINANZAS!$G12,0) -> 7500 | AN14: =IFERROR(L14*FINANZAS!$G12,0) -> 7500 | AO14: =IFERROR(M14*FINANZAS!$G12,0) -> 7500 | AP14: =IFERROR(N14*FINANZAS!$G12,0) -> 7500 | AQ14: =IFERROR(O14*FINANZAS!$G12,0) -> 7500 | AS14: =S14*FINANZAS!$J12 -> 0 | AT14: =T14*FINANZAS!$J12 -> 0 | AU14: =U14*FINANZAS!$J12 -> 0 | AV14: =V14*FINANZAS!$J12 -> 0 | AW14: =W14*FINANZAS!$J12 -> 0 | AX14: =X14*FINANZAS!$J12 -> 0 | AY14: =Y14*FINANZAS!$J12 -> 0 | AZ14: =Z14*FINANZAS!$J12 -> 0 | BA14: =AA14*FINANZAS!$J12 -> 0 | BB14: =AB14*FINANZAS!$J12 -> 0 | BC14: =AC14*FINANZAS!$J12 -> 0 | BD14: =AD14*FINANZAS!$J12 -> 0 | BF14: =IFERROR(D14*FINANZAS!$N12,0) -> 0 | BG14: =IFERROR(E14*FINANZAS!$N12,0) -> 0 | BH14: =IFERROR(F14*FINANZAS!$N12,0) -> 0 | BI14: =IFERROR(G14*FINANZAS!$N12,0) -> 0 | BJ14: =IFERROR(H14*FINANZAS!$N12,0) -> 0 | BK14: =IFERROR(I14*FINANZAS!$N12,0) -> 0 | BL14: =IFERROR(J14*FINANZAS!$N12,0) -> 1125 | BM14: =IFERROR(K14*FINANZAS!$N12,0) -> 1125 | BN14: =IFERROR(L14*FINANZAS!$N12,0) -> 1125 | BO14: =IFERROR(M14*FINANZAS!$N12,0) -> 1125 | BP14: =IFERROR(N14*FINANZAS!$N12,0) -> 1125 | BQ14: =IFERROR(O14*FINANZAS!$N12,0) -> 1125
C15: =IF(FINANZAS!C13="","",FINANZAS!C13) -> 6 | J15: 250 | K15: 300 | P15: 29040 | R15: 6 | S15: =IFERROR(D15*FINANZAS!$K13,0) -> 0 | T15: =IFERROR(E15*FINANZAS!$K13,0) -> 0 | U15: =IFERROR(F15*FINANZAS!$K13,0) -> 0 | V15: =IFERROR(G15*FINANZAS!$K13,0) -> 0 | W15: =IFERROR(H15*FINANZAS!$K13,0) -> 0 | X15: =IFERROR(I15*FINANZAS!$K13,0) -> 0 | Y15: =IFERROR(J15*FINANZAS!$K13,0) -> 13200 | Z15: =IFERROR(K15*FINANZAS!$K13,0) -> 15840 | AA15: =IFERROR(L15*FINANZAS!$K13,0) -> 0 | AB15: =IFERROR(M15*FINANZAS!$K13,0) -> 0 | AC15: =IFERROR(N15*FINANZAS!$K13,0) -> 0 | AD15: =IFERROR(O15*FINANZAS!$K13,0) -> 0 | AF15: =IFERROR(D15*FINANZAS!$G13,0) -> 0 | AG15: =IFERROR(E15*FINANZAS!$G13,0) -> 0 | AH15: =IFERROR(F15*FINANZAS!$G13,0) -> 0 | AI15: =IFERROR(G15*FINANZAS!$G13,0) -> 0 | AJ15: =IFERROR(H15*FINANZAS!$G13,0) -> 0 | AK15: =IFERROR(I15*FINANZAS!$G13,0) -> 0 | AL15: =IFERROR(J15*FINANZAS!$G13,0) -> 8250 | AM15: =IFERROR(K15*FINANZAS!$G13,0) -> 9900 | AN15: =IFERROR(L15*FINANZAS!$G13,0) -> 0 | AO15: =IFERROR(M15*FINANZAS!$G13,0) -> 0 | AP15: =IFERROR(N15*FINANZAS!$G13,0) -> 0 | AQ15: =IFERROR(O15*FINANZAS!$G13,0) -> 0 | AS15: =S15*FINANZAS!$J13 -> 0 | AT15: =T15*FINANZAS!$J13 -> 0 | AU15: =U15*FINANZAS!$J13 -> 0 | AV15: =V15*FINANZAS!$J13 -> 0 | AW15: =W15*FINANZAS!$J13 -> 0 | AX15: =X15*FINANZAS!$J13 -> 0 | AY15: =Y15*FINANZAS!$J13 -> 0 | AZ15: =Z15*FINANZAS!$J13 -> 0 | BA15: =AA15*FINANZAS!$J13 -> 0 | BB15: =AB15*FINANZAS!$J13 -> 0 | BC15: =AC15*FINANZAS!$J13 -> 0 | BD15: =AD15*FINANZAS!$J13 -> 0 | BF15: =IFERROR(D15*FINANZAS!$N13,0) -> 0 | BG15: =IFERROR(E15*FINANZAS!$N13,0) -> 0 | BH15: =IFERROR(F15*FINANZAS!$N13,0) -> 0 | BI15: =IFERROR(G15*FINANZAS!$N13,0) -> 0 | BJ15: =IFERROR(H15*FINANZAS!$N13,0) -> 0 | BK15: =IFERROR(I15*FINANZAS!$N13,0) -> 0 | BL15: =IFERROR(J15*FINANZAS!$N13,0) -> 4950 | BM15: =IFERROR(K15*FINANZAS!$N13,0) -> 5940 | BN15: =IFERROR(L15*FINANZAS!$N13,0) -> 0 | BO15: =IFERROR(M15*FINANZAS!$N13,0) -> 0 | BP15: =IFERROR(N15*FINANZAS!$N13,0) -> 0 | BQ15: =IFERROR(O15*FINANZAS!$N13,0) -> 0
C16: =IF(FINANZAS!C14="","",FINANZAS!C14) -> 7 | P16: 0 | R16: 7 | S16: =IFERROR(D16*FINANZAS!$K14,0) -> 0 | T16: =IFERROR(E16*FINANZAS!$K14,0) -> 0 | U16: =IFERROR(F16*FINANZAS!$K14,0) -> 0 | V16: =IFERROR(G16*FINANZAS!$K14,0) -> 0 | W16: =IFERROR(H16*FINANZAS!$K14,0) -> 0 | X16: =IFERROR(I16*FINANZAS!$K14,0) -> 0 | Y16: =IFERROR(J16*FINANZAS!$K14,0) -> 0 | Z16: =IFERROR(K16*FINANZAS!$K14,0) -> 0 | AA16: =IFERROR(L16*FINANZAS!$K14,0) -> 0 | AB16: =IFERROR(M16*FINANZAS!$K14,0) -> 0 | AC16: =IFERROR(N16*FINANZAS!$K14,0) -> 0 | AD16: =IFERROR(O16*FINANZAS!$K14,0) -> 0 | AF16: =IFERROR(D16*FINANZAS!$G14,0) -> 0 | AG16: =IFERROR(E16*FINANZAS!$G14,0) -> 0 | AH16: =IFERROR(F16*FINANZAS!$G14,0) -> 0 | AI16: =IFERROR(G16*FINANZAS!$G14,0) -> 0 | AJ16: =IFERROR(H16*FINANZAS!$G14,0) -> 0 | AK16: =IFERROR(I16*FINANZAS!$G14,0) -> 0 | AL16: =IFERROR(J16*FINANZAS!$G14,0) -> 0 | AM16: =IFERROR(K16*FINANZAS!$G14,0) -> 0 | AN16: =IFERROR(L16*FINANZAS!$G14,0) -> 0 | AO16: =IFERROR(M16*FINANZAS!$G14,0) -> 0 | AP16: =IFERROR(N16*FINANZAS!$G14,0) -> 0 | AQ16: =IFERROR(O16*FINANZAS!$G14,0) -> 0 | AS16: =S16*FINANZAS!$J14 -> 0 | AT16: =T16*FINANZAS!$J14 -> 0 | AU16: =U16*FINANZAS!$J14 -> 0 | AV16: =V16*FINANZAS!$J14 -> 0 | AW16: =W16*FINANZAS!$J14 -> 0 | AX16: =X16*FINANZAS!$J14 -> 0 | AY16: =Y16*FINANZAS!$J14 -> 0 | AZ16: =Z16*FINANZAS!$J14 -> 0 | BA16: =AA16*FINANZAS!$J14 -> 0 | BB16: =AB16*FINANZAS!$J14 -> 0 | BC16: =AC16*FINANZAS!$J14 -> 0 | BD16: =AD16*FINANZAS!$J14 -> 0 | BF16: =IFERROR(D16*FINANZAS!$N14,0) -> 0 | BG16: =IFERROR(E16*FINANZAS!$N14,0) -> 0 | BH16: =IFERROR(F16*FINANZAS!$N14,0) -> 0 | BI16: =IFERROR(G16*FINANZAS!$N14,0) -> 0 | BJ16: =IFERROR(H16*FINANZAS!$N14,0) -> 0 | BK16: =IFERROR(I16*FINANZAS!$N14,0) -> 0 | BL16: =IFERROR(J16*FINANZAS!$N14,0) -> 0 | BM16: =IFERROR(K16*FINANZAS!$N14,0) -> 0 | BN16: =IFERROR(L16*FINANZAS!$N14,0) -> 0 | BO16: =IFERROR(M16*FINANZAS!$N14,0) -> 0 | BP16: =IFERROR(N16*FINANZAS!$N14,0) -> 0 | BQ16: =IFERROR(O16*FINANZAS!$N14,0) -> 0
C17: =IF(FINANZAS!C15="","",FINANZAS!C15) -> 8 | P17: 0 | R17: 8 | S17: =IFERROR(D17*FINANZAS!$K15,0) -> 0 | T17: =IFERROR(E17*FINANZAS!$K15,0) -> 0 | U17: =IFERROR(F17*FINANZAS!$K15,0) -> 0 | V17: =IFERROR(G17*FINANZAS!$K15,0) -> 0 | W17: =IFERROR(H17*FINANZAS!$K15,0) -> 0 | X17: =IFERROR(I17*FINANZAS!$K15,0) -> 0 | Y17: =IFERROR(J17*FINANZAS!$K15,0) -> 0 | Z17: =IFERROR(K17*FINANZAS!$K15,0) -> 0 | AA17: =IFERROR(L17*FINANZAS!$K15,0) -> 0 | AB17: =IFERROR(M17*FINANZAS!$K15,0) -> 0 | AC17: =IFERROR(N17*FINANZAS!$K15,0) -> 0 | AD17: =IFERROR(O17*FINANZAS!$K15,0) -> 0 | AF17: =IFERROR(D17*FINANZAS!$G15,0) -> 0 | AG17: =IFERROR(E17*FINANZAS!$G15,0) -> 0 | AH17: =IFERROR(F17*FINANZAS!$G15,0) -> 0 | AI17: =IFERROR(G17*FINANZAS!$G15,0) -> 0 | AJ17: =IFERROR(H17*FINANZAS!$G15,0) -> 0 | AK17: =IFERROR(I17*FINANZAS!$G15,0) -> 0 | AL17: =IFERROR(J17*FINANZAS!$G15,0) -> 0 | AM17: =IFERROR(K17*FINANZAS!$G15,0) -> 0 | AN17: =IFERROR(L17*FINANZAS!$G15,0) -> 0 | AO17: =IFERROR(M17*FINANZAS!$G15,0) -> 0 | AP17: =IFERROR(N17*FINANZAS!$G15,0) -> 0 | AQ17: =IFERROR(O17*FINANZAS!$G15,0) -> 0 | AS17: =S17*FINANZAS!$J15 -> 0 | AT17: =T17*FINANZAS!$J15 -> 0 | AU17: =U17*FINANZAS!$J15 -> 0 | AV17: =V17*FINANZAS!$J15 -> 0 | AW17: =W17*FINANZAS!$J15 -> 0 | AX17: =X17*FINANZAS!$J15 -> 0 | AY17: =Y17*FINANZAS!$J15 -> 0 | AZ17: =Z17*FINANZAS!$J15 -> 0 | BA17: =AA17*FINANZAS!$J15 -> 0 | BB17: =AB17*FINANZAS!$J15 -> 0 | BC17: =AC17*FINANZAS!$J15 -> 0 | BD17: =AD17*FINANZAS!$J15 -> 0 | BF17: =IFERROR(D17*FINANZAS!$N15,0) -> 0 | BG17: =IFERROR(E17*FINANZAS!$N15,0) -> 0 | BH17: =IFERROR(F17*FINANZAS!$N15,0) -> 0 | BI17: =IFERROR(G17*FINANZAS!$N15,0) -> 0 | BJ17: =IFERROR(H17*FINANZAS!$N15,0) -> 0 | BK17: =IFERROR(I17*FINANZAS!$N15,0) -> 0 | BL17: =IFERROR(J17*FINANZAS!$N15,0) -> 0 | BM17: =IFERROR(K17*FINANZAS!$N15,0) -> 0 | BN17: =IFERROR(L17*FINANZAS!$N15,0) -> 0 | BO17: =IFERROR(M17*FINANZAS!$N15,0) -> 0 | BP17: =IFERROR(N17*FINANZAS!$N15,0) -> 0 | BQ17: =IFERROR(O17*FINANZAS!$N15,0) -> 0
C18: =IF(FINANZAS!C16="","",FINANZAS!C16) ->  | P18: 0 | S18: =IFERROR(D18*FINANZAS!$K16,0) -> 0 | T18: =IFERROR(E18*FINANZAS!$K16,0) -> 0 | U18: =IFERROR(F18*FINANZAS!$K16,0) -> 0 | V18: =IFERROR(G18*FINANZAS!$K16,0) -> 0 | W18: =IFERROR(H18*FINANZAS!$K16,0) -> 0 | X18: =IFERROR(I18*FINANZAS!$K16,0) -> 0 | Y18: =IFERROR(J18*FINANZAS!$K16,0) -> 0 | Z18: =IFERROR(K18*FINANZAS!$K16,0) -> 0 | AA18: =IFERROR(L18*FINANZAS!$K16,0) -> 0 | AB18: =IFERROR(M18*FINANZAS!$K16,0) -> 0 | AC18: =IFERROR(N18*FINANZAS!$K16,0) -> 0 | AD18: =IFERROR(O18*FINANZAS!$K16,0) -> 0 | AF18: =IFERROR(D18*FINANZAS!$G16,0) -> 0 | AG18: =IFERROR(E18*FINANZAS!$G16,0) -> 0 | AH18: =IFERROR(F18*FINANZAS!$G16,0) -> 0 | AI18: =IFERROR(G18*FINANZAS!$G16,0) -> 0 | AJ18: =IFERROR(H18*FINANZAS!$G16,0) -> 0 | AK18: =IFERROR(I18*FINANZAS!$G16,0) -> 0 | AL18: =IFERROR(J18*FINANZAS!$G16,0) -> 0 | AM18: =IFERROR(K18*FINANZAS!$G16,0) -> 0 | AN18: =IFERROR(L18*FINANZAS!$G16,0) -> 0 | AO18: =IFERROR(M18*FINANZAS!$G16,0) -> 0 | AP18: =IFERROR(N18*FINANZAS!$G16,0) -> 0 | AQ18: =IFERROR(O18*FINANZAS!$G16,0) -> 0 | AS18: =S18*FINANZAS!$J16 -> 0 | AT18: =T18*FINANZAS!$J16 -> 0 | AU18: =U18*FINANZAS!$J16 -> 0 | AV18: =V18*FINANZAS!$J16 -> 0 | AW18: =W18*FINANZAS!$J16 -> 0 | AX18: =X18*FINANZAS!$J16 -> 0 | AY18: =Y18*FINANZAS!$J16 -> 0 | AZ18: =Z18*FINANZAS!$J16 -> 0 | BA18: =AA18*FINANZAS!$J16 -> 0 | BB18: =AB18*FINANZAS!$J16 -> 0 | BC18: =AC18*FINANZAS!$J16 -> 0 | BD18: =AD18*FINANZAS!$J16 -> 0 | BF18: =IFERROR(D18*FINANZAS!$N16,0) -> 0 | BG18: =IFERROR(E18*FINANZAS!$N16,0) -> 0 | BH18: =IFERROR(F18*FINANZAS!$N16,0) -> 0 | BI18: =IFERROR(G18*FINANZAS!$N16,0) -> 0 | BJ18: =IFERROR(H18*FINANZAS!$N16,0) -> 0 | BK18: =IFERROR(I18*FINANZAS!$N16,0) -> 0 | BL18: =IFERROR(J18*FINANZAS!$N16,0) -> 0 | BM18: =IFERROR(K18*FINANZAS!$N16,0) -> 0 | BN18: =IFERROR(L18*FINANZAS!$N16,0) -> 0 | BO18: =IFERROR(M18*FINANZAS!$N16,0) -> 0 | BP18: =IFERROR(N18*FINANZAS!$N16,0) -> 0 | BQ18: =IFERROR(O18*FINANZAS!$N16,0) -> 0
C19: =IF(FINANZAS!C17="","",FINANZAS!C17) ->  | P19: 0 | S19: =IFERROR(D19*FINANZAS!$K17,0) -> 0 | T19: =IFERROR(E19*FINANZAS!$K17,0) -> 0 | U19: =IFERROR(F19*FINANZAS!$K17,0) -> 0 | V19: =IFERROR(G19*FINANZAS!$K17,0) -> 0 | W19: =IFERROR(H19*FINANZAS!$K17,0) -> 0 | X19: =IFERROR(I19*FINANZAS!$K17,0) -> 0 | Y19: =IFERROR(J19*FINANZAS!$K17,0) -> 0 | Z19: =IFERROR(K19*FINANZAS!$K17,0) -> 0 | AA19: =IFERROR(L19*FINANZAS!$K17,0) -> 0 | AB19: =IFERROR(M19*FINANZAS!$K17,0) -> 0 | AC19: =IFERROR(N19*FINANZAS!$K17,0) -> 0 | AD19: =IFERROR(O19*FINANZAS!$K17,0) -> 0 | AF19: =IFERROR(D19*FINANZAS!$G17,0) -> 0 | AG19: =IFERROR(E19*FINANZAS!$G17,0) -> 0 | AH19: =IFERROR(F19*FINANZAS!$G17,0) -> 0 | AI19: =IFERROR(G19*FINANZAS!$G17,0) -> 0 | AJ19: =IFERROR(H19*FINANZAS!$G17,0) -> 0 | AK19: =IFERROR(I19*FINANZAS!$G17,0) -> 0 | AL19: =IFERROR(J19*FINANZAS!$G17,0) -> 0 | AM19: =IFERROR(K19*FINANZAS!$G17,0) -> 0 | AN19: =IFERROR(L19*FINANZAS!$G17,0) -> 0 | AO19: =IFERROR(M19*FINANZAS!$G17,0) -> 0 | AP19: =IFERROR(N19*FINANZAS!$G17,0) -> 0 | AQ19: =IFERROR(O19*FINANZAS!$G17,0) -> 0 | AS19: =S19*FINANZAS!$J17 -> 0 | AT19: =T19*FINANZAS!$J17 -> 0 | AU19: =U19*FINANZAS!$J17 -> 0 | AV19: =V19*FINANZAS!$J17 -> 0 | AW19: =W19*FINANZAS!$J17 -> 0 | AX19: =X19*FINANZAS!$J17 -> 0 | AY19: =Y19*FINANZAS!$J17 -> 0 | AZ19: =Z19*FINANZAS!$J17 -> 0 | BA19: =AA19*FINANZAS!$J17 -> 0 | BB19: =AB19*FINANZAS!$J17 -> 0 | BC19: =AC19*FINANZAS!$J17 -> 0 | BD19: =AD19*FINANZAS!$J17 -> 0 | BF19: =IFERROR(D19*FINANZAS!$N17,0) -> 0 | BG19: =IFERROR(E19*FINANZAS!$N17,0) -> 0 | BH19: =IFERROR(F19*FINANZAS!$N17,0) -> 0 | BI19: =IFERROR(G19*FINANZAS!$N17,0) -> 0 | BJ19: =IFERROR(H19*FINANZAS!$N17,0) -> 0 | BK19: =IFERROR(I19*FINANZAS!$N17,0) -> 0 | BL19: =IFERROR(J19*FINANZAS!$N17,0) -> 0 | BM19: =IFERROR(K19*FINANZAS!$N17,0) -> 0 | BN19: =IFERROR(L19*FINANZAS!$N17,0) -> 0 | BO19: =IFERROR(M19*FINANZAS!$N17,0) -> 0 | BP19: =IFERROR(N19*FINANZAS!$N17,0) -> 0 | BQ19: =IFERROR(O19*FINANZAS!$N17,0) -> 0
C20: =IF(FINANZAS!C18="","",FINANZAS!C18) ->  | P20: 0 | S20: =IFERROR(D20*FINANZAS!$K18,0) -> 0 | T20: =IFERROR(E20*FINANZAS!$K18,0) -> 0 | U20: =IFERROR(F20*FINANZAS!$K18,0) -> 0 | V20: =IFERROR(G20*FINANZAS!$K18,0) -> 0 | W20: =IFERROR(H20*FINANZAS!$K18,0) -> 0 | X20: =IFERROR(I20*FINANZAS!$K18,0) -> 0 | Y20: =IFERROR(J20*FINANZAS!$K18,0) -> 0 | Z20: =IFERROR(K20*FINANZAS!$K18,0) -> 0 | AA20: =IFERROR(L20*FINANZAS!$K18,0) -> 0 | AB20: =IFERROR(M20*FINANZAS!$K18,0) -> 0 | AC20: =IFERROR(N20*FINANZAS!$K18,0) -> 0 | AD20: =IFERROR(O20*FINANZAS!$K18,0) -> 0 | AF20: =IFERROR(D20*FINANZAS!$G18,0) -> 0 | AG20: =IFERROR(E20*FINANZAS!$G18,0) -> 0 | AH20: =IFERROR(F20*FINANZAS!$G18,0) -> 0 | AI20: =IFERROR(G20*FINANZAS!$G18,0) -> 0 | AJ20: =IFERROR(H20*FINANZAS!$G18,0) -> 0 | AK20: =IFERROR(I20*FINANZAS!$G18,0) -> 0 | AL20: =IFERROR(J20*FINANZAS!$G18,0) -> 0 | AM20: =IFERROR(K20*FINANZAS!$G18,0) -> 0 | AN20: =IFERROR(L20*FINANZAS!$G18,0) -> 0 | AO20: =IFERROR(M20*FINANZAS!$G18,0) -> 0 | AP20: =IFERROR(N20*FINANZAS!$G18,0) -> 0 | AQ20: =IFERROR(O20*FINANZAS!$G18,0) -> 0 | AS20: =S20*FINANZAS!$J18 -> 0 | AT20: =T20*FINANZAS!$J18 -> 0 | AU20: =U20*FINANZAS!$J18 -> 0 | AV20: =V20*FINANZAS!$J18 -> 0 | AW20: =W20*FINANZAS!$J18 -> 0 | AX20: =X20*FINANZAS!$J18 -> 0 | AY20: =Y20*FINANZAS!$J18 -> 0 | AZ20: =Z20*FINANZAS!$J18 -> 0 | BA20: =AA20*FINANZAS!$J18 -> 0 | BB20: =AB20*FINANZAS!$J18 -> 0 | BC20: =AC20*FINANZAS!$J18 -> 0 | BD20: =AD20*FINANZAS!$J18 -> 0 | BF20: =IFERROR(D20*FINANZAS!$N18,0) -> 0 | BG20: =IFERROR(E20*FINANZAS!$N18,0) -> 0 | BH20: =IFERROR(F20*FINANZAS!$N18,0) -> 0 | BI20: =IFERROR(G20*FINANZAS!$N18,0) -> 0 | BJ20: =IFERROR(H20*FINANZAS!$N18,0) -> 0 | BK20: =IFERROR(I20*FINANZAS!$N18,0) -> 0 | BL20: =IFERROR(J20*FINANZAS!$N18,0) -> 0 | BM20: =IFERROR(K20*FINANZAS!$N18,0) -> 0 | BN20: =IFERROR(L20*FINANZAS!$N18,0) -> 0 | BO20: =IFERROR(M20*FINANZAS!$N18,0) -> 0 | BP20: =IFERROR(N20*FINANZAS!$N18,0) -> 0 | BQ20: =IFERROR(O20*FINANZAS!$N18,0) -> 0
C21: =IF(FINANZAS!C19="","",FINANZAS!C19) ->  | P21: 0 | S21: =IFERROR(D21*FINANZAS!$K19,0) -> 0 | T21: =IFERROR(E21*FINANZAS!$K19,0) -> 0 | U21: =IFERROR(F21*FINANZAS!$K19,0) -> 0 | V21: =IFERROR(G21*FINANZAS!$K19,0) -> 0 | W21: =IFERROR(H21*FINANZAS!$K19,0) -> 0 | X21: =IFERROR(I21*FINANZAS!$K19,0) -> 0 | Y21: =IFERROR(J21*FINANZAS!$K19,0) -> 0 | Z21: =IFERROR(K21*FINANZAS!$K19,0) -> 0 | AA21: =IFERROR(L21*FINANZAS!$K19,0) -> 0 | AB21: =IFERROR(M21*FINANZAS!$K19,0) -> 0 | AC21: =IFERROR(N21*FINANZAS!$K19,0) -> 0 | AD21: =IFERROR(O21*FINANZAS!$K19,0) -> 0 | AF21: =IFERROR(D21*FINANZAS!$G19,0) -> 0 | AG21: =IFERROR(E21*FINANZAS!$G19,0) -> 0 | AH21: =IFERROR(F21*FINANZAS!$G19,0) -> 0 | AI21: =IFERROR(G21*FINANZAS!$G19,0) -> 0 | AJ21: =IFERROR(H21*FINANZAS!$G19,0) -> 0 | AK21: =IFERROR(I21*FINANZAS!$G19,0) -> 0 | AL21: =IFERROR(J21*FINANZAS!$G19,0) -> 0 | AM21: =IFERROR(K21*FINANZAS!$G19,0) -> 0 | AN21: =IFERROR(L21*FINANZAS!$G19,0) -> 0 | AO21: =IFERROR(M21*FINANZAS!$G19,0) -> 0 | AP21: =IFERROR(N21*FINANZAS!$G19,0) -> 0 | AQ21: =IFERROR(O21*FINANZAS!$G19,0) -> 0 | AS21: =S21*FINANZAS!$J19 -> 0 | AT21: =T21*FINANZAS!$J19 -> 0 | AU21: =U21*FINANZAS!$J19 -> 0 | AV21: =V21*FINANZAS!$J19 -> 0 | AW21: =W21*FINANZAS!$J19 -> 0 | AX21: =X21*FINANZAS!$J19 -> 0 | AY21: =Y21*FINANZAS!$J19 -> 0 | AZ21: =Z21*FINANZAS!$J19 -> 0 | BA21: =AA21*FINANZAS!$J19 -> 0 | BB21: =AB21*FINANZAS!$J19 -> 0 | BC21: =AC21*FINANZAS!$J19 -> 0 | BD21: =AD21*FINANZAS!$J19 -> 0 | BF21: =IFERROR(D21*FINANZAS!$N19,0) -> 0 | BG21: =IFERROR(E21*FINANZAS!$N19,0) -> 0 | BH21: =IFERROR(F21*FINANZAS!$N19,0) -> 0 | BI21: =IFERROR(G21*FINANZAS!$N19,0) -> 0 | BJ21: =IFERROR(H21*FINANZAS!$N19,0) -> 0 | BK21: =IFERROR(I21*FINANZAS!$N19,0) -> 0 | BL21: =IFERROR(J21*FINANZAS!$N19,0) -> 0 | BM21: =IFERROR(K21*FINANZAS!$N19,0) -> 0 | BN21: =IFERROR(L21*FINANZAS!$N19,0) -> 0 | BO21: =IFERROR(M21*FINANZAS!$N19,0) -> 0 | BP21: =IFERROR(N21*FINANZAS!$N19,0) -> 0 | BQ21: =IFERROR(O21*FINANZAS!$N19,0) -> 0
C22: =IF(FINANZAS!C20="","",FINANZAS!C20) ->  | P22: 0 | S22: =IFERROR(D22*FINANZAS!$K20,0) -> 0 | T22: =IFERROR(E22*FINANZAS!$K20,0) -> 0 | U22: =IFERROR(F22*FINANZAS!$K20,0) -> 0 | V22: =IFERROR(G22*FINANZAS!$K20,0) -> 0 | W22: =IFERROR(H22*FINANZAS!$K20,0) -> 0 | X22: =IFERROR(I22*FINANZAS!$K20,0) -> 0 | Y22: =IFERROR(J22*FINANZAS!$K20,0) -> 0 | Z22: =IFERROR(K22*FINANZAS!$K20,0) -> 0 | AA22: =IFERROR(L22*FINANZAS!$K20,0) -> 0 | AB22: =IFERROR(M22*FINANZAS!$K20,0) -> 0 | AC22: =IFERROR(N22*FINANZAS!$K20,0) -> 0 | AD22: =IFERROR(O22*FINANZAS!$K20,0) -> 0 | AF22: =IFERROR(D22*FINANZAS!$G20,0) -> 0 | AG22: =IFERROR(E22*FINANZAS!$G20,0) -> 0 | AH22: =IFERROR(F22*FINANZAS!$G20,0) -> 0 | AI22: =IFERROR(G22*FINANZAS!$G20,0) -> 0 | AJ22: =IFERROR(H22*FINANZAS!$G20,0) -> 0 | AK22: =IFERROR(I22*FINANZAS!$G20,0) -> 0 | AL22: =IFERROR(J22*FINANZAS!$G20,0) -> 0 | AM22: =IFERROR(K22*FINANZAS!$G20,0) -> 0 | AN22: =IFERROR(L22*FINANZAS!$G20,0) -> 0 | AO22: =IFERROR(M22*FINANZAS!$G20,0) -> 0 | AP22: =IFERROR(N22*FINANZAS!$G20,0) -> 0 | AQ22: =IFERROR(O22*FINANZAS!$G20,0) -> 0 | AS22: =S22*FINANZAS!$J20 -> 0 | AT22: =T22*FINANZAS!$J20 -> 0 | AU22: =U22*FINANZAS!$J20 -> 0 | AV22: =V22*FINANZAS!$J20 -> 0 | AW22: =W22*FINANZAS!$J20 -> 0 | AX22: =X22*FINANZAS!$J20 -> 0 | AY22: =Y22*FINANZAS!$J20 -> 0 | AZ22: =Z22*FINANZAS!$J20 -> 0 | BA22: =AA22*FINANZAS!$J20 -> 0 | BB22: =AB22*FINANZAS!$J20 -> 0 | BC22: =AC22*FINANZAS!$J20 -> 0 | BD22: =AD22*FINANZAS!$J20 -> 0 | BF22: =IFERROR(D22*FINANZAS!$N20,0) -> 0 | BG22: =IFERROR(E22*FINANZAS!$N20,0) -> 0 | BH22: =IFERROR(F22*FINANZAS!$N20,0) -> 0 | BI22: =IFERROR(G22*FINANZAS!$N20,0) -> 0 | BJ22: =IFERROR(H22*FINANZAS!$N20,0) -> 0 | BK22: =IFERROR(I22*FINANZAS!$N20,0) -> 0 | BL22: =IFERROR(J22*FINANZAS!$N20,0) -> 0 | BM22: =IFERROR(K22*FINANZAS!$N20,0) -> 0 | BN22: =IFERROR(L22*FINANZAS!$N20,0) -> 0 | BO22: =IFERROR(M22*FINANZAS!$N20,0) -> 0 | BP22: =IFERROR(N22*FINANZAS!$N20,0) -> 0 | BQ22: =IFERROR(O22*FINANZAS!$N20,0) -> 0
C23: =IF(FINANZAS!C21="","",FINANZAS!C21) ->  | P23: 0 | S23: =IFERROR(D23*FINANZAS!$K21,0) -> 0 | T23: =IFERROR(E23*FINANZAS!$K21,0) -> 0 | U23: =IFERROR(F23*FINANZAS!$K21,0) -> 0 | V23: =IFERROR(G23*FINANZAS!$K21,0) -> 0 | W23: =IFERROR(H23*FINANZAS!$K21,0) -> 0 | X23: =IFERROR(I23*FINANZAS!$K21,0) -> 0 | Y23: =IFERROR(J23*FINANZAS!$K21,0) -> 0 | Z23: =IFERROR(K23*FINANZAS!$K21,0) -> 0 | AA23: =IFERROR(L23*FINANZAS!$K21,0) -> 0 | AB23: =IFERROR(M23*FINANZAS!$K21,0) -> 0 | AC23: =IFERROR(N23*FINANZAS!$K21,0) -> 0 | AD23: =IFERROR(O23*FINANZAS!$K21,0) -> 0 | AF23: =IFERROR(D23*FINANZAS!$G21,0) -> 0 | AG23: =IFERROR(E23*FINANZAS!$G21,0) -> 0 | AH23: =IFERROR(F23*FINANZAS!$G21,0) -> 0 | AI23: =IFERROR(G23*FINANZAS!$G21,0) -> 0 | AJ23: =IFERROR(H23*FINANZAS!$G21,0) -> 0 | AK23: =IFERROR(I23*FINANZAS!$G21,0) -> 0 | AL23: =IFERROR(J23*FINANZAS!$G21,0) -> 0 | AM23: =IFERROR(K23*FINANZAS!$G21,0) -> 0 | AN23: =IFERROR(L23*FINANZAS!$G21,0) -> 0 | AO23: =IFERROR(M23*FINANZAS!$G21,0) -> 0 | AP23: =IFERROR(N23*FINANZAS!$G21,0) -> 0 | AQ23: =IFERROR(O23*FINANZAS!$G21,0) -> 0 | AS23: =S23*FINANZAS!$J21 -> 0 | AT23: =T23*FINANZAS!$J21 -> 0 | AU23: =U23*FINANZAS!$J21 -> 0 | AV23: =V23*FINANZAS!$J21 -> 0 | AW23: =W23*FINANZAS!$J21 -> 0 | AX23: =X23*FINANZAS!$J21 -> 0 | AY23: =Y23*FINANZAS!$J21 -> 0 | AZ23: =Z23*FINANZAS!$J21 -> 0 | BA23: =AA23*FINANZAS!$J21 -> 0 | BB23: =AB23*FINANZAS!$J21 -> 0 | BC23: =AC23*FINANZAS!$J21 -> 0 | BD23: =AD23*FINANZAS!$J21 -> 0 | BF23: =IFERROR(D23*FINANZAS!$N21,0) -> 0 | BG23: =IFERROR(E23*FINANZAS!$N21,0) -> 0 | BH23: =IFERROR(F23*FINANZAS!$N21,0) -> 0 | BI23: =IFERROR(G23*FINANZAS!$N21,0) -> 0 | BJ23: =IFERROR(H23*FINANZAS!$N21,0) -> 0 | BK23: =IFERROR(I23*FINANZAS!$N21,0) -> 0 | BL23: =IFERROR(J23*FINANZAS!$N21,0) -> 0 | BM23: =IFERROR(K23*FINANZAS!$N21,0) -> 0 | BN23: =IFERROR(L23*FINANZAS!$N21,0) -> 0 | BO23: =IFERROR(M23*FINANZAS!$N21,0) -> 0 | BP23: =IFERROR(N23*FINANZAS!$N21,0) -> 0 | BQ23: =IFERROR(O23*FINANZAS!$N21,0) -> 0
C24: =IF(FINANZAS!C22="","",FINANZAS!C22) ->  | P24: 0 | S24: =IFERROR(D24*FINANZAS!$K22,0) -> 0 | T24: =IFERROR(E24*FINANZAS!$K22,0) -> 0 | U24: =IFERROR(F24*FINANZAS!$K22,0) -> 0 | V24: =IFERROR(G24*FINANZAS!$K22,0) -> 0 | W24: =IFERROR(H24*FINANZAS!$K22,0) -> 0 | X24: =IFERROR(I24*FINANZAS!$K22,0) -> 0 | Y24: =IFERROR(J24*FINANZAS!$K22,0) -> 0 | Z24: =IFERROR(K24*FINANZAS!$K22,0) -> 0 | AA24: =IFERROR(L24*FINANZAS!$K22,0) -> 0 | AB24: =IFERROR(M24*FINANZAS!$K22,0) -> 0 | AC24: =IFERROR(N24*FINANZAS!$K22,0) -> 0 | AD24: =IFERROR(O24*FINANZAS!$K22,0) -> 0 | AF24: =IFERROR(D24*FINANZAS!$G22,0) -> 0 | AG24: =IFERROR(E24*FINANZAS!$G22,0) -> 0 | AH24: =IFERROR(F24*FINANZAS!$G22,0) -> 0 | AI24: =IFERROR(G24*FINANZAS!$G22,0) -> 0 | AJ24: =IFERROR(H24*FINANZAS!$G22,0) -> 0 | AK24: =IFERROR(I24*FINANZAS!$G22,0) -> 0 | AL24: =IFERROR(J24*FINANZAS!$G22,0) -> 0 | AM24: =IFERROR(K24*FINANZAS!$G22,0) -> 0 | AN24: =IFERROR(L24*FINANZAS!$G22,0) -> 0 | AO24: =IFERROR(M24*FINANZAS!$G22,0) -> 0 | AP24: =IFERROR(N24*FINANZAS!$G22,0) -> 0 | AQ24: =IFERROR(O24*FINANZAS!$G22,0) -> 0 | AS24: =S24*FINANZAS!$J22 -> 0 | AT24: =T24*FINANZAS!$J22 -> 0 | AU24: =U24*FINANZAS!$J22 -> 0 | AV24: =V24*FINANZAS!$J22 -> 0 | AW24: =W24*FINANZAS!$J22 -> 0 | AX24: =X24*FINANZAS!$J22 -> 0 | AY24: =Y24*FINANZAS!$J22 -> 0 | AZ24: =Z24*FINANZAS!$J22 -> 0 | BA24: =AA24*FINANZAS!$J22 -> 0 | BB24: =AB24*FINANZAS!$J22 -> 0 | BC24: =AC24*FINANZAS!$J22 -> 0 | BD24: =AD24*FINANZAS!$J22 -> 0 | BF24: =IFERROR(D24*FINANZAS!$N22,0) -> 0 | BG24: =IFERROR(E24*FINANZAS!$N22,0) -> 0 | BH24: =IFERROR(F24*FINANZAS!$N22,0) -> 0 | BI24: =IFERROR(G24*FINANZAS!$N22,0) -> 0 | BJ24: =IFERROR(H24*FINANZAS!$N22,0) -> 0 | BK24: =IFERROR(I24*FINANZAS!$N22,0) -> 0 | BL24: =IFERROR(J24*FINANZAS!$N22,0) -> 0 | BM24: =IFERROR(K24*FINANZAS!$N22,0) -> 0 | BN24: =IFERROR(L24*FINANZAS!$N22,0) -> 0 | BO24: =IFERROR(M24*FINANZAS!$N22,0) -> 0 | BP24: =IFERROR(N24*FINANZAS!$N22,0) -> 0 | BQ24: =IFERROR(O24*FINANZAS!$N22,0) -> 0
C25: =IF(FINANZAS!C23="","",FINANZAS!C23) ->  | P25: 0 | S25: =IFERROR(D25*FINANZAS!$K23,0) -> 0 | T25: =IFERROR(E25*FINANZAS!$K23,0) -> 0 | U25: =IFERROR(F25*FINANZAS!$K23,0) -> 0 | V25: =IFERROR(G25*FINANZAS!$K23,0) -> 0 | W25: =IFERROR(H25*FINANZAS!$K23,0) -> 0 | X25: =IFERROR(I25*FINANZAS!$K23,0) -> 0 | Y25: =IFERROR(J25*FINANZAS!$K23,0) -> 0 | Z25: =IFERROR(K25*FINANZAS!$K23,0) -> 0 | AA25: =IFERROR(L25*FINANZAS!$K23,0) -> 0 | AB25: =IFERROR(M25*FINANZAS!$K23,0) -> 0 | AC25: =IFERROR(N25*FINANZAS!$K23,0) -> 0 | AD25: =IFERROR(O25*FINANZAS!$K23,0) -> 0 | AF25: =IFERROR(D25*FINANZAS!$G23,0) -> 0 | AG25: =IFERROR(E25*FINANZAS!$G23,0) -> 0 | AH25: =IFERROR(F25*FINANZAS!$G23,0) -> 0 | AI25: =IFERROR(G25*FINANZAS!$G23,0) -> 0 | AJ25: =IFERROR(H25*FINANZAS!$G23,0) -> 0 | AK25: =IFERROR(I25*FINANZAS!$G23,0) -> 0 | AL25: =IFERROR(J25*FINANZAS!$G23,0) -> 0 | AM25: =IFERROR(K25*FINANZAS!$G23,0) -> 0 | AN25: =IFERROR(L25*FINANZAS!$G23,0) -> 0 | AO25: =IFERROR(M25*FINANZAS!$G23,0) -> 0 | AP25: =IFERROR(N25*FINANZAS!$G23,0) -> 0 | AQ25: =IFERROR(O25*FINANZAS!$G23,0) -> 0 | AS25: =S25*FINANZAS!$J23 -> 0 | AT25: =T25*FINANZAS!$J23 -> 0 | AU25: =U25*FINANZAS!$J23 -> 0 | AV25: =V25*FINANZAS!$J23 -> 0 | AW25: =W25*FINANZAS!$J23 -> 0 | AX25: =X25*FINANZAS!$J23 -> 0 | AY25: =Y25*FINANZAS!$J23 -> 0 | AZ25: =Z25*FINANZAS!$J23 -> 0 | BA25: =AA25*FINANZAS!$J23 -> 0 | BB25: =AB25*FINANZAS!$J23 -> 0 | BC25: =AC25*FINANZAS!$J23 -> 0 | BD25: =AD25*FINANZAS!$J23 -> 0 | BF25: =IFERROR(D25*FINANZAS!$N23,0) -> 0 | BG25: =IFERROR(E25*FINANZAS!$N23,0) -> 0 | BH25: =IFERROR(F25*FINANZAS!$N23,0) -> 0 | BI25: =IFERROR(G25*FINANZAS!$N23,0) -> 0 | BJ25: =IFERROR(H25*FINANZAS!$N23,0) -> 0 | BK25: =IFERROR(I25*FINANZAS!$N23,0) -> 0 | BL25: =IFERROR(J25*FINANZAS!$N23,0) -> 0 | BM25: =IFERROR(K25*FINANZAS!$N23,0) -> 0 | BN25: =IFERROR(L25*FINANZAS!$N23,0) -> 0 | BO25: =IFERROR(M25*FINANZAS!$N23,0) -> 0 | BP25: =IFERROR(N25*FINANZAS!$N23,0) -> 0 | BQ25: =IFERROR(O25*FINANZAS!$N23,0) -> 0
C26: =IF(FINANZAS!C24="","",FINANZAS!C24) ->  | P26: 0 | S26: =IFERROR(D26*FINANZAS!$K24,0) -> 0 | T26: =IFERROR(E26*FINANZAS!$K24,0) -> 0 | U26: =IFERROR(F26*FINANZAS!$K24,0) -> 0 | V26: =IFERROR(G26*FINANZAS!$K24,0) -> 0 | W26: =IFERROR(H26*FINANZAS!$K24,0) -> 0 | X26: =IFERROR(I26*FINANZAS!$K24,0) -> 0 | Y26: =IFERROR(J26*FINANZAS!$K24,0) -> 0 | Z26: =IFERROR(K26*FINANZAS!$K24,0) -> 0 | AA26: =IFERROR(L26*FINANZAS!$K24,0) -> 0 | AB26: =IFERROR(M26*FINANZAS!$K24,0) -> 0 | AC26: =IFERROR(N26*FINANZAS!$K24,0) -> 0 | AD26: =IFERROR(O26*FINANZAS!$K24,0) -> 0 | AF26: =IFERROR(D26*FINANZAS!$G24,0) -> 0 | AG26: =IFERROR(E26*FINANZAS!$G24,0) -> 0 | AH26: =IFERROR(F26*FINANZAS!$G24,0) -> 0 | AI26: =IFERROR(G26*FINANZAS!$G24,0) -> 0 | AJ26: =IFERROR(H26*FINANZAS!$G24,0) -> 0 | AK26: =IFERROR(I26*FINANZAS!$G24,0) -> 0 | AL26: =IFERROR(J26*FINANZAS!$G24,0) -> 0 | AM26: =IFERROR(K26*FINANZAS!$G24,0) -> 0 | AN26: =IFERROR(L26*FINANZAS!$G24,0) -> 0 | AO26: =IFERROR(M26*FINANZAS!$G24,0) -> 0 | AP26: =IFERROR(N26*FINANZAS!$G24,0) -> 0 | AQ26: =IFERROR(O26*FINANZAS!$G24,0) -> 0 | AS26: =S26*FINANZAS!$J24 -> 0 | AT26: =T26*FINANZAS!$J24 -> 0 | AU26: =U26*FINANZAS!$J24 -> 0 | AV26: =V26*FINANZAS!$J24 -> 0 | AW26: =W26*FINANZAS!$J24 -> 0 | AX26: =X26*FINANZAS!$J24 -> 0 | AY26: =Y26*FINANZAS!$J24 -> 0 | AZ26: =Z26*FINANZAS!$J24 -> 0 | BA26: =AA26*FINANZAS!$J24 -> 0 | BB26: =AB26*FINANZAS!$J24 -> 0 | BC26: =AC26*FINANZAS!$J24 -> 0 | BD26: =AD26*FINANZAS!$J24 -> 0 | BF26: =IFERROR(D26*FINANZAS!$N24,0) -> 0 | BG26: =IFERROR(E26*FINANZAS!$N24,0) -> 0 | BH26: =IFERROR(F26*FINANZAS!$N24,0) -> 0 | BI26: =IFERROR(G26*FINANZAS!$N24,0) -> 0 | BJ26: =IFERROR(H26*FINANZAS!$N24,0) -> 0 | BK26: =IFERROR(I26*FINANZAS!$N24,0) -> 0 | BL26: =IFERROR(J26*FINANZAS!$N24,0) -> 0 | BM26: =IFERROR(K26*FINANZAS!$N24,0) -> 0 | BN26: =IFERROR(L26*FINANZAS!$N24,0) -> 0 | BO26: =IFERROR(M26*FINANZAS!$N24,0) -> 0 | BP26: =IFERROR(N26*FINANZAS!$N24,0) -> 0 | BQ26: =IFERROR(O26*FINANZAS!$N24,0) -> 0
C27: =IF(FINANZAS!C25="","",FINANZAS!C25) ->  | P27: 0 | S27: =IFERROR(D27*FINANZAS!$K25,0) -> 0 | T27: =IFERROR(E27*FINANZAS!$K25,0) -> 0 | U27: =IFERROR(F27*FINANZAS!$K25,0) -> 0 | V27: =IFERROR(G27*FINANZAS!$K25,0) -> 0 | W27: =IFERROR(H27*FINANZAS!$K25,0) -> 0 | X27: =IFERROR(I27*FINANZAS!$K25,0) -> 0 | Y27: =IFERROR(J27*FINANZAS!$K25,0) -> 0 | Z27: =IFERROR(K27*FINANZAS!$K25,0) -> 0 | AA27: =IFERROR(L27*FINANZAS!$K25,0) -> 0 | AB27: =IFERROR(M27*FINANZAS!$K25,0) -> 0 | AC27: =IFERROR(N27*FINANZAS!$K25,0) -> 0 | AD27: =IFERROR(O27*FINANZAS!$K25,0) -> 0 | AF27: =IFERROR(D27*FINANZAS!$G25,0) -> 0 | AG27: =IFERROR(E27*FINANZAS!$G25,0) -> 0 | AH27: =IFERROR(F27*FINANZAS!$G25,0) -> 0 | AI27: =IFERROR(G27*FINANZAS!$G25,0) -> 0 | AJ27: =IFERROR(H27*FINANZAS!$G25,0) -> 0 | AK27: =IFERROR(I27*FINANZAS!$G25,0) -> 0 | AL27: =IFERROR(J27*FINANZAS!$G25,0) -> 0 | AM27: =IFERROR(K27*FINANZAS!$G25,0) -> 0 | AN27: =IFERROR(L27*FINANZAS!$G25,0) -> 0 | AO27: =IFERROR(M27*FINANZAS!$G25,0) -> 0 | AP27: =IFERROR(N27*FINANZAS!$G25,0) -> 0 | AQ27: =IFERROR(O27*FINANZAS!$G25,0) -> 0 | AS27: =S27*FINANZAS!$J25 -> 0 | AT27: =T27*FINANZAS!$J25 -> 0 | AU27: =U27*FINANZAS!$J25 -> 0 | AV27: =V27*FINANZAS!$J25 -> 0 | AW27: =W27*FINANZAS!$J25 -> 0 | AX27: =X27*FINANZAS!$J25 -> 0 | AY27: =Y27*FINANZAS!$J25 -> 0 | AZ27: =Z27*FINANZAS!$J25 -> 0 | BA27: =AA27*FINANZAS!$J25 -> 0 | BB27: =AB27*FINANZAS!$J25 -> 0 | BC27: =AC27*FINANZAS!$J25 -> 0 | BD27: =AD27*FINANZAS!$J25 -> 0 | BF27: =IFERROR(D27*FINANZAS!$N25,0) -> 0 | BG27: =IFERROR(E27*FINANZAS!$N25,0) -> 0 | BH27: =IFERROR(F27*FINANZAS!$N25,0) -> 0 | BI27: =IFERROR(G27*FINANZAS!$N25,0) -> 0 | BJ27: =IFERROR(H27*FINANZAS!$N25,0) -> 0 | BK27: =IFERROR(I27*FINANZAS!$N25,0) -> 0 | BL27: =IFERROR(J27*FINANZAS!$N25,0) -> 0 | BM27: =IFERROR(K27*FINANZAS!$N25,0) -> 0 | BN27: =IFERROR(L27*FINANZAS!$N25,0) -> 0 | BO27: =IFERROR(M27*FINANZAS!$N25,0) -> 0 | BP27: =IFERROR(N27*FINANZAS!$N25,0) -> 0 | BQ27: =IFERROR(O27*FINANZAS!$N25,0) -> 0
C28: =IF(FINANZAS!C26="","",FINANZAS!C26) ->  | P28: 0 | S28: =IFERROR(D28*FINANZAS!$K26,0) -> 0 | T28: =IFERROR(E28*FINANZAS!$K26,0) -> 0 | U28: =IFERROR(F28*FINANZAS!$K26,0) -> 0 | V28: =IFERROR(G28*FINANZAS!$K26,0) -> 0 | W28: =IFERROR(H28*FINANZAS!$K26,0) -> 0 | X28: =IFERROR(I28*FINANZAS!$K26,0) -> 0 | Y28: =IFERROR(J28*FINANZAS!$K26,0) -> 0 | Z28: =IFERROR(K28*FINANZAS!$K26,0) -> 0 | AA28: =IFERROR(L28*FINANZAS!$K26,0) -> 0 | AB28: =IFERROR(M28*FINANZAS!$K26,0) -> 0 | AC28: =IFERROR(N28*FINANZAS!$K26,0) -> 0 | AD28: =IFERROR(O28*FINANZAS!$K26,0) -> 0 | AF28: =IFERROR(D28*FINANZAS!$G26,0) -> 0 | AG28: =IFERROR(E28*FINANZAS!$G26,0) -> 0 | AH28: =IFERROR(F28*FINANZAS!$G26,0) -> 0 | AI28: =IFERROR(G28*FINANZAS!$G26,0) -> 0 | AJ28: =IFERROR(H28*FINANZAS!$G26,0) -> 0 | AK28: =IFERROR(I28*FINANZAS!$G26,0) -> 0 | AL28: =IFERROR(J28*FINANZAS!$G26,0) -> 0 | AM28: =IFERROR(K28*FINANZAS!$G26,0) -> 0 | AN28: =IFERROR(L28*FINANZAS!$G26,0) -> 0 | AO28: =IFERROR(M28*FINANZAS!$G26,0) -> 0 | AP28: =IFERROR(N28*FINANZAS!$G26,0) -> 0 | AQ28: =IFERROR(O28*FINANZAS!$G26,0) -> 0 | AS28: =S28*FINANZAS!$J26 -> 0 | AT28: =T28*FINANZAS!$J26 -> 0 | AU28: =U28*FINANZAS!$J26 -> 0 | AV28: =V28*FINANZAS!$J26 -> 0 | AW28: =W28*FINANZAS!$J26 -> 0 | AX28: =X28*FINANZAS!$J26 -> 0 | AY28: =Y28*FINANZAS!$J26 -> 0 | AZ28: =Z28*FINANZAS!$J26 -> 0 | BA28: =AA28*FINANZAS!$J26 -> 0 | BB28: =AB28*FINANZAS!$J26 -> 0 | BC28: =AC28*FINANZAS!$J26 -> 0 | BD28: =AD28*FINANZAS!$J26 -> 0 | BF28: =IFERROR(D28*FINANZAS!$N26,0) -> 0 | BG28: =IFERROR(E28*FINANZAS!$N26,0) -> 0 | BH28: =IFERROR(F28*FINANZAS!$N26,0) -> 0 | BI28: =IFERROR(G28*FINANZAS!$N26,0) -> 0 | BJ28: =IFERROR(H28*FINANZAS!$N26,0) -> 0 | BK28: =IFERROR(I28*FINANZAS!$N26,0) -> 0 | BL28: =IFERROR(J28*FINANZAS!$N26,0) -> 0 | BM28: =IFERROR(K28*FINANZAS!$N26,0) -> 0 | BN28: =IFERROR(L28*FINANZAS!$N26,0) -> 0 | BO28: =IFERROR(M28*FINANZAS!$N26,0) -> 0 | BP28: =IFERROR(N28*FINANZAS!$N26,0) -> 0 | BQ28: =IFERROR(O28*FINANZAS!$N26,0) -> 0
C29: =IF(FINANZAS!C27="","",FINANZAS!C27) ->  | P29: 0 | S29: =IFERROR(D29*FINANZAS!$K27,0) -> 0 | T29: =IFERROR(E29*FINANZAS!$K27,0) -> 0 | U29: =IFERROR(F29*FINANZAS!$K27,0) -> 0 | V29: =IFERROR(G29*FINANZAS!$K27,0) -> 0 | W29: =IFERROR(H29*FINANZAS!$K27,0) -> 0 | X29: =IFERROR(I29*FINANZAS!$K27,0) -> 0 | Y29: =IFERROR(J29*FINANZAS!$K27,0) -> 0 | Z29: =IFERROR(K29*FINANZAS!$K27,0) -> 0 | AA29: =IFERROR(L29*FINANZAS!$K27,0) -> 0 | AB29: =IFERROR(M29*FINANZAS!$K27,0) -> 0 | AC29: =IFERROR(N29*FINANZAS!$K27,0) -> 0 | AD29: =IFERROR(O29*FINANZAS!$K27,0) -> 0 | AF29: =IFERROR(D29*FINANZAS!$G27,0) -> 0 | AG29: =IFERROR(E29*FINANZAS!$G27,0) -> 0 | AH29: =IFERROR(F29*FINANZAS!$G27,0) -> 0 | AI29: =IFERROR(G29*FINANZAS!$G27,0) -> 0 | AJ29: =IFERROR(H29*FINANZAS!$G27,0) -> 0 | AK29: =IFERROR(I29*FINANZAS!$G27,0) -> 0 | AL29: =IFERROR(J29*FINANZAS!$G27,0) -> 0 | AM29: =IFERROR(K29*FINANZAS!$G27,0) -> 0 | AN29: =IFERROR(L29*FINANZAS!$G27,0) -> 0 | AO29: =IFERROR(M29*FINANZAS!$G27,0) -> 0 | AP29: =IFERROR(N29*FINANZAS!$G27,0) -> 0 | AQ29: =IFERROR(O29*FINANZAS!$G27,0) -> 0 | AS29: =S29*FINANZAS!$J27 -> 0 | AT29: =T29*FINANZAS!$J27 -> 0 | AU29: =U29*FINANZAS!$J27 -> 0 | AV29: =V29*FINANZAS!$J27 -> 0 | AW29: =W29*FINANZAS!$J27 -> 0 | AX29: =X29*FINANZAS!$J27 -> 0 | AY29: =Y29*FINANZAS!$J27 -> 0 | AZ29: =Z29*FINANZAS!$J27 -> 0 | BA29: =AA29*FINANZAS!$J27 -> 0 | BB29: =AB29*FINANZAS!$J27 -> 0 | BC29: =AC29*FINANZAS!$J27 -> 0 | BD29: =AD29*FINANZAS!$J27 -> 0 | BF29: =IFERROR(D29*FINANZAS!$N27,0) -> 0 | BG29: =IFERROR(E29*FINANZAS!$N27,0) -> 0 | BH29: =IFERROR(F29*FINANZAS!$N27,0) -> 0 | BI29: =IFERROR(G29*FINANZAS!$N27,0) -> 0 | BJ29: =IFERROR(H29*FINANZAS!$N27,0) -> 0 | BK29: =IFERROR(I29*FINANZAS!$N27,0) -> 0 | BL29: =IFERROR(J29*FINANZAS!$N27,0) -> 0 | BM29: =IFERROR(K29*FINANZAS!$N27,0) -> 0 | BN29: =IFERROR(L29*FINANZAS!$N27,0) -> 0 | BO29: =IFERROR(M29*FINANZAS!$N27,0) -> 0 | BP29: =IFERROR(N29*FINANZAS!$N27,0) -> 0 | BQ29: =IFERROR(O29*FINANZAS!$N27,0) -> 0
C30: =IF(FINANZAS!C28="","",FINANZAS!C28) ->  | P30: 0 | S30: =IFERROR(D30*FINANZAS!$K28,0) -> 0 | T30: =IFERROR(E30*FINANZAS!$K28,0) -> 0 | U30: =IFERROR(F30*FINANZAS!$K28,0) -> 0 | V30: =IFERROR(G30*FINANZAS!$K28,0) -> 0 | W30: =IFERROR(H30*FINANZAS!$K28,0) -> 0 | X30: =IFERROR(I30*FINANZAS!$K28,0) -> 0 | Y30: =IFERROR(J30*FINANZAS!$K28,0) -> 0 | Z30: =IFERROR(K30*FINANZAS!$K28,0) -> 0 | AA30: =IFERROR(L30*FINANZAS!$K28,0) -> 0 | AB30: =IFERROR(M30*FINANZAS!$K28,0) -> 0 | AC30: =IFERROR(N30*FINANZAS!$K28,0) -> 0 | AD30: =IFERROR(O30*FINANZAS!$K28,0) -> 0 | AF30: =IFERROR(D30*FINANZAS!$G28,0) -> 0 | AG30: =IFERROR(E30*FINANZAS!$G28,0) -> 0 | AH30: =IFERROR(F30*FINANZAS!$G28,0) -> 0 | AI30: =IFERROR(G30*FINANZAS!$G28,0) -> 0 | AJ30: =IFERROR(H30*FINANZAS!$G28,0) -> 0 | AK30: =IFERROR(I30*FINANZAS!$G28,0) -> 0 | AL30: =IFERROR(J30*FINANZAS!$G28,0) -> 0 | AM30: =IFERROR(K30*FINANZAS!$G28,0) -> 0 | AN30: =IFERROR(L30*FINANZAS!$G28,0) -> 0 | AO30: =IFERROR(M30*FINANZAS!$G28,0) -> 0 | AP30: =IFERROR(N30*FINANZAS!$G28,0) -> 0 | AQ30: =IFERROR(O30*FINANZAS!$G28,0) -> 0 | AS30: =S30*FINANZAS!$J28 -> 0 | AT30: =T30*FINANZAS!$J28 -> 0 | AU30: =U30*FINANZAS!$J28 -> 0 | AV30: =V30*FINANZAS!$J28 -> 0 | AW30: =W30*FINANZAS!$J28 -> 0 | AX30: =X30*FINANZAS!$J28 -> 0 | AY30: =Y30*FINANZAS!$J28 -> 0 | AZ30: =Z30*FINANZAS!$J28 -> 0 | BA30: =AA30*FINANZAS!$J28 -> 0 | BB30: =AB30*FINANZAS!$J28 -> 0 | BC30: =AC30*FINANZAS!$J28 -> 0 | BD30: =AD30*FINANZAS!$J28 -> 0 | BF30: =IFERROR(D30*FINANZAS!$N28,0) -> 0 | BG30: =IFERROR(E30*FINANZAS!$N28,0) -> 0 | BH30: =IFERROR(F30*FINANZAS!$N28,0) -> 0 | BI30: =IFERROR(G30*FINANZAS!$N28,0) -> 0 | BJ30: =IFERROR(H30*FINANZAS!$N28,0) -> 0 | BK30: =IFERROR(I30*FINANZAS!$N28,0) -> 0 | BL30: =IFERROR(J30*FINANZAS!$N28,0) -> 0 | BM30: =IFERROR(K30*FINANZAS!$N28,0) -> 0 | BN30: =IFERROR(L30*FINANZAS!$N28,0) -> 0 | BO30: =IFERROR(M30*FINANZAS!$N28,0) -> 0 | BP30: =IFERROR(N30*FINANZAS!$N28,0) -> 0 | BQ30: =IFERROR(O30*FINANZAS!$N28,0) -> 0
C31: =IF(FINANZAS!C29="","",FINANZAS!C29) ->  | P31: 0 | S31: =IFERROR(D31*FINANZAS!$K29,0) -> 0 | T31: =IFERROR(E31*FINANZAS!$K29,0) -> 0 | U31: =IFERROR(F31*FINANZAS!$K29,0) -> 0 | V31: =IFERROR(G31*FINANZAS!$K29,0) -> 0 | W31: =IFERROR(H31*FINANZAS!$K29,0) -> 0 | X31: =IFERROR(I31*FINANZAS!$K29,0) -> 0 | Y31: =IFERROR(J31*FINANZAS!$K29,0) -> 0 | Z31: =IFERROR(K31*FINANZAS!$K29,0) -> 0 | AA31: =IFERROR(L31*FINANZAS!$K29,0) -> 0 | AB31: =IFERROR(M31*FINANZAS!$K29,0) -> 0 | AC31: =IFERROR(N31*FINANZAS!$K29,0) -> 0 | AD31: =IFERROR(O31*FINANZAS!$K29,0) -> 0 | AF31: =IFERROR(D31*FINANZAS!$G29,0) -> 0 | AG31: =IFERROR(E31*FINANZAS!$G29,0) -> 0 | AH31: =IFERROR(F31*FINANZAS!$G29,0) -> 0 | AI31: =IFERROR(G31*FINANZAS!$G29,0) -> 0 | AJ31: =IFERROR(H31*FINANZAS!$G29,0) -> 0 | AK31: =IFERROR(I31*FINANZAS!$G29,0) -> 0 | AL31: =IFERROR(J31*FINANZAS!$G29,0) -> 0 | AM31: =IFERROR(K31*FINANZAS!$G29,0) -> 0 | AN31: =IFERROR(L31*FINANZAS!$G29,0) -> 0 | AO31: =IFERROR(M31*FINANZAS!$G29,0) -> 0 | AP31: =IFERROR(N31*FINANZAS!$G29,0) -> 0 | AQ31: =IFERROR(O31*FINANZAS!$G29,0) -> 0 | AS31: =S31*FINANZAS!$J29 -> 0 | AT31: =T31*FINANZAS!$J29 -> 0 | AU31: =U31*FINANZAS!$J29 -> 0 | AV31: =V31*FINANZAS!$J29 -> 0 | AW31: =W31*FINANZAS!$J29 -> 0 | AX31: =X31*FINANZAS!$J29 -> 0 | AY31: =Y31*FINANZAS!$J29 -> 0 | AZ31: =Z31*FINANZAS!$J29 -> 0 | BA31: =AA31*FINANZAS!$J29 -> 0 | BB31: =AB31*FINANZAS!$J29 -> 0 | BC31: =AC31*FINANZAS!$J29 -> 0 | BD31: =AD31*FINANZAS!$J29 -> 0 | BF31: =IFERROR(D31*FINANZAS!$N29,0) -> 0 | BG31: =IFERROR(E31*FINANZAS!$N29,0) -> 0 | BH31: =IFERROR(F31*FINANZAS!$N29,0) -> 0 | BI31: =IFERROR(G31*FINANZAS!$N29,0) -> 0 | BJ31: =IFERROR(H31*FINANZAS!$N29,0) -> 0 | BK31: =IFERROR(I31*FINANZAS!$N29,0) -> 0 | BL31: =IFERROR(J31*FINANZAS!$N29,0) -> 0 | BM31: =IFERROR(K31*FINANZAS!$N29,0) -> 0 | BN31: =IFERROR(L31*FINANZAS!$N29,0) -> 0 | BO31: =IFERROR(M31*FINANZAS!$N29,0) -> 0 | BP31: =IFERROR(N31*FINANZAS!$N29,0) -> 0 | BQ31: =IFERROR(O31*FINANZAS!$N29,0) -> 0
C32: =IF(FINANZAS!C30="","",FINANZAS!C30) ->  | P32: 0 | S32: =IFERROR(D32*FINANZAS!$K30,0) -> 0 | T32: =IFERROR(E32*FINANZAS!$K30,0) -> 0 | U32: =IFERROR(F32*FINANZAS!$K30,0) -> 0 | V32: =IFERROR(G32*FINANZAS!$K30,0) -> 0 | W32: =IFERROR(H32*FINANZAS!$K30,0) -> 0 | X32: =IFERROR(I32*FINANZAS!$K30,0) -> 0 | Y32: =IFERROR(J32*FINANZAS!$K30,0) -> 0 | Z32: =IFERROR(K32*FINANZAS!$K30,0) -> 0 | AA32: =IFERROR(L32*FINANZAS!$K30,0) -> 0 | AB32: =IFERROR(M32*FINANZAS!$K30,0) -> 0 | AC32: =IFERROR(N32*FINANZAS!$K30,0) -> 0 | AD32: =IFERROR(O32*FINANZAS!$K30,0) -> 0 | AF32: =IFERROR(D32*FINANZAS!$G30,0) -> 0 | AG32: =IFERROR(E32*FINANZAS!$G30,0) -> 0 | AH32: =IFERROR(F32*FINANZAS!$G30,0) -> 0 | AI32: =IFERROR(G32*FINANZAS!$G30,0) -> 0 | AJ32: =IFERROR(H32*FINANZAS!$G30,0) -> 0 | AK32: =IFERROR(I32*FINANZAS!$G30,0) -> 0 | AL32: =IFERROR(J32*FINANZAS!$G30,0) -> 0 | AM32: =IFERROR(K32*FINANZAS!$G30,0) -> 0 | AN32: =IFERROR(L32*FINANZAS!$G30,0) -> 0 | AO32: =IFERROR(M32*FINANZAS!$G30,0) -> 0 | AP32: =IFERROR(N32*FINANZAS!$G30,0) -> 0 | AQ32: =IFERROR(O32*FINANZAS!$G30,0) -> 0 | AS32: =S32*FINANZAS!$J30 -> 0 | AT32: =T32*FINANZAS!$J30 -> 0 | AU32: =U32*FINANZAS!$J30 -> 0 | AV32: =V32*FINANZAS!$J30 -> 0 | AW32: =W32*FINANZAS!$J30 -> 0 | AX32: =X32*FINANZAS!$J30 -> 0 | AY32: =Y32*FINANZAS!$J30 -> 0 | AZ32: =Z32*FINANZAS!$J30 -> 0 | BA32: =AA32*FINANZAS!$J30 -> 0 | BB32: =AB32*FINANZAS!$J30 -> 0 | BC32: =AC32*FINANZAS!$J30 -> 0 | BD32: =AD32*FINANZAS!$J30 -> 0 | BF32: =IFERROR(D32*FINANZAS!$N30,0) -> 0 | BG32: =IFERROR(E32*FINANZAS!$N30,0) -> 0 | BH32: =IFERROR(F32*FINANZAS!$N30,0) -> 0 | BI32: =IFERROR(G32*FINANZAS!$N30,0) -> 0 | BJ32: =IFERROR(H32*FINANZAS!$N30,0) -> 0 | BK32: =IFERROR(I32*FINANZAS!$N30,0) -> 0 | BL32: =IFERROR(J32*FINANZAS!$N30,0) -> 0 | BM32: =IFERROR(K32*FINANZAS!$N30,0) -> 0 | BN32: =IFERROR(L32*FINANZAS!$N30,0) -> 0 | BO32: =IFERROR(M32*FINANZAS!$N30,0) -> 0 | BP32: =IFERROR(N32*FINANZAS!$N30,0) -> 0 | BQ32: =IFERROR(O32*FINANZAS!$N30,0) -> 0
C33: =IF(FINANZAS!C31="","",FINANZAS!C31) ->  | P33: 0 | S33: =IFERROR(D33*FINANZAS!$K31,0) -> 0 | T33: =IFERROR(E33*FINANZAS!$K31,0) -> 0 | U33: =IFERROR(F33*FINANZAS!$K31,0) -> 0 | V33: =IFERROR(G33*FINANZAS!$K31,0) -> 0 | W33: =IFERROR(H33*FINANZAS!$K31,0) -> 0 | X33: =IFERROR(I33*FINANZAS!$K31,0) -> 0 | Y33: =IFERROR(J33*FINANZAS!$K31,0) -> 0 | Z33: =IFERROR(K33*FINANZAS!$K31,0) -> 0 | AA33: =IFERROR(L33*FINANZAS!$K31,0) -> 0 | AB33: =IFERROR(M33*FINANZAS!$K31,0) -> 0 | AC33: =IFERROR(N33*FINANZAS!$K31,0) -> 0 | AD33: =IFERROR(O33*FINANZAS!$K31,0) -> 0 | AF33: =IFERROR(D33*FINANZAS!$G31,0) -> 0 | AG33: =IFERROR(E33*FINANZAS!$G31,0) -> 0 | AH33: =IFERROR(F33*FINANZAS!$G31,0) -> 0 | AI33: =IFERROR(G33*FINANZAS!$G31,0) -> 0 | AJ33: =IFERROR(H33*FINANZAS!$G31,0) -> 0 | AK33: =IFERROR(I33*FINANZAS!$G31,0) -> 0 | AL33: =IFERROR(J33*FINANZAS!$G31,0) -> 0 | AM33: =IFERROR(K33*FINANZAS!$G31,0) -> 0 | AN33: =IFERROR(L33*FINANZAS!$G31,0) -> 0 | AO33: =IFERROR(M33*FINANZAS!$G31,0) -> 0 | AP33: =IFERROR(N33*FINANZAS!$G31,0) -> 0 | AQ33: =IFERROR(O33*FINANZAS!$G31,0) -> 0 | AS33: =S33*FINANZAS!$J31 -> 0 | AT33: =T33*FINANZAS!$J31 -> 0 | AU33: =U33*FINANZAS!$J31 -> 0 | AV33: =V33*FINANZAS!$J31 -> 0 | AW33: =W33*FINANZAS!$J31 -> 0 | AX33: =X33*FINANZAS!$J31 -> 0 | AY33: =Y33*FINANZAS!$J31 -> 0 | AZ33: =Z33*FINANZAS!$J31 -> 0 | BA33: =AA33*FINANZAS!$J31 -> 0 | BB33: =AB33*FINANZAS!$J31 -> 0 | BC33: =AC33*FINANZAS!$J31 -> 0 | BD33: =AD33*FINANZAS!$J31 -> 0 | BF33: =IFERROR(D33*FINANZAS!$N31,0) -> 0 | BG33: =IFERROR(E33*FINANZAS!$N31,0) -> 0 | BH33: =IFERROR(F33*FINANZAS!$N31,0) -> 0 | BI33: =IFERROR(G33*FINANZAS!$N31,0) -> 0 | BJ33: =IFERROR(H33*FINANZAS!$N31,0) -> 0 | BK33: =IFERROR(I33*FINANZAS!$N31,0) -> 0 | BL33: =IFERROR(J33*FINANZAS!$N31,0) -> 0 | BM33: =IFERROR(K33*FINANZAS!$N31,0) -> 0 | BN33: =IFERROR(L33*FINANZAS!$N31,0) -> 0 | BO33: =IFERROR(M33*FINANZAS!$N31,0) -> 0 | BP33: =IFERROR(N33*FINANZAS!$N31,0) -> 0 | BQ33: =IFERROR(O33*FINANZAS!$N31,0) -> 0
C34: =IF(FINANZAS!C32="","",FINANZAS!C32) ->  | P34: 0 | S34: =IFERROR(D34*FINANZAS!$K32,0) -> 0 | T34: =IFERROR(E34*FINANZAS!$K32,0) -> 0 | U34: =IFERROR(F34*FINANZAS!$K32,0) -> 0 | V34: =IFERROR(G34*FINANZAS!$K32,0) -> 0 | W34: =IFERROR(H34*FINANZAS!$K32,0) -> 0 | X34: =IFERROR(I34*FINANZAS!$K32,0) -> 0 | Y34: =IFERROR(J34*FINANZAS!$K32,0) -> 0 | Z34: =IFERROR(K34*FINANZAS!$K32,0) -> 0 | AA34: =IFERROR(L34*FINANZAS!$K32,0) -> 0 | AB34: =IFERROR(M34*FINANZAS!$K32,0) -> 0 | AC34: =IFERROR(N34*FINANZAS!$K32,0) -> 0 | AD34: =IFERROR(O34*FINANZAS!$K32,0) -> 0 | AF34: =IFERROR(D34*FINANZAS!$G32,0) -> 0 | AG34: =IFERROR(E34*FINANZAS!$G32,0) -> 0 | AH34: =IFERROR(F34*FINANZAS!$G32,0) -> 0 | AI34: =IFERROR(G34*FINANZAS!$G32,0) -> 0 | AJ34: =IFERROR(H34*FINANZAS!$G32,0) -> 0 | AK34: =IFERROR(I34*FINANZAS!$G32,0) -> 0 | AL34: =IFERROR(J34*FINANZAS!$G32,0) -> 0 | AM34: =IFERROR(K34*FINANZAS!$G32,0) -> 0 | AN34: =IFERROR(L34*FINANZAS!$G32,0) -> 0 | AO34: =IFERROR(M34*FINANZAS!$G32,0) -> 0 | AP34: =IFERROR(N34*FINANZAS!$G32,0) -> 0 | AQ34: =IFERROR(O34*FINANZAS!$G32,0) -> 0 | AS34: =S34*FINANZAS!$J32 -> 0 | AT34: =T34*FINANZAS!$J32 -> 0 | AU34: =U34*FINANZAS!$J32 -> 0 | AV34: =V34*FINANZAS!$J32 -> 0 | AW34: =W34*FINANZAS!$J32 -> 0 | AX34: =X34*FINANZAS!$J32 -> 0 | AY34: =Y34*FINANZAS!$J32 -> 0 | AZ34: =Z34*FINANZAS!$J32 -> 0 | BA34: =AA34*FINANZAS!$J32 -> 0 | BB34: =AB34*FINANZAS!$J32 -> 0 | BC34: =AC34*FINANZAS!$J32 -> 0 | BD34: =AD34*FINANZAS!$J32 -> 0 | BF34: =IFERROR(D34*FINANZAS!$N32,0) -> 0 | BG34: =IFERROR(E34*FINANZAS!$N32,0) -> 0 | BH34: =IFERROR(F34*FINANZAS!$N32,0) -> 0 | BI34: =IFERROR(G34*FINANZAS!$N32,0) -> 0 | BJ34: =IFERROR(H34*FINANZAS!$N32,0) -> 0 | BK34: =IFERROR(I34*FINANZAS!$N32,0) -> 0 | BL34: =IFERROR(J34*FINANZAS!$N32,0) -> 0 | BM34: =IFERROR(K34*FINANZAS!$N32,0) -> 0 | BN34: =IFERROR(L34*FINANZAS!$N32,0) -> 0 | BO34: =IFERROR(M34*FINANZAS!$N32,0) -> 0 | BP34: =IFERROR(N34*FINANZAS!$N32,0) -> 0 | BQ34: =IFERROR(O34*FINANZAS!$N32,0) -> 0
C35: =IF(FINANZAS!C33="","",FINANZAS!C33) ->  | P35: 0 | S35: =IFERROR(D35*FINANZAS!$K33,0) -> 0 | T35: =IFERROR(E35*FINANZAS!$K33,0) -> 0 | U35: =IFERROR(F35*FINANZAS!$K33,0) -> 0 | V35: =IFERROR(G35*FINANZAS!$K33,0) -> 0 | W35: =IFERROR(H35*FINANZAS!$K33,0) -> 0 | X35: =IFERROR(I35*FINANZAS!$K33,0) -> 0 | Y35: =IFERROR(J35*FINANZAS!$K33,0) -> 0 | Z35: =IFERROR(K35*FINANZAS!$K33,0) -> 0 | AA35: =IFERROR(L35*FINANZAS!$K33,0) -> 0 | AB35: =IFERROR(M35*FINANZAS!$K33,0) -> 0 | AC35: =IFERROR(N35*FINANZAS!$K33,0) -> 0 | AD35: =IFERROR(O35*FINANZAS!$K33,0) -> 0 | AF35: =IFERROR(D35*FINANZAS!$G33,0) -> 0 | AG35: =IFERROR(E35*FINANZAS!$G33,0) -> 0 | AH35: =IFERROR(F35*FINANZAS!$G33,0) -> 0 | AI35: =IFERROR(G35*FINANZAS!$G33,0) -> 0 | AJ35: =IFERROR(H35*FINANZAS!$G33,0) -> 0 | AK35: =IFERROR(I35*FINANZAS!$G33,0) -> 0 | AL35: =IFERROR(J35*FINANZAS!$G33,0) -> 0 | AM35: =IFERROR(K35*FINANZAS!$G33,0) -> 0 | AN35: =IFERROR(L35*FINANZAS!$G33,0) -> 0 | AO35: =IFERROR(M35*FINANZAS!$G33,0) -> 0 | AP35: =IFERROR(N35*FINANZAS!$G33,0) -> 0 | AQ35: =IFERROR(O35*FINANZAS!$G33,0) -> 0 | AS35: =S35*FINANZAS!$J33 -> 0 | AT35: =T35*FINANZAS!$J33 -> 0 | AU35: =U35*FINANZAS!$J33 -> 0 | AV35: =V35*FINANZAS!$J33 -> 0 | AW35: =W35*FINANZAS!$J33 -> 0 | AX35: =X35*FINANZAS!$J33 -> 0 | AY35: =Y35*FINANZAS!$J33 -> 0 | AZ35: =Z35*FINANZAS!$J33 -> 0 | BA35: =AA35*FINANZAS!$J33 -> 0 | BB35: =AB35*FINANZAS!$J33 -> 0 | BC35: =AC35*FINANZAS!$J33 -> 0 | BD35: =AD35*FINANZAS!$J33 -> 0 | BF35: =IFERROR(D35*FINANZAS!$N33,0) -> 0 | BG35: =IFERROR(E35*FINANZAS!$N33,0) -> 0 | BH35: =IFERROR(F35*FINANZAS!$N33,0) -> 0 | BI35: =IFERROR(G35*FINANZAS!$N33,0) -> 0 | BJ35: =IFERROR(H35*FINANZAS!$N33,0) -> 0 | BK35: =IFERROR(I35*FINANZAS!$N33,0) -> 0 | BL35: =IFERROR(J35*FINANZAS!$N33,0) -> 0 | BM35: =IFERROR(K35*FINANZAS!$N33,0) -> 0 | BN35: =IFERROR(L35*FINANZAS!$N33,0) -> 0 | BO35: =IFERROR(M35*FINANZAS!$N33,0) -> 0 | BP35: =IFERROR(N35*FINANZAS!$N33,0) -> 0 | BQ35: =IFERROR(O35*FINANZAS!$N33,0) -> 0
C36: =IF(FINANZAS!C34="","",FINANZAS!C34) ->  | P36: 0 | S36: =IFERROR(D36*FINANZAS!$K34,0) -> 0 | T36: =IFERROR(E36*FINANZAS!$K34,0) -> 0 | U36: =IFERROR(F36*FINANZAS!$K34,0) -> 0 | V36: =IFERROR(G36*FINANZAS!$K34,0) -> 0 | W36: =IFERROR(H36*FINANZAS!$K34,0) -> 0 | X36: =IFERROR(I36*FINANZAS!$K34,0) -> 0 | Y36: =IFERROR(J36*FINANZAS!$K34,0) -> 0 | Z36: =IFERROR(K36*FINANZAS!$K34,0) -> 0 | AA36: =IFERROR(L36*FINANZAS!$K34,0) -> 0 | AB36: =IFERROR(M36*FINANZAS!$K34,0) -> 0 | AC36: =IFERROR(N36*FINANZAS!$K34,0) -> 0 | AD36: =IFERROR(O36*FINANZAS!$K34,0) -> 0 | AF36: =IFERROR(D36*FINANZAS!$G34,0) -> 0 | AG36: =IFERROR(E36*FINANZAS!$G34,0) -> 0 | AH36: =IFERROR(F36*FINANZAS!$G34,0) -> 0 | AI36: =IFERROR(G36*FINANZAS!$G34,0) -> 0 | AJ36: =IFERROR(H36*FINANZAS!$G34,0) -> 0 | AK36: =IFERROR(I36*FINANZAS!$G34,0) -> 0 | AL36: =IFERROR(J36*FINANZAS!$G34,0) -> 0 | AM36: =IFERROR(K36*FINANZAS!$G34,0) -> 0 | AN36: =IFERROR(L36*FINANZAS!$G34,0) -> 0 | AO36: =IFERROR(M36*FINANZAS!$G34,0) -> 0 | AP36: =IFERROR(N36*FINANZAS!$G34,0) -> 0 | AQ36: =IFERROR(O36*FINANZAS!$G34,0) -> 0 | AS36: =S36*FINANZAS!$J34 -> 0 | AT36: =T36*FINANZAS!$J34 -> 0 | AU36: =U36*FINANZAS!$J34 -> 0 | AV36: =V36*FINANZAS!$J34 -> 0 | AW36: =W36*FINANZAS!$J34 -> 0 | AX36: =X36*FINANZAS!$J34 -> 0 | AY36: =Y36*FINANZAS!$J34 -> 0 | AZ36: =Z36*FINANZAS!$J34 -> 0 | BA36: =AA36*FINANZAS!$J34 -> 0 | BB36: =AB36*FINANZAS!$J34 -> 0 | BC36: =AC36*FINANZAS!$J34 -> 0 | BD36: =AD36*FINANZAS!$J34 -> 0 | BF36: =IFERROR(D36*FINANZAS!$N34,0) -> 0 | BG36: =IFERROR(E36*FINANZAS!$N34,0) -> 0 | BH36: =IFERROR(F36*FINANZAS!$N34,0) -> 0 | BI36: =IFERROR(G36*FINANZAS!$N34,0) -> 0 | BJ36: =IFERROR(H36*FINANZAS!$N34,0) -> 0 | BK36: =IFERROR(I36*FINANZAS!$N34,0) -> 0 | BL36: =IFERROR(J36*FINANZAS!$N34,0) -> 0 | BM36: =IFERROR(K36*FINANZAS!$N34,0) -> 0 | BN36: =IFERROR(L36*FINANZAS!$N34,0) -> 0 | BO36: =IFERROR(M36*FINANZAS!$N34,0) -> 0 | BP36: =IFERROR(N36*FINANZAS!$N34,0) -> 0 | BQ36: =IFERROR(O36*FINANZAS!$N34,0) -> 0
C37: =IF(FINANZAS!C35="","",FINANZAS!C35) ->  | P37: 0 | S37: =IFERROR(D37*FINANZAS!$K35,0) -> 0 | T37: =IFERROR(E37*FINANZAS!$K35,0) -> 0 | U37: =IFERROR(F37*FINANZAS!$K35,0) -> 0 | V37: =IFERROR(G37*FINANZAS!$K35,0) -> 0 | W37: =IFERROR(H37*FINANZAS!$K35,0) -> 0 | X37: =IFERROR(I37*FINANZAS!$K35,0) -> 0 | Y37: =IFERROR(J37*FINANZAS!$K35,0) -> 0 | Z37: =IFERROR(K37*FINANZAS!$K35,0) -> 0 | AA37: =IFERROR(L37*FINANZAS!$K35,0) -> 0 | AB37: =IFERROR(M37*FINANZAS!$K35,0) -> 0 | AC37: =IFERROR(N37*FINANZAS!$K35,0) -> 0 | AD37: =IFERROR(O37*FINANZAS!$K35,0) -> 0 | AF37: =IFERROR(D37*FINANZAS!$G35,0) -> 0 | AG37: =IFERROR(E37*FINANZAS!$G35,0) -> 0 | AH37: =IFERROR(F37*FINANZAS!$G35,0) -> 0 | AI37: =IFERROR(G37*FINANZAS!$G35,0) -> 0 | AJ37: =IFERROR(H37*FINANZAS!$G35,0) -> 0 | AK37: =IFERROR(I37*FINANZAS!$G35,0) -> 0 | AL37: =IFERROR(J37*FINANZAS!$G35,0) -> 0 | AM37: =IFERROR(K37*FINANZAS!$G35,0) -> 0 | AN37: =IFERROR(L37*FINANZAS!$G35,0) -> 0 | AO37: =IFERROR(M37*FINANZAS!$G35,0) -> 0 | AP37: =IFERROR(N37*FINANZAS!$G35,0) -> 0 | AQ37: =IFERROR(O37*FINANZAS!$G35,0) -> 0 | AS37: =S37*FINANZAS!$J35 -> 0 | AT37: =T37*FINANZAS!$J35 -> 0 | AU37: =U37*FINANZAS!$J35 -> 0 | AV37: =V37*FINANZAS!$J35 -> 0 | AW37: =W37*FINANZAS!$J35 -> 0 | AX37: =X37*FINANZAS!$J35 -> 0 | AY37: =Y37*FINANZAS!$J35 -> 0 | AZ37: =Z37*FINANZAS!$J35 -> 0 | BA37: =AA37*FINANZAS!$J35 -> 0 | BB37: =AB37*FINANZAS!$J35 -> 0 | BC37: =AC37*FINANZAS!$J35 -> 0 | BD37: =AD37*FINANZAS!$J35 -> 0 | BF37: =IFERROR(D37*FINANZAS!$N35,0) -> 0 | BG37: =IFERROR(E37*FINANZAS!$N35,0) -> 0 | BH37: =IFERROR(F37*FINANZAS!$N35,0) -> 0 | BI37: =IFERROR(G37*FINANZAS!$N35,0) -> 0 | BJ37: =IFERROR(H37*FINANZAS!$N35,0) -> 0 | BK37: =IFERROR(I37*FINANZAS!$N35,0) -> 0 | BL37: =IFERROR(J37*FINANZAS!$N35,0) -> 0 | BM37: =IFERROR(K37*FINANZAS!$N35,0) -> 0 | BN37: =IFERROR(L37*FINANZAS!$N35,0) -> 0 | BO37: =IFERROR(M37*FINANZAS!$N35,0) -> 0 | BP37: =IFERROR(N37*FINANZAS!$N35,0) -> 0 | BQ37: =IFERROR(O37*FINANZAS!$N35,0) -> 0
C38: =IF(FINANZAS!C36="","",FINANZAS!C36) ->  | P38: 0 | S38: =IFERROR(D38*FINANZAS!$K36,0) -> 0 | T38: =IFERROR(E38*FINANZAS!$K36,0) -> 0 | U38: =IFERROR(F38*FINANZAS!$K36,0) -> 0 | V38: =IFERROR(G38*FINANZAS!$K36,0) -> 0 | W38: =IFERROR(H38*FINANZAS!$K36,0) -> 0 | X38: =IFERROR(I38*FINANZAS!$K36,0) -> 0 | Y38: =IFERROR(J38*FINANZAS!$K36,0) -> 0 | Z38: =IFERROR(K38*FINANZAS!$K36,0) -> 0 | AA38: =IFERROR(L38*FINANZAS!$K36,0) -> 0 | AB38: =IFERROR(M38*FINANZAS!$K36,0) -> 0 | AC38: =IFERROR(N38*FINANZAS!$K36,0) -> 0 | AD38: =IFERROR(O38*FINANZAS!$K36,0) -> 0 | AF38: =IFERROR(D38*FINANZAS!$G36,0) -> 0 | AG38: =IFERROR(E38*FINANZAS!$G36,0) -> 0 | AH38: =IFERROR(F38*FINANZAS!$G36,0) -> 0 | AI38: =IFERROR(G38*FINANZAS!$G36,0) -> 0 | AJ38: =IFERROR(H38*FINANZAS!$G36,0) -> 0 | AK38: =IFERROR(I38*FINANZAS!$G36,0) -> 0 | AL38: =IFERROR(J38*FINANZAS!$G36,0) -> 0 | AM38: =IFERROR(K38*FINANZAS!$G36,0) -> 0 | AN38: =IFERROR(L38*FINANZAS!$G36,0) -> 0 | AO38: =IFERROR(M38*FINANZAS!$G36,0) -> 0 | AP38: =IFERROR(N38*FINANZAS!$G36,0) -> 0 | AQ38: =IFERROR(O38*FINANZAS!$G36,0) -> 0 | AS38: =S38*FINANZAS!$J36 -> 0 | AT38: =T38*FINANZAS!$J36 -> 0 | AU38: =U38*FINANZAS!$J36 -> 0 | AV38: =V38*FINANZAS!$J36 -> 0 | AW38: =W38*FINANZAS!$J36 -> 0 | AX38: =X38*FINANZAS!$J36 -> 0 | AY38: =Y38*FINANZAS!$J36 -> 0 | AZ38: =Z38*FINANZAS!$J36 -> 0 | BA38: =AA38*FINANZAS!$J36 -> 0 | BB38: =AB38*FINANZAS!$J36 -> 0 | BC38: =AC38*FINANZAS!$J36 -> 0 | BD38: =AD38*FINANZAS!$J36 -> 0 | BF38: =IFERROR(D38*FINANZAS!$N36,0) -> 0 | BG38: =IFERROR(E38*FINANZAS!$N36,0) -> 0 | BH38: =IFERROR(F38*FINANZAS!$N36,0) -> 0 | BI38: =IFERROR(G38*FINANZAS!$N36,0) -> 0 | BJ38: =IFERROR(H38*FINANZAS!$N36,0) -> 0 | BK38: =IFERROR(I38*FINANZAS!$N36,0) -> 0 | BL38: =IFERROR(J38*FINANZAS!$N36,0) -> 0 | BM38: =IFERROR(K38*FINANZAS!$N36,0) -> 0 | BN38: =IFERROR(L38*FINANZAS!$N36,0) -> 0 | BO38: =IFERROR(M38*FINANZAS!$N36,0) -> 0 | BP38: =IFERROR(N38*FINANZAS!$N36,0) -> 0 | BQ38: =IFERROR(O38*FINANZAS!$N36,0) -> 0

Sheet PROJ2
C4: Seleccione el año -> | D4: resumen | E4: 1 año | F4: 2 años | G4: 3 años | H4: 4 años | I4: 5 años
C6: Proyecte una cantidad de ventas realizadas por cada producto o servicio en los meses siguientes | S6: Proyección de ingresos | AF6: Los costos variables | AS6: impuestos | BF6: Margen de contribución
C7: Descripción | D7: Enero | E7: Febrero | F7: Marzo | G7: Abril | H7: Mayo | I7: Junio | J7: Julio | K7: Agosto | L7: Septiembre | M7: Octubre | N7: Noviembre | O7: Diciembre | P7: Total | R7: repetición | S7: enero | T7: febrero | U7: marzo | V7: abril | W7: mayo | X7: junio | Y7: julio | Z7: agosto | AA7: septiembre | AB7: octubre | AC7: noviembre | AD7: diciembre | AF7: enero | AG7: febrero | AH7: marzo | AI7: abril | AJ7: mayo | AK7: junio | AL7: julio | AM7: agosto | AN7: septiembre | AO7: octubre | AP7: noviembre | AQ7: diciembre | AS7: enero | AT7: febrero | AU7: marzo | AV7: abril | AW7: mayo | AX7: junio | AY7: julio | AZ7: agosto | BA7: septiembre | BB7: octubre | BC7: noviembre | BD7: diciembre | BF7: enero | BG7: febrero | BH7: marzo | BI7: abril | BJ7: mayo | BK7: junio | BL7: julio | BM7: agosto | BN7: septiembre | BO7: octubre | BP7: noviembre | BQ7: diciembre
C8: =IF(FINANZAS!C6="","",FINANZAS!C6) -> Café Anibalito | D8: 400 | E8: 500 | F8: 400 | G8: 500 | H8: 600 | I8: 700 | J8: 400 | K8: 500 | L8: 500 | M8: 500 | N8: 400 | O8: 700 | P8: =SUM(S8:AD8) -> 2332894.475 | R8: =C8 -> Café Anibalito | S8: =IFERROR(D8*FINANZAS!$K6,0) -> 152976.6869 | T8: =IFERROR(E8*FINANZAS!$K6,0) -> 191220.8586 | U8: =IFERROR(F8*FINANZAS!$K6,0) -> 152976.6869 | V8: =IFERROR(G8*FINANZAS!$K6,0) -> 191220.8586 | W8: =IFERROR(H8*FINANZAS!$K6,0) -> 229465.0303 | X8: =IFERROR(I8*FINANZAS!$K6,0) -> 267709.202 | Y8: =IFERROR(J8*FINANZAS!$K6,0) -> 152976.6869 | Z8: =IFERROR(K8*FINANZAS!$K6,0) -> 191220.8586 | AA8: =IFERROR(L8*FINANZAS!$K6,0) -> 191220.8586 | AB8: =IFERROR(M8*FINANZAS!$K6,0) -> 191220.8586 | AC8: =IFERROR(N8*FINANZAS!$K6,0) -> 152976.6869 | AD8: =IFERROR(O8*FINANZAS!$K6,0) -> 267709.202 | AF8: =IFERROR(D8*FINANZAS!$G6,0) -> 55751.50366 | AG8: =IFERROR(E8*FINANZAS!$G6,0) -> 69689.37958 | AH8: =IFERROR(F8*FINANZAS!$G6,0) -> 55751.50366 | AI8: =IFERROR(G8*FINANZAS!$G6,0) -> 69689.37958 | AJ8: =IFERROR(H8*FINANZAS!$G6,0) -> 83627.25549 | AK8: =IFERROR(I8*FINANZAS!$G6,0) -> 97565.13141 | AL8: =IFERROR(J8*FINANZAS!$G6,0) -> 55751.50366 | AM8: =IFERROR(K8*FINANZAS!$G6,0) -> 69689.37958 | AN8: =IFERROR(L8*FINANZAS!$G6,0) -> 69689.37958 | AO8: =IFERROR(M8*FINANZAS!$G6,0) -> 69689.37958 | AP8: =IFERROR(N8*FINANZAS!$G6,0) -> 55751.50366 | AQ8: =IFERROR(O8*FINANZAS!$G6,0) -> 97565.13141 | AS8: =S8*FINANZAS!$J6 -> 27535.80364 | AT8: =T8*FINANZAS!$J6 -> 34419.75455 | AU8: =U8*FINANZAS!$J6 -> 27535.80364 | AV8: =V8*FINANZAS!$J6 -> 34419.75455 | AW8: =W8*FINANZAS!$J6 -> 41303.70546 | AX8: =X8*FINANZAS!$J6 -> 48187.65637 | AY8: =Y8*FINANZAS!$J6 -> 27535.80364 | AZ8: =Z8*FINANZAS!$J6 -> 34419.75455 | BA8: =AA8*FINANZAS!$J6 -> 34419.75455 | BB8: =AB8*FINANZAS!$J6 -> 34419.75455 | BC8: =AC8*FINANZAS!$J6 -> 27535.80364 | BD8: =AD8*FINANZAS!$J6 -> 48187.65637 | BF8: =IFERROR(D8*FINANZAS!$N6,0) -> 69689.37958 | BG8: =IFERROR(E8*FINANZAS!$N6,0) -> 87111.72447 | BH8: =IFERROR(F8*FINANZAS!$N6,0) -> 69689.37958 | BI8: =IFERROR(G8*FINANZAS!$N6,0) -> 87111.72447 | BJ8: =IFERROR(H8*FINANZAS!$N6,0) -> 104534.0694 | BK8: =IFERROR(I8*FINANZAS!$N6,0) -> 121956.4143 | BL8: =IFERROR(J8*FINANZAS!$N6,0) -> 69689.37958 | BM8: =IFERROR(K8*FINANZAS!$N6,0) -> 87111.72447 | BN8: =IFERROR(L8*FINANZAS!$N6,0) -> 87111.72447 | BO8: =IFERROR(M8*FINANZAS!$N6,0) -> 87111.72447 | BP8: =IFERROR(N8*FINANZAS!$N6,0) -> 69689.37958 | BQ8: =IFERROR(O8*FINANZAS!$N6,0) -> 121956.4143
C9: =IF(FINANZAS!C7="","",FINANZAS!C7) -> café en sobre | D9: 300 | E9: 300 | F9: 300 | G9: 300 | H9: 300 | I9: 300 | J9: 300 | K9: 300 | L9: 300 | M9: 300 | N9: 300 | O9: 300 | P9: =SUM(S9:AD9) -> 131707.3171 | R9: =C9 -> café en sobre | S9: =IFERROR(D9*FINANZAS!$K7,0) -> 10975.60976 | T9: =IFERROR(E9*FINANZAS!$K7,0) -> 10975.60976 | U9: =IFERROR(F9*FINANZAS!$K7,0) -> 10975.60976 | V9: =IFERROR(G9*FINANZAS!$K7,0) -> 10975.60976 | W9: =IFERROR(H9*FINANZAS!$K7,0) -> 10975.60976 | X9: =IFERROR(I9*FINANZAS!$K7,0) -> 10975.60976 | Y9: =IFERROR(J9*FINANZAS!$K7,0) -> 10975.60976 | Z9: =IFERROR(K9*FINANZAS!$K7,0) -> 10975.60976 | AA9: =IFERROR(L9*FINANZAS!$K7,0) -> 10975.60976 | AB9: =IFERROR(M9*FINANZAS!$K7,0) -> 10975.60976 | AC9: =IFERROR(N9*FINANZAS!$K7,0) -> 10975.60976 | AD9: =IFERROR(O9*FINANZAS!$K7,0) -> 10975.60976 | AF9: =IFERROR(D9*FINANZAS!$G7,0) -> 7500 | AG9: =IFERROR(E9*FINANZAS!$G7,0) -> 7500 | AH9: =IFERROR(F9*FINANZAS!$G7,0) -> 7500 | AI9: =IFERROR(G9*FINANZAS!$G7,0) -> 7500 | AJ9: =IFERROR(H9*FINANZAS!$G7,0) -> 7500 | AK9: =IFERROR(I9*FINANZAS!$G7,0) -> 7500 | AL9: =IFERROR(J9*FINANZAS!$G7,0) -> 7500 | AM9: =IFERROR(K9*FINANZAS!$G7,0) -> 7500 | AN9: =IFERROR(L9*FINANZAS!$G7,0) -> 7500 | AO9: =IFERROR(M9*FINANZAS!$G7,0) -> 7500 | AP9: =IFERROR(N9*FINANZAS!$G7,0) -> 7500 | AQ9: =IFERROR(O9*FINANZAS!$G7,0) -> 7500 | AS9: =S9*FINANZAS!$J7 -> 1975.609756 | AT9: =T9*FINANZAS!$J7 -> 1975.609756 | AU9: =U9*FINANZAS!$J7 -> 1975.609756 | AV9: =V9*FINANZAS!$J7 -> 1975.609756 | AW9: =W9*FINANZAS!$J7 -> 1975.609756 | AX9: =X9*FINANZAS!$J7 -> 1975.609756 | AY9: =Y9*FINANZAS!$J7 -> 1975.609756 | AZ9: =Z9*FINANZAS!$J7 -> 1975.609756 | BA9: =AA9*FINANZAS!$J7 -> 1975.609756 | BB9: =AB9*FINANZAS!$J7 -> 1975.609756 | BC9: =AC9*FINANZAS!$J7 -> 1975.609756 | BD9: =AD9*FINANZAS!$J7 -> 1975.609756 | BF9: =IFERROR(D9*FINANZAS!$N7,0) -> 1500 | BG9: =IFERROR(E9*FINANZAS!$N7,0) -> 1500 | BH9: =IFERROR(F9*FINANZAS!$N7,0) -> 1500 | BI9: =IFERROR(G9*FINANZAS!$N7,0) -> 1500 | BJ9: =IFERROR(H9*FINANZAS!$N7,0) -> 1500 | BK9: =IFERROR(I9*FINANZAS!$N7,0) -> 1500 | BL9: =IFERROR(J9*FINANZAS!$N7,0) -> 1500 | BM9: =IFERROR(K9*FINANZAS!$N7,0) -> 1500 | BN9: =IFERROR(L9*FINANZAS!$N7,0) -> 1500 | BO9: =IFERROR(M9*FINANZAS!$N7,0) -> 1500 | BP9: =IFERROR(N9*FINANZAS!$N7,0) -> 1500 | BQ9: =IFERROR(O9*FINANZAS!$N7,0) -> 1500
C10: =IF(FINANZAS!C8="","",FINANZAS!C8) -> 1 | D10: 400 | E10: 500 | F10: 400 | G10: 500 | H10: 600 | I10: 700 | J10: 400 | K10: 500 | L10: 500 | M10: 500 | N10: 400 | O10: 700 | P10: 867214.6394 | R10: 1 | S10: =IFERROR(D10*FINANZAS!$K8,0) -> 56866.53373 | T10: =IFERROR(E10*FINANZAS!$K8,0) -> 71083.16717 | U10: =IFERROR(F10*FINANZAS!$K8,0) -> 56866.53373 | V10: =IFERROR(G10*FINANZAS!$K8,0) -> 71083.16717 | W10: =IFERROR(H10*FINANZAS!$K8,0) -> 85299.8006 | X10: =IFERROR(I10*FINANZAS!$K8,0) -> 99516.43403 | Y10: =IFERROR(J10*FINANZAS!$K8,0) -> 56866.53373 | Z10: =IFERROR(K10*FINANZAS!$K8,0) -> 71083.16717 | AA10: =IFERROR(L10*FINANZAS!$K8,0) -> 71083.16717 | AB10: =IFERROR(M10*FINANZAS!$K8,0) -> 71083.16717 | AC10: =IFERROR(N10*FINANZAS!$K8,0) -> 56866.53373 | AD10: =IFERROR(O10*FINANZAS!$K8,0) -> 99516.43403 | AF10: =IFERROR(D10*FINANZAS!$G8,0) -> 55751.50366 | AG10: =IFERROR(E10*FINANZAS!$G8,0) -> 69689.37958 | AH10: =IFERROR(F10*FINANZAS!$G8,0) -> 55751.50366 | AI10: =IFERROR(G10*FINANZAS!$G8,0) -> 69689.37958 | AJ10: =IFERROR(H10*FINANZAS!$G8,0) -> 83627.25549 | AK10: =IFERROR(I10*FINANZAS!$G8,0) -> 97565.13141 | AL10: =IFERROR(J10*FINANZAS!$G8,0) -> 55751.50366 | AM10: =IFERROR(K10*FINANZAS!$G8,0) -> 69689.37958 | AN10: =IFERROR(L10*FINANZAS!$G8,0) -> 69689.37958 | AO10: =IFERROR(M10*FINANZAS!$G8,0) -> 69689.37958 | AP10: =IFERROR(N10*FINANZAS!$G8,0) -> 55751.50366 | AQ10: =IFERROR(O10*FINANZAS!$G8,0) -> 97565.13141 | AS10: =S10*FINANZAS!$J8 -> 0 | AT10: =T10*FINANZAS!$J8 -> 0 | AU10: =U10*FINANZAS!$J8 -> 0 | AV10: =V10*FINANZAS!$J8 -> 0 | AW10: =W10*FINANZAS!$J8 -> 0 | AX10: =X10*FINANZAS!$J8 -> 0 | AY10: =Y10*FINANZAS!$J8 -> 0 | AZ10: =Z10*FINANZAS!$J8 -> 0 | BA10: =AA10*FINANZAS!$J8 -> 0 | BB10: =AB10*FINANZAS!$J8 -> 0 | BC10: =AC10*FINANZAS!$J8 -> 0 | BD10: =AD10*FINANZAS!$J8 -> 0 | BF10: =IFERROR(D10*FINANZAS!$N8,0) -> 1115.030073 | BG10: =IFERROR(E10*FINANZAS!$N8,0) -> 1393.787592 | BH10: =IFERROR(F10*FINANZAS!$N8,0) -> 1115.030073 | BI10: =IFERROR(G10*FINANZAS!$N8,0) -> 1393.787592 | BJ10: =IFERROR(H10*FINANZAS!$N8,0) -> 1672.54511 | BK10: =IFERROR(I10*FINANZAS!$N8,0) -> 1951.302628 | BL10: =IFERROR(J10*FINANZAS!$N8,0) -> 1115.030073 | BM10: =IFERROR(K10*FINANZAS!$N8,0) -> 1393.787592 | BN10: =IFERROR(L10*FINANZAS!$N8,0) -> 1393.787592 | BO10: =IFERROR(M10*FINANZAS!$N8,0) -> 1393.787592 | BP10: =IFERROR(N10*FINANZAS!$N8,0) -> 1115.030073 | BQ10: =IFERROR(O10*FINANZAS!$N8,0) -> 1951.302628
C11: =IF(FINANZAS!C9="","",FINANZAS!C9) -> 2 | D11: 300 | E11: 300 | F11: 300 | G11: 300 | H11: 300 | I11: 300 | J11: 300 | K11: 300 | L11: 300 | M11: 300 | N11: 300 | O11: 300 | P11: 92700 | R11: 2 | S11: =IFERROR(D11*FINANZAS!$K9,0) -> 7725 | T11: =IFERROR(E11*FINANZAS!$K9,0) -> 7725 | U11: =IFERROR(F11*FINANZAS!$K9,0) -> 7725 | V11: =IFERROR(G11*FINANZAS!$K9,0) -> 7725 | W11: =IFERROR(H11*FINANZAS!$K9,0) -> 7725 | X11: =IFERROR(I11*FINANZAS!$K9,0) -> 7725 | Y11: =IFERROR(J11*FINANZAS!$K9,0) -> 7725 | Z11: =IFERROR(K11*FINANZAS!$K9,0) -> 7725 | AA11: =IFERROR(L11*FINANZAS!$K9,0) -> 7725 | AB11: =IFERROR(M11*FINANZAS!$K9,0) -> 7725 | AC11: =IFERROR(N11*FINANZAS!$K9,0) -> 7725 | AD11: =IFERROR(O11*FINANZAS!$K9,0) -> 7725 | AF11: =IFERROR(D11*FINANZAS!$G9,0) -> 7500 | AG11: =IFERROR(E11*FINANZAS!$G9,0) -> 7500 | AH11: =IFERROR(F11*FINANZAS!$G9,0) -> 7500 | AI11: =IFERROR(G11*FINANZAS!$G9,0) -> 7500 | AJ11: =IFERROR(H11*FINANZAS!$G9,0) -> 7500 | AK11: =IFERROR(I11*FINANZAS!$G9,0) -> 7500 | AL11: =IFERROR(J11*FINANZAS!$G9,0) -> 7500 | AM11: =IFERROR(K11*FINANZAS!$G9,0) -> 7500 | AN11: =IFERROR(L11*FINANZAS!$G9,0) -> 7500 | AO11: =IFERROR(M11*FINANZAS!$G9,0) -> 7500 | AP11: =IFERROR(N11*FINANZAS!$G9,0) -> 7500 | AQ11: =IFERROR(O11*FINANZAS!$G9,0) -> 7500 | AS11: =S11*FINANZAS!$J9 -> 0 | AT11: =T11*FINANZAS!$J9 -> 0 | AU11: =U11*FINANZAS!$J9 -> 0 | AV11: =V11*FINANZAS!$J9 -> 0 | AW11: =W11*FINANZAS!$J9 -> 0 | AX11: =X11*FINANZAS!$J9 -> 0 | AY11: =Y11*FINANZAS!$J9 -> 0 | AZ11: =Z11*FINANZAS!$J9 -> 0 | BA11: =AA11*FINANZAS!$J9 -> 0 | BB11: =AB11*FINANZAS!$J9 -> 0 | BC11: =AC11*FINANZAS!$J9 -> 0 | BD11: =AD11*FINANZAS!$J9 -> 0 | BF11: =IFERROR(D11*FINANZAS!$N9,0) -> 225 | BG11: =IFERROR(E11*FINANZAS!$N9,0) -> 225 | BH11: =IFERROR(F11*FINANZAS!$N9,0) -> 225 | BI11: =IFERROR(G11*FINANZAS!$N9,0) -> 225 | BJ11: =IFERROR(H11*FINANZAS!$N9,0) -> 225 | BK11: =IFERROR(I11*FINANZAS!$N9,0) -> 225 | BL11: =IFERROR(J11*FINANZAS!$N9,0) -> 225 | BM11: =IFERROR(K11*FINANZAS!$N9,0) -> 225 | BN11: =IFERROR(L11*FINANZAS!$N9,0) -> 225 | BO11: =IFERROR(M11*FINANZAS!$N9,0) -> 225 | BP11: =IFERROR(N11*FINANZAS!$N9,0) -> 225 | BQ11: =IFERROR(O11*FINANZAS!$N9,0) -> 225
C12: =IF(FINANZAS!C10="","",FINANZAS!C10) -> 3 | D12: 400 | E12: 500 | F12: 400 | G12: 500 | H12: 600 | I12: 700 | J12: 400 | K12: 500 | L12: 500 | M12: 500 | N12: 400 | O12: 700 | P12: 867214.6394 | R12: 3 | S12: =IFERROR(D12*FINANZAS!$K10,0) -> 56866.53373 | T12: =IFERROR(E12*FINANZAS!$K10,0) -> 71083.16717 | U12: =IFERROR(F12*FINANZAS!$K10,0) -> 56866.53373 | V12: =IFERROR(G12*FINANZAS!$K10,0) -> 71083.16717 | W12: =IFERROR(H12*FINANZAS!$K10,0) -> 85299.8006 | X12: =IFERROR(I12*FINANZAS!$K10,0) -> 99516.43403 | Y12: =IFERROR(J12*FINANZAS!$K10,0) -> 56866.53373 | Z12: =IFERROR(K12*FINANZAS!$K10,0) -> 71083.16717 | AA12: =IFERROR(L12*FINANZAS!$K10,0) -> 71083.16717 | AB12: =IFERROR(M12*FINANZAS!$K10,0) -> 71083.16717 | AC12: =IFERROR(N12*FINANZAS!$K10,0) -> 56866.53373 | AD12: =IFERROR(O12*FINANZAS!$K10,0) -> 99516.43403 | AF12: =IFERROR(D12*FINANZAS!$G10,0) -> 55751.50366 | AG12: =IFERROR(E12*FINANZAS!$G10,0) -> 69689.37958 | AH12: =IFERROR(F12*FINANZAS!$G10,0) -> 55751.50366 | AI12: =IFERROR(G12*FINANZAS!$G10,0) -> 69689.37958 | AJ12: =IFERROR(H12*FINANZAS!$G10,0) -> 83627.25549 | AK12: =IFERROR(I12*FINANZAS!$G10,0) -> 97565.13141 | AL12: =IFERROR(J12*FINANZAS!$G10,0) -> 55751.50366 | AM12: =IFERROR(K12*FINANZAS!$G10,0) -> 69689.37958 | AN12: =IFERROR(L12*FINANZAS!$G10,0) -> 69689.37958 | AO12: =IFERROR(M12*FINANZAS!$G10,0) -> 69689.37958 | AP12: =IFERROR(N12*FINANZAS!$G10,0) -> 55751.50366 | AQ12: =IFERROR(O12*FINANZAS!$G10,0) -> 97565.13141 | AS12: =S12*FINANZAS!$J10 -> 0 | AT12: =T12*FINANZAS!$J10 -> 0 | AU12: =U12*FINANZAS!$J10 -> 0 | AV12: =V12*FINANZAS!$J10 -> 0 | AW12: =W12*FINANZAS!$J10 -> 0 | AX12: =X12*FINANZAS!$J10 -> 0 | AY12: =Y12*FINANZAS!$J10 -> 0 | AZ12: =Z12*FINANZAS!$J10 -> 0 | BA12: =AA12*FINANZAS!$J10 -> 0 | BB12: =AB12*FINANZAS!$J10 -> 0 | BC12: =AC12*FINANZAS!$J10 -> 0 | BD12: =AD12*FINANZAS!$J10 -> 0 | BF12: =IFERROR(D12*FINANZAS!$N10,0) -> 1115.030073 | BG12: =IFERROR(E12*FINANZAS!$N10,0) -> 1393.787592 | BH12: =IFERROR(F12*FINANZAS!$N10,0) -> 1115.030073 | BI12: =IFERROR(G12*FINANZAS!$N10,0) -> 1393.787592 | BJ12: =IFERROR(H12*FINANZAS!$N10,0) -> 1672.54511 | BK12: =IFERROR(I12*FINANZAS!$N10,0) -> 1951.302628 | BL12: =IFERROR(J12*FINANZAS!$N10,0) -> 1115.030073 | BM12: =IFERROR(K12*FINANZAS!$N10,0) -> 1393.787592 | BN12: =IFERROR(L12*FINANZAS!$N10,0) -> 1393.787592 | BO12: =IFERROR(M12*FINANZAS!$N10,0) -> 1393.787592 | BP12: =IFERROR(N12*FINANZAS!$N10,0) -> 1115.030073 | BQ12: =IFERROR(O12*FINANZAS!$N10,0) -> 1951.302628
C13: =IF(FINANZAS!C11="","",FINANZAS!C11) -> 4 | D13: 300 | E13: 300 | F13: 300 | G13: 300 | H13: 300 | I13: 300 | J13: 300 | K13: 300 | L13: 300 | M13: 300 | N13: 300 | O13: 300 | P13: 92700 | R13: 4 | S13: =IFERROR(D13*FINANZAS!$K11,0) -> 7725 | T13: =IFERROR(E13*FINANZAS!$K11,0) -> 7725 | U13: =IFERROR(F13*FINANZAS!$K11,0) -> 7725 | V13: =IFERROR(G13*FINANZAS!$K11,0) -> 7725 | W13: =IFERROR(H13*FINANZAS!$K11,0) -> 7725 | X13: =IFERROR(I13*FINANZAS!$K11,0) -> 7725 | Y13: =IFERROR(J13*FINANZAS!$K11,0) -> 7725 | Z13: =IFERROR(K13*FINANZAS!$K11,0) -> 7725 | AA13: =IFERROR(L13*FINANZAS!$K11,0) -> 7725 | AB13: =IFERROR(M13*FINANZAS!$K11,0) -> 7725 | AC13: =IFERROR(N13*FINANZAS!$K11,0) -> 7725 | AD13: =IFERROR(O13*FINANZAS!$K11,0) -> 7725 | AF13: =IFERROR(D13*FINANZAS!$G11,0) -> 7500 | AG13: =IFERROR(E13*FINANZAS!$G11,0) -> 7500 | AH13: =IFERROR(F13*FINANZAS!$G11,0) -> 7500 | AI13: =IFERROR(G13*FINANZAS!$G11,0) -> 7500 | AJ13: =IFERROR(H13*FINANZAS!$G11,0) -> 7500 | AK13: =IFERROR(I13*FINANZAS!$G11,0) -> 7500 | AL13: =IFERROR(J13*FINANZAS!$G11,0) -> 7500 | AM13: =IFERROR(K13*FINANZAS!$G11,0) -> 7500 | AN13: =IFERROR(L13*FINANZAS!$G11,0) -> 7500 | AO13: =IFERROR(M13*FINANZAS!$G11,0) -> 7500 | AP13: =IFERROR(N13*FINANZAS!$G11,0) -> 7500 | AQ13: =IFERROR(O13*FINANZAS!$G11,0) -> 7500 | AS13: =S13*FINANZAS!$J11 -> 0 | AT13: =T13*FINANZAS!$J11 -> 0 | AU13: =U13*FINANZAS!$J11 -> 0 | AV13: =V13*FINANZAS!$J11 -> 0 | AW13: =W13*FINANZAS!$J11 -> 0 | AX13: =X13*FINANZAS!$J11 -> 0 | AY13: =Y13*FINANZAS!$J11 -> 0 | AZ13: =Z13*FINANZAS!$J11 -> 0 | BA13: =AA13*FINANZAS!$J11 -> 0 | BB13: =AB13*FINANZAS!$J11 -> 0 | BC13: =AC13*FINANZAS!$J11 -> 0 | BD13: =AD13*FINANZAS!$J11 -> 0 | BF13: =IFERROR(D13*FINANZAS!$N11,0) -> 225 | BG13: =IFERROR(E13*FINANZAS!$N11,0) -> 225 | BH13: =IFERROR(F13*FINANZAS!$N11,0) -> 225 | BI13: =IFERROR(G13*FINANZAS!$N11,0) -> 225 | BJ13: =IFERROR(H13*FINANZAS!$N11,0) -> 225 | BK13: =IFERROR(I13*FINANZAS!$N11,0) -> 225 | BL13: =IFERROR(J13*FINANZAS!$N11,0) -> 225 | BM13: =IFERROR(K13*FINANZAS!$N11,0) -> 225 | BN13: =IFERROR(L13*FINANZAS!$N11,0) -> 225 | BO13: =IFERROR(M13*FINANZAS!$N11,0) -> 225 | BP13: =IFERROR(N13*FINANZAS!$N11,0) -> 225 | BQ13: =IFERROR(O13*FINANZAS!$N11,0) -> 225
C14: =IF(FINANZAS!C12="","",FINANZAS!C12) -> 5 | D14: 400 | E14: 500 | F14: 400 | G14: 500 | H14: 600 | I14: 700 | J14: 400 | K14: 500 | L14: 500 | M14: 500 | N14: 400 | O14: 700 | P14: 175375 | R14: 5 | S14: =IFERROR(D14*FINANZAS!$K12,0) -> 11500 | T14: =IFERROR(E14*FINANZAS!$K12,0) -> 14375 | U14: =IFERROR(F14*FINANZAS!$K12,0) -> 11500 | V14: =IFERROR(G14*FINANZAS!$K12,0) -> 14375 | W14: =IFERROR(H14*FINANZAS!$K12,0) -> 17250 | X14: =IFERROR(I14*FINANZAS!$K12,0) -> 20125 | Y14: =IFERROR(J14*FINANZAS!$K12,0) -> 11500 | Z14: =IFERROR(K14*FINANZAS!$K12,0) -> 14375 | AA14: =IFERROR(L14*FINANZAS!$K12,0) -> 14375 | AB14: =IFERROR(M14*FINANZAS!$K12,0) -> 14375 | AC14: =IFERROR(N14*FINANZAS!$K12,0) -> 11500 | AD14: =IFERROR(O14*FINANZAS!$K12,0) -> 20125 | AF14: =IFERROR(D14*FINANZAS!$G12,0) -> 10000 | AG14: =IFERROR(E14*FINANZAS!$G12,0) -> 12500 | AH14: =IFERROR(F14*FINANZAS!$G12,0) -> 10000 | AI14: =IFERROR(G14*FINANZAS!$G12,0) -> 12500 | AJ14: =IFERROR(H14*FINANZAS!$G12,0) -> 15000 | AK14: =IFERROR(I14*FINANZAS!$G12,0) -> 17500 | AL14: =IFERROR(J14*FINANZAS!$G12,0) -> 10000 | AM14: =IFERROR(K14*FINANZAS!$G12,0) -> 12500 | AN14: =IFERROR(L14*FINANZAS!$G12,0) -> 12500 | AO14: =IFERROR(M14*FINANZAS!$G12,0) -> 12500 | AP14: =IFERROR(N14*FINANZAS!$G12,0) -> 10000 | AQ14: =IFERROR(O14*FINANZAS!$G12,0) -> 17500 | AS14: =S14*FINANZAS!$J12 -> 0 | AT14: =T14*FINANZAS!$J12 -> 0 | AU14: =U14*FINANZAS!$J12 -> 0 | AV14: =V14*FINANZAS!$J12 -> 0 | AW14: =W14*FINANZAS!$J12 -> 0 | AX14: =X14*FINANZAS!$J12 -> 0 | AY14: =Y14*FINANZAS!$J12 -> 0 | AZ14: =Z14*FINANZAS!$J12 -> 0 | BA14: =AA14*FINANZAS!$J12 -> 0 | BB14: =AB14*FINANZAS!$J12 -> 0 | BC14: =AC14*FINANZAS!$J12 -> 0 | BD14: =AD14*FINANZAS!$J12 -> 0 | BF14: =IFERROR(D14*FINANZAS!$N12,0) -> 1500 | BG14: =IFERROR(E14*FINANZAS!$N12,0) -> 1875 | BH14: =IFERROR(F14*FINANZAS!$N12,0) -> 1500 | BI14: =IFERROR(G14*FINANZAS!$N12,0) -> 1875 | BJ14: =IFERROR(H14*FINANZAS!$N12,0) -> 2250 | BK14: =IFERROR(I14*FINANZAS!$N12,0) -> 2625 | BL14: =IFERROR(J14*FINANZAS!$N12,0) -> 1500 | BM14: =IFERROR(K14*FINANZAS!$N12,0) -> 1875 | BN14: =IFERROR(L14*FINANZAS!$N12,0) -> 1875 | BO14: =IFERROR(M14*FINANZAS!$N12,0) -> 1875 | BP14: =IFERROR(N14*FINANZAS!$N12,0) -> 1500 | BQ14: =IFERROR(O14*FINANZAS!$N12,0) -> 2625
C15: =IF(FINANZAS!C13="","",FINANZAS!C13) -> 6 | D15: 400 | E15: 500 | F15: 400 | G15: 500 | H15: 600 | I15: 700 | J15: 400 | K15: 500 | L15: 500 | M15: 500 | N15: 400 | O15: 700 | P15: 322080 | R15: 6 | S15: =IFERROR(D15*FINANZAS!$K13,0) -> 21120 | T15: =IFERROR(E15*FINANZAS!$K13,0) -> 26400 | U15: =IFERROR(F15*FINANZAS!$K13,0) -> 21120 | V15: =IFERROR(G15*FINANZAS!$K13,0) -> 26400 | W15: =IFERROR(H15*FINANZAS!$K13,0) -> 31680 | X15: =IFERROR(I15*FINANZAS!$K13,0) -> 36960 | Y15: =IFERROR(J15*FINANZAS!$K13,0) -> 21120 | Z15: =IFERROR(K15*FINANZAS!$K13,0) -> 26400 | AA15: =IFERROR(L15*FINANZAS!$K13,0) -> 26400 | AB15: =IFERROR(M15*FINANZAS!$K13,0) -> 26400 | AC15: =IFERROR(N15*FINANZAS!$K13,0) -> 21120 | AD15: =IFERROR(O15*FINANZAS!$K13,0) -> 36960 | AF15: =IFERROR(D15*FINANZAS!$G13,0) -> 13200 | AG15: =IFERROR(E15*FINANZAS!$G13,0) -> 16500 | AH15: =IFERROR(F15*FINANZAS!$G13,0) -> 13200 | AI15: =IFERROR(G15*FINANZAS!$G13,0) -> 16500 | AJ15: =IFERROR(H15*FINANZAS!$G13,0) -> 19800 | AK15: =IFERROR(I15*FINANZAS!$G13,0) -> 23100 | AL15: =IFERROR(J15*FINANZAS!$G13,0) -> 13200 | AM15: =IFERROR(K15*FINANZAS!$G13,0) -> 16500 | AN15: =IFERROR(L15*FINANZAS!$G13,0) -> 16500 | AO15: =IFERROR(M15*FINANZAS!$G13,0) -> 16500 | AP15: =IFERROR(N15*FINANZAS!$G13,0) -> 13200 | AQ15: =IFERROR(O15*FINANZAS!$G13,0) -> 23100 | AS15: =S15*FINANZAS!$J13 -> 0 | AT15: =T15*FINANZAS!$J13 -> 0 | AU15: =U15*FINANZAS!$J13 -> 0 | AV15: =V15*FINANZAS!$J13 -> 0 | AW15: =W15*FINANZAS!$J13 -> 0 | AX15: =X15*FINANZAS!$J13 -> 0 | AY15: =Y15*FINANZAS!$J13 -> 0 | AZ15: =Z15*FINANZAS!$J13 -> 0 | BA15: =AA15*FINANZAS!$J13 -> 0 | BB15: =AB15*FINANZAS!$J13 -> 0 | BC15: =AC15*FINANZAS!$J13 -> 0 | BD15: =AD15*FINANZAS!$J13 -> 0 | BF15: =IFERROR(D15*FINANZAS!$N13,0) -> 7920 | BG15: =IFERROR(E15*FINANZAS!$N13,0) -> 9900 | BH15: =IFERROR(F15*FINANZAS!$N13,0) -> 7920 | BI15: =IFERROR(G15*FINANZAS!$N13,0) -> 9900 | BJ15: =IFERROR(H15*FINANZAS!$N13,0) -> 11880 | BK15: =IFERROR(I15*FINANZAS!$N13,0) -> 13860 | BL15: =IFERROR(J15*FINANZAS!$N13,0) -> 7920 | BM15: =IFERROR(K15*FINANZAS!$N13,0) -> 9900 | BN15: =IFERROR(L15*FINANZAS!$N13,0) -> 9900 | BO15: =IFERROR(M15*FINANZAS!$N13,0) -> 9900 | BP15: =IFERROR(N15*FINANZAS!$N13,0) -> 7920 | BQ15: =IFERROR(O15*FINANZAS!$N13,0) -> 13860
C16: =IF(FINANZAS!C14="","",FINANZAS!C14) -> 7 | P16: 0 | R16: 7 | S16: =IFERROR(D16*FINANZAS!$K14,0) -> 0 | T16: =IFERROR(E16*FINANZAS!$K14,0) -> 0 | U16: =IFERROR(F16*FINANZAS!$K14,0) -> 0 | V16: =IFERROR(G16*FINANZAS!$K14,0) -> 0 | W16: =IFERROR(H16*FINANZAS!$K14,0) -> 0 | X16: =IFERROR(I16*FINANZAS!$K14,0) -> 0 | Y16: =IFERROR(J16*FINANZAS!$K14,0) -> 0 | Z16: =IFERROR(K16*FINANZAS!$K14,0) -> 0 | AA16: =IFERROR(L16*FINANZAS!$K14,0) -> 0 | AB16: =IFERROR(M16*FINANZAS!$K14,0) -> 0 | AC16: =IFERROR(N16*FINANZAS!$K14,0) -> 0 | AD16: =IFERROR(O16*FINANZAS!$K14,0) -> 0 | AF16: =IFERROR(D16*FINANZAS!$G14,0) -> 0 | AG16: =IFERROR(E16*FINANZAS!$G14,0) -> 0 | AH16: =IFERROR(F16*FINANZAS!$G14,0) -> 0 | AI16: =IFERROR(G16*FINANZAS!$G14,0) -> 0 | AJ16: =IFERROR(H16*FINANZAS!$G14,0) -> 0 | AK16: =IFERROR(I16*FINANZAS!$G14,0) -> 0 | AL16: =IFERROR(J16*FINANZAS!$G14,0) -> 0 | AM16: =IFERROR(K16*FINANZAS!$G14,0) -> 0 | AN16: =IFERROR(L16*FINANZAS!$G14,0) -> 0 | AO16: =IFERROR(M16*FINANZAS!$G14,0) -> 0 | AP16: =IFERROR(N16*FINANZAS!$G14,0) -> 0 | AQ16: =IFERROR(O16*FINANZAS!$G14,0) -> 0 | AS16: =S16*FINANZAS!$J14 -> 0 | AT16: =T16*FINANZAS!$J14 -> 0 | AU16: =U16*FINANZAS!$J14 -> 0 | AV16: =V16*FINANZAS!$J14 -> 0 | AW16: =W16*FINANZAS!$J14 -> 0 | AX16: =X16*FINANZAS!$J14 -> 0 | AY16: =Y16*FINANZAS!$J14 -> 0 | AZ16: =Z16*FINANZAS!$J14 -> 0 | BA16: =AA16*FINANZAS!$J14 -> 0 | BB16: =AB16*FINANZAS!$J14 -> 0 | BC16: =AC16*FINANZAS!$J14 -> 0 | BD16: =AD16*FINANZAS!$J14 -> 0 | BF16: =IFERROR(D16*FINANZAS!$N14,0) -> 0 | BG16: =IFERROR(E16*FINANZAS!$N14,0) -> 0 | BH16: =IFERROR(F16*FINANZAS!$N14,0) -> 0 | BI16: =IFERROR(G16*FINANZAS!$N14,0) -> 0 | BJ16: =IFERROR(H16*FINANZAS!$N14,0) -> 0 | BK16: =IFERROR(I16*FINANZAS!$N14,0) -> 0 | BL16: =IFERROR(J16*FINANZAS!$N14,0) -> 0 | BM16: =IFERROR(K16*FINANZAS!$N14,0) -> 0 | BN16: =IFERROR(L16*FINANZAS!$N14,0) -> 0 | BO16: =IFERROR(M16*FINANZAS!$N14,0) -> 0 | BP16: =IFERROR(N16*FINANZAS!$N14,0) -> 0 | BQ16: =IFERROR(O16*FINANZAS!$N14,0) -> 0
C17: =IF(FINANZAS!C15="","",FINANZAS!C15) -> 8 | P17: 0 | R17: 8 | S17: =IFERROR(D17*FINANZAS!$K15,0) -> 0 | T17: =IFERROR(E17*FINANZAS!$K15,0) -> 0 | U17: =IFERROR(F17*FINANZAS!$K15,0) -> 0 | V17: =IFERROR(G17*FINANZAS!$K15,0) -> 0 | W17: =IFERROR(H17*FINANZAS!$K15,0) -> 0 | X17: =IFERROR(I17*FINANZAS!$K15,0) -> 0 | Y17: =IFERROR(J17*FINANZAS!$K15,0) -> 0 | Z17: =IFERROR(K17*FINANZAS!$K15,0) -> 0 | AA17: =IFERROR(L17*FINANZAS!$K15,0) -> 0 | AB17: =IFERROR(M17*FINANZAS!$K15,0) -> 0 | AC17: =IFERROR(N17*FINANZAS!$K15,0) -> 0 | AD17: =IFERROR(O17*FINANZAS!$K15,0) -> 0 | AF17: =IFERROR(D17*FINANZAS!$G15,0) -> 0 | AG17: =IFERROR(E17*FINANZAS!$G15,0) -> 0 | AH17: =IFERROR(F17*FINANZAS!$G15,0) -> 0 | AI17: =IFERROR(G17*FINANZAS!$G15,0) -> 0 | AJ17: =IFERROR(H17*FINANZAS!$G15,0) -> 0 | AK17: =IFERROR(I17*FINANZAS!$G15,0) -> 0 | AL17: =IFERROR(J17*FINANZAS!$G15,0) -> 0 | AM17: =IFERROR(K17*FINANZAS!$G15,0) -> 0 | AN17: =IFERROR(L17*FINANZAS!$G15,0) -> 0 | AO17: =IFERROR(M17*FINANZAS!$G15,0) -> 0 | AP17: =IFERROR(N17*FINANZAS!$G15,0) -> 0 | AQ17: =IFERROR(O17*FINANZAS!$G15,0) -> 0 | AS17: =S17*FINANZAS!$J15 -> 0 | AT17: =T17*FINANZAS!$J15 -> 0 | AU17: =U17*FINANZAS!$J15 -> 0 | AV17: =V17*FINANZAS!$J15 -> 0 | AW17: =W17*FINANZAS!$J15 -> 0 | AX17: =X17*FINANZAS!$J15 -> 0 | AY17: =Y17*FINANZAS!$J15 -> 0 | AZ17: =Z17*FINANZAS!$J15 -> 0 | BA17: =AA17*FINANZAS!$J15 -> 0 | BB17: =AB17*FINANZAS!$J15 -> 0 | BC17: =AC17*FINANZAS!$J15 -> 0 | BD17: =AD17*FINANZAS!$J15 -> 0 | BF17: =IFERROR(D17*FINANZAS!$N15,0) -> 0 | BG17: =IFERROR(E17*FINANZAS!$N15,0) -> 0 | BH17: =IFERROR(F17*FINANZAS!$N15,0) -> 0 | BI17: =IFERROR(G17*FINANZAS!$N15,0) -> 0 | BJ17: =IFERROR(H17*FINANZAS!$N15,0) -> 0 | BK17: =IFERROR(I17*FINANZAS!$N15,0) -> 0 | BL17: =IFERROR(J17*FINANZAS!$N15,0) -> 0 | BM17: =IFERROR(K17*FINANZAS!$N15,0) -> 0 | BN17: =IFERROR(L17*FINANZAS!$N15,0) -> 0 | BO17: =IFERROR(M17*FINANZAS!$N15,0) -> 0 | BP17: =IFERROR(N17*FINANZAS!$N15,0) -> 0 | BQ17: =IFERROR(O17*FINANZAS!$N15,0) -> 0
C18: =IF(FINANZAS!C16="","",FINANZAS!C16) ->  | P18: 0 | S18: =IFERROR(D18*FINANZAS!$K16,0) -> 0 | T18: =IFERROR(E18*FINANZAS!$K16,0) -> 0 | U18: =IFERROR(F18*FINANZAS!$K16,0) -> 0 | V18: =IFERROR(G18*FINANZAS!$K16,0) -> 0 | W18: =IFERROR(H18*FINANZAS!$K16,0) -> 0 | X18: =IFERROR(I18*FINANZAS!$K16,0) -> 0 | Y18: =IFERROR(J18*FINANZAS!$K16,0) -> 0 | Z18: =IFERROR(K18*FINANZAS!$K16,0) -> 0 | AA18: =IFERROR(L18*FINANZAS!$K16,0) -> 0 | AB18: =IFERROR(M18*FINANZAS!$K16,0) -> 0 | AC18: =IFERROR(N18*FINANZAS!$K16,0) -> 0 | AD18: =IFERROR(O18*FINANZAS!$K16,0) -> 0 | AF18: =IFERROR(D18*FINANZAS!$G16,0) -> 0 | AG18: =IFERROR(E18*FINANZAS!$G16,0) -> 0 | AH18: =IFERROR(F18*FINANZAS!$G16,0) -> 0 | AI18: =IFERROR(G18*FINANZAS!$G16,0) -> 0 | AJ18: =IFERROR(H18*FINANZAS!$G16,0) -> 0 | AK18: =IFERROR(I18*FINANZAS!$G16,0) -> 0 | AL18: =IFERROR(J18*FINANZAS!$G16,0) -> 0 | AM18: =IFERROR(K18*FINANZAS!$G16,0) -> 0 | AN18: =IFERROR(L18*FINANZAS!$G16,0) -> 0 | AO18: =IFERROR(M18*FINANZAS!$G16,0) -> 0 | AP18: =IFERROR(N18*FINANZAS!$G16,0) -> 0 | AQ18: =IFERROR(O18*FINANZAS!$G16,0) -> 0 | AS18: =S18*FINANZAS!$J16 -> 0 | AT18: =T18*FINANZAS!$J16 -> 0 | AU18: =U18*FINANZAS!$J16 -> 0 | AV18: =V18*FINANZAS!$J16 -> 0 | AW18: =W18*FINANZAS!$J16 -> 0 | AX18: =X18*FINANZAS!$J16 -> 0 | AY18: =Y18*FINANZAS!$J16 -> 0 | AZ18: =Z18*FINANZAS!$J16 -> 0 | BA18: =AA18*FINANZAS!$J16 -> 0 | BB18: =AB18*FINANZAS!$J16 -> 0 | BC18: =AC18*FINANZAS!$J16 -> 0 | BD18: =AD18*FINANZAS!$J16 -> 0 | BF18: =IFERROR(D18*FINANZAS!$N16,0) -> 0 | BG18: =IFERROR(E18*FINANZAS!$N16,0) -> 0 | BH18: =IFERROR(F18*FINANZAS!$N16,0) -> 0 | BI18: =IFERROR(G18*FINANZAS!$N16,0) -> 0 | BJ18: =IFERROR(H18*FINANZAS!$N16,0) -> 0 | BK18: =IFERROR(I18*FINANZAS!$N16,0) -> 0 | BL18: =IFERROR(J18*FINANZAS!$N16,0) -> 0 | BM18: =IFERROR(K18*FINANZAS!$N16,0) -> 0 | BN18: =IFERROR(L18*FINANZAS!$N16,0) -> 0 | BO18: =IFERROR(M18*FINANZAS!$N16,0) -> 0 | BP18: =IFERROR(N18*FINANZAS!$N16,0) -> 0 | BQ18: =IFERROR(O18*FINANZAS!$N16,0) -> 0
C19: =IF(FINANZAS!C17="","",FINANZAS!C17) ->  | P19: 0 | S19: =IFERROR(D19*FINANZAS!$K17,0) -> 0 | T19: =IFERROR(E19*FINANZAS!$K17,0) -> 0 | U19: =IFERROR(F19*FINANZAS!$K17,0) -> 0 | V19: =IFERROR(G19*FINANZAS!$K17,0) -> 0 | W19: =IFERROR(H19*FINANZAS!$K17,0) -> 0 | X19: =IFERROR(I19*FINANZAS!$K17,0) -> 0 | Y19: =IFERROR(J19*FINANZAS!$K17,0) -> 0 | Z19: =IFERROR(K19*FINANZAS!$K17,0) -> 0 | AA19: =IFERROR(L19*FINANZAS!$K17,0) -> 0 | AB19: =IFERROR(M19*FINANZAS!$K17,0) -> 0 | AC19: =IFERROR(N19*FINANZAS!$K17,0) -> 0 | AD19: =IFERROR(O19*FINANZAS!$K17,0) -> 0 | AF19: =IFERROR(D19*FINANZAS!$G17,0) -> 0 | AG19: =IFERROR(E19*FINANZAS!$G17,0) -> 0 | AH19: =IFERROR(F19*FINANZAS!$G17,0) -> 0 | AI19: =IFERROR(G19*FINANZAS!$G17,0) -> 0 | AJ19: =IFERROR(H19*FINANZAS!$G17,0) -> 0 | AK19: =IFERROR(I19*FINANZAS!$G17,0) -> 0 | AL19: =IFERROR(J19*FINANZAS!$G17,0) -> 0 | AM19: =IFERROR(K19*FINANZAS!$G17,0) -> 0 | AN19: =IFERROR(L19*FINANZAS!$G17,0) -> 0 | AO19: =IFERROR(M19*FINANZAS!$G17,0) -> 0 | AP19: =IFERROR(N19*FINANZAS!$G17,0) -> 0 | AQ19: =IFERROR(O19*FINANZAS!$G17,0) -> 0 | AS19: =S19*FINANZAS!$J17 -> 0 | AT19: =T19*FINANZAS!$J17 -> 0 | AU19: =U19*FINANZAS!$J17 -> 0 | AV19: =V19*FINANZAS!$J17 -> 0 | AW19: =W19*FINANZAS!$J17 -> 0 | AX19: =X19*FINANZAS!$J17 -> 0 | AY19: =Y19*FINANZAS!$J17 -> 0 | AZ19: =Z19*FINANZAS!$J17 -> 0 | BA19: =AA19*FINANZAS!$J17 -> 0 | BB19: =AB19*FINANZAS!$J17 -> 0 | BC19: =AC19*FINANZAS!$J17 -> 0 | BD19: =AD19*FINANZAS!$J17 -> 0 | BF19: =IFERROR(D19*FINANZAS!$N17,0) -> 0 | BG19: =IFERROR(E19*FINANZAS!$N17,0) -> 0 | BH19: =IFERROR(F19*FINANZAS!$N17,0) -> 0 | BI19: =IFERROR(G19*FINANZAS!$N17,0) -> 0 | BJ19: =IFERROR(H19*FINANZAS!$N17,0) -> 0 | BK19: =IFERROR(I19*FINANZAS!$N17,0) -> 0 | BL19: =IFERROR(J19*FINANZAS!$N17,0) -> 0 | BM19: =IFERROR(K19*FINANZAS!$N17,0) -> 0 | BN19: =IFERROR(L19*FINANZAS!$N17,0) -> 0 | BO19: =IFERROR(M19*FINANZAS!$N17,0) -> 0 | BP19: =IFERROR(N19*FINANZAS!$N17,0) -> 0 | BQ19: =IFERROR(O19*FINANZAS!$N17,0) -> 0
C20: =IF(FINANZAS!C18="","",FINANZAS!C18) ->  | P20: 0 | S20: =IFERROR(D20*FINANZAS!$K18,0) -> 0 | T20: =IFERROR(E20*FINANZAS!$K18,0) -> 0 | U20: =IFERROR(F20*FINANZAS!$K18,0) -> 0 | V20: =IFERROR(G20*FINANZAS!$K18,0) -> 0 | W20: =IFERROR(H20*FINANZAS!$K18,0) -> 0 | X20: =IFERROR(I20*FINANZAS!$K18,0) -> 0 | Y20: =IFERROR(J20*FINANZAS!$K18,0) -> 0 | Z20: =IFERROR(K20*FINANZAS!$K18,0) -> 0 | AA20: =IFERROR(L20*FINANZAS!$K18,0) -> 0 | AB20: =IFERROR(M20*FINANZAS!$K18,0) -> 0 | AC20: =IFERROR(N20*FINANZAS!$K18,0) -> 0 | AD20: =IFERROR(O20*FINANZAS!$K18,0) -> 0 | AF20: =IFERROR(D20*FINANZAS!$G18,0) -> 0 | AG20: =IFERROR(E20*FINANZAS!$G18,0) -> 0 | AH20: =IFERROR(F20*FINANZAS!$G18,0) -> 0 | AI20: =IFERROR(G20*FINANZAS!$G18,0) -> 0 | AJ20: =IFERROR(H20*FINANZAS!$G18,0) -> 0 | AK20: =IFERROR(I20*FINANZAS!$G18,0) -> 0 | AL20: =IFERROR(J20*FINANZAS!$G18,0) -> 0 | AM20: =IFERROR(K20*FINANZAS!$G18,0) -> 0 | AN20: =IFERROR(L20*FINANZAS!$G18,0) -> 0 | AO20: =IFERROR(M20*FINANZAS!$G18,0) -> 0 | AP20: =IFERROR(N20*FINANZAS!$G18,0) -> 0 | AQ20: =IFERROR(O20*FINANZAS!$G18,0) -> 0 | AS20: =S20*FINANZAS!$J18 -> 0 | AT20: =T20*FINANZAS!$J18 -> 0 | AU20: =U20*FINANZAS!$J18 -> 0 | AV20: =V20*FINANZAS!$J18 -> 0 | AW20: =W20*FINANZAS!$J18 -> 0 | AX20: =X20*FINANZAS!$J18 -> 0 | AY20: =Y20*FINANZAS!$J18 -> 0 | AZ20: =Z20*FINANZAS!$J18 -> 0 | BA20: =AA20*FINANZAS!$J18 -> 0 | BB20: =AB20*FINANZAS!$J18 -> 0 | BC20: =AC20*FINANZAS!$J18 -> 0 | BD20: =AD20*FINANZAS!$J18 -> 0 | BF20: =IFERROR(D20*FINANZAS!$N18,0) -> 0 | BG20: =IFERROR(E20*FINANZAS!$N18,0) -> 0 | BH20: =IFERROR(F20*FINANZAS!$N18,0) -> 0 | BI20: =IFERROR(G20*FINANZAS!$N18,0) -> 0 | BJ20: =IFERROR(H20*FINANZAS!$N18,0) -> 0 | BK20: =IFERROR(I20*FINANZAS!$N18,0) -> 0 | BL20: =IFERROR(J20*FINANZAS!$N18,0) -> 0 | BM20: =IFERROR(K20*FINANZAS!$N18,0) -> 0 | BN20: =IFERROR(L20*FINANZAS!$N18,0) -> 0 | BO20: =IFERROR(M20*FINANZAS!$N18,0) -> 0 | BP20: =IFERROR(N20*FINANZAS!$N18,0) -> 0 | BQ20: =IFERROR(O20*FINANZAS!$N18,0) -> 0
C21: =IF(FINANZAS!C19="","",FINANZAS!C19) ->  | P21: 0 | S21: =IFERROR(D21*FINANZAS!$K19,0) -> 0 | T21: =IFERROR(E21*FINANZAS!$K19,0) -> 0 | U21: =IFERROR(F21*FINANZAS!$K19,0) -> 0 | V21: =IFERROR(G21*FINANZAS!$K19,0) -> 0 | W21: =IFERROR(H21*FINANZAS!$K19,0) -> 0 | X21: =IFERROR(I21*FINANZAS!$K19,0) -> 0 | Y21: =IFERROR(J21*FINANZAS!$K19,0) -> 0 | Z21: =IFERROR(K21*FINANZAS!$K19,0) -> 0 | AA21: =IFERROR(L21*FINANZAS!$K19,0) -> 0 | AB21: =IFERROR(M21*FINANZAS!$K19,0) -> 0 | AC21: =IFERROR(N21*FINANZAS!$K19,0) -> 0 | AD21: =IFERROR(O21*FINANZAS!$K19,0) -> 0 | AF21: =IFERROR(D21*FINANZAS!$G19,0) -> 0 | AG21: =IFERROR(E21*FINANZAS!$G19,0) -> 0 | AH21: =IFERROR(F21*FINANZAS!$G19,0) -> 0 | AI21: =IFERROR(G21*FINANZAS!$G19,0) -> 0 | AJ21: =IFERROR(H21*FINANZAS!$G19,0) -> 0 | AK21: =IFERROR(I21*FINANZAS!$G19,0) -> 0 | AL21: =IFERROR(J21*FINANZAS!$G19,0) -> 0 | AM21: =IFERROR(K21*FINANZAS!$G19,0) -> 0 | AN21: =IFERROR(L21*FINANZAS!$G19,0) -> 0 | AO21: =IFERROR(M21*FINANZAS!$G19,0) -> 0 | AP21: =IFERROR(N21*FINANZAS!$G19,0) -> 0 | AQ21: =IFERROR(O21*FINANZAS!$G19,0) -> 0 | AS21: =S21*FINANZAS!$J19 -> 0 | AT21: =T21*FINANZAS!$J19 -> 0 | AU21: =U21*FINANZAS!$J19 -> 0 | AV21: =V21*FINANZAS!$J19 -> 0 | AW21: =W21*FINANZAS!$J19 -> 0 | AX21: =X21*FINANZAS!$J19 -> 0 | AY21: =Y21*FINANZAS!$J19 -> 0 | AZ21: =Z21*FINANZAS!$J19 -> 0 | BA21: =AA21*FINANZAS!$J19 -> 0 | BB21: =AB21*FINANZAS!$J19 -> 0 | BC21: =AC21*FINANZAS!$J19 -> 0 | BD21: =AD21*FINANZAS!$J19 -> 0 | BF21: =IFERROR(D21*FINANZAS!$N19,0) -> 0 | BG21: =IFERROR(E21*FINANZAS!$N19,0) -> 0 | BH21: =IFERROR(F21*FINANZAS!$N19,0) -> 0 | BI21: =IFERROR(G21*FINANZAS!$N19,0) -> 0 | BJ21: =IFERROR(H21*FINANZAS!$N19,0) -> 0 | BK21: =IFERROR(I21*FINANZAS!$N19,0) -> 0 | BL21: =IFERROR(J21*FINANZAS!$N19,0) -> 0 | BM21: =IFERROR(K21*FINANZAS!$N19,0) -> 0 | BN21: =IFERROR(L21*FINANZAS!$N19,0) -> 0 | BO21: =IFERROR(M21*FINANZAS!$N19,0) -> 0 | BP21: =IFERROR(N21*FINANZAS!$N19,0) -> 0 | BQ21: =IFERROR(O21*FINANZAS!$N19,0) -> 0
C22: =IF(FINANZAS!C20="","",FINANZAS!C20) ->  | P22: 0 | S22: =IFERROR(D22*FINANZAS!$K20,0) -> 0 | T22: =IFERROR(E22*FINANZAS!$K20,0) -> 0 | U22: =IFERROR(F22*FINANZAS!$K20,0) -> 0 | V22: =IFERROR(G22*FINANZAS!$K20,0) -> 0 | W22: =IFERROR(H22*FINANZAS!$K20,0) -> 0 | X22: =IFERROR(I22*FINANZAS!$K20,0) -> 0 | Y22: =IFERROR(J22*FINANZAS!$K20,0) -> 0 | Z22: =IFERROR(K22*FINANZAS!$K20,0) -> 0 | AA22: =IFERROR(L22*FINANZAS!$K20,0) -> 0 | AB22: =IFERROR(M22*FINANZAS!$K20,0) -> 0 | AC22: =IFERROR(N22*FINANZAS!$K20,0) -> 0 | AD22: =IFERROR(O22*FINANZAS!$K20,0) -> 0 | AF22: =IFERROR(D22*FINANZAS!$G20,0) -> 0 | AG22: =IFERROR(E22*FINANZAS!$G20,0) -> 0 | AH22: =IFERROR(F22*FINANZAS!$G20,0) -> 0 | AI22: =IFERROR(G22*FINANZAS!$G20,0) -> 0 | AJ22: =IFERROR(H22*FINANZAS!$G20,0) -> 0 | AK22: =IFERROR(I22*FINANZAS!$G20,0) -> 0 | AL22: =IFERROR(J22*FINANZAS!$G20,0) -> 0 | AM22: =IFERROR(K22*FINANZAS!$G20,0) -> 0 | AN22: =IFERROR(L22*FINANZAS!$G20,0) -> 0 | AO22: =IFERROR(M22*FINANZAS!$G20,0) -> 0 | AP22: =IFERROR(N22*FINANZAS!$G20,0) -> 0 | AQ22: =IFERROR(O22*FINANZAS!$G20,0) -> 0 | AS22: =S22*FINANZAS!$J20 -> 0 | AT22: =T22*FINANZAS!$J20 -> 0 | AU22: =U22*FINANZAS!$J20 -> 0 | AV22: =V22*FINANZAS!$J20 -> 0 | AW22: =W22*FINANZAS!$J20 -> 0 | AX22: =X22*FINANZAS!$J20 -> 0 | AY22: =Y22*FINANZAS!$J20 -> 0 | AZ22: =Z22*FINANZAS!$J20 -> 0 | BA22: =AA22*FINANZAS!$J20 -> 0 | BB22: =AB22*FINANZAS!$J20 -> 0 | BC22: =AC22*FINANZAS!$J20 -> 0 | BD22: =AD22*FINANZAS!$J20 -> 0 | BF22: =IFERROR(D22*FINANZAS!$N20,0) -> 0 | BG22: =IFERROR(E22*FINANZAS!$N20,0) -> 0 | BH22: =IFERROR(F22*FINANZAS!$N20,0) -> 0 | BI22: =IFERROR(G22*FINANZAS!$N20,0) -> 0 | BJ22: =IFERROR(H22*FINANZAS!$N20,0) -> 0 | BK22: =IFERROR(I22*FINANZAS!$N20,0) -> 0 | BL22: =IFERROR(J22*FINANZAS!$N20,0) -> 0 | BM22: =IFERROR(K22*FINANZAS!$N20,0) -> 0 | BN22: =IFERROR(L22*FINANZAS!$N20,0) -> 0 | BO22: =IFERROR(M22*FINANZAS!$N20,0) -> 0 | BP22: =IFERROR(N22*FINANZAS!$N20,0) -> 0 | BQ22: =IFERROR(O22*FINANZAS!$N20,0) -> 0
C23: =IF(FINANZAS!C21="","",FINANZAS!C21) ->  | P23: 0 | S23: =IFERROR(D23*FINANZAS!$K21,0) -> 0 | T23: =IFERROR(E23*FINANZAS!$K21,0) -> 0 | U23: =IFERROR(F23*FINANZAS!$K21,0) -> 0 | V23: =IFERROR(G23*FINANZAS!$K21,0) -> 0 | W23: =IFERROR(H23*FINANZAS!$K21,0) -> 0 | X23: =IFERROR(I23*FINANZAS!$K21,0) -> 0 | Y23: =IFERROR(J23*FINANZAS!$K21,0) -> 0 | Z23: =IFERROR(K23*FINANZAS!$K21,0) -> 0 | AA23: =IFERROR(L23*FINANZAS!$K21,0) -> 0 | AB23: =IFERROR(M23*FINANZAS!$K21,0) -> 0 | AC23: =IFERROR(N23*FINANZAS!$K21,0) -> 0 | AD23: =IFERROR(O23*FINANZAS!$K21,0) -> 0 | AF23: =IFERROR(D23*FINANZAS!$G21,0) -> 0 | AG23: =IFERROR(E23*FINANZAS!$G21,0) -> 0 | AH23: =IFERROR(F23*FINANZAS!$G21,0) -> 0 | AI23: =IFERROR(G23*FINANZAS!$G21,0) -> 0 | AJ23: =IFERROR(H23*FINANZAS!$G21,0) -> 0 | AK23: =IFERROR(I23*FINANZAS!$G21,0) -> 0 | AL23: =IFERROR(J23*FINANZAS!$G21,0) -> 0 | AM23: =IFERROR(K23*FINANZAS!$G21,0) -> 0 | AN23: =IFERROR(L23*FINANZAS!$G21,0) -> 0 | AO23: =IFERROR(M23*FINANZAS!$G21,0) -> 0 | AP23: =IFERROR(N23*FINANZAS!$G21,0) -> 0 | AQ23: =IFERROR(O23*FINANZAS!$G21,0) -> 0 | AS23: =S23*FINANZAS!$J21 -> 0 | AT23: =T23*FINANZAS!$J21 -> 0 | AU23: =U23*FINANZAS!$J21 -> 0 | AV23: =V23*FINANZAS!$J21 -> 0 | AW23: =W23*FINANZAS!$J21 -> 0 | AX23: =X23*FINANZAS!$J21 -> 0 | AY23: =Y23*FINANZAS!$J21 -> 0 | AZ23: =Z23*FINANZAS!$J21 -> 0 | BA23: =AA23*FINANZAS!$J21 -> 0 | BB23: =AB23*FINANZAS!$J21 -> 0 | BC23: =AC23*FINANZAS!$J21 -> 0 | BD23: =AD23*FINANZAS!$J21 -> 0 | BF23: =IFERROR(D23*FINANZAS!$N21,0) -> 0 | BG23: =IFERROR(E23*FINANZAS!$N21,0) -> 0 | BH23: =IFERROR(F23*FINANZAS!$N21,0) -> 0 | BI23: =IFERROR(G23*FINANZAS!$N21,0) -> 0 | BJ23: =IFERROR(H23*FINANZAS!$N21,0) -> 0 | BK23: =IFERROR(I23*FINANZAS!$N21,0) -> 0 | BL23: =IFERROR(J23*FINANZAS!$N21,0) -> 0 | BM23: =IFERROR(K23*FINANZAS!$N21,0) -> 0 | BN23: =IFERROR(L23*FINANZAS!$N21,0) -> 0 | BO23: =IFERROR(M23*FINANZAS!$N21,0) -> 0 | BP23: =IFERROR(N23*FINANZAS!$N21,0) -> 0 | BQ23: =IFERROR(O23*FINANZAS!$N21,0) -> 0
C24: =IF(FINANZAS!C22="","",FINANZAS!C22) ->  | P24: 0 | S24: =IFERROR(D24*FINANZAS!$K22,0) -> 0 | T24: =IFERROR(E24*FINANZAS!$K22,0) -> 0 | U24: =IFERROR(F24*FINANZAS!$K22,0) -> 0 | V24: =IFERROR(G24*FINANZAS!$K22,0) -> 0 | W24: =IFERROR(H24*FINANZAS!$K22,0) -> 0 | X24: =IFERROR(I24*FINANZAS!$K22,0) -> 0 | Y24: =IFERROR(J24*FINANZAS!$K22,0) -> 0 | Z24: =IFERROR(K24*FINANZAS!$K22,0) -> 0 | AA24: =IFERROR(L24*FINANZAS!$K22,0) -> 0 | AB24: =IFERROR(M24*FINANZAS!$K22,0) -> 0 | AC24: =IFERROR(N24*FINANZAS!$K22,0) -> 0 | AD24: =IFERROR(O24*FINANZAS!$K22,0) -> 0 | AF24: =IFERROR(D24*FINANZAS!$G22,0) -> 0 | AG24: =IFERROR(E24*FINANZAS!$G22,0) -> 0 | AH24: =IFERROR(F24*FINANZAS!$G22,0) -> 0 | AI24: =IFERROR(G24*FINANZAS!$G22,0) -> 0 | AJ24: =IFERROR(H24*FINANZAS!$G22,0) -> 0 | AK24: =IFERROR(I24*FINANZAS!$G22,0) -> 0 | AL24: =IFERROR(J24*FINANZAS!$G22,0) -> 0 | AM24: =IFERROR(K24*FINANZAS!$G22,0) -> 0 | AN24: =IFERROR(L24*FINANZAS!$G22,0) -> 0 | AO24: =IFERROR(M24*FINANZAS!$G22,0) -> 0 | AP24: =IFERROR(N24*FINANZAS!$G22,0) -> 0 | AQ24: =IFERROR(O24*FINANZAS!$G22,0) -> 0 | AS24: =S24*FINANZAS!$J22 -> 0 | AT24: =T24*FINANZAS!$J22 -> 0 | AU24: =U24*FINANZAS!$J22 -> 0 | AV24: =V24*FINANZAS!$J22 -> 0 | AW24: =W24*FINANZAS!$J22 -> 0 | AX24: =X24*FINANZAS!$J22 -> 0 | AY24: =Y24*FINANZAS!$J22 -> 0 | AZ24: =Z24*FINANZAS!$J22 -> 0 | BA24: =AA24*FINANZAS!$J22 -> 0 | BB24: =AB24*FINANZAS!$J22 -> 0 | BC24: =AC24*FINANZAS!$J22 -> 0 | BD24: =AD24*FINANZAS!$J22 -> 0 | BF24: =IFERROR(D24*FINANZAS!$N22,0) -> 0 | BG24: =IFERROR(E24*FINANZAS!$N22,0) -> 0 | BH24: =IFERROR(F24*FINANZAS!$N22,0) -> 0 | BI24: =IFERROR(G24*FINANZAS!$N22,0) -> 0 | BJ24: =IFERROR(H24*FINANZAS!$N22,0) -> 0 | BK24: =IFERROR(I24*FINANZAS!$N22,0) -> 0 | BL24: =IFERROR(J24*FINANZAS!$N22,0) -> 0 | BM24: =IFERROR(K24*FINANZAS!$N22,0) -> 0 | BN24: =IFERROR(L24*FINANZAS!$N22,0) -> 0 | BO24: =IFERROR(M24*FINANZAS!$N22,0) -> 0 | BP24: =IFERROR(N24*FINANZAS!$N22,0) -> 0 | BQ24: =IFERROR(O24*FINANZAS!$N22,0) -> 0
C25: =IF(FINANZAS!C23="","",FINANZAS!C23) ->  | P25: 0 | S25: =IFERROR(D25*FINANZAS!$K23,0) -> 0 | T25: =IFERROR(E25*FINANZAS!$K23,0) -> 0 | U25: =IFERROR(F25*FINANZAS!$K23,0) -> 0 | V25: =IFERROR(G25*FINANZAS!$K23,0) -> 0 | W25: =IFERROR(H25*FINANZAS!$K23,0) -> 0 | X25: =IFERROR(I25*FINANZAS!$K23,0) -> 0 | Y25: =IFERROR(J25*FINANZAS!$K23,0) -> 0 | Z25: =IFERROR(K25*FINANZAS!$K23,0) -> 0 | AA25: =IFERROR(L25*FINANZAS!$K23,0) -> 0 | AB25: =IFERROR(M25*FINANZAS!$K23,0) -> 0 | AC25: =IFERROR(N25*FINANZAS!$K23,0) -> 0 | AD25: =IFERROR(O25*FINANZAS!$K23,0) -> 0 | AF25: =IFERROR(D25*FINANZAS!$G23,0) -> 0 | AG25: =IFERROR(E25*FINANZAS!$G23,0) -> 0 | AH25: =IFERROR(F25*FINANZAS!$G23,0) -> 0 | AI25: =IFERROR(G25*FINANZAS!$G23,0) -> 0 | AJ25: =IFERROR(H25*FINANZAS!$G23,0) -> 0 | AK25: =IFERROR(I25*FINANZAS!$G23,0) -> 0 | AL25: =IFERROR(J25*FINANZAS!$G23,0) -> 0 | AM25: =IFERROR(K25*FINANZAS!$G23,0) -> 0 | AN25: =IFERROR(L25*FINANZAS!$G23,0) -> 0 | AO25: =IFERROR(M25*FINANZAS!$G23,0) -> 0 | AP25: =IFERROR(N25*FINANZAS!$G23,0) -> 0 | AQ25: =IFERROR(O25*FINANZAS!$G23,0) -> 0 | AS25: =S25*FINANZAS!$J23 -> 0 | AT25: =T25*FINANZAS!$J23 -> 0 | AU25: =U25*FINANZAS!$J23 -> 0 | AV25: =V25*FINANZAS!$J23 -> 0 | AW25: =W25*FINANZAS!$J23 -> 0 | AX25: =X25*FINANZAS!$J23 -> 0 | AY25: =Y25*FINANZAS!$J23 -> 0 | AZ25: =Z25*FINANZAS!$J23 -> 0 | BA25: =AA25*FINANZAS!$J23 -> 0 | BB25: =AB25*FINANZAS!$J23 -> 0 | BC25: =AC25*FINANZAS!$J23 -> 0 | BD25: =AD25*FINANZAS!$J23 -> 0 | BF25: =IFERROR(D25*FINANZAS!$N23,0) -> 0 | BG25: =IFERROR(E25*FINANZAS!$N23,0) -> 0 | BH25: =IFERROR(F25*FINANZAS!$N23,0) -> 0 | BI25: =IFERROR(G25*FINANZAS!$N23,0) -> 0 | BJ25: =IFERROR(H25*FINANZAS!$N23,0) -> 0 | BK25: =IFERROR(I25*FINANZAS!$N23,0) -> 0 | BL25: =IFERROR(J25*FINANZAS!$N23,0) -> 0 | BM25: =IFERROR(K25*FINANZAS!$N23,0) -> 0 | BN25: =IFERROR(L25*FINANZAS!$N23,0) -> 0 | BO25: =IFERROR(M25*FINANZAS!$N23,0) -> 0 | BP25: =IFERROR(N25*FINANZAS!$N23,0) -> 0 | BQ25: =IFERROR(O25*FINANZAS!$N23,0) -> 0
C26: =IF(FINANZAS!C24="","",FINANZAS!C24) ->  | P26: 0 | S26: =IFERROR(D26*FINANZAS!$K24,0) -> 0 | T26: =IFERROR(E26*FINANZAS!$K24,0) -> 0 | U26: =IFERROR(F26*FINANZAS!$K24,0) -> 0 | V26: =IFERROR(G26*FINANZAS!$K24,0) -> 0 | W26: =IFERROR(H26*FINANZAS!$K24,0) -> 0 | X26: =IFERROR(I26*FINANZAS!$K24,0) -> 0 | Y26: =IFERROR(J26*FINANZAS!$K24,0) -> 0 | Z26: =IFERROR(K26*FINANZAS!$K24,0) -> 0 | AA26: =IFERROR(L26*FINANZAS!$K24,0) -> 0 | AB26: =IFERROR(M26*FINANZAS!$K24,0) -> 0 | AC26: =IFERROR(N26*FINANZAS!$K24,0) -> 0 | AD26: =IFERROR(O26*FINANZAS!$K24,0) -> 0 | AF26: =IFERROR(D26*FINANZAS!$G24,0) -> 0 | AG26: =IFERROR(E26*FINANZAS!$G24,0) -> 0 | AH26: =IFERROR(F26*FINANZAS!$G24,0) -> 0 | AI26: =IFERROR(G26*FINANZAS!$G24,0) -> 0 | AJ26: =IFERROR(H26*FINANZAS!$G24,0) -> 0 | AK26: =IFERROR(I26*FINANZAS!$G24,0) -> 0 | AL26: =IFERROR(J26*FINANZAS!$G24,0) -> 0 | AM26: =IFERROR(K26*FINANZAS!$G24,0) -> 0 | AN26: =IFERROR(L26*FINANZAS!$G24,0) -> 0 | AO26: =IFERROR(M26*FINANZAS!$G24,0) -> 0 | AP26: =IFERROR(N26*FINANZAS!$G24,0) -> 0 | AQ26: =IFERROR(O26*FINANZAS!$G24,0) -> 0 | AS26: =S26*FINANZAS!$J24 -> 0 | AT26: =T26*FINANZAS!$J24 -> 0 | AU26: =U26*FINANZAS!$J24 -> 0 | AV26: =V26*FINANZAS!$J24 -> 0 | AW26: =W26*FINANZAS!$J24 -> 0 | AX26: =X26*FINANZAS!$J24 -> 0 | AY26: =Y26*FINANZAS!$J24 -> 0 | AZ26: =Z26*FINANZAS!$J24 -> 0 | BA26: =AA26*FINANZAS!$J24 -> 0 | BB26: =AB26*FINANZAS!$J24 -> 0 | BC26: =AC26*FINANZAS!$J24 -> 0 | BD26: =AD26*FINANZAS!$J24 -> 0 | BF26: =IFERROR(D26*FINANZAS!$N24,0) -> 0 | BG26: =IFERROR(E26*FINANZAS!$N24,0) -> 0 | BH26: =IFERROR(F26*FINANZAS!$N24,0) -> 0 | BI26: =IFERROR(G26*FINANZAS!$N24,0) -> 0 | BJ26: =IFERROR(H26*FINANZAS!$N24,0) -> 0 | BK26: =IFERROR(I26*FINANZAS!$N24,0) -> 0 | BL26: =IFERROR(J26*FINANZAS!$N24,0) -> 0 | BM26: =IFERROR(K26*FINANZAS!$N24,0) -> 0 | BN26: =IFERROR(L26*FINANZAS!$N24,0) -> 0 | BO26: =IFERROR(M26*FINANZAS!$N24,0) -> 0 | BP26: =IFERROR(N26*FINANZAS!$N24,0) -> 0 | BQ26: =IFERROR(O26*FINANZAS!$N24,0) -> 0
C27: =IF(FINANZAS!C25="","",FINANZAS!C25) ->  | P27: 0 | S27: =IFERROR(D27*FINANZAS!$K25,0) -> 0 | T27: =IFERROR(E27*FINANZAS!$K25,0) -> 0 | U27: =IFERROR(F27*FINANZAS!$K25,0) -> 0 | V27: =IFERROR(G27*FINANZAS!$K25,0) -> 0 | W27: =IFERROR(H27*FINANZAS!$K25,0) -> 0 | X27: =IFERROR(I27*FINANZAS!$K25,0) -> 0 | Y27: =IFERROR(J27*FINANZAS!$K25,0) -> 0 | Z27: =IFERROR(K27*FINANZAS!$K25,0) -> 0 | AA27: =IFERROR(L27*FINANZAS!$K25,0) -> 0 | AB27: =IFERROR(M27*FINANZAS!$K25,0) -> 0 | AC27: =IFERROR(N27*FINANZAS!$K25,0) -> 0 | AD27: =IFERROR(O27*FINANZAS!$K25,0) -> 0 | AF27: =IFERROR(D27*FINANZAS!$G25,0) -> 0 | AG27: =IFERROR(E27*FINANZAS!$G25,0) -> 0 | AH27: =IFERROR(F27*FINANZAS!$G25,0) -> 0 | AI27: =IFERROR(G27*FINANZAS!$G25,0) -> 0 | AJ27: =IFERROR(H27*FINANZAS!$G25,0) -> 0 | AK27: =IFERROR(I27*FINANZAS!$G25,0) -> 0 | AL27: =IFERROR(J27*FINANZAS!$G25,0) -> 0 | AM27: =IFERROR(K27*FINANZAS!$G25,0) -> 0 | AN27: =IFERROR(L27*FINANZAS!$G25,0) -> 0 | AO27: =IFERROR(M27*FINANZAS!$G25,0) -> 0 | AP27: =IFERROR(N27*FINANZAS!$G25,0) -> 0 | AQ27: =IFERROR(O27*FINANZAS!$G25,0) -> 0 | AS27: =S27*FINANZAS!$J25 -> 0 | AT27: =T27*FINANZAS!$J25 -> 0 | AU27: =U27*FINANZAS!$J25 -> 0 | AV27: =V27*FINANZAS!$J25 -> 0 | AW27: =W27*FINANZAS!$J25 -> 0 | AX27: =X27*FINANZAS!$J25 -> 0 | AY27: =Y27*FINANZAS!$J25 -> 0 | AZ27: =Z27*FINANZAS!$J25 -> 0 | BA27: =AA27*FINANZAS!$J25 -> 0 | BB27: =AB27*FINANZAS!$J25 -> 0 | BC27: =AC27*FINANZAS!$J25 -> 0 | BD27: =AD27*FINANZAS!$J25 -> 0 | BF27: =IFERROR(D27*FINANZAS!$N25,0) -> 0 | BG27: =IFERROR(E27*FINANZAS!$N25,0) -> 0 | BH27: =IFERROR(F27*FINANZAS!$N25,0) -> 0 | BI27: =IFERROR(G27*FINANZAS!$N25,0) -> 0 | BJ27: =IFERROR(H27*FINANZAS!$N25,0) -> 0 | BK27: =IFERROR(I27*FINANZAS!$N25,0) -> 0 | BL27: =IFERROR(J27*FINANZAS!$N25,0) -> 0 | BM27: =IFERROR(K27*FINANZAS!$N25,0) -> 0 | BN27: =IFERROR(L27*FINANZAS!$N25,0) -> 0 | BO27: =IFERROR(M27*FINANZAS!$N25,0) -> 0 | BP27: =IFERROR(N27*FINANZAS!$N25,0) -> 0 | BQ27: =IFERROR(O27*FINANZAS!$N25,0) -> 0
C28: =IF(FINANZAS!C26="","",FINANZAS!C26) ->  | P28: 0 | S28: =IFERROR(D28*FINANZAS!$K26,0) -> 0 | T28: =IFERROR(E28*FINANZAS!$K26,0) -> 0 | U28: =IFERROR(F28*FINANZAS!$K26,0) -> 0 | V28: =IFERROR(G28*FINANZAS!$K26,0) -> 0 | W28: =IFERROR(H28*FINANZAS!$K26,0) -> 0 | X28: =IFERROR(I28*FINANZAS!$K26,0) -> 0 | Y28: =IFERROR(J28*FINANZAS!$K26,0) -> 0 | Z28: =IFERROR(K28*FINANZAS!$K26,0) -> 0 | AA28: =IFERROR(L28*FINANZAS!$K26,0) -> 0 | AB28: =IFERROR(M28*FINANZAS!$K26,0) -> 0 | AC28: =IFERROR(N28*FINANZAS!$K26,0) -> 0 | AD28: =IFERROR(O28*FINANZAS!$K26,0) -> 0 | AF28: =IFERROR(D28*FINANZAS!$G26,0) -> 0 | AG28: =IFERROR(E28*FINANZAS!$G26,0) -> 0 | AH28: =IFERROR(F28*FINANZAS!$G26,0) -> 0 | AI28: =IFERROR(G28*FINANZAS!$G26,0) -> 0 | AJ28: =IFERROR(H28*FINANZAS!$G26,0) -> 0 | AK28: =IFERROR(I28*FINANZAS!$G26,0) -> 0 | AL28: =IFERROR(J28*FINANZAS!$G26,0) -> 0 | AM28: =IFERROR(K28*FINANZAS!$G26,0) -> 0 | AN28: =IFERROR(L28*FINANZAS!$G26,0) -> 0 | AO28: =IFERROR(M28*FINANZAS!$G26,0) -> 0 | AP28: =IFERROR(N28*FINANZAS!$G26,0) -> 0 | AQ28: =IFERROR(O28*FINANZAS!$G26,0) -> 0 | AS28: =S28*FINANZAS!$J26 -> 0 | AT28: =T28*FINANZAS!$J26 -> 0 | AU28: =U28*FINANZAS!$J26 -> 0 | AV28: =V28*FINANZAS!$J26 -> 0 | AW28: =W28*FINANZAS!$J26 -> 0 | AX28: =X28*FINANZAS!$J26 -> 0 | AY28: =Y28*FINANZAS!$J26 -> 0 | AZ28: =Z28*FINANZAS!$J26 -> 0 | BA28: =AA28*FINANZAS!$J26 -> 0 | BB28: =AB28*FINANZAS!$J26 -> 0 | BC28: =AC28*FINANZAS!$J26 -> 0 | BD28: =AD28*FINANZAS!$J26 -> 0 | BF28: =IFERROR(D28*FINANZAS!$N26,0) -> 0 | BG28: =IFERROR(E28*FINANZAS!$N26,0) -> 0 | BH28: =IFERROR(F28*FINANZAS!$N26,0) -> 0 | BI28: =IFERROR(G28*FINANZAS!$N26,0) -> 0 | BJ28: =IFERROR(H28*FINANZAS!$N26,0) -> 0 | BK28: =IFERROR(I28*FINANZAS!$N26,0) -> 0 | BL28: =IFERROR(J28*FINANZAS!$N26,0) -> 0 | BM28: =IFERROR(K28*FINANZAS!$N26,0) -> 0 | BN28: =IFERROR(L28*FINANZAS!$N26,0) -> 0 | BO28: =IFERROR(M28*FINANZAS!$N26,0) -> 0 | BP28: =IFERROR(N28*FINANZAS!$N26,0) -> 0 | BQ28: =IFERROR(O28*FINANZAS!$N26,0) -> 0
C29: =IF(FINANZAS!C27="","",FINANZAS!C27) ->  | P29: 0 | S29: =IFERROR(D29*FINANZAS!$K27,0) -> 0 | T29: =IFERROR(E29*FINANZAS!$K27,0) -> 0 | U29: =IFERROR(F29*FINANZAS!$K27,0) -> 0 | V29: =IFERROR(G29*FINANZAS!$K27,0) -> 0 | W29: =IFERROR(H29*FINANZAS!$K27,0) -> 0 | X29: =IFERROR(I29*FINANZAS!$K27,0) -> 0 | Y29: =IFERROR(J29*FINANZAS!$K27,0) -> 0 | Z29: =IFERROR(K29*FINANZAS!$K27,0) -> 0 | AA29: =IFERROR(L29*FINANZAS!$K27,0) -> 0 | AB29: =IFERROR(M29*FINANZAS!$K27,0) -> 0 | AC29: =IFERROR(N29*FINANZAS!$K27,0) -> 0 | AD29: =IFERROR(O29*FINANZAS!$K27,0) -> 0 | AF29: =IFERROR(D29*FINANZAS!$G27,0) -> 0 | AG29: =IFERROR(E29*FINANZAS!$G27,0) -> 0 | AH29: =IFERROR(F29*FINANZAS!$G27,0) -> 0 | AI29: =IFERROR(G29*FINANZAS!$G27,0) -> 0 | AJ29: =IFERROR(H29*FINANZAS!$G27,0) -> 0 | AK29: =IFERROR(I29*FINANZAS!$G27,0) -> 0 | AL29: =IFERROR(J29*FINANZAS!$G27,0) -> 0 | AM29: =IFERROR(K29*FINANZAS!$G27,0) -> 0 | AN29: =IFERROR(L29*FINANZAS!$G27,0) -> 0 | AO29: =IFERROR(M29*FINANZAS!$G27,0) -> 0 | AP29: =IFERROR(N29*FINANZAS!$G27,0) -> 0 | AQ29: =IFERROR(O29*FINANZAS!$G27,0) -> 0 | AS29: =S29*FINANZAS!$J27 -> 0 | AT29: =T29*FINANZAS!$J27 -> 0 | AU29: =U29*FINANZAS!$J27 -> 0 | AV29: =V29*FINANZAS!$J27 -> 0 | AW29: =W29*FINANZAS!$J27 -> 0 | AX29: =X29*FINANZAS!$J27 -> 0 | AY29: =Y29*FINANZAS!$J27 -> 0 | AZ29: =Z29*FINANZAS!$J27 -> 0 | BA29: =AA29*FINANZAS!$J27 -> 0 | BB29: =AB29*FINANZAS!$J27 -> 0 | BC29: =AC29*FINANZAS!$J27 -> 0 | BD29: =AD29*FINANZAS!$J27 -> 0 | BF29: =IFERROR(D29*FINANZAS!$N27,0) -> 0 | BG29: =IFERROR(E29*FINANZAS!$N27,0) -> 0 | BH29: =IFERROR(F29*FINANZAS!$N27,0) -> 0 | BI29: =IFERROR(G29*FINANZAS!$N27,0) -> 0 | BJ29: =IFERROR(H29*FINANZAS!$N27,0) -> 0 | BK29: =IFERROR(I29*FINANZAS!$N27,0) -> 0 | BL29: =IFERROR(J29*FINANZAS!$N27,0) -> 0 | BM29: =IFERROR(K29*FINANZAS!$N27,0) -> 0 | BN29: =IFERROR(L29*FINANZAS!$N27,0) -> 0 | BO29: =IFERROR(M29*FINANZAS!$N27,0) -> 0 | BP29: =IFERROR(N29*FINANZAS!$N27,0) -> 0 | BQ29: =IFERROR(O29*FINANZAS!$N27,0) -> 0
C30: =IF(FINANZAS!C28="","",FINANZAS!C28) ->  | P30: 0 | S30: =IFERROR(D30*FINANZAS!$K28,0) -> 0 | T30: =IFERROR(E30*FINANZAS!$K28,0) -> 0 | U30: =IFERROR(F30*FINANZAS!$K28,0) -> 0 | V30: =IFERROR(G30*FINANZAS!$K28,0) -> 0 | W30: =IFERROR(H30*FINANZAS!$K28,0) -> 0 | X30: =IFERROR(I30*FINANZAS!$K28,0) -> 0 | Y30: =IFERROR(J30*FINANZAS!$K28,0) -> 0 | Z30: =IFERROR(K30*FINANZAS!$K28,0) -> 0 | AA30: =IFERROR(L30*FINANZAS!$K28,0) -> 0 | AB30: =IFERROR(M30*FINANZAS!$K28,0) -> 0 | AC30: =IFERROR(N30*FINANZAS!$K28,0) -> 0 | AD30: =IFERROR(O30*FINANZAS!$K28,0) -> 0 | AF30: =IFERROR(D30*FINANZAS!$G28,0) -> 0 | AG30: =IFERROR(E30*FINANZAS!$G28,0) -> 0 | AH30: =IFERROR(F30*FINANZAS!$G28,0) -> 0 | AI30: =IFERROR(G30*FINANZAS!$G28,0) -> 0 | AJ30: =IFERROR(H30*FINANZAS!$G28,0) -> 0 | AK30: =IFERROR(I30*FINANZAS!$G28,0) -> 0 | AL30: =IFERROR(J30*FINANZAS!$G28,0) -> 0 | AM30: =IFERROR(K30*FINANZAS!$G28,0) -> 0 | AN30: =IFERROR(L30*FINANZAS!$G28,0) -> 0 | AO30: =IFERROR(M30*FINANZAS!$G28,0) -> 0 | AP30: =IFERROR(N30*FINANZAS!$G28,0) -> 0 | AQ30: =IFERROR(O30*FINANZAS!$G28,0) -> 0 | AS30: =S30*FINANZAS!$J28 -> 0 | AT30: =T30*FINANZAS!$J28 -> 0 | AU30: =U30*FINANZAS!$J28 -> 0 | AV30: =V30*FINANZAS!$J28 -> 0 | AW30: =W30*FINANZAS!$J28 -> 0 | AX30: =X30*FINANZAS!$J28 -> 0 | AY30: =Y30*FINANZAS!$J28 -> 0 | AZ30: =Z30*FINANZAS!$J28 -> 0 | BA30: =AA30*FINANZAS!$J28 -> 0 | BB30: =AB30*FINANZAS!$J28 -> 0 | BC30: =AC30*FINANZAS!$J28 -> 0 | BD30: =AD30*FINANZAS!$J28 -> 0 | BF30: =IFERROR(D30*FINANZAS!$N28,0) -> 0 | BG30: =IFERROR(E30*FINANZAS!$N28,0) -> 0 | BH30: =IFERROR(F30*FINANZAS!$N28,0) -> 0 | BI30: =IFERROR(G30*FINANZAS!$N28,0) -> 0 | BJ30: =IFERROR(H30*FINANZAS!$N28,0) -> 0 | BK30: =IFERROR(I30*FINANZAS!$N28,0) -> 0 | BL30: =IFERROR(J30*FINANZAS!$N28,0) -> 0 | BM30: =IFERROR(K30*FINANZAS!$N28,0) -> 0 | BN30: =IFERROR(L30*FINANZAS!$N28,0) -> 0 | BO30: =IFERROR(M30*FINANZAS!$N28,0) -> 0 | BP30: =IFERROR(N30*FINANZAS!$N28,0) -> 0 | BQ30: =IFERROR(O30*FINANZAS!$N28,0) -> 0
C31: =IF(FINANZAS!C29="","",FINANZAS!C29) ->  | P31: 0 | S31: =IFERROR(D31*FINANZAS!$K29,0) -> 0 | T31: =IFERROR(E31*FINANZAS!$K29,0) -> 0 | U31: =IFERROR(F31*FINANZAS!$K29,0) -> 0 | V31: =IFERROR(G31*FINANZAS!$K29,0) -> 0 | W31: =IFERROR(H31*FINANZAS!$K29,0) -> 0 | X31: =IFERROR(I31*FINANZAS!$K29,0) -> 0 | Y31: =IFERROR(J31*FINANZAS!$K29,0) -> 0 | Z31: =IFERROR(K31*FINANZAS!$K29,0) -> 0 | AA31: =IFERROR(L31*FINANZAS!$K29,0) -> 0 | AB31: =IFERROR(M31*FINANZAS!$K29,0) -> 0 | AC31: =IFERROR(N31*FINANZAS!$K29,0) -> 0 | AD31: =IFERROR(O31*FINANZAS!$K29,0) -> 0 | AF31: =IFERROR(D31*FINANZAS!$G29,0) -> 0 | AG31: =IFERROR(E31*FINANZAS!$G29,0) -> 0 | AH31: =IFERROR(F31*FINANZAS!$G29,0) -> 0 | AI31: =IFERROR(G31*FINANZAS!$G29,0) -> 0 | AJ31: =IFERROR(H31*FINANZAS!$G29,0) -> 0 | AK31: =IFERROR(I31*FINANZAS!$G29,0) -> 0 | AL31: =IFERROR(J31*FINANZAS!$G29,0) -> 0 | AM31: =IFERROR(K31*FINANZAS!$G29,0) -> 0 | AN31: =IFERROR(L31*FINANZAS!$G29,0) -> 0 | AO31: =IFERROR(M31*FINANZAS!$G29,0) -> 0 | AP31: =IFERROR(N31*FINANZAS!$G29,0) -> 0 | AQ31: =IFERROR(O31*FINANZAS!$G29,0) -> 0 | AS31: =S31*FINANZAS!$J29 -> 0 | AT31: =T31*FINANZAS!$J29 -> 0 | AU31: =U31*FINANZAS!$J29 -> 0 | AV31: =V31*FINANZAS!$J29 -> 0 | AW31: =W31*FINANZAS!$J29 -> 0 | AX31: =X31*FINANZAS!$J29 -> 0 | AY31: =Y31*FINANZAS!$J29 -> 0 | AZ31: =Z31*FINANZAS!$J29 -> 0 | BA31: =AA31*FINANZAS!$J29 -> 0 | BB31: =AB31*FINANZAS!$J29 -> 0 | BC31: =AC31*FINANZAS!$J29 -> 0 | BD31: =AD31*FINANZAS!$J29 -> 0 | BF31: =IFERROR(D31*FINANZAS!$N29,0) -> 0 | BG31: =IFERROR(E31*FINANZAS!$N29,0) -> 0 | BH31: =IFERROR(F31*FINANZAS!$N29,0) -> 0 | BI31: =IFERROR(G31*FINANZAS!$N29,0) -> 0 | BJ31: =IFERROR(H31*FINANZAS!$N29,0) -> 0 | BK31: =IFERROR(I31*FINANZAS!$N29,0) -> 0 | BL31: =IFERROR(J31*FINANZAS!$N29,0) -> 0 | BM31: =IFERROR(K31*FINANZAS!$N29,0) -> 0 | BN31: =IFERROR(L31*FINANZAS!$N29,0) -> 0 | BO31: =IFERROR(M31*FINANZAS!$N29,0) -> 0 | BP31: =IFERROR(N31*FINANZAS!$N29,0) -> 0 | BQ31: =IFERROR(O31*FINANZAS!$N29,0) -> 0
C32: =IF(FINANZAS!C30="","",FINANZAS!C30) ->  | P32: 0 | S32: =IFERROR(D32*FINANZAS!$K30,0) -> 0 | T32: =IFERROR(E32*FINANZAS!$K30,0) -> 0 | U32: =IFERROR(F32*FINANZAS!$K30,0) -> 0 | V32: =IFERROR(G32*FINANZAS!$K30,0) -> 0 | W32: =IFERROR(H32*FINANZAS!$K30,0) -> 0 | X32: =IFERROR(I32*FINANZAS!$K30,0) -> 0 | Y32: =IFERROR(J32*FINANZAS!$K30,0) -> 0 | Z32: =IFERROR(K32*FINANZAS!$K30,0) -> 0 | AA32: =IFERROR(L32*FINANZAS!$K30,0) -> 0 | AB32: =IFERROR(M32*FINANZAS!$K30,0) -> 0 | AC32: =IFERROR(N32*FINANZAS!$K30,0) -> 0 | AD32: =IFERROR(O32*FINANZAS!$K30,0) -> 0 | AF32: =IFERROR(D32*FINANZAS!$G30,0) -> 0 | AG32: =IFERROR(E32*FINANZAS!$G30,0) -> 0 | AH32: =IFERROR(F32*FINANZAS!$G30,0) -> 0 | AI32: =IFERROR(G32*FINANZAS!$G30,0) -> 0 | AJ32: =IFERROR(H32*FINANZAS!$G30,0) -> 0 | AK32: =IFERROR(I32*FINANZAS!$G30,0) -> 0 | AL32: =IFERROR(J32*FINANZAS!$G30,0) -> 0 | AM32: =IFERROR(K32*FINANZAS!$G30,0) -> 0 | AN32: =IFERROR(L32*FINANZAS!$G30,0) -> 0 | AO32: =IFERROR(M32*FINANZAS!$G30,0) -> 0 | AP32: =IFERROR(N32*FINANZAS!$G30,0) -> 0 | AQ32: =IFERROR(O32*FINANZAS!$G30,0) -> 0 | AS32: =S32*FINANZAS!$J30 -> 0 | AT32: =T32*FINANZAS!$J30 -> 0 | AU32: =U32*FINANZAS!$J30 -> 0 | AV32: =V32*FINANZAS!$J30 -> 0 | AW32: =W32*FINANZAS!$J30 -> 0 | AX32: =X32*FINANZAS!$J30 -> 0 | AY32: =Y32*FINANZAS!$J30 -> 0 | AZ32: =Z32*FINANZAS!$J30 -> 0 | BA32: =AA32*FINANZAS!$J30 -> 0 | BB32: =AB32*FINANZAS!$J30 -> 0 | BC32: =AC32*FINANZAS!$J30 -> 0 | BD32: =AD32*FINANZAS!$J30 -> 0 | BF32: =IFERROR(D32*FINANZAS!$N30,0) -> 0 | BG32: =IFERROR(E32*FINANZAS!$N30,0) -> 0 | BH32: =IFERROR(F32*FINANZAS!$N30,0) -> 0 | BI32: =IFERROR(G32*FINANZAS!$N30,0) -> 0 | BJ32: =IFERROR(H32*FINANZAS!$N30,0) -> 0 | BK32: =IFERROR(I32*FINANZAS!$N30,0) -> 0 | BL32: =IFERROR(J32*FINANZAS!$N30,0) -> 0 | BM32: =IFERROR(K32*FINANZAS!$N30,0) -> 0 | BN32: =IFERROR(L32*FINANZAS!$N30,0) -> 0 | BO32: =IFERROR(M32*FINANZAS!$N30,0) -> 0 | BP32: =IFERROR(N32*FINANZAS!$N30,0) -> 0 | BQ32: =IFERROR(O32*FINANZAS!$N30,0) -> 0
C33: =IF(FINANZAS!C31="","",FINANZAS!C31) ->  | P33: 0 | S33: =IFERROR(D33*FINANZAS!$K31,0) -> 0 | T33: =IFERROR(E33*FINANZAS!$K31,0) -> 0 | U33: =IFERROR(F33*FINANZAS!$K31,0) -> 0 | V33: =IFERROR(G33*FINANZAS!$K31,0) -> 0 | W33: =IFERROR(H33*FINANZAS!$K31,0) -> 0 | X33: =IFERROR(I33*FINANZAS!$K31,0) -> 0 | Y33: =IFERROR(J33*FINANZAS!$K31,0) -> 0 | Z33: =IFERROR(K33*FINANZAS!$K31,0) -> 0 | AA33: =IFERROR(L33*FINANZAS!$K31,0) -> 0 | AB33: =IFERROR(M33*FINANZAS!$K31,0) -> 0 | AC33: =IFERROR(N33*FINANZAS!$K31,0) -> 0 | AD33: =IFERROR(O33*FINANZAS!$K31,0) -> 0 | AF33: =IFERROR(D33*FINANZAS!$G31,0) -> 0 | AG33: =IFERROR(E33*FINANZAS!$G31,0) -> 0 | AH33: =IFERROR(F33*FINANZAS!$G31,0) -> 0 | AI33: =IFERROR(G33*FINANZAS!$G31,0) -> 0 | AJ33: =IFERROR(H33*FINANZAS!$G31,0) -> 0 | AK33: =IFERROR(I33*FINANZAS!$G31,0) -> 0 | AL33: =IFERROR(J33*FINANZAS!$G31,0) -> 0 | AM33: =IFERROR(K33*FINANZAS!$G31,0) -> 0 | AN33: =IFERROR(L33*FINANZAS!$G31,0) -> 0 | AO33: =IFERROR(M33*FINANZAS!$G31,0) -> 0 | AP33: =IFERROR(N33*FINANZAS!$G31,0) -> 0 | AQ33: =IFERROR(O33*FINANZAS!$G31,0) -> 0 | AS33: =S33*FINANZAS!$J31 -> 0 | AT33: =T33*FINANZAS!$J31 -> 0 | AU33: =U33*FINANZAS!$J31 -> 0 | AV33: =V33*FINANZAS!$J31 -> 0 | AW33: =W33*FINANZAS!$J31 -> 0 | AX33: =X33*FINANZAS!$J31 -> 0 | AY33: =Y33*FINANZAS!$J31 -> 0 | AZ33: =Z33*FINANZAS!$J31 -> 0 | BA33: =AA33*FINANZAS!$J31 -> 0 | BB33: =AB33*FINANZAS!$J31 -> 0 | BC33: =AC33*FINANZAS!$J31 -> 0 | BD33: =AD33*FINANZAS!$J31 -> 0 | BF33: =IFERROR(D33*FINANZAS!$N31,0) -> 0 | BG33: =IFERROR(E33*FINANZAS!$N31,0) -> 0 | BH33: =IFERROR(F33*FINANZAS!$N31,0) -> 0 | BI33: =IFERROR(G33*FINANZAS!$N31,0) -> 0 | BJ33: =IFERROR(H33*FINANZAS!$N31,0) -> 0 | BK33: =IFERROR(I33*FINANZAS!$N31,0) -> 0 | BL33: =IFERROR(J33*FINANZAS!$N31,0) -> 0 | BM33: =IFERROR(K33*FINANZAS!$N31,0) -> 0 | BN33: =IFERROR(L33*FINANZAS!$N31,0) -> 0 | BO33: =IFERROR(M33*FINANZAS!$N31,0) -> 0 | BP33: =IFERROR(N33*FINANZAS!$N31,0) -> 0 | BQ33: =IFERROR(O33*FINANZAS!$N31,0) -> 0
C34: =IF(FINANZAS!C32="","",FINANZAS!C32) ->  | P34: 0 | S34: =IFERROR(D34*FINANZAS!$K32,0) -> 0 | T34: =IFERROR(E34*FINANZAS!$K32,0) -> 0 | U34: =IFERROR(F34*FINANZAS!$K32,0) -> 0 | V34: =IFERROR(G34*FINANZAS!$K32,0) -> 0 | W34: =IFERROR(H34*FINANZAS!$K32,0) -> 0 | X34: =IFERROR(I34*FINANZAS!$K32,0) -> 0 | Y34: =IFERROR(J34*FINANZAS!$K32,0) -> 0 | Z34: =IFERROR(K34*FINANZAS!$K32,0) -> 0 | AA34: =IFERROR(L34*FINANZAS!$K32,0) -> 0 | AB34: =IFERROR(M34*FINANZAS!$K32,0) -> 0 | AC34: =IFERROR(N34*FINANZAS!$K32,0) -> 0 | AD34: =IFERROR(O34*FINANZAS!$K32,0) -> 0 | AF34: =IFERROR(D34*FINANZAS!$G32,0) -> 0 | AG34: =IFERROR(E34*FINANZAS!$G32,0) -> 0 | AH34: =IFERROR(F34*FINANZAS!$G32,0) -> 0 | AI34: =IFERROR(G34*FINANZAS!$G32,0) -> 0 | AJ34: =IFERROR(H34*FINANZAS!$G32,0) -> 0 | AK34: =IFERROR(I34*FINANZAS!$G32,0) -> 0 | AL34: =IFERROR(J34*FINANZAS!$G32,0) -> 0 | AM34: =IFERROR(K34*FINANZAS!$G32,0) -> 0 | AN34: =IFERROR(L34*FINANZAS!$G32,0) -> 0 | AO34: =IFERROR(M34*FINANZAS!$G32,0) -> 0 | AP34: =IFERROR(N34*FINANZAS!$G32,0) -> 0 | AQ34: =IFERROR(O34*FINANZAS!$G32,0) -> 0 | AS34: =S34*FINANZAS!$J32 -> 0 | AT34: =T34*FINANZAS!$J32 -> 0 | AU34: =U34*FINANZAS!$J32 -> 0 | AV34: =V34*FINANZAS!$J32 -> 0 | AW34: =W34*FINANZAS!$J32 -> 0 | AX34: =X34*FINANZAS!$J32 -> 0 | AY34: =Y34*FINANZAS!$J32 -> 0 | AZ34: =Z34*FINANZAS!$J32 -> 0 | BA34: =AA34*FINANZAS!$J32 -> 0 | BB34: =AB34*FINANZAS!$J32 -> 0 | BC34: =AC34*FINANZAS!$J32 -> 0 | BD34: =AD34*FINANZAS!$J32 -> 0 | BF34: =IFERROR(D34*FINANZAS!$N32,0) -> 0 | BG34: =IFERROR(E34*FINANZAS!$N32,0) -> 0 | BH34: =IFERROR(F34*FINANZAS!$N32,0) -> 0 | BI34: =IFERROR(G34*FINANZAS!$N32,0) -> 0 | BJ34: =IFERROR(H34*FINANZAS!$N32,0) -> 0 | BK34: =IFERROR(I34*FINANZAS!$N32,0) -> 0 | BL34: =IFERROR(J34*FINANZAS!$N32,0) -> 0 | BM34: =IFERROR(K34*FINANZAS!$N32,0) -> 0 | BN34: =IFERROR(L34*FINANZAS!$N32,0) -> 0 | BO34: =IFERROR(M34*FINANZAS!$N32,0) -> 0 | BP34: =IFERROR(N34*FINANZAS!$N32,0) -> 0 | BQ34: =IFERROR(O34*FINANZAS!$N32,0) -> 0
C35: =IF(FINANZAS!C33="","",FINANZAS!C33) ->  | P35: 0 | S35: =IFERROR(D35*FINANZAS!$K33,0) -> 0 | T35: =IFERROR(E35*FINANZAS!$K33,0) -> 0 | U35: =IFERROR(F35*FINANZAS!$K33,0) -> 0 | V35: =IFERROR(G35*FINANZAS!$K33,0) -> 0 | W35: =IFERROR(H35*FINANZAS!$K33,0) -> 0 | X35: =IFERROR(I35*FINANZAS!$K33,0) -> 0 | Y35: =IFERROR(J35*FINANZAS!$K33,0) -> 0 | Z35: =IFERROR(K35*FINANZAS!$K33,0) -> 0 | AA35: =IFERROR(L35*FINANZAS!$K33,0) -> 0 | AB35: =IFERROR(M35*FINANZAS!$K33,0) -> 0 | AC35: =IFERROR(N35*FINANZAS!$K33,0) -> 0 | AD35: =IFERROR(O35*FINANZAS!$K33,0) -> 0 | AF35: =IFERROR(D35*FINANZAS!$G33,0) -> 0 | AG35: =IFERROR(E35*FINANZAS!$G33,0) -> 0 | AH35: =IFERROR(F35*FINANZAS!$G33,0) -> 0 | AI35: =IFERROR(G35*FINANZAS!$G33,0) -> 0 | AJ35: =IFERROR(H35*FINANZAS!$G33,0) -> 0 | AK35: =IFERROR(I35*FINANZAS!$G33,0) -> 0 | AL35: =IFERROR(J35*FINANZAS!$G33,0) -> 0 | AM35: =IFERROR(K35*FINANZAS!$G33,0) -> 0 | AN35: =IFERROR(L35*FINANZAS!$G33,0) -> 0 | AO35: =IFERROR(M35*FINANZAS!$G33,0) -> 0 | AP35: =IFERROR(N35*FINANZAS!$G33,0) -> 0 | AQ35: =IFERROR(O35*FINANZAS!$G33,0) -> 0 | AS35: =S35*FINANZAS!$J33 -> 0 | AT35: =T35*FINANZAS!$J33 -> 0 | AU35: =U35*FINANZAS!$J33 -> 0 | AV35: =V35*FINANZAS!$J33 -> 0 | AW35: =W35*FINANZAS!$J33 -> 0 | AX35: =X35*FINANZAS!$J33 -> 0 | AY35: =Y35*FINANZAS!$J33 -> 0 | AZ35: =Z35*FINANZAS!$J33 -> 0 | BA35: =AA35*FINANZAS!$J33 -> 0 | BB35: =AB35*FINANZAS!$J33 -> 0 | BC35: =AC35*FINANZAS!$J33 -> 0 | BD35: =AD35*FINANZAS!$J33 -> 0 | BF35: =IFERROR(D35*FINANZAS!$N33,0) -> 0 | BG35: =IFERROR(E35*FINANZAS!$N33,0) -> 0 | BH35: =IFERROR(F35*FINANZAS!$N33,0) -> 0 | BI35: =IFERROR(G35*FINANZAS!$N33,0) -> 0 | BJ35: =IFERROR(H35*FINANZAS!$N33,0) -> 0 | BK35: =IFERROR(I35*FINANZAS!$N33,0) -> 0 | BL35: =IFERROR(J35*FINANZAS!$N33,0) -> 0 | BM35: =IFERROR(K35*FINANZAS!$N33,0) -> 0 | BN35: =IFERROR(L35*FINANZAS!$N33,0) -> 0 | BO35: =IFERROR(M35*FINANZAS!$N33,0) -> 0 | BP35: =IFERROR(N35*FINANZAS!$N33,0) -> 0 | BQ35: =IFERROR(O35*FINANZAS!$N33,0) -> 0
C36: =IF(FINANZAS!C34="","",FINANZAS!C34) ->  | P36: 0 | S36: =IFERROR(D36*FINANZAS!$K34,0) -> 0 | T36: =IFERROR(E36*FINANZAS!$K34,0) -> 0 | U36: =IFERROR(F36*FINANZAS!$K34,0) -> 0 | V36: =IFERROR(G36*FINANZAS!$K34,0) -> 0 | W36: =IFERROR(H36*FINANZAS!$K34,0) -> 0 | X36: =IFERROR(I36*FINANZAS!$K34,0) -> 0 | Y36: =IFERROR(J36*FINANZAS!$K34,0) -> 0 | Z36: =IFERROR(K36*FINANZAS!$K34,0) -> 0 | AA36: =IFERROR(L36*FINANZAS!$K34,0) -> 0 | AB36: =IFERROR(M36*FINANZAS!$K34,0) -> 0 | AC36: =IFERROR(N36*FINANZAS!$K34,0) -> 0 | AD36: =IFERROR(O36*FINANZAS!$K34,0) -> 0 | AF36: =IFERROR(D36*FINANZAS!$G34,0) -> 0 | AG36: =IFERROR(E36*FINANZAS!$G34,0) -> 0 | AH36: =IFERROR(F36*FINANZAS!$G34,0) -> 0 | AI36: =IFERROR(G36*FINANZAS!$G34,0) -> 0 | AJ36: =IFERROR(H36*FINANZAS!$G34,0) -> 0 | AK36: =IFERROR(I36*FINANZAS!$G34,0) -> 0 | AL36: =IFERROR(J36*FINANZAS!$G34,0) -> 0 | AM36: =IFERROR(K36*FINANZAS!$G34,0) -> 0 | AN36: =IFERROR(L36*FINANZAS!$G34,0) -> 0 | AO36: =IFERROR(M36*FINANZAS!$G34,0) -> 0 | AP36: =IFERROR(N36*FINANZAS!$G34,0) -> 0 | AQ36: =IFERROR(O36*FINANZAS!$G34,0) -> 0 | AS36: =S36*FINANZAS!$J34 -> 0 | AT36: =T36*FINANZAS!$J34 -> 0 | AU36: =U36*FINANZAS!$J34 -> 0 | AV36: =V36*FINANZAS!$J34 -> 0 | AW36: =W36*FINANZAS!$J34 -> 0 | AX36: =X36*FINANZAS!$J34 -> 0 | AY36: =Y36*FINANZAS!$J34 -> 0 | AZ36: =Z36*FINANZAS!$J34 -> 0 | BA36: =AA36*FINANZAS!$J34 -> 0 | BB36: =AB36*FINANZAS!$J34 -> 0 | BC36: =AC36*FINANZAS!$J34 -> 0 | BD36: =AD36*FINANZAS!$J34 -> 0 | BF36: =IFERROR(D36*FINANZAS!$N34,0) -> 0 | BG36: =IFERROR(E36*FINANZAS!$N34,0) -> 0 | BH36: =IFERROR(F36*FINANZAS!$N34,0) -> 0 | BI36: =IFERROR(G36*FINANZAS!$N34,0) -> 0 | BJ36: =IFERROR(H36*FINANZAS!$N34,0) -> 0 | BK36: =IFERROR(I36*FINANZAS!$N34,0) -> 0 | BL36: =IFERROR(J36*FINANZAS!$N34,0) -> 0 | BM36: =IFERROR(K36*FINANZAS!$N34,0) -> 0 | BN36: =IFERROR(L36*FINANZAS!$N34,0) -> 0 | BO36: =IFERROR(M36*FINANZAS!$N34,0) -> 0 | BP36: =IFERROR(N36*FINANZAS!$N34,0) -> 0 | BQ36: =IFERROR(O36*FINANZAS!$N34,0) -> 0
C37: =IF(FINANZAS!C35="","",FINANZAS!C35) ->  | P37: 0 | S37: =IFERROR(D37*FINANZAS!$K35,0) -> 0 | T37: =IFERROR(E37*FINANZAS!$K35,0) -> 0 | U37: =IFERROR(F37*FINANZAS!$K35,0) -> 0 | V37: =IFERROR(G37*FINANZAS!$K35,0) -> 0 | W37: =IFERROR(H37*FINANZAS!$K35,0) -> 0 | X37: =IFERROR(I37*FINANZAS!$K35,0) -> 0 | Y37: =IFERROR(J37*FINANZAS!$K35,0) -> 0 | Z37: =IFERROR(K37*FINANZAS!$K35,0) -> 0 | AA37: =IFERROR(L37*FINANZAS!$K35,0) -> 0 | AB37: =IFERROR(M37*FINANZAS!$K35,0) -> 0 | AC37: =IFERROR(N37*FINANZAS!$K35,0) -> 0 | AD37: =IFERROR(O37*FINANZAS!$K35,0) -> 0 | AF37: =IFERROR(D37*FINANZAS!$G35,0) -> 0 | AG37: =IFERROR(E37*FINANZAS!$G35,0) -> 0 | AH37: =IFERROR(F37*FINANZAS!$G35,0) -> 0 | AI37: =IFERROR(G37*FINANZAS!$G35,0) -> 0 | AJ37: =IFERROR(H37*FINANZAS!$G35,0) -> 0 | AK37: =IFERROR(I37*FINANZAS!$G35,0) -> 0 | AL37: =IFERROR(J37*FINANZAS!$G35,0) -> 0 | AM37: =IFERROR(K37*FINANZAS!$G35,0) -> 0 | AN37: =IFERROR(L37*FINANZAS!$G35,0) -> 0 | AO37: =IFERROR(M37*FINANZAS!$G35,0) -> 0 | AP37: =IFERROR(N37*FINANZAS!$G35,0) -> 0 | AQ37: =IFERROR(O37*FINANZAS!$G35,0) -> 0 | AS37: =S37*FINANZAS!$J35 -> 0 | AT37: =T37*FINANZAS!$J35 -> 0 | AU37: =U37*FINANZAS!$J35 -> 0 | AV37: =V37*FINANZAS!$J35 -> 0 | AW37: =W37*FINANZAS!$J35 -> 0 | AX37: =X37*FINANZAS!$J35 -> 0 | AY37: =Y37*FINANZAS!$J35 -> 0 | AZ37: =Z37*FINANZAS!$J35 -> 0 | BA37: =AA37*FINANZAS!$J35 -> 0 | BB37: =AB37*FINANZAS!$J35 -> 0 | BC37: =AC37*FINANZAS!$J35 -> 0 | BD37: =AD37*FINANZAS!$J35 -> 0 | BF37: =IFERROR(D37*FINANZAS!$N35,0) -> 0 | BG37: =IFERROR(E37*FINANZAS!$N35,0) -> 0 | BH37: =IFERROR(F37*FINANZAS!$N35,0) -> 0 | BI37: =IFERROR(G37*FINANZAS!$N35,0) -> 0 | BJ37: =IFERROR(H37*FINANZAS!$N35,0) -> 0 | BK37: =IFERROR(I37*FINANZAS!$N35,0) -> 0 | BL37: =IFERROR(J37*FINANZAS!$N35,0) -> 0 | BM37: =IFERROR(K37*FINANZAS!$N35,0) -> 0 | BN37: =IFERROR(L37*FINANZAS!$N35,0) -> 0 | BO37: =IFERROR(M37*FINANZAS!$N35,0) -> 0 | BP37: =IFERROR(N37*FINANZAS!$N35,0) -> 0 | BQ37: =IFERROR(O37*FINANZAS!$N35,0) -> 0
C38: =IF(FINANZAS!C36="","",FINANZAS!C36) ->  | P38: 0 | S38: =IFERROR(D38*FINANZAS!$K36,0) -> 0 | T38: =IFERROR(E38*FINANZAS!$K36,0) -> 0 | U38: =IFERROR(F38*FINANZAS!$K36,0) -> 0 | V38: =IFERROR(G38*FINANZAS!$K36,0) -> 0 | W38: =IFERROR(H38*FINANZAS!$K36,0) -> 0 | X38: =IFERROR(I38*FINANZAS!$K36,0) -> 0 | Y38: =IFERROR(J38*FINANZAS!$K36,0) -> 0 | Z38: =IFERROR(K38*FINANZAS!$K36,0) -> 0 | AA38: =IFERROR(L38*FINANZAS!$K36,0) -> 0 | AB38: =IFERROR(M38*FINANZAS!$K36,0) -> 0 | AC38: =IFERROR(N38*FINANZAS!$K36,0) -> 0 | AD38: =IFERROR(O38*FINANZAS!$K36,0) -> 0 | AF38: =D38*FINANZAS!$E$6 -> 0 | AG38: =E38*FINANZAS!$E$6 -> 0 | AH38: =F38*FINANZAS!$E$6 -> 0 | AI38: =G38*FINANZAS!$E$6 -> 0 | AJ38: =H38*FINANZAS!$E$6 -> 0 | AK38: =I38*FINANZAS!$E$6 -> 0 | AL38: =J38*FINANZAS!$E$6 -> 0 | AM38: =K38*FINANZAS!$E$6 -> 0 | AN38: =L38*FINANZAS!$E$6 -> 0 | AO38: =M38*FINANZAS!$E$6 -> 0 | AP38: =N38*FINANZAS!$E$6 -> 0 | AQ38: =O38*FINANZAS!$E$6 -> 0 | AS38: =S38*FINANZAS!$J36 -> 0 | AT38: =T38*FINANZAS!$J36 -> 0 | AU38: =U38*FINANZAS!$J36 -> 0 | AV38: =V38*FINANZAS!$J36 -> 0 | AW38: =W38*FINANZAS!$J36 -> 0 | AX38: =X38*FINANZAS!$J36 -> 0 | AY38: =Y38*FINANZAS!$J36 -> 0 | AZ38: =Z38*FINANZAS!$J36 -> 0 | BA38: =AA38*FINANZAS!$J36 -> 0 | BB38: =AB38*FINANZAS!$J36 -> 0 | BC38: =AC38*FINANZAS!$J36 -> 0 | BD38: =AD38*FINANZAS!$J36 -> 0 | BF38: =IFERROR(D38*FINANZAS!$N36,0) -> 0 | BG38: =IFERROR(E38*FINANZAS!$N36,0) -> 0 | BH38: =IFERROR(F38*FINANZAS!$N36,0) -> 0 | BI38: =IFERROR(G38*FINANZAS!$N36,0) -> 0 | BJ38: =IFERROR(H38*FINANZAS!$N36,0) -> 0 | BK38: =IFERROR(I38*FINANZAS!$N36,0) -> 0 | BL38: =IFERROR(J38*FINANZAS!$N36,0) -> 0 | BM38: =IFERROR(K38*FINANZAS!$N36,0) -> 0 | BN38: =IFERROR(L38*FINANZAS!$N36,0) -> 0 | BO38: =IFERROR(M38*FINANZAS!$N36,0) -> 0 | BP38: =IFERROR(N38*FINANZAS!$N36,0) -> 0 | BQ38: =IFERROR(O38*FINANZAS!$N36,0) -> 0

Sheet PROJ3
C4: Seleccione el año -> | D4: resumen | E4: 1 año | F4: 2 años | G4: 3 años | H4: 4 años | I4: 5 años
C6: Proyecte una cantidad de ventas realizadas por cada producto o servicio en los meses siguientes | S6: Proyección de ingresos | AF6: Los costos variables | AS6: impuestos | BF6: Margen de contribución
C7: Descripción | D7: Enero | E7: Febrero | F7: Marzo | G7: Abril | H7: Mayo | I7: Junio | J7: Julio | K7: Agosto | L7: Septiembre | M7: Octubre | N7: Noviembre | O7: Diciembre | P7: Total | R7: repetición | S7: enero | T7: febrero | U7: marzo | V7: abril | W7: mayo | X7: junio | Y7: julio | Z7: agosto | AA7: septiembre | AB7: octubre | AC7: noviembre | AD7: diciembre | AF7: enero | AG7: febrero | AH7: marzo | AI7: abril | AJ7: mayo | AK7: junio | AL7: julio | AM7: agosto | AN7: septiembre | AO7: octubre | AP7: noviembre | AQ7: diciembre | AS7: enero | AT7: febrero | AU7: marzo | AV7: abril | AW7: mayo | AX7: junio | AY7: julio | AZ7: agosto | BA7: septiembre | BB7: octubre | BC7: noviembre | BD7: diciembre | BF7: enero | BG7: febrero | BH7: marzo | BI7: abril | BJ7: mayo | BK7: junio | BL7: julio | BM7: agosto | BN7: septiembre | BO7: octubre | BP7: noviembre | BQ7: diciembre
C8: =IF(FINANZAS!C6="","",FINANZAS!C6) -> Café Anibalito | D8: 400 | E8: 500 | F8: 400 | G8: 500 | H8: 600 | I8: 700 | J8: 400 | K8: 500 | L8: 500 | M8: 500 | N8: 400 | O8: 700 | P8: =SUM(S8:AD8) -> 2332894.475 | R8: =C8 -> Café Anibalito | S8: =IFERROR(D8*FINANZAS!$K6,0) -> 152976.6869 | T8: =IFERROR(E8*FINANZAS!$K6,0) -> 191220.8586 | U8: =IFERROR(F8*FINANZAS!$K6,0) -> 152976.6869 | V8: =IFERROR(G8*FINANZAS!$K6,0) -> 191220.8586 | W8: =IFERROR(H8*FINANZAS!$K6,0) -> 229465.0303 | X8: =IFERROR(I8*FINANZAS!$K6,0) -> 267709.202 | Y8: =IFERROR(J8*FINANZAS!$K6,0) -> 152976.6869 | Z8: =IFERROR(K8*FINANZAS!$K6,0) -> 191220.8586 | AA8: =IFERROR(L8*FINANZAS!$K6,0) -> 191220.8586 | AB8: =IFERROR(M8*FINANZAS!$K6,0) -> 191220.8586 | AC8: =IFERROR(N8*FINANZAS!$K6,0) -> 152976.6869 | AD8: =IFERROR(O8*FINANZAS!$K6,0) -> 267709.202 | AF8: =IFERROR(D8*FINANZAS!$G6,0) -> 55751.50366 | AG8: =IFERROR(E8*FINANZAS!$G6,0) -> 69689.37958 | AH8: =IFERROR(F8*FINANZAS!$G6,0) -> 55751.50366 | AI8: =IFERROR(G8*FINANZAS!$G6,0) -> 69689.37958 | AJ8: =IFERROR(H8*FINANZAS!$G6,0) -> 83627.25549 | AK8: =IFERROR(I8*FINANZAS!$G6,0) -> 97565.13141 | AL8: =IFERROR(J8*FINANZAS!$G6,0) -> 55751.50366 | AM8: =IFERROR(K8*FINANZAS!$G6,0) -> 69689.37958 | AN8: =IFERROR(L8*FINANZAS!$G6,0) -> 69689.37958 | AO8: =IFERROR(M8*FINANZAS!$G6,0) -> 69689.37958 | AP8: =IFERROR(N8*FINANZAS!$G6,0) -> 55751.50366 | AQ8: =IFERROR(O8*FINANZAS!$G6,0) -> 97565.13141 | AS8: =S8*FINANZAS!$J6 -> 27535.80364 | AT8: =T8*FINANZAS!$J6 -> 34419.75455 | AU8: =U8*FINANZAS!$J6 -> 27535.80364 | AV8: =V8*FINANZAS!$J6 -> 34419.75455 | AW8: =W8*FINANZAS!$J6 -> 41303.70546 | AX8: =X8*FINANZAS!$J6 -> 48187.65637 | AY8: =Y8*FINANZAS!$J6 -> 27535.80364 | AZ8: =Z8*FINANZAS!$J6 -> 34419.75455 | BA8: =AA8*FINANZAS!$J6 -> 34419.75455 | BB8: =AB8*FINANZAS!$J6 -> 34419.75455 | BC8: =AC8*FINANZAS!$J6 -> 27535.80364 | BD8: =AD8*FINANZAS!$J6 -> 48187.65637 | BF8: =IFERROR(D8*FINANZAS!$N6,0) -> 69689.37958 | BG8: =IFERROR(E8*FINANZAS!$N6,0) -> 87111.72447 | BH8: =IFERROR(F8*FINANZAS!$N6,0) -> 69689.37958 | BI8: =IFERROR(G8*FINANZAS!$N6,0) -> 87111.72447 | BJ8: =IFERROR(H8*FINANZAS!$N6,0) -> 104534.0694 | BK8: =IFERROR(I8*FINANZAS!$N6,0) -> 121956.4143 | BL8: =IFERROR(J8*FINANZAS!$N6,0) -> 69689.37958 | BM8: =IFERROR(K8*FINANZAS!$N6,0) -> 87111.72447 | BN8: =IFERROR(L8*FINANZAS!$N6,0) -> 87111.72447 | BO8: =IFERROR(M8*FINANZAS!$N6,0) -> 87111.72447 | BP8: =IFERROR(N8*FINANZAS!$N6,0) -> 69689.37958 | BQ8: =IFERROR(O8*FINANZAS!$N6,0) -> 121956.4143
C9: =IF(FINANZAS!C7="","",FINANZAS!C7) -> café en sobre | D9: 300 | E9: 300 | F9: 300 | G9: 300 | H9: 300 | I9: 300 | J9: 300 | K9: 300 | L9: 300 | M9: 300 | N9: 300 | O9: 300 | P9: =SUM(S9:AD9) -> 131707.3171 | R9: =C9 -> café en sobre | S9: =IFERROR(D9*FINANZAS!$K7,0) -> 10975.60976 | T9: =IFERROR(E9*FINANZAS!$K7,0) -> 10975.60976 | U9: =IFERROR(F9*FINANZAS!$K7,0) -> 10975.60976 | V9: =IFERROR(G9*FINANZAS!$K7,0) -> 10975.60976 | W9: =IFERROR(H9*FINANZAS!$K7,0) -> 10975.60976 | X9: =IFERROR(I9*FINANZAS!$K7,0) -> 10975.60976 | Y9: =IFERROR(J9*FINANZAS!$K7,0) -> 10975.60976 | Z9: =IFERROR(K9*FINANZAS!$K7,0) -> 10975.60976 | AA9: =IFERROR(L9*FINANZAS!$K7,0) -> 10975.60976 | AB9: =IFERROR(M9*FINANZAS!$K7,0) -> 10975.60976 | AC9: =IFERROR(N9*FINANZAS!$K7,0) -> 10975.60976 | AD9: =IFERROR(O9*FINANZAS!$K7,0) -> 10975.60976 | AF9: =IFERROR(D9*FINANZAS!$G7,0) -> 7500 | AG9: =IFERROR(E9*FINANZAS!$G7,0) -> 7500 | AH9: =IFERROR(F9*FINANZAS!$G7,0) -> 7500 | AI9: =IFERROR(G9*FINANZAS!$G7,0) -> 7500 | AJ9: =IFERROR(H9*FINANZAS!$G7,0) -> 7500 | AK9: =IFERROR(I9*FINANZAS!$G7,0) -> 7500 | AL9: =IFERROR(J9*FINANZAS!$G7,0) -> 7500 | AM9: =IFERROR(K9*FINANZAS!$G7,0) -> 7500 | AN9: =IFERROR(L9*FINANZAS!$G7,0) -> 7500 | AO9: =IFERROR(M9*FINANZAS!$G7,0) -> 7500 | AP9: =IFERROR(N9*FINANZAS!$G7,0) -> 7500 | AQ9: =IFERROR(O9*FINANZAS!$G7,0) -> 7500 | AS9: =S9*FINANZAS!$J7 -> 1975.609756 | AT9: =T9*FINANZAS!$J7 -> 1975.609756 | AU9: =U9*FINANZAS!$J7 -> 1975.609756 | AV9: =V9*FINANZAS!$J7 -> 1975.609756 | AW9: =W9*FINANZAS!$J7 -> 1975.609756 | AX9: =X9*FINANZAS!$J7 -> 1975.609756 | AY9: =Y9*FINANZAS!$J7 -> 1975.609756 | AZ9: =Z9*FINANZAS!$J7 -> 1975.609756 | BA9: =AA9*FINANZAS!$J7 -> 1975.609756 | BB9: =AB9*FINANZAS!$J7 -> 1975.609756 | BC9: =AC9*FINANZAS!$J7 -> 1975.609756 | BD9: =AD9*FINANZAS!$J7 -> 1975.609756 | BF9: =IFERROR(D9*FINANZAS!$N7,0) -> 1500 | BG9: =IFERROR(E9*FINANZAS!$N7,0) -> 1500 | BH9: =IFERROR(F9*FINANZAS!$N7,0) -> 1500 | BI9: =IFERROR(G9*FINANZAS!$N7,0) -> 1500 | BJ9: =IFERROR(H9*FINANZAS!$N7,0) -> 1500 | BK9: =IFERROR(I9*FINANZAS!$N7,0) -> 1500 | BL9: =IFERROR(J9*FINANZAS!$N7,0) -> 1500 | BM9: =IFERROR(K9*FINANZAS!$N7,0) -> 1500 | BN9: =IFERROR(L9*FINANZAS!$N7,0) -> 1500 | BO9: =IFERROR(M9*FINANZAS!$N7,0) -> 1500 | BP9: =IFERROR(N9*FINANZAS!$N7,0) -> 1500 | BQ9: =IFERROR(O9*FINANZAS!$N7,0) -> 1500
C10: =IF(FINANZAS!C8="","",FINANZAS!C8) -> 1 | D10: 400 | E10: 500 | F10: 400 | G10: 500 | H10: 600 | I10: 700 | J10: 400 | K10: 500 | L10: 500 | M10: 500 | N10: 400 | O10: 700 | P10: 867214.6394 | R10: 1 | S10: =IFERROR(D10*FINANZAS!$K8,0) -> 56866.53373 | T10: =IFERROR(E10*FINANZAS!$K8,0) -> 71083.16717 | U10: =IFERROR(F10*FINANZAS!$K8,0) -> 56866.53373 | V10: =IFERROR(G10*FINANZAS!$K8,0) -> 71083.16717 | W10: =IFERROR(H10*FINANZAS!$K8,0) -> 85299.8006 | X10: =IFERROR(I10*FINANZAS!$K8,0) -> 99516.43403 | Y10: =IFERROR(J10*FINANZAS!$K8,0) -> 56866.53373 | Z10: =IFERROR(K10*FINANZAS!$K8,0) -> 71083.16717 | AA10: =IFERROR(L10*FINANZAS!$K8,0) -> 71083.16717 | AB10: =IFERROR(M10*FINANZAS!$K8,0) -> 71083.16717 | AC10: =IFERROR(N10*FINANZAS!$K8,0) -> 56866.53373 | AD10: =IFERROR(O10*FINANZAS!$K8,0) -> 99516.43403 | AF10: =IFERROR(D10*FINANZAS!$G8,0) -> 55751.50366 | AG10: =IFERROR(E10*FINANZAS!$G8,0) -> 69689.37958 | AH10: =IFERROR(F10*FINANZAS!$G8,0) -> 55751.50366 | AI10: =IFERROR(G10*FINANZAS!$G8,0) -> 69689.37958 | AJ10: =IFERROR(H10*FINANZAS!$G8,0) -> 83627.25549 | AK10: =IFERROR(I10*FINANZAS!$G8,0) -> 97565.13141 | AL10: =IFERROR(J10*FINANZAS!$G8,0) -> 55751.50366 | AM10: =IFERROR(K10*FINANZAS!$G8,0) -> 69689.37958 | AN10: =IFERROR(L10*FINANZAS!$G8,0) -> 69689.37958 | AO10: =IFERROR(M10*FINANZAS!$G8,0) -> 69689.37958 | AP10: =IFERROR(N10*FINANZAS!$G8,0) -> 55751.50366 | AQ10: =IFERROR(O10*FINANZAS!$G8,0) -> 97565.13141 | AS10: =S10*FINANZAS!$J8 -> 0 | AT10: =T10*FINANZAS!$J8 -> 0 | AU10: =U10*FINANZAS!$J8 -> 0 | AV10: =V10*FINANZAS!$J8 -> 0 | AW10: =W10*FINANZAS!$J8 -> 0 | AX10: =X10*FINANZAS!$J8 -> 0 | AY10: =Y10*FINANZAS!$J8 -> 0 | AZ10: =Z10*FINANZAS!$J8 -> 0 | BA10: =AA10*FINANZAS!$J8 -> 0 | BB10: =AB10*FINANZAS!$J8 -> 0 | BC10: =AC10*FINANZAS!$J8 -> 0 | BD10: =AD10*FINANZAS!$J8 -> 0 | BF10: =IFERROR(D10*FINANZAS!$N8,0) -> 1115.030073 | BG10: =IFERROR(E10*FINANZAS!$N8,0) -> 1393.787592 | BH10: =IFERROR(F10*FINANZAS!$N8,0) -> 1115.030073 | BI10: =IFERROR(G10*FINANZAS!$N8,0) -> 1393.787592 | BJ10: =IFERROR(H10*FINANZAS!$N8,0) -> 1672.54511 | BK10: =IFERROR(I10*FINANZAS!$N8,0) -> 1951.302628 | BL10: =IFERROR(J10*FINANZAS!$N8,0) -> 1115.030073 | BM10: =IFERROR(K10*FINANZAS!$N8,0) -> 1393.787592 | BN10: =IFERROR(L10*FINANZAS!$N8,0) -> 1393.787592 | BO10: =IFERROR(M10*FINANZAS!$N8,0) -> 1393.787592 | BP10: =IFERROR(N10*FINANZAS!$N8,0) -> 1115.030073 | BQ10: =IFERROR(O10*FINANZAS!$N8,0) -> 1951.302628
C11: =IF(FINANZAS!C9="","",FINANZAS!C9) -> 2 | D11: 300 | E11: 300 | F11: 300 | G11: 300 | H11: 300 | I11: 300 | J11: 300 | K11: 300 | L11: 300 | M11: 300 | N11: 300 | O11: 300 | P11: 92700 | R11: 2 | S11: =IFERROR(D11*FINANZAS!$K9,0) -> 7725 | T11: =IFERROR(E11*FINANZAS!$K9,0) -> 7725 | U11: =IFERROR(F11*FINANZAS!$K9,0) -> 7725 | V11: =IFERROR(G11*FINANZAS!$K9,0) -> 7725 | W11: =IFERROR(H11*FINANZAS!$K9,0) -> 7725 | X11: =IFERROR(I11*FINANZAS!$K9,0) -> 7725 | Y11: =IFERROR(J11*FINANZAS!$K9,0) -> 7725 | Z11: =IFERROR(K11*FINANZAS!$K9,0) -> 7725 | AA11: =IFERROR(L11*FINANZAS!$K9,0) -> 7725 | AB11: =IFERROR(M11*FINANZAS!$K9,0) -> 7725 | AC11: =IFERROR(N11*FINANZAS!$K9,0) -> 7725 | AD11: =IFERROR(O11*FINANZAS!$K9,0) -> 7725 | AF11: =IFERROR(D11*FINANZAS!$G9,0) -> 7500 | AG11: =IFERROR(E11*FINANZAS!$G9,0) -> 7500 | AH11: =IFERROR(F11*FINANZAS!$G9,0) -> 7500 | AI11: =IFERROR(G11*FINANZAS!$G9,0) -> 7500 | AJ11: =IFERROR(H11*FINANZAS!$G9,0) -> 7500 | AK11: =IFERROR(I11*FINANZAS!$G9,0) -> 7500 | AL11: =IFERROR(J11*FINANZAS!$G9,0) -> 7500 | AM11: =IFERROR(K11*FINANZAS!$G9,0) -> 7500 | AN11: =IFERROR(L11*FINANZAS!$G9,0) -> 7500 | AO11: =IFERROR(M11*FINANZAS!$G9,0) -> 7500 | AP11: =IFERROR(N11*FINANZAS!$G9,0) -> 7500 | AQ11: =IFERROR(O11*FINANZAS!$G9,0) -> 7500 | AS11: =S11*FINANZAS!$J9 -> 0 | AT11: =T11*FINANZAS!$J9 -> 0 | AU11: =U11*FINANZAS!$J9 -> 0 | AV11: =V11*FINANZAS!$J9 -> 0 | AW11: =W11*FINANZAS!$J9 -> 0 | AX11: =X11*FINANZAS!$J9 -> 0 | AY11: =Y11*FINANZAS!$J9 -> 0 | AZ11: =Z11*FINANZAS!$J9 -> 0 | BA11: =AA11*FINANZAS!$J9 -> 0 | BB11: =AB11*FINANZAS!$J9 -> 0 | BC11: =AC11*FINANZAS!$J9 -> 0 | BD11: =AD11*FINANZAS!$J9 -> 0 | BF11: =IFERROR(D11*FINANZAS!$N9,0) -> 225 | BG11: =IFERROR(E11*FINANZAS!$N9,0) -> 225 | BH11: =IFERROR(F11*FINANZAS!$N9,0) -> 225 | BI11: =IFERROR(G11*FINANZAS!$N9,0) -> 225 | BJ11: =IFERROR(H11*FINANZAS!$N9,0) -> 225 | BK11: =IFERROR(I11*FINANZAS!$N9,0) -> 225 | BL11: =IFERROR(J11*FINANZAS!$N9,0) -> 225 | BM11: =IFERROR(K11*FINANZAS!$N9,0) -> 225 | BN11: =IFERROR(L11*FINANZAS!$N9,0) -> 225 | BO11: =IFERROR(M11*FINANZAS!$N9,0) -> 225 | BP11: =IFERROR(N11*FINANZAS!$N9,0) -> 225 | BQ11: =IFERROR(O11*FINANZAS!$N9,0) -> 225
C12: =IF(FINANZAS!C10="","",FINANZAS!C10) -> 3 | D12: 400 | E12: 500 | F12: 400 | G12: 500 | H12: 600 | I12: 700 | J12: 400 | K12: 500 | L12: 500 | M12: 500 | N12: 400 | O12: 700 | P12: 867214.6394 | R12: 3 | S12: =IFERROR(D12*FINANZAS!$K10,0) -> 56866.53373 | T12: =IFERROR(E12*FINANZAS!$K10,0) -> 71083.16717 | U12: =IFERROR(F12*FINANZAS!$K10,0) -> 56866.53373 | V12: =IFERROR(G12*FINANZAS!$K10,0) -> 71083.16717 | W12: =IFERROR(H12*FINANZAS!$K10,0) -> 85299.8006 | X12: =IFERROR(I12*FINANZAS!$K10,0) -> 99516.43403 | Y12: =IFERROR(J12*FINANZAS!$K10,0) -> 56866.53373 | Z12: =IFERROR(K12*FINANZAS!$K10,0) -> 71083.16717 | AA12: =IFERROR(L12*FINANZAS!$K10,0) -> 71083.16717 | AB12: =IFERROR(M12*FINANZAS!$K10,0) -> 71083.16717 | AC12: =IFERROR(N12*FINANZAS!$K10,0) -> 56866.53373 | AD12: =IFERROR(O12*FINANZAS!$K10,0) -> 99516.43403 | AF12: =IFERROR(D12*FINANZAS!$G10,0) -> 55751.50366 | AG12: =IFERROR(E12*FINANZAS!$G10,0) -> 69689.37958 | AH12: =IFERROR(F12*FINANZAS!$G10,0) -> 55751.50366 | AI12: =IFERROR(G12*FINANZAS!$G10,0) -> 69689.37958 | AJ12: =IFERROR(H12*FINANZAS!$G10,0) -> 83627.25549 | AK12: =IFERROR(I12*FINANZAS!$G10,0) -> 97565.13141 | AL12: =IFERROR(J12*FINANZAS!$G10,0) -> 55751.50366 | AM12: =IFERROR(K12*FINANZAS!$G10,0) -> 69689.37958 | AN12: =IFERROR(L12*FINANZAS!$G10,0) -> 69689.37958 | AO12: =IFERROR(M12*FINANZAS!$G10,0) -> 69689.37958 | AP12: =IFERROR(N12*FINANZAS!$G10,0) -> 55751.50366 | AQ12: =IFERROR(O12*FINANZAS!$G10,0) -> 97565.13141 | AS12: =S12*FINANZAS!$J10 -> 0 | AT12: =T12*FINANZAS!$J10 -> 0 | AU12: =U12*FINANZAS!$J10 -> 0 | AV12: =V12*FINANZAS!$J10 -> 0 | AW12: =W12*FINANZAS!$J10 -> 0 | AX12: =X12*FINANZAS!$J10 -> 0 | AY12: =Y12*FINANZAS!$J10 -> 0 | AZ12: =Z12*FINANZAS!$J10 -> 0 | BA12: =AA12*FINANZAS!$J10 -> 0 | BB12: =AB12*FINANZAS!$J10 -> 0 | BC12: =AC12*FINANZAS!$J10 -> 0 | BD12: =AD12*FINANZAS!$J10 -> 0 | BF12: =IFERROR(D12*FINANZAS!$N10,0) -> 1115.030073 | BG12: =IFERROR(E12*FINANZAS!$N10,0) -> 1393.787592 | BH12: =IFERROR(F12*FINANZAS!$N10,0) -> 1115.030073 | BI12: =IFERROR(G12*FINANZAS!$N10,0) -> 1393.787592 | BJ12: =IFERROR(H12*FINANZAS!$N10,0) -> 1672.54511 | BK12: =IFERROR(I12*FINANZAS!$N10,0) -> 1951.302628 | BL12: =IFERROR(J12*FINANZAS!$N10,0) -> 1115.030073 | BM12: =IFERROR(K12*FINANZAS!$N10,0) -> 1393.787592 | BN12: =IFERROR(L12*FINANZAS!$N10,0) -> 1393.787592 | BO12: =IFERROR(M12*FINANZAS!$N10,0) -> 1393.787592 | BP12: =IFERROR(N12*FINANZAS!$N10,0) -> 1115.030073 | BQ12: =IFERROR(O12*FINANZAS!$N10,0) -> 1951.302628
C13: =IF(FINANZAS!C11="","",FINANZAS!C11) -> 4 | D13: 300 | E13: 300 | F13: 300 | G13: 300 | H13: 300 | I13: 300 | J13: 300 | K13: 300 | L13: 300 | M13: 300 | N13: 300 | O13: 300 | P13: 92700 | R13: 4 | S13: =IFERROR(D13*FINANZAS!$K11,0) -> 7725 | T13: =IFERROR(E13*FINANZAS!$K11,0) -> 7725 | U13: =IFERROR(F13*FINANZAS!$K11,0) -> 7725 | V13: =IFERROR(G13*FINANZAS!$K11,0) -> 7725 | W13: =IFERROR(H13*FINANZAS!$K11,0) -> 7725 | X13: =IFERROR(I13*FINANZAS!$K11,0) -> 7725 | Y13: =IFERROR(J13*FINANZAS!$K11,0) -> 7725 | Z13: =IFERROR(K13*FINANZAS!$K11,0) -> 7725 | AA13: =IFERROR(L13*FINANZAS!$K11,0) -> 7725 | AB13: =IFERROR(M13*FINANZAS!$K11,0) -> 7725 | AC13: =IFERROR(N13*FINANZAS!$K11,0) -> 7725 | AD13: =IFERROR(O13*FINANZAS!$K11,0) -> 7725 | AF13: =IFERROR(D13*FINANZAS!$G11,0) -> 7500 | AG13: =IFERROR(E13*FINANZAS!$G11,0) -> 7500 | AH13: =IFERROR(F13*FINANZAS!$G11,0) -> 7500 | AI13: =IFERROR(G13*FINANZAS!$G11,0) -> 7500 | AJ13: =IFERROR(H13*FINANZAS!$G11,0) -> 7500 | AK13: =IFERROR(I13*FINANZAS!$G11,0) -> 7500 | AL13: =IFERROR(J13*FINANZAS!$G11,0) -> 7500 | AM13: =IFERROR(K13*FINANZAS!$G11,0) -> 7500 | AN13: =IFERROR(L13*FINANZAS!$G11,0) -> 7500 | AO13: =IFERROR(M13*FINANZAS!$G11,0) -> 7500 | AP13: =IFERROR(N13*FINANZAS!$G11,0) -> 7500 | AQ13: =IFERROR(O13*FINANZAS!$G11,0) -> 7500 | AS13: =S13*FINANZAS!$J11 -> 0 | AT13: =T13*FINANZAS!$J11 -> 0 | AU13: =U13*FINANZAS!$J11 -> 0 | AV13: =V13*FINANZAS!$J11 -> 0 | AW13: =W13*FINANZAS!$J11 -> 0 | AX13: =X13*FINANZAS!$J11 -> 0 | AY13: =Y13*FINANZAS!$J11 -> 0 | AZ13: =Z13*FINANZAS!$J11 -> 0 | BA13: =AA13*FINANZAS!$J11 -> 0 | BB13: =AB13*FINANZAS!$J11 -> 0 | BC13: =AC13*FINANZAS!$J11 -> 0 | BD13: =AD13*FINANZAS!$J11 -> 0 | BF13: =IFERROR(D13*FINANZAS!$N11,0) -> 225 | BG13: =IFERROR(E13*FINANZAS!$N11,0) -> 225 | BH13: =IFERROR(F13*FINANZAS!$N11,0) -> 225 | BI13: =IFERROR(G13*FINANZAS!$N11,0) -> 225 | BJ13: =IFERROR(H13*FINANZAS!$N11,0) -> 225 | BK13: =IFERROR(I13*FINANZAS!$N11,0) -> 225 | BL13: =IFERROR(J13*FINANZAS!$N11,0) -> 225 | BM13: =IFERROR(K13*FINANZAS!$N11,0) -> 225 | BN13: =IFERROR(L13*FINANZAS!$N11,0) -> 225 | BO13: =IFERROR(M13*FINANZAS!$N11,0) -> 225 | BP13: =IFERROR(N13*FINANZAS!$N11,0) -> 225 | BQ13: =IFERROR(O13*FINANZAS!$N11,0) -> 225
C14: =IF(FINANZAS!C12="","",FINANZAS!C12) -> 5 | D14: 400 | E14: 500 | F14: 400 | G14: 500 | H14: 600 | I14: 700 | J14: 400 | K14: 500 | L14: 500 | M14: 500 | N14: 400 | O14: 700 | P14: 175375 | R14: 5 | S14: =IFERROR(D14*FINANZAS!$K12,0) -> 11500 | T14: =IFERROR(E14*FINANZAS!$K12,0) -> 14375 | U14: =IFERROR(F14*FINANZAS!$K12,0) -> 11500 | V14: =IFERROR(G14*FINANZAS!$K12,0) -> 14375 | W14: =IFERROR(H14*FINANZAS!$K12,0) -> 17250 | X14: =IFERROR(I14*FINANZAS!$K12,0) -> 20125 | Y14: =IFERROR(J14*FINANZAS!$K12,0) -> 11500 | Z14: =IFERROR(K14*FINANZAS!$K12,0) -> 14375 | AA14: =IFERROR(L14*FINANZAS!$K12,0) -> 14375 | AB14: =IFERROR(M14*FINANZAS!$K12,0) -> 14375 | AC14: =IFERROR(N14*FINANZAS!$K12,0) -> 11500 | AD14: =IFERROR(O14*FINANZAS!$K12,0) -> 20125 | AF14: =IFERROR(D14*FINANZAS!$G12,0) -> 10000 | AG14: =IFERROR(E14*FINANZAS!$G12,0) -> 12500 | AH14: =IFERROR(F14*FINANZAS!$G12,0) -> 10000 | AI14: =IFERROR(G14*FINANZAS!$G12,0) -> 12500 | AJ14: =IFERROR(H14*FINANZAS!$G12,0) -> 15000 | AK14: =IFERROR(I14*FINANZAS!$G12,0) -> 17500 | AL14: =IFERROR(J14*FINANZAS!$G12,0) -> 10000 | AM14: =IFERROR(K14*FINANZAS!$G12,0) -> 12500 | AN14: =IFERROR(L14*FINANZAS!$G12,0) -> 12500 | AO14: =IFERROR(M14*FINANZAS!$G12,0) -> 12500 | AP14: =IFERROR(N14*FINANZAS!$G12,0) -> 10000 | AQ14: =IFERROR(O14*FINANZAS!$G12,0) -> 17500 | AS14: =S14*FINANZAS!$J12 -> 0 | AT14: =T14*FINANZAS!$J12 -> 0 | AU14: =U14*FINANZAS!$J12 -> 0 | AV14: =V14*FINANZAS!$J12 -> 0 | AW14: =W14*FINANZAS!$J12 -> 0 | AX14: =X14*FINANZAS!$J12 -> 0 | AY14: =Y14*FINANZAS!$J12 -> 0 | AZ14: =Z14*FINANZAS!$J12 -> 0 | BA14: =AA14*FINANZAS!$J12 -> 0 | BB14: =AB14*FINANZAS!$J12 -> 0 | BC14: =AC14*FINANZAS!$J12 -> 0 | BD14: =AD14*FINANZAS!$J12 -> 0 | BF14: =IFERROR(D14*FINANZAS!$N12,0) -> 1500 | BG14: =IFERROR(E14*FINANZAS!$N12,0) -> 1875 | BH14: =IFERROR(F14*FINANZAS!$N12,0) -> 1500 | BI14: =IFERROR(G14*FINANZAS!$N12,0) -> 1875 | BJ14: =IFERROR(H14*FINANZAS!$N12,0) -> 2250 | BK14: =IFERROR(I14*FINANZAS!$N12,0) -> 2625 | BL14: =IFERROR(J14*FINANZAS!$N12,0) -> 1500 | BM14: =IFERROR(K14*FINANZAS!$N12,0) -> 1875 | BN14: =IFERROR(L14*FINANZAS!$N12,0) -> 1875 | BO14: =IFERROR(M14*FINANZAS!$N12,0) -> 1875 | BP14: =IFERROR(N14*FINANZAS!$N12,0) -> 1500 | BQ14: =IFERROR(O14*FINANZAS!$N12,0) -> 2625
C15: =IF(FINANZAS!C13="","",FINANZAS!C13) -> 6 | P15: 0 | R15: 6 | S15: =IFERROR(D15*FINANZAS!$K13,0) -> 0 | T15: =IFERROR(E15*FINANZAS!$K13,0) -> 0 | U15: =IFERROR(F15*FINANZAS!$K13,0) -> 0 | V15: =IFERROR(G15*FINANZAS!$K13,0) -> 0 | W15: =IFERROR(H15*FINANZAS!$K13,0) -> 0 | X15: =IFERROR(I15*FINANZAS!$K13,0) -> 0 | Y15: =IFERROR(J15*FINANZAS!$K13,0) -> 0 | Z15: =IFERROR(K15*FINANZAS!$K13,0) -> 0 | AA15: =IFERROR(L15*FINANZAS!$K13,0) -> 0 | AB15: =IFERROR(M15*FINANZAS!$K13,0) -> 0 | AC15: =IFERROR(N15*FINANZAS!$K13,0) -> 0 | AD15: =IFERROR(O15*FINANZAS!$K13,0) -> 0 | AF15: =IFERROR(D15*FINANZAS!$G13,0) -> 0 | AG15: =IFERROR(E15*FINANZAS!$G13,0) -> 0 | AH15: =IFERROR(F15*FINANZAS!$G13,0) -> 0 | AI15: =IFERROR(G15*FINANZAS!$G13,0) -> 0 | AJ15: =IFERROR(H15*FINANZAS!$G13,0) -> 0 | AK15: =IFERROR(I15*FINANZAS!$G13,0) -> 0 | AL15: =IFERROR(J15*FINANZAS!$G13,0) -> 0 | AM15: =IFERROR(K15*FINANZAS!$G13,0) -> 0 | AN15: =IFERROR(L15*FINANZAS!$G13,0) -> 0 | AO15: =IFERROR(M15*FINANZAS!$G13,0) -> 0 | AP15: =IFERROR(N15*FINANZAS!$G13,0) -> 0 | AQ15: =IFERROR(O15*FINANZAS!$G13,0) -> 0 | AS15: =S15*FINANZAS!$J13 -> 0 | AT15: =T15*FINANZAS!$J13 -> 0 | AU15: =U15*FINANZAS!$J13 -> 0 | AV15: =V15*FINANZAS!$J13 -> 0 | AW15: =W15*FINANZAS!$J13 -> 0 | AX15: =X15*FINANZAS!$J13 -> 0 | AY15: =Y15*FINANZAS!$J13 -> 0 | AZ15: =Z15*FINANZAS!$J13 -> 0 | BA15: =AA15*FINANZAS!$J13 -> 0 | BB15: =AB15*FINANZAS!$J13 -> 0 | BC15: =AC15*FINANZAS!$J13 -> 0 | BD15: =AD15*FINANZAS!$J13 -> 0 | BF15: =IFERROR(D15*FINANZAS!$N13,0) -> 0 | BG15: =IFERROR(E15*FINANZAS!$N13,0) -> 0 | BH15: =IFERROR(F15*FINANZAS!$N13,0) -> 0 | BI15: =IFERROR(G15*FINANZAS!$N13,0) -> 0 | BJ15: =IFERROR(H15*FINANZAS!$N13,0) -> 0 | BK15: =IFERROR(I15*FINANZAS!$N13,0) -> 0 | BL15: =IFERROR(J15*FINANZAS!$N13,0) -> 0 | BM15: =IFERROR(K15*FINANZAS!$N13,0) -> 0 | BN15: =IFERROR(L15*FINANZAS!$N13,0) -> 0 | BO15: =IFERROR(M15*FINANZAS!$N13,0) -> 0 | BP15: =IFERROR(N15*FINANZAS!$N13,0) -> 0 | BQ15: =IFERROR(O15*FINANZAS!$N13,0) -> 0
C16: =IF(FINANZAS!C14="","",FINANZAS!C14) -> 7 | P16: 0 | R16: 7 | S16: =IFERROR(D16*FINANZAS!$K14,0) -> 0 | T16: =IFERROR(E16*FINANZAS!$K14,0) -> 0 | U16: =IFERROR(F16*FINANZAS!$K14,0) -> 0 | V16: =IFERROR(G16*FINANZAS!$K14,0) -> 0 | W16: =IFERROR(H16*FINANZAS!$K14,0) -> 0 | X16: =IFERROR(I16*FINANZAS!$K14,0) -> 0 | Y16: =IFERROR(J16*FINANZAS!$K14,0) -> 0 | Z16: =IFERROR(K16*FINANZAS!$K14,0) -> 0 | AA16: =IFERROR(L16*FINANZAS!$K14,0) -> 0 | AB16: =IFERROR(M16*FINANZAS!$K14,0) -> 0 | AC16: =IFERROR(N16*FINANZAS!$K14,0) -> 0 | AD16: =IFERROR(O16*FINANZAS!$K14,0) -> 0 | AF16: =IFERROR(D16*FINANZAS!$G14,0) -> 0 | AG16: =IFERROR(E16*FINANZAS!$G14,0) -> 0 | AH16: =IFERROR(F16*FINANZAS!$G14,0) -> 0 | AI16: =IFERROR(G16*FINANZAS!$G14,0) -> 0 | AJ16: =IFERROR(H16*FINANZAS!$G14,0) -> 0 | AK16: =IFERROR(I16*FINANZAS!$G14,0) -> 0 | AL16: =IFERROR(J16*FINANZAS!$G14,0) -> 0 | AM16: =IFERROR(K16*FINANZAS!$G14,0) -> 0 | AN16: =IFERROR(L16*FINANZAS!$G14,0) -> 0 | AO16: =IFERROR(M16*FINANZAS!$G14,0) -> 0 | AP16: =IFERROR(N16*FINANZAS!$G14,0) -> 0 | AQ16: =IFERROR(O16*FINANZAS!$G14,0) -> 0 | AS16: =S16*FINANZAS!$J14 -> 0 | AT16: =T16*FINANZAS!$J14 -> 0 | AU16: =U16*FINANZAS!$J14 -> 0 | AV16: =V16*FINANZAS!$J14 -> 0 | AW16: =W16*FINANZAS!$J14 -> 0 | AX16: =X16*FINANZAS!$J14 -> 0 | AY16: =Y16*FINANZAS!$J14 -> 0 | AZ16: =Z16*FINANZAS!$J14 -> 0 | BA16: =AA16*FINANZAS!$J14 -> 0 | BB16: =AB16*FINANZAS!$J14 -> 0 | BC16: =AC16*FINANZAS!$J14 -> 0 | BD16: =AD16*FINANZAS!$J14 -> 0 | BF16: =IFERROR(D16*FINANZAS!$N14,0) -> 0 | BG16: =IFERROR(E16*FINANZAS!$N14,0) -> 0 | BH16: =IFERROR(F16*FINANZAS!$N14,0) -> 0 | BI16: =IFERROR(G16*FINANZAS!$N14,0) -> 0 | BJ16: =IFERROR(H16*FINANZAS!$N14,0) -> 0 | BK16: =IFERROR(I16*FINANZAS!$N14,0) -> 0 | BL16: =IFERROR(J16*FINANZAS!$N14,0) -> 0 | BM16: =IFERROR(K16*FINANZAS!$N14,0) -> 0 | BN16: =IFERROR(L16*FINANZAS!$N14,0) -> 0 | BO16: =IFERROR(M16*FINANZAS!$N14,0) -> 0 | BP16: =IFERROR(N16*FINANZAS!$N14,0) -> 0 | BQ16: =IFERROR(O16*FINANZAS!$N14,0) -> 0
C17: =IF(FINANZAS!C15="","",FINANZAS!C15) -> 8 | P17: 0 | R17: 8 | S17: =IFERROR(D17*FINANZAS!$K15,0) -> 0 | T17: =IFERROR(E17*FINANZAS!$K15,0) -> 0 | U17: =IFERROR(F17*FINANZAS!$K15,0) -> 0 | V17: =IFERROR(G17*FINANZAS!$K15,0) -> 0 | W17: =IFERROR(H17*FINANZAS!$K15,0) -> 0 | X17: =IFERROR(I17*FINANZAS!$K15,0) -> 0 | Y17: =IFERROR(J17*FINANZAS!$K15,0) -> 0 | Z17: =IFERROR(K17*FINANZAS!$K15,0) -> 0 | AA17: =IFERROR(L17*FINANZAS!$K15,0) -> 0 | AB17: =IFERROR(M17*FINANZAS!$K15,0) -> 0 | AC17: =IFERROR(N17*FINANZAS!$K15,0) -> 0 | AD17: =IFERROR(O17*FINANZAS!$K15,0) -> 0 | AF17: =IFERROR(D17*FINANZAS!$G15,0) -> 0 | AG17: =IFERROR(E17*FINANZAS!$G15,0) -> 0 | AH17: =IFERROR(F17*FINANZAS!$G15,0) -> 0 | AI17: =IFERROR(G17*FINANZAS!$G15,0) -> 0 | AJ17: =IFERROR(H17*FINANZAS!$G15,0) -> 0 | AK17: =IFERROR(I17*FINANZAS!$G15,0) -> 0 | AL17: =IFERROR(J17*FINANZAS!$G15,0) -> 0 | AM17: =IFERROR(K17*FINANZAS!$G15,0) -> 0 | AN17: =IFERROR(L17*FINANZAS!$G15,0) -> 0 | AO17: =IFERROR(M17*FINANZAS!$G15,0) -> 0 | AP17: =IFERROR(N17*FINANZAS!$G15,0) -> 0 | AQ17: =IFERROR(O17*FINANZAS!$G15,0) -> 0 | AS17: =S17*FINANZAS!$J15 -> 0 | AT17: =T17*FINANZAS!$J15 -> 0 | AU17: =U17*FINANZAS!$J15 -> 0 | AV17: =V17*FINANZAS!$J15 -> 0 | AW17: =W17*FINANZAS!$J15 -> 0 | AX17: =X17*FINANZAS!$J15 -> 0 | AY17: =Y17*FINANZAS!$J15 -> 0 | AZ17: =Z17*FINANZAS!$J15 -> 0 | BA17: =AA17*FINANZAS!$J15 -> 0 | BB17: =AB17*FINANZAS!$J15 -> 0 | BC17: =AC17*FINANZAS!$J15 -> 0 | BD17: =AD17*FINANZAS!$J15 -> 0 | BF17: =IFERROR(D17*FINANZAS!$N15,0) -> 0 | BG17: =IFERROR(E17*FINANZAS!$N15,0) -> 0 | BH17: =IFERROR(F17*FINANZAS!$N15,0) -> 0 | BI17: =IFERROR(G17*FINANZAS!$N15,0) -> 0 | BJ17: =IFERROR(H17*FINANZAS!$N15,0) -> 0 | BK17: =IFERROR(I17*FINANZAS!$N15,0) -> 0 | BL17: =IFERROR(J17*FINANZAS!$N15,0) -> 0 | BM17: =IFERROR(K17*FINANZAS!$N15,0) -> 0 | BN17: =IFERROR(L17*FINANZAS!$N15,0) -> 0 | BO17: =IFERROR(M17*FINANZAS!$N15,0) -> 0 | BP17: =IFERROR(N17*FINANZAS!$N15,0) -> 0 | BQ17: =IFERROR(O17*FINANZAS!$N15,0) -> 0
C18: =IF(FINANZAS!C16="","",FINANZAS!C16) ->  | P18: 0 | S18: =IFERROR(D18*FINANZAS!$K16,0) -> 0 | T18: =IFERROR(E18*FINANZAS!$K16,0) -> 0 | U18: =IFERROR(F18*FINANZAS!$K16,0) -> 0 | V18: =IFERROR(G18*FINANZAS!$K16,0) -> 0 | W18: =IFERROR(H18*FINANZAS!$K16,0) -> 0 | X18: =IFERROR(I18*FINANZAS!$K16,0) -> 0 | Y18: =IFERROR(J18*FINANZAS!$K16,0) -> 0 | Z18: =IFERROR(K18*FINANZAS!$K16,0) -> 0 | AA18: =IFERROR(L18*FINANZAS!$K16,0) -> 0 | AB18: =IFERROR(M18*FINANZAS!$K16,0) -> 0 | AC18: =IFERROR(N18*FINANZAS!$K16,0) -> 0 | AD18: =IFERROR(O18*FINANZAS!$K16,0) -> 0 | AF18: =IFERROR(D18*FINANZAS!$G16,0) -> 0 | AG18: =IFERROR(E18*FINANZAS!$G16,0) -> 0 | AH18: =IFERROR(F18*FINANZAS!$G16,0) -> 0 | AI18: =IFERROR(G18*FINANZAS!$G16,0) -> 0 | AJ18: =IFERROR(H18*FINANZAS!$G16,0) -> 0 | AK18: =IFERROR(I18*FINANZAS!$G16,0) -> 0 | AL18: =IFERROR(J18*FINANZAS!$G16,0) -> 0 | AM18: =IFERROR(K18*FINANZAS!$G16,0) -> 0 | AN18: =IFERROR(L18*FINANZAS!$G16,0) -> 0 | AO18: =IFERROR(M18*FINANZAS!$G16,0) -> 0 | AP18: =IFERROR(N18*FINANZAS!$G16,0) -> 0 | AQ18: =IFERROR(O18*FINANZAS!$G16,0) -> 0 | AS18: =S18*FINANZAS!$J16 -> 0 | AT18: =T18*FINANZAS!$J16 -> 0 | AU18: =U18*FINANZAS!$J16 -> 0 | AV18: =V18*FINANZAS!$J16 -> 0 | AW18: =W18*FINANZAS!$J16 -> 0 | AX18: =X18*FINANZAS!$J16 -> 0 | AY18: =Y18*FINANZAS!$J16 -> 0 | AZ18: =Z18*FINANZAS!$J16 -> 0 | BA18: =AA18*FINANZAS!$J16 -> 0 | BB18: =AB18*FINANZAS!$J16 -> 0 | BC18: =AC18*FINANZAS!$J16 -> 0 | BD18: =AD18*FINANZAS!$J16 -> 0 | BF18: =IFERROR(D18*FINANZAS!$N16,0) -> 0 | BG18: =IFERROR(E18*FINANZAS!$N16,0) -> 0 | BH18: =IFERROR(F18*FINANZAS!$N16,0) -> 0 | BI18: =IFERROR(G18*FINANZAS!$N16,0) -> 0 | BJ18: =IFERROR(H18*FINANZAS!$N16,0) -> 0 | BK18: =IFERROR(I18*FINANZAS!$N16,0) -> 0 | BL18: =IFERROR(J18*FINANZAS!$N16,0) -> 0 | BM18: =IFERROR(K18*FINANZAS!$N16,0) -> 0 | BN18: =IFERROR(L18*FINANZAS!$N16,0) -> 0 | BO18: =IFERROR(M18*FINANZAS!$N16,0) -> 0 | BP18: =IFERROR(N18*FINANZAS!$N16,0) -> 0 | BQ18: =IFERROR(O18*FINANZAS!$N16,0) -> 0
C19: =IF(FINANZAS!C17="","",FINANZAS!C17) ->  | P19: 0 | S19: =IFERROR(D19*FINANZAS!$K17,0) -> 0 | T19: =IFERROR(E19*FINANZAS!$K17,0) -> 0 | U19: =IFERROR(F19*FINANZAS!$K17,0) -> 0 | V19: =IFERROR(G19*FINANZAS!$K17,0) -> 0 | W19: =IFERROR(H19*FINANZAS!$K17,0) -> 0 | X19: =IFERROR(I19*FINANZAS!$K17,0) -> 0 | Y19: =IFERROR(J19*FINANZAS!$K17,0) -> 0 | Z19: =IFERROR(K19*FINANZAS!$K17,0) -> 0 | AA19: =IFERROR(L19*FINANZAS!$K17,0) -> 0 | AB19: =IFERROR(M19*FINANZAS!$K17,0) -> 0 | AC19: =IFERROR(N19*FINANZAS!$K17,0) -> 0 | AD19: =IFERROR(O19*FINANZAS!$K17,0) -> 0 | AF19: =IFERROR(D19*FINANZAS!$G17,0) -> 0 | AG19: =IFERROR(E19*FINANZAS!$G17,0) -> 0 | AH19: =IFERROR(F19*FINANZAS!$G17,0) -> 0 | AI19: =IFERROR(G19*FINANZAS!$G17,0) -> 0 | AJ19: =IFERROR(H19*FINANZAS!$G17,0) -> 0 | AK19: =IFERROR(I19*FINANZAS!$G17,0) -> 0 | AL19: =IFERROR(J19*FINANZAS!$G17,0) -> 0 | AM19: =IFERROR(K19*FINANZAS!$G17,0) -> 0 | AN19: =IFERROR(L19*FINANZAS!$G17,0) -> 0 | AO19: =IFERROR(M19*FINANZAS!$G17,0) -> 0 | AP19: =IFERROR(N19*FINANZAS!$G17,0) -> 0 | AQ19: =IFERROR(O19*FINANZAS!$G17,0) -> 0 | AS19: =S19*FINANZAS!$J17 -> 0 | AT19: =T19*FINANZAS!$J17 -> 0 | AU19: =U19*FINANZAS!$J17 -> 0 | AV19: =V19*FINANZAS!$J17 -> 0 | AW19: =W19*FINANZAS!$J17 -> 0 | AX19: =X19*FINANZAS!$J17 -> 0 | AY19: =Y19*FINANZAS!$J17 -> 0 | AZ19: =Z19*FINANZAS!$J17 -> 0 | BA19: =AA19*FINANZAS!$J17 -> 0 | BB19: =AB19*FINANZAS!$J17 -> 0 | BC19: =AC19*FINANZAS!$J17 -> 0 | BD19: =AD19*FINANZAS!$J17 -> 0 | BF19: =IFERROR(D19*FINANZAS!$N17,0) -> 0 | BG19: =IFERROR(E19*FINANZAS!$N17,0) -> 0 | BH19: =IFERROR(F19*FINANZAS!$N17,0) -> 0 | BI19: =IFERROR(G19*FINANZAS!$N17,0) -> 0 | BJ19: =IFERROR(H19*FINANZAS!$N17,0) -> 0 | BK19: =IFERROR(I19*FINANZAS!$N17,0) -> 0 | BL19: =IFERROR(J19*FINANZAS!$N17,0) -> 0 | BM19: =IFERROR(K19*FINANZAS!$N17,0) -> 0 | BN19: =IFERROR(L19*FINANZAS!$N17,0) -> 0 | BO19: =IFERROR(M19*FINANZAS!$N17,0) -> 0 | BP19: =IFERROR(N19*FINANZAS!$N17,0) -> 0 | BQ19: =IFERROR(O19*FINANZAS!$N17,0) -> 0
C20: =IF(FINANZAS!C18="","",FINANZAS!C18) ->  | P20: 0 | S20: =IFERROR(D20*FINANZAS!$K18,0) -> 0 | T20: =IFERROR(E20*FINANZAS!$K18,0) -> 0 | U20: =IFERROR(F20*FINANZAS!$K18,0) -> 0 | V20: =IFERROR(G20*FINANZAS!$K18,0) -> 0 | W20: =IFERROR(H20*FINANZAS!$K18,0) -> 0 | X20: =IFERROR(I20*FINANZAS!$K18,0) -> 0 | Y20: =IFERROR(J20*FINANZAS!$K18,0) -> 0 | Z20: =IFERROR(K20*FINANZAS!$K18,0) -> 0 | AA20: =IFERROR(L20*FINANZAS!$K18,0) -> 0 | AB20: =IFERROR(M20*FINANZAS!$K18,0) -> 0 | AC20: =IFERROR(N20*FINANZAS!$K18,0) -> 0 | AD20: =IFERROR(O20*FINANZAS!$K18,0) -> 0 | AF20: =IFERROR(D20*FINANZAS!$G18,0) -> 0 | AG20: =IFERROR(E20*FINANZAS!$G18,0) -> 0 | AH20: =IFERROR(F20*FINANZAS!$G18,0) -> 0 | AI20: =IFERROR(G20*FINANZAS!$G18,0) -> 0 | AJ20: =IFERROR(H20*FINANZAS!$G18,0) -> 0 | AK20: =IFERROR(I20*FINANZAS!$G18,0) -> 0 | AL20: =IFERROR(J20*FINANZAS!$G18,0) -> 0 | AM20: =IFERROR(K20*FINANZAS!$G18,0) -> 0 | AN20: =IFERROR(L20*FINANZAS!$G18,0) -> 0 | AO20: =IFERROR(M20*FINANZAS!$G18,0) -> 0 | AP20: =IFERROR(N20*FINANZAS!$G18,0) -> 0 | AQ20: =IFERROR(O20*FINANZAS!$G18,0) -> 0 | AS20: =S20*FINANZAS!$J18 -> 0 | AT20: =T20*FINANZAS!$J18 -> 0 | AU20: =U20*FINANZAS!$J18 -> 0 | AV20: =V20*FINANZAS!$J18 -> 0 | AW20: =W20*FINANZAS!$J18 -> 0 | AX20: =X20*FINANZAS!$J18 -> 0 | AY20: =Y20*FINANZAS!$J18 -> 0 | AZ20: =Z20*FINANZAS!$J18 -> 0 | BA20: =AA20*FINANZAS!$J18 -> 0 | BB20: =AB20*FINANZAS!$J18 -> 0 | BC20: =AC20*FINANZAS!$J18 -> 0 | BD20: =AD20*FINANZAS!$J18 -> 0 | BF20: =IFERROR(D20*FINANZAS!$N18,0) -> 0 | BG20: =IFERROR(E20*FINANZAS!$N18,0) -> 0 | BH20: =IFERROR(F20*FINANZAS!$N18,0) -> 0 | BI20: =IFERROR(G20*FINANZAS!$N18,0) -> 0 | BJ20: =IFERROR(H20*FINANZAS!$N18,0) -> 0 | BK20: =IFERROR(I20*FINANZAS!$N18,0) -> 0 | BL20: =IFERROR(J20*FINANZAS!$N18,0) -> 0 | BM20: =IFERROR(K20*FINANZAS!$N18,0) -> 0 | BN20: =IFERROR(L20*FINANZAS!$N18,0) -> 0 | BO20: =IFERROR(M20*FINANZAS!$N18,0) -> 0 | BP20: =IFERROR(N20*FINANZAS!$N18,0) -> 0 | BQ20: =IFERROR(O20*FINANZAS!$N18,0) -> 0
C21: =IF(FINANZAS!C19="","",FINANZAS!C19) ->  | P21: 0 | S21: =IFERROR(D21*FINANZAS!$K19,0) -> 0 | T21: =IFERROR(E21*FINANZAS!$K19,0) -> 0 | U21: =IFERROR(F21*FINANZAS!$K19,0) -> 0 | V21: =IFERROR(G21*FINANZAS!$K19,0) -> 0 | W21: =IFERROR(H21*FINANZAS!$K19,0) -> 0 | X21: =IFERROR(I21*FINANZAS!$K19,0) -> 0 | Y21: =IFERROR(J21*FINANZAS!$K19,0) -> 0 | Z21: =IFERROR(K21*FINANZAS!$K19,0) -> 0 | AA21: =IFERROR(L21*FINANZAS!$K19,0) -> 0 | AB21: =IFERROR(M21*FINANZAS!$K19,0) -> 0 | AC21: =IFERROR(N21*FINANZAS!$K19,0) -> 0 | AD21: =IFERROR(O21*FINANZAS!$K19,0) -> 0 | AF21: =IFERROR(D21*FINANZAS!$G19,0) -> 0 | AG21: =IFERROR(E21*FINANZAS!$G19,0) -> 0 | AH21: =IFERROR(F21*FINANZAS!$G19,0) -> 0 | AI21: =IFERROR(G21*FINANZAS!$G19,0) -> 0 | AJ21: =IFERROR(H21*FINANZAS!$G19,0) -> 0 | AK21: =IFERROR(I21*FINANZAS!$G19,0) -> 0 | AL21: =IFERROR(J21*FINANZAS!$G19,0) -> 0 | AM21: =IFERROR(K21*FINANZAS!$G19,0) -> 0 | AN21: =IFERROR(L21*FINANZAS!$G19,0) -> 0 | AO21: =IFERROR(M21*FINANZAS!$G19,0) -> 0 | AP21: =IFERROR(N21*FINANZAS!$G19,0) -> 0 | AQ21: =IFERROR(O21*FINANZAS!$G19,0) -> 0 | AS21: =S21*FINANZAS!$J19 -> 0 | AT21: =T21*FINANZAS!$J19 -> 0 | AU21: =U21*FINANZAS!$J19 -> 0 | AV21: =V21*FINANZAS!$J19 -> 0 | AW21: =W21*FINANZAS!$J19 -> 0 | AX21: =X21*FINANZAS!$J19 -> 0 | AY21: =Y21*FINANZAS!$J19 -> 0 | AZ21: =Z21*FINANZAS!$J19 -> 0 | BA21: =AA21*FINANZAS!$J19 -> 0 | BB21: =AB21*FINANZAS!$J19 -> 0 | BC21: =AC21*FINANZAS!$J19 -> 0 | BD21: =AD21*FINANZAS!$J19 -> 0 | BF21: =IFERROR(D21*FINANZAS!$N19,0) -> 0 | BG21: =IFERROR(E21*FINANZAS!$N19,0) -> 0 | BH21: =IFERROR(F21*FINANZAS!$N19,0) -> 0 | BI21: =IFERROR(G21*FINANZAS!$N19,0) -> 0 | BJ21: =IFERROR(H21*FINANZAS!$N19,0) -> 0 | BK21: =IFERROR(I21*FINANZAS!$N19,0) -> 0 | BL21: =IFERROR(J21*FINANZAS!$N19,0) -> 0 | BM21: =IFERROR(K21*FINANZAS!$N19,0) -> 0 | BN21: =IFERROR(L21*FINANZAS!$N19,0) -> 0 | BO21: =IFERROR(M21*FINANZAS!$N19,0) -> 0 | BP21: =IFERROR(N21*FINANZAS!$N19,0) -> 0 | BQ21: =IFERROR(O21*FINANZAS!$N19,0) -> 0
C22: =IF(FINANZAS!C20="","",FINANZAS!C20) ->  | P22: 0 | S22: =IFERROR(D22*FINANZAS!$K20,0) -> 0 | T22: =IFERROR(E22*FINANZAS!$K20,0) -> 0 | U22: =IFERROR(F22*FINANZAS!$K20,0) -> 0 | V22: =IFERROR(G22*FINANZAS!$K20,0) -> 0 | W22: =IFERROR(H22*FINANZAS!$K20,0) -> 0 | X22: =IFERROR(I22*FINANZAS!$K20,0) -> 0 | Y22: =IFERROR(J22*FINANZAS!$K20,0) -> 0 | Z22: =IFERROR(K22*FINANZAS!$K20,0) -> 0 | AA22: =IFERROR(L22*FINANZAS!$K20,0) -> 0 | AB22: =IFERROR(M22*FINANZAS!$K20,0) -> 0 | AC22: =IFERROR(N22*FINANZAS!$K20,0) -> 0 | AD22: =IFERROR(O22*FINANZAS!$K20,0) -> 0 | AF22: =IFERROR(D22*FINANZAS!$G20,0) -> 0 | AG22: =IFERROR(E22*FINANZAS!$G20,0) -> 0 | AH22: =IFERROR(F22*FINANZAS!$G20,0) -> 0 | AI22: =IFERROR(G22*FINANZAS!$G20,0) -> 0 | AJ22: =IFERROR(H22*FINANZAS!$G20,0) -> 0 | AK22: =IFERROR(I22*FINANZAS!$G20,0) -> 0 | AL22: =IFERROR(J22*FINANZAS!$G20,0) -> 0 | AM22: =IFERROR(K22*FINANZAS!$G20,0) -> 0 | AN22: =IFERROR(L22*FINANZAS!$G20,0) -> 0 | AO22: =IFERROR(M22*FINANZAS!$G20,0) -> 0 | AP22: =IFERROR(N22*FINANZAS!$G20,0) -> 0 | AQ22: =IFERROR(O22*FINANZAS!$G20,0) -> 0 | AS22: =S22*FINANZAS!$J20 -> 0 | AT22: =T22*FINANZAS!$J20 -> 0 | AU22: =U22*FINANZAS!$J20 -> 0 | AV22: =V22*FINANZAS!$J20 -> 0 | AW22: =W22*FINANZAS!$J20 -> 0 | AX22: =X22*FINANZAS!$J20 -> 0 | AY22: =Y22*FINANZAS!$J20 -> 0 | AZ22: =Z22*FINANZAS!$J20 -> 0 | BA22: =AA22*FINANZAS!$J20 -> 0 | BB22: =AB22*FINANZAS!$J20 -> 0 | BC22: =AC22*FINANZAS!$J20 -> 0 | BD22: =AD22*FINANZAS!$J20 -> 0 | BF22: =IFERROR(D22*FINANZAS!$N20,0) -> 0 | BG22: =IFERROR(E22*FINANZAS!$N20,0) -> 0 | BH22: =IFERROR(F22*FINANZAS!$N20,0) -> 0 | BI22: =IFERROR(G22*FINANZAS!$N20,0) -> 0 | BJ22: =IFERROR(H22*FINANZAS!$N20,0) -> 0 | BK22: =IFERROR(I22*FINANZAS!$N20,0) -> 0 | BL22: =IFERROR(J22*FINANZAS!$N20,0) -> 0 | BM22: =IFERROR(K22*FINANZAS!$N20,0) -> 0 | BN22: =IFERROR(L22*FINANZAS!$N20,0) -> 0 | BO22: =IFERROR(M22*FINANZAS!$N20,0) -> 0 | BP22: =IFERROR(N22*FINANZAS!$N20,0) -> 0 | BQ22: =IFERROR(O22*FINANZAS!$N20,0) -> 0
C23: =IF(FINANZAS!C21="","",FINANZAS!C21) ->  | P23: 0 | S23: =IFERROR(D23*FINANZAS!$K21,0) -> 0 | T23: =IFERROR(E23*FINANZAS!$K21,0) -> 0 | U23: =IFERROR(F23*FINANZAS!$K21,0) -> 0 | V23: =IFERROR(G23*FINANZAS!$K21,0) -> 0 | W23: =IFERROR(H23*FINANZAS!$K21,0) -> 0 | X23: =IFERROR(I23*FINANZAS!$K21,0) -> 0 | Y23: =IFERROR(J23*FINANZAS!$K21,0) -> 0 | Z23: =IFERROR(K23*FINANZAS!$K21,0) -> 0 | AA23: =IFERROR(L23*FINANZAS!$K21,0) -> 0 | AB23: =IFERROR(M23*FINANZAS!$K21,0) -> 0 | AC23: =IFERROR(N23*FINANZAS!$K21,0) -> 0 | AD23: =IFERROR(O23*FINANZAS!$K21,0) -> 0 | AF23: =IFERROR(D23*FINANZAS!$G21,0) -> 0 | AG23: =IFERROR(E23*FINANZAS!$G21,0) -> 0 | AH23: =IFERROR(F23*FINANZAS!$G21,0) -> 0 | AI23: =IFERROR(G23*FINANZAS!$G21,0) -> 0 | AJ23: =IFERROR(H23*FINANZAS!$G21,0) -> 0 | AK23: =IFERROR(I23*FINANZAS!$G21,0) -> 0 | AL23: =IFERROR(J23*FINANZAS!$G21,0) -> 0 | AM23: =IFERROR(K23*FINANZAS!$G21,0) -> 0 | AN23: =IFERROR(L23*FINANZAS!$G21,0) -> 0 | AO23: =IFERROR(M23*FINANZAS!$G21,0) -> 0 | AP23: =IFERROR(N23*FINANZAS!$G21,0) -> 0 | AQ23: =IFERROR(O23*FINANZAS!$G21,0) -> 0 | AS23: =S23*FINANZAS!$J21 -> 0 | AT23: =T23*FINANZAS!$J21 -> 0 | AU23: =U23*FINANZAS!$J21 -> 0 | AV23: =V23*FINANZAS!$J21 -> 0 | AW23: =W23*FINANZAS!$J21 -> 0 | AX23: =X23*FINANZAS!$J21 -> 0 | AY23: =Y23*FINANZAS!$J21 -> 0 | AZ23: =Z23*FINANZAS!$J21 -> 0 | BA23: =AA23*FINANZAS!$J21 -> 0 | BB23: =AB23*FINANZAS!$J21 -> 0 | BC23: =AC23*FINANZAS!$J21 -> 0 | BD23: =AD23*FINANZAS!$J21 -> 0 | BF23: =IFERROR(D23*FINANZAS!$N21,0) -> 0 | BG23: =IFERROR(E23*FINANZAS!$N21,0) -> 0 | BH23: =IFERROR(F23*FINANZAS!$N21,0) -> 0 | BI23: =IFERROR(G23*FINANZAS!$N21,0) -> 0 | BJ23: =IFERROR(H23*FINANZAS!$N21,0) -> 0 | BK23: =IFERROR(I23*FINANZAS!$N21,0) -> 0 | BL23: =IFERROR(J23*FINANZAS!$N21,0) -> 0 | BM23: =IFERROR(K23*FINANZAS!$N21,0) -> 0 | BN23: =IFERROR(L23*FINANZAS!$N21,0) -> 0 | BO23: =IFERROR(M23*FINANZAS!$N21,0) -> 0 | BP23: =IFERROR(N23*FINANZAS!$N21,0) -> 0 | BQ23: =IFERROR(O23*FINANZAS!$N21,0) -> 0
C24: =IF(FINANZAS!C22="","",FINANZAS!C22) ->  | P24: 0 | S24: =IFERROR(D24*FINANZAS!$K22,0) -> 0 | T24: =IFERROR(E24*FINANZAS!$K22,0) -> 0 | U24: =IFERROR(F24*FINANZAS!$K22,0) -> 0 | V24: =IFERROR(G24*FINANZAS!$K22,0) -> 0 | W24: =IFERROR(H24*FINANZAS!$K22,0) -> 0 | X24: =IFERROR(I24*FINANZAS!$K22,0) -> 0 | Y24: =IFERROR(J24*FINANZAS!$K22,0) -> 0 | Z24: =IFERROR(K24*FINANZAS!$K22,0) -> 0 | AA24: =IFERROR(L24*FINANZAS!$K22,0) -> 0 | AB24: =IFERROR(M24*FINANZAS!$K22,0) -> 0 | AC24: =IFERROR(N24*FINANZAS!$K22,0) -> 0 | AD24: =IFERROR(O24*FINANZAS!$K22,0) -> 0 | AF24: =IFERROR(D24*FINANZAS!$G22,0) -> 0 | AG24: =IFERROR(E24*FINANZAS!$G22,0) -> 0 | AH24: =IFERROR(F24*FINANZAS!$G22,0) -> 0 | AI24: =IFERROR(G24*FINANZAS!$G22,0) -> 0 | AJ24: =IFERROR(H24*FINANZAS!$G22,0) -> 0 | AK24: =IFERROR(I24*FINANZAS!$G22,0) -> 0 | AL24: =IFERROR(J24*FINANZAS!$G22,0) -> 0 | AM24: =IFERROR(K24*FINANZAS!$G22,0) -> 0 | AN24: =IFERROR(L24*FINANZAS!$G22,0) -> 0 | AO24: =IFERROR(M24*FINANZAS!$G22,0) -> 0 | AP24: =IFERROR(N24*FINANZAS!$G22,0) -> 0 | AQ24: =IFERROR(O24*FINANZAS!$G22,0) -> 0 | AS24: =S24*FINANZAS!$J22 -> 0 | AT24: =T24*FINANZAS!$J22 -> 0 | AU24: =U24*FINANZAS!$J22 -> 0 | AV24: =V24*FINANZAS!$J22 -> 0 | AW24: =W24*FINANZAS!$J22 -> 0 | AX24: =X24*FINANZAS!$J22 -> 0 | AY24: =Y24*FINANZAS!$J22 -> 0 | AZ24: =Z24*FINANZAS!$J22 -> 0 | BA24: =AA24*FINANZAS!$J22 -> 0 | BB24: =AB24*FINANZAS!$J22 -> 0 | BC24: =AC24*FINANZAS!$J22 -> 0 | BD24: =AD24*FINANZAS!$J22 -> 0 | BF24: =IFERROR(D24*FINANZAS!$N22,0) -> 0 | BG24: =IFERROR(E24*FINANZAS!$N22,0) -> 0 | BH24: =IFERROR(F24*FINANZAS!$N22,0) -> 0 | BI24: =IFERROR(G24*FINANZAS!$N22,0) -> 0 | BJ24: =IFERROR(H24*FINANZAS!$N22,0) -> 0 | BK24: =IFERROR(I24*FINANZAS!$N22,0) -> 0 | BL24: =IFERROR(J24*FINANZAS!$N22,0) -> 0 | BM24: =IFERROR(K24*FINANZAS!$N22,0) -> 0 | BN24: =IFERROR(L24*FINANZAS!$N22,0) -> 0 | BO24: =IFERROR(M24*FINANZAS!$N22,0) -> 0 | BP24: =IFERROR(N24*FINANZAS!$N22,0) -> 0 | BQ24: =IFERROR(O24*FINANZAS!$N22,0) -> 0
C25: =IF(FINANZAS!C23="","",FINANZAS!C23) ->  | P25: 0 | S25: =IFERROR(D25*FINANZAS!$K23,0) -> 0 | T25: =IFERROR(E25*FINANZAS!$K23,0) -> 0 | U25: =IFERROR(F25*FINANZAS!$K23,0) -> 0 | V25: =IFERROR(G25*FINANZAS!$K23,0) -> 0 | W25: =IFERROR(H25*FINANZAS!$K23,0) -> 0 | X25: =IFERROR(I25*FINANZAS!$K23,0) -> 0 | Y25: =IFERROR(J25*FINANZAS!$K23,0) -> 0 | Z25: =IFERROR(K25*FINANZAS!$K23,0) -> 0 | AA25: =IFERROR(L25*FINANZAS!$K23,0) -> 0 | AB25: =IFERROR(M25*FINANZAS!$K23,0) -> 0 | AC25: =IFERROR(N25*FINANZAS!$K23,0) -> 0 | AD25: =IFERROR(O25*FINANZAS!$K23,0) -> 0 | AF25: =IFERROR(D25*FINANZAS!$G23,0) -> 0 | AG25: =IFERROR(E25*FINANZAS!$G23,0) -> 0 | AH25: =IFERROR(F25*FINANZAS!$G23,0) -> 0 | AI25: =IFERROR(G25*FINANZAS!$G23,0) -> 0 | AJ25: =IFERROR(H25*FINANZAS!$G23,0) -> 0 | AK25: =IFERROR(I25*FINANZAS!$G23,0) -> 0 | AL25: =IFERROR(J25*FINANZAS!$G23,0) -> 0 | AM25: =IFERROR(K25*FINANZAS!$G23,0) -> 0 | AN25: =IFERROR(L25*FINANZAS!$G23,0) -> 0 | AO25: =IFERROR(M25*FINANZAS!$G23,0) -> 0 | AP25: =IFERROR(N25*FINANZAS!$G23,0) -> 0 | AQ25: =IFERROR(O25*FINANZAS!$G23,0) -> 0 | AS25: =S25*FINANZAS!$J23 -> 0 | AT25: =T25*FINANZAS!$J23 -> 0 | AU25: =U25*FINANZAS!$J23 -> 0 | AV25: =V25*FINANZAS!$J23 -> 0 | AW25: =W25*FINANZAS!$J23 -> 0 | AX25: =X25*FINANZAS!$J23 -> 0 | AY25: =Y25*FINANZAS!$J23 -> 0 | AZ25: =Z25*FINANZAS!$J23 -> 0 | BA25: =AA25*FINANZAS!$J23 -> 0 | BB25: =AB25*FINANZAS!$J23 -> 0 | BC25: =AC25*FINANZAS!$J23 -> 0 | BD25: =AD25*FINANZAS!$J23 -> 0 | BF25: =IFERROR(D25*FINANZAS!$N23,0) -> 0 | BG25: =IFERROR(E25*FINANZAS!$N23,0) -> 0 | BH25: =IFERROR(F25*FINANZAS!$N23,0) -> 0 | BI25: =IFERROR(G25*FINANZAS!$N23,0) -> 0 | BJ25: =IFERROR(H25*FINANZAS!$N23,0) -> 0 | BK25: =IFERROR(I25*FINANZAS!$N23,0) -> 0 | BL25: =IFERROR(J25*FINANZAS!$N23,0) -> 0 | BM25: =IFERROR(K25*FINANZAS!$N23,0) -> 0 | BN25: =IFERROR(L25*FINANZAS!$N23,0) -> 0 | BO25: =IFERROR(M25*FINANZAS!$N23,0) -> 0 | BP25: =IFERROR(N25*FINANZAS!$N23,0) -> 0 | BQ25: =IFERROR(O25*FINANZAS!$N23,0) -> 0
C26: =IF(FINANZAS!C24="","",FINANZAS!C24) ->  | P26: 0 | S26: =IFERROR(D26*FINANZAS!$K24,0) -> 0 | T26: =IFERROR(E26*FINANZAS!$K24,0) -> 0 | U26: =IFERROR(F26*FINANZAS!$K24,0) -> 0 | V26: =IFERROR(G26*FINANZAS!$K24,0) -> 0 | W26: =IFERROR(H26*FINANZAS!$K24,0) -> 0 | X26: =IFERROR(I26*FINANZAS!$K24,0) -> 0 | Y26: =IFERROR(J26*FINANZAS!$K24,0) -> 0 | Z26: =IFERROR(K26*FINANZAS!$K24,0) -> 0 | AA26: =IFERROR(L26*FINANZAS!$K24,0) -> 0 | AB26: =IFERROR(M26*FINANZAS!$K24,0) -> 0 | AC26: =IFERROR(N26*FINANZAS!$K24,0) -> 0 | AD26: =IFERROR(O26*FINANZAS!$K24,0) -> 0 | AF26: =IFERROR(D26*FINANZAS!$G24,0) -> 0 | AG26: =IFERROR(E26*FINANZAS!$G24,0) -> 0 | AH26: =IFERROR(F26*FINANZAS!$G24,0) -> 0 | AI26: =IFERROR(G26*FINANZAS!$G24,0) -> 0 | AJ26: =IFERROR(H26*FINANZAS!$G24,0) -> 0 | AK26: =IFERROR(I26*FINANZAS!$G24,0) -> 0 | AL26: =IFERROR(J26*FINANZAS!$G24,0) -> 0 | AM26: =IFERROR(K26*FINANZAS!$G24,0) -> 0 | AN26: =IFERROR(L26*FINANZAS!$G24,0) -> 0 | AO26: =IFERROR(M26*FINANZAS!$G24,0) -> 0 | AP26: =IFERROR(N26*FINANZAS!$G24,0) -> 0 | AQ26: =IFERROR(O26*FINANZAS!$G24,0) -> 0 | AS26: =S26*FINANZAS!$J24 -> 0 | AT26: =T26*FINANZAS!$J24 -> 0 | AU26: =U26*FINANZAS!$J24 -> 0 | AV26: =V26*FINANZAS!$J24 -> 0 | AW26: =W26*FINANZAS!$J24 -> 0 | AX26: =X26*FINANZAS!$J24 -> 0 | AY26: =Y26*FINANZAS!$J24 -> 0 | AZ26: =Z26*FINANZAS!$J24 -> 0 | BA26: =AA26*FINANZAS!$J24 -> 0 | BB26: =AB26*FINANZAS!$J24 -> 0 | BC26: =AC26*FINANZAS!$J24 -> 0 | BD26: =AD26*FINANZAS!$J24 -> 0 | BF26: =IFERROR(D26*FINANZAS!$N24,0) -> 0 | BG26: =IFERROR(E26*FINANZAS!$N24,0) -> 0 | BH26: =IFERROR(F26*FINANZAS!$N24,0) -> 0 | BI26: =IFERROR(G26*FINANZAS!$N24,0) -> 0 | BJ26: =IFERROR(H26*FINANZAS!$N24,0) -> 0 | BK26: =IFERROR(I26*FINANZAS!$N24,0) -> 0 | BL26: =IFERROR(J26*FINANZAS!$N24,0) -> 0 | BM26: =IFERROR(K26*FINANZAS!$N24,0) -> 0 | BN26: =IFERROR(L26*FINANZAS!$N24,0) -> 0 | BO26: =IFERROR(M26*FINANZAS!$N24,0) -> 0 | BP26: =IFERROR(N26*FINANZAS!$N24,0) -> 0 | BQ26: =IFERROR(O26*FINANZAS!$N24,0) -> 0
